Workbook

Sheet TDPrimas_ (hidden)
A3: periodo | B3: 2023-Q4
A4: Ramo_ | B4: 10 Total General
A6: jerarquia | B6: nombre_compania | C6: Suma de Prima_DirectaAct | D6: Suma de Prima_DirectaAnt | E6: Suma de Part_Mercado_Act | F6: Suma de Part_Mercado_Ant | G6: Suma de PD_IncreAbs | H6: Suma de PD_IncreRel | I6: Suma de Part_Operacion_Act | J6: Suma de Part_Cartera_Act | K6: Suma de Part_Sector_Act
A7: 1 | B7: G.N.P. | C7: 99677568.47 | D7: 88896231.25 | E7: 12.72865445 | F7: 13.33016328 | G7: 10781337.22 | H7: 12.12800258 | I7: 100 | J7: 100 | K7: 12.72865445
A8: 2 | B8: Metlife México | C8: 79147200.16 | D8: 69679915.87 | E8: 10.10696165 | F8: 10.4486393 | G8: 9467284.294 | H8: 13.58681935 | I8: 100 | J8: 100 | K8: 10.10696165
A9: 3 | B9: BBVA Bancomer | C9: 65800436.18 | D9: 54574701.13 | E9: 8.402602789 | F9: 8.183582888 | G9: 11225735.05 | H9: 20.56948517 | I9: 100 | J9: 100 | K9: 8.402602789
A10: 4 | B10: AXA Seguros | C10: 54332276.38 | D10: 47014413.87 | E10: 6.938138462 | F10: 7.049903067 | G10: 7317862.51 | H10: 15.56514674 | I10: 100 | J10: 100 | K10: 6.938138462
A11: 5 | B11: Quálitas | C11: 50334013.66 | D11: 38613311.12 | E11: 6.427567174 | F11: 5.790141322 | G11: 11720702.54 | H11: 30.35404683 | I11: 100 | J11: 100 | K11: 6.427567174
A12: 5.1 | B12: TOTAL GRANDES | C12: 349291494.9 | D12: 298778573.2 | E12: 44.60392452 | F12: 44.80242986 | G12: 50512921.62 | H12: 16.90647394 | I12: 100 | J12: 100 | K12: 44.60392452
A13: 6 | B13: Monterrey New York Life | C13: 38611132.55 | D13: 37521624.68 | E13: 4.930575371 | F13: 5.62644081 | G13: 1089507.874 | H13: 2.9036799 | I13: 100 | J13: 100 | K13: 4.930575371
A14: 7 | B14: Banorte | C14: 37616661.6 | D14: 28914191.64 | E14: 4.803583138 | F14: 4.335739437 | G14: 8702469.958 | H14: 30.09757307 | I14: 100 | J14: 100 | K14: 4.803583138
A15: 8 | B15: Citibanamex Seguros | C15: 33772004.56 | D15: 17073983.29 | E15: 4.31262703 | F15: 2.560277098 | G15: 16698021.27 | H15: 97.79804156 | I15: 100 | J15: 100 | K15: 4.31262703
A16: 9 | B16: Mapfre México | C16: 27302085.11 | D16: 21167003.16 | E16: 3.486429419 | F16: 3.174033412 | G16: 6135081.953 | H16: 28.98417838 | I16: 100 | J16: 100 | K16: 3.486429419
A17: 10 | B17: Inbursa | C17: 26673376.96 | D17: 23044846.03 | E17: 3.406144467 | F17: 3.455619613 | G17: 3628530.931 | H17: 15.7455204 | I17: 100 | J17: 100 | K17: 3.406144467
A18: 11 | B18: Chubb Seguros México | C18: 23324255.29 | D18: 20933874.3 | E18: 2.978467377 | F18: 3.139075285 | G18: 2390380.985 | H18: 11.41872236 | I18: 100 | J18: 100 | K18: 2.978467377
A19: 12 | B19: Zurich Santander | C19: 22099973.42 | D19: 14538030.86 | E19: 2.822128683 | F19: 2.180006085 | G19: 7561942.566 | H19: 52.01490243 | I19: 100 | J19: 100 | K19: 2.822128683
A20: 13 | B20: Allianz México | C20: 21222664.48 | D20: 18949473.91 | E20: 2.710097837 | F20: 2.841510575 | G20: 2273190.575 | H20: 11.99606166 | I20: 100 | J20: 100 | K20: 2.710097837
A21: 14 | B21: Atlas | C21: 19354152.86 | D21: 17397320.1 | E21: 2.471492109 | F21: 2.608762084 | G21: 1956832.76 | H21: 11.24789766 | I21: 100 | J21: 100 | K21: 2.471492109
A22: 15 | B22: Pensiones Banorte | C22: 15869494.54 | D22: 18733422.24 | E22: 2.026507221 | F22: 2.809113207 | G22: -2863927.706 | H22: -15.28779776 | I22: 100 | J22: 100 | K22: 2.026507221
A23: 15.1 | B23: TOTAL MEDIANAS | C23: 265845801.4 | D23: 218273770.2 | E23: 33.94805265 | F23: 32.73057761 | G23: 47572031.17 | H23: 21.79466233 | I23: 100 | J23: 100 | K23: 33.94805265
A24: 16 | B24: Pensiones BBVA Bancomer | C24: 13902414.3 | D24: 11908763.69 | E24: 1.775314451 | F24: 1.785742345 | G24: 1993650.612 | H24: 16.74103764 | I24: 100 | J24: 100 | K24: 1.775314451
A25: 17 | B25: GMX Seguros | C25: 12495032.84 | D25: 12685626.08 | E25: 1.595594253 | F25: 1.902234375 | G25: -190593.2341 | H25: -1.50243459 | I25: 100 | J25: 100 | K25: 1.595594253
A26: 18 | B26: HDI Seguros | C26: 11666681.3 | D26: 9660591.706 | E26: 1.489815183 | F26: 1.44862457 | G26: 2006089.597 | H26: 20.76570109 | I26: 100 | J26: 100 | K26: 1.489815183
A27: 19 | B27: Zurich Aseguradora Mexicana | C27: 11092660.55 | D27: 5416891.157 | E27: 1.416513717 | F27: 0.8122733952 | G27: 5675769.392 | H27: 104.7790924 | I27: 100 | J27: 100 | K27: 1.416513717
A28: 20 | B28: HSBC Seguros | C28: 9806444.113 | D28: 6620173.555 | E28: 1.252266086 | F28: 0.9927079379 | G28: 3186270.558 | H28: 48.12971339 | I28: 100 | J28: 100 | K28: 1.252266086
A29: 21 | B29: Agroasemex | C29: 9462507.852 | D29: 6906763.889 | E29: 1.208346015 | F29: 1.035682718 | G29: 2555743.963 | H29: 37.00349402 | I29: 100 | J29: 100 | K29: 1.208346015
A30: 22 | B30: Afirme | C30: 8049984.273 | D30: 7592685.292 | E30: 1.027969178 | F30: 1.13853797 | G30: 457298.9814 | H30: 6.022888659 | I30: 100 | J30: 100 | K30: 1.027969178
A31: 23 | B31: AIG Seguros | C31: 7470400.894 | D31: 6307111.087 | E31: 0.9539573752 | F31: 0.9457636101 | G31: 1163289.807 | H31: 18.44409891 | I31: 100 | J31: 100 | K31: 0.9539573752
A32: 24 | B32: ProFuturo G.N.P. | C32: 7376094.613 | D32: 9964700.289 | E32: 0.941914625 | F32: 1.494226245 | G32: -2588605.676 | H32: -25.97775749 | I32: 100 | J32: 100 | K32: 0.941914625
A33: 25 | B33: Seguros SURA | C33: 6588756.679 | D33: 6914356.54 | E33: 0.8413729218 | F33: 1.03682125 | G33: -325599.8615 | H33: -4.709040669 | I33: 100 | J33: 100 | K33: 0.8413729218
A34: 26 | B34: Hir Seguros | C34: 4653799.879 | D34: 3705981.813 | E34: 0.5942822588 | F34: 0.5557192018 | G34: 947818.0662 | H34: 25.57535665 | I34: 100 | J34: 100 | K34: 0.5942822588
A35: 27 | B35: BUPA México | C35: 4592609.611 | D35: 4031130.83 | E35: 0.5864683665 | F35: 0.6044759311 | G35: 561478.7806 | H35: 13.92856755 | I35: 100 | J35: 100 | K35: 0.5864683665
A36: 28 | B36: Seguros Azteca | C36: 4474308.14 | D36: 3916508.027 | E36: 0.5713614718 | F36: 0.5872880182 | G36: 557800.1134 | H36: 14.24228189 | I36: 100 | J36: 100 | K36: 0.5713614718
A37: 29 | B37: Seguros Argos | C37: 4263445.338 | D37: 3759735.104 | E37: 0.5444346538 | F37: 0.5637796126 | G37: 503710.2344 | H37: 13.39749265 | I37: 100 | J37: 100 | K37: 0.5444346538
A38: 30 | B38: FM Global | C38: 3855035.131 | D38: 3524079.946 | E38: 0.4922813711 | F38: 0.528442662 | G38: 330955.1851 | H38: 9.391250773 | I38: 100 | J38: 100 | K38: 0.4922813711
A39: 31 | B39: Ve Por Más | C39: 3803565.687 | D39: 3075303.199 | E39: 0.4857088114 | F39: 0.4611477134 | G39: 728262.4875 | H39: 23.68099795 | I39: 100 | J39: 100 | K39: 0.4857088114
A40: 32 | B40: ANA | C40: 3485553.02 | D40: 3108861.043 | E40: 0.4450991395 | F40: 0.4661797775 | G40: 376691.9768 | H40: 12.11671965 | I40: 100 | J40: 100 | K40: 0.4450991395
A41: 33 | B41: General de Seguros | C41: 3056102.556 | D41: 2674276.15 | E41: 0.3902590522 | F41: 0.4010129252 | G41: 381826.4058 | H41: 14.27774786 | I41: 100 | J41: 100 | K41: 0.3902590522
A42: 34 | B42: Plan Seguro | C42: 2700000.003 | D42: 2935556.73 | E42: 0.3447853673 | F42: 0.4401924578 | G42: -235556.7269 | H42: -8.024260764 | I42: 100 | J42: 100 | K42: 0.3447853673
A43: 35 | B43: Cardif Vida | C43: 2477706.566 | D43: 2952222.396 | E43: 0.3163988768 | F43: 0.4426915069 | G43: -474515.8304 | H43: -16.07317359 | I43: 100 | J43: 100 | K43: 0.3163988768
A44: 36 | B44: Cardif Seguros Generales | C44: 2438887.278 | D44: 2044435.08 | E44: 0.3114417204 | F44: 0.306567028 | G44: 394452.1989 | H44: 19.29394593 | I44: 100 | J44: 100 | K44: 0.3114417204
A45: 37 | B45: El Potosí | C45: 2109928.129 | D45: 2162007.806 | E45: 0.2694342015 | F45: 0.3241972877 | G45: -52079.67725 | H45: -2.408857041 | I45: 100 | J45: 100 | K45: 0.2694342015
A46: 38 | B46: Insignia Life | C46: 2054654.46 | D46: 1967652.949 | E46: 0.2623758488 | F46: 0.2950533978 | G46: 87001.5108 | H46: 4.42158821 | I46: 100 | J46: 100 | K46: 0.2623758488
A47: 39 | B47: Seguros Azteca Daños | C47: 1936052.427 | D47: 3041486.847 | E47: 0.2472305727 | F47: 0.4560768854 | G47: -1105434.42 | H47: -36.34519812 | I47: 100 | J47: 100 | K47: 0.2472305727
A48: 40 | B48: Prudential | C48: 1903927.412 | D48: 1613118.019 | E48: 0.2431282634 | F48: 0.2418901935 | G48: 290809.3926 | H48: 18.02778155 | I48: 100 | J48: 100 | K48: 0.2431282634
A49: 41 | B49: HDI Global Seguros | C49: 1842535.706 | D49: 1126819.261 | E49: 0.2352886479 | F49: 0.1689687461 | G49: 715716.4452 | H49: 63.5165257 | I49: 100 | J49: 100 | K49: 0.2352886479
A50: 42 | B50: BBVA Bancomer Salud | C50: 1736345.618 | D50: 972061.2441 | E50: 0.2217283559 | F50: 0.1457624797 | G50: 764284.3737 | H50: 78.62512556 | I50: 100 | J50: 100 | K50: 0.2217283559
A51: 43 | B51: El Águila | C51: 1678335.854 | D51: 1427020.148 | E51: 0.2143206086 | F51: 0.2139844548 | G51: 251315.7058 | H51: 17.61122337 | I51: 100 | J51: 100 | K51: 0.2143206086
A52: 44 | B52: Primero Seguros | C52: 1477029.964 | D52: 988246.9214 | E52: 0.1886141919 | F52: 0.1481895535 | G52: 488783.0427 | H52: 49.45960692 | I52: 100 | J52: 100 | K52: 0.1886141919
A53: 45 | B53: La Latinoamericana | C53: 1367985.915 | D53: 1344599.487 | E53: 0.1746894539 | F53: 0.2016253158 | G53: 23386.428 | H53: 1.739285805 | I53: 100 | J53: 100 | K53: 0.1746894539
A54: 46 | B54: Tokio Marine | C54: 1122680.138 | D54: 1393936.176 | E54: 0.1433643272 | F54: 0.2090234486 | G54: -271256.0378 | H54: -19.4597172 | I54: 100 | J54: 100 | K54: 0.1433643272
A55: 47 | B55: Pan-American México | C55: 1108651.254 | D55: 953705.3999 | E55: 0.1415728628 | F55: 0.143009985 | G55: 154945.8542 | H55: 16.24672087 | I55: 100 | J55: 100 | K55: 0.1415728628
A56: 48 | B56: General de Salud | C56: 1059775.161 | D56: 1053737.074 | E56: 0.1353314695 | F56: 0.1580099296 | G56: 6038.08721 | H56: 0.5730164915 | I56: 100 | J56: 100 | K56: 0.1353314695
A57: 49 | B57: Patrimonial Vida | C57: 1031653.283 | D57: 2638295.487 | E57: 0.131740354 | F57: 0.3956175545 | G57: -1606642.204 | H57: -60.89697729 | I57: 100 | J57: 100 | K57: 0.131740354
A58: 50 | B58: Swiss Re Corporate Solutions | C58: 952812.2395 | D58: 672719.1746 | E58: 0.121672488 | F58: 0.1008755524 | G58: 280093.0649 | H58: 41.6359568 | I58: 100 | J58: 100 | K58: 0.121672488
A59: 51 | B59: Berkley Seguros | C59: 772546.6723 | D59: 636056.9386 | E59: 0.09865288439 | F59: 0.09537797864 | G59: 136489.7337 | H59: 21.45872883 | I59: 100 | J59: 100 | K59: 0.09865288439
A60: 52 | B60: Atradius | C60: 719164.0615 | D60: 808718.9571 | E60: 0.0918360166 | F60: 0.1212689851 | G60: -89554.89558 | H60: -11.07367334 | I60: 100 | J60: 100 | K60: 0.0918360166
A61: 53 | B61: Sompo Japan | C61: 654697.3205 | D61: 700245.3844 | E61: 0.08360372439 | F61: 0.1050031613 | G61: -45548.06388 | H61: -6.504586092 | I61: 100 | J61: 100 | K61: 0.08360372439
A62: 54 | B62: PREVEM Seguros | C62: 620700.7378 | D62: 580810.9912 | E62: 0.07926241911 | F62: 0.08709374106 | G62: 39889.74661 | H62: 6.86793935 | I62: 100 | J62: 100 | K62: 0.07926241911
A63: 55 | B63: AXA Salud | C63: 603978.9678 | D63: 573796.8175 | E63: 0.07712707778 | F63: 0.08604195204 | G63: 30182.15028 | H63: 5.260076277 | I63: 100 | J63: 100 | K63: 0.07712707778
A64: 56 | B64: Assurant Vida | C64: 583459.9453 | D64: 1073592.106 | E64: 0.07450683382 | F64: 0.1609872304 | G64: -490132.1606 | H64: -45.6534803 | I64: 100 | J64: 100 | K64: 0.07450683382
A65: 57 | B65: Solunion Crédito | C65: 552668.0343 | D65: 675000.4388 | E65: 0.07057475962 | F65: 0.1012176324 | G65: -122332.4044 | H65: -18.12330739 | I65: 100 | J65: 100 | K65: 0.07057475962
A66: 58 | B66: Dentegra | C66: 546993.8823 | D66: 506069.7808 | E66: 0.06985018015 | F66: 0.07588615078 | G66: 40924.10147 | H66: 8.086651885 | I66: 100 | J66: 100 | K66: 0.06985018015
A67: 59 | B67: Patrimonial Inbursa | C67: 534611.905 | D67: 575425.8227 | E67: 0.0682690229 | F67: 0.08628622454 | G67: -40813.91769 | H67: -7.092819974 | I67: 100 | J67: 100 | K67: 0.0682690229
A68: 60 | B68: SHF Cred Vivienda | C68: 502029.3153 | D68: 378646.8667 | E68: 0.0641082821 | F68: 0.05677883625 | G68: 123382.4487 | H68: 32.58509696 | I68: 100 | J68: 100 | K68: 0.0641082821
A69: 61 | B69: Skandia Life | C69: 370659.0223 | D69: 447144.7953 | E69: 0.04733252111 | F69: 0.06705023426 | G69: -76485.773 | H69: -17.1053703 | I69: 100 | J69: 100 | K69: 0.04733252111
A70: 62 | B70: Coface | C70: 355281.3449 | D70: 385583.536 | E70: 0.0453688181 | F70: 0.05781900334 | G70: -30302.19102 | H70: -7.858787576 | I70: 100 | J70: 100 | K70: 0.0453688181
A71: 63 | B71: Patrimonial Daños | C71: 346493.2363 | D71: 284972.9415 | E71: 0.04424659171 | F71: 0.04273224845 | G71: 61520.29482 | H71: 21.58811798 | I71: 100 | J71: 100 | K71: 0.04424659171
A72: 64 | B72: Centauro | C72: 327845.3255 | D72: 183069.316 | E72: 0.0418652855 | F72: 0.02745160103 | G72: 144776.0095 | H72: 79.08261892 | I72: 100 | J72: 100 | K72: 0.0418652855
A73: 65 | B73: Assurant Daños | C73: 320873.3918 | D73: 195056.2367 | E73: 0.04097498153 | F73: 0.02924906316 | G73: 125817.1552 | H73: 64.50301581 | I73: 100 | J73: 100 | K73: 0.04097498153
A74: 66 | B74: MediAccess | C74: 313127.319 | D74: 287353.0011 | E74: 0.03998582132 | F74: 0.04308914302 | G74: 25774.31793 | H74: 8.969566295 | I74: 100 | J74: 100 | K74: 0.03998582132
A75: 67 | B75: Virginia Surety | C75: 126647.9777 | D75: 108805.0165 | E75: 0.01617272942 | F75: 0.01631552446 | G75: 17842.96119 | H75: 16.39902439 | I75: 100 | J75: 100 | K75: 0.01617272942
A76: 68 | B76: Odontoprev | C76: 122528.5688 | D76: 81304.39794 | E76: 0.01564668798 | F76: 0.01219175306 | G76: 41224.17086 | H76: 50.7034944 | I76: 100 | J76: 100 | K76: 0.01564668798
A77: 69 | B77: Genworth Seg. de Crédito | C77: 111575.4806 | D77: 70363.62443 | E77: 0.01424799741 | F77: 0.01055116273 | G77: 41211.85618 | H77: 58.56983138 | I77: 100 | J77: 100 | K77: 0.01424799741
A78: 70 | B78: Crabi | C78: 106661.0989 | D78: 36639.4109 | E78: 0.0136204393 | F78: 0.005494151133 | G78: 70021.68801 | H78: 191.1102998 | I78: 100 | J78: 100 | K78: 0.0136204393
A79: 71 | B79: SPP Seguros | C79: 73642.42453 | D79: 56814.78747 | E79: 0.009404011245 | F79: 0.008519488204 | G79: 16827.63706 | H79: 29.61841065 | I79: 100 | J79: 100 | K79: 0.009404011245
A80: 72 | B80: Quálitas Salud | C80: 61370.43991 | D80: 16458.52345 | E80: 0.007836899867 | F80: 0.002467987695 | G80: 44911.91646 | H80: 272.8793783 | I80: 100 | J80: 100 | K80: 0.007836899867
A81: 73 | B81: SPT | C81: 46427.2397 | D81: 31148.55592 | E81: 0.005928678842 | F81: 0.004670786719 | G81: 15278.68378 | H81: 49.05101803 | I81: 100 | J81: 100 | K81: 0.005928678842
A82: 74 | B82: Metlife Pensiones | C82: 39233.6321 | D82: 20461.44299 | E82: 0.005010067496 | F82: 0.003068233288 | G82: 18772.18911 | H82: 91.74420943 | I82: 100 | J82: 100 | K82: 0.005010067496
A83: 75 | B83: Metlife Más | C83: 38315.49016 | D83: 30174.1693 | E83: 0.004892822345 | F83: 0.004524675544 | G83: 8141.32086 | H83: 26.98109359 | I83: 100 | J83: 100 | K83: 0.004892822345
A84: 76 | B84: Citibanamex Pensiones | C84: 9961.6138 | D84: 21149.46084 | E84: 0.001272080988 | F84: 0.003171402907 | G84: -11187.84704 | H84: -52.89897045 | I84: 100 | J84: 100 | K84: 0.001272080988
A85: 77 | B85: Momento Seguros | C85: 1991.31951 | D85: 0 | E85: 0.0002542880844 | F85: 0 | G85: 0 | H85: 0 | I85: 100 | J85: 100 | K85: 0.0002542880844
A86: 78 | B86: Pensiones Inbursa | C86: 738.93736 | D86: 1325.17551 | E86: 9.436103288e-05 | F86: 0.0001987126526 | G86: -586.23815 | H86: -44.23852883 | I86: 100 | J86: 100 | K86: 9.436103288e-05
A87: 79 | B87: Aserta Seguros de Vida | C87: 0 | D87: 596.44602 | E87: 0 | F87: 8.943824413e-05 | G87: 0 | H87: 0 | I87: 0 | J87: 0 | K87: 0
A88: 79 | B88: Principal México | C88: 0 | D88: 0 | E88: 0 | F88: 0 | G88: 0 | H88: 0 | I88: 0 | J88: 0 | K88: 0
A89: 79 | B89: Zurich Daños | C89: 0 | D89: 0 | E89: 0 | F89: 0 | G89: 0 | H89: 0 | I89: 0 | J89: 0 | K89: 0
A90: 79 | B90: Zurich Vida | C90: 0 | D90: 0 | E90: 0 | F90: 0 | G90: 0 | H90: 0 | I90: 0 | J90: 0 | K90: 0
A91: 150.1 | B91: TOTAL RESTO | C91: 167958582.9 | D91: 149827944.5 | E91: 21.44802282 | F91: 22.46699254 | G91: 18130638.36 | H91: 12.1009725 | I91: 100 | J91: 100 | K91: 21.44802282
A92: 200 | B92: Patria | C92: 0 | D92: 0 | E92: 0 | F92: 0 | G92: 0 | H92: 0 | I92: 0 | J92: 0 | K92: 0
A93: 201.1 | B93: TOTAL | C93: 783095879.1 | D93: 666880288 | E93: 100 | F93: 100 | G93: 116215591.2 | H93: 17.42675458 | I93: 100 | J93: 100 | K93: 100

Sheet TDPrimas Vida (hidden)
A2: periodo | B2: 2023-Q4
A3: Ramo_ | B3: 12 Vida Total
A4: subramo | B4: (Varios elementos)
A6: Jerarquia 2 | B6: nombre_compania | C6: Suma de Prima_DirectaAct | D6: Suma de Prima_DirectaAnt | E6: Suma de Part_Cartera_Act | F6: Suma de Prima_Directa_Act1anio | G6: Suma de Prima_Directa_Ant1anio | H6: Suma de PD_IncreRel1anio | I6: Suma de PrimaDirectaAct_Renov | J6: Suma de PrimaDirectaAnt_Renov | K6: Suma de PD_PartMerc_Renovacion | L6: Suma de PrimaDirectaAct_Unica | M6: Suma de PrimaDirectaAnt_Unica | N6: Suma de PD_PartMerc_Unicas
A7: 1 | B7: Metlife México | C7: 53633599.84 | D7: 48016518.99 | E7: 67.76436783 | F7: 9727393.17 | G7: 9244390.84 | H7: 5.224815121 | I7: 36550842.94 | J7: 32002822.34 | K7: 11.77898799 | L7: 7355363.728 | M7: 6769305.805 | N7: 2.370362324
A8: 2 | B8: BBVA Bancomer | C8: 51186624.65 | D8: 43150700.47 | E8: 77.79070721 | F8: 43246378.27 | G8: 36550558.51 | H8: 18.31933637 | I8: 5597069.056 | J8: 4528194.094 | K8: 1.803728831 | L8: 2343177.333 | M8: 2071947.872 | N8: 0.7551195936
A9: 3 | B9: G.N.P. | C9: 36667379.17 | D9: 35246575.57 | E9: 36.7859888 | F9: 9951703.187 | G9: 8615839.587 | H9: 15.50474086 | I9: 19070462.77 | J9: 18931513.77 | K9: 6.145706472 | L9: 7645213.213 | M9: 7699222.208 | N9: 2.463770118
A10: 4 | B10: Citibanamex Seguros | C10: 32898528.32 | D10: 16107597.51 | E10: 97.41360854 | F10: 18596545.69 | G10: 8860948.793 | H10: 109.8708178 | I10: 14301982.62 | J10: 7246648.714 | K10: 4.609001272 | L10: 0 | M10: 0 | N10: 0
A11: 5 | B11: Monterrey New York Life | C11: 26072847.95 | D11: 25726165.11 | E11: 67.52676296 | F11: 2695983.273 | G11: 2404396.266 | H11: 12.1272442 | I11: 16982045.04 | J11: 16907794.13 | K11: 5.472686498 | L11: 6394819.638 | M11: 6413974.711 | N11: 2.060814407
A12: 5.1 | B12: TOTAL GRANDES | C12: 200458979.9 | D12: 168247557.6 | E12: 63.23460724 | F12: 84218003.59 | G12: 65676133.99 | H12: 28.23227932 | I12: 92502402.44 | J12: 79616973.05 | K12: 29.81011106 | L12: 23738573.91 | M12: 22954450.6 | N12: 7.650066443
A13: 6 | B13: Banorte | C13: 21816337.41 | D13: 15636401.48 | E13: 57.99647412 | F13: 5530582.322 | G13: 5176883.032 | H13: 6.832282814 | I13: 9222621.45 | J13: 7984926.705 | K13: 2.972110588 | L13: 7063133.639 | M13: 2474591.741 | N13: 2.27618735
A14: 7 | B14: Zurich Santander | C14: 17510255.99 | D14: 10124406.06 | E14: 79.23202283 | F14: 10809361.2 | G14: 4184166.794 | H14: 158.3396344 | I14: 1393444.986 | J14: 1359424.265 | K14: 0.4490559025 | L14: 5307449.803 | M14: 4580814.999 | N14: 1.710395232
A15: 8 | B15: Allianz México | C15: 11818475.59 | D15: 10326844.2 | E15: 55.68799148 | F15: 5067714.119 | G15: 4570849.743 | H15: 10.87028462 | I15: 6750761.469 | J15: 5755994.453 | K15: 2.175521325 | L15: 0 | M15: 0 | N15: 0
A16: 9 | B16: HSBC Seguros | C16: 9369131.335 | D16: 6262776.066 | E16: 95.54055708 | F16: 7088212.191 | G16: 3961507.714 | H16: 78.92713335 | I16: 2280919.145 | J16: 2301268.352 | K16: 0.7350560768 | L16: 0 | M16: 0 | N16: 0
A17: 10 | B17: Mapfre México | C17: 6089419.665 | D17: 5365137.705 | E17: 22.30386302 | F17: 5213652.38 | G17: 4602141.839 | H17: 13.2875205 | I17: 831403.3286 | J17: 759074.1155 | K17: 0.2679306149 | L17: 44363.95708 | M17: 3368.52744 | N17: 0.01429686638
A18: 11 | B18: AXA Seguros | C18: 6043669.143 | D18: 5473617.575 | E18: 11.12353383 | F18: 1435565.258 | G18: 1151388.461 | H18: 24.68122675 | I18: 4596068.504 | J18: 4315534.032 | K18: 1.481143289 | L18: 12035.38205 | M18: 6695.08307 | N18: 0.003878559542
A19: 12 | B19: Inbursa | C19: 5016047.75 | D19: 5269961.063 | E19: 18.80544694 | F19: 2656727.116 | G19: 2958038.826 | H19: -10.18619861 | I19: 2359320.634 | J19: 2311922.237 | K19: 0.7603219838 | L19: 0 | M19: 0 | N19: 0
A20: 13 | B20: Hir Seguros | C20: 4587074.326 | D20: 3672557.955 | E20: 98.56621353 | F20: 2182770.948 | G20: 1054319.038 | H20: 107.0313509 | I20: 2404303.379 | J20: 2618238.917 | K20: 0.7748182627 | L20: 0 | M20: 0 | N20: 0
A21: 14 | B21: Seguros Argos | C21: 4263445.338 | D21: 3759735.104 | E21: 100 | F21: 1364920.694 | G21: 976257.407 | H21: 39.81155832 | I21: 2643984.121 | J21: 2511749.588 | K21: 0.8520585218 | L21: 254540.5239 | M21: 271728.1087 | N21: 0.08202901856
A22: 15 | B22: Seguros Azteca | C22: 4110479.393 | D22: 3769814.528 | E22: 91.86849148 | F22: 3989311.431 | G22: 3667577.854 | H22: 8.772372117 | I22: 10366.27404 | J22: 11381.52445 | K22: 0.003340667618 | L22: 110801.6881 | M22: 90855.14963 | N22: 0.03570729562
A23: 15.1 | B23: TOTAL MEDIANAS | C23: 90624335.94 | D23: 69661251.73 | E23: 42.65778005 | F23: 45338817.66 | G23: 32303130.71 | H23: 40.35425255 | I23: 32493193.29 | J23: 29929514.19 | K23: 10.47135723 | L23: 12792324.99 | M23: 7428053.609 | N23: 4.122494322
A24: 16 | B24: Cardif Vida | C24: 2628465.894 | D24: 2711266.144 | E24: 106.0846321 | F24: 20057.46467 | G24: 339064.6367 | H24: -94.08447166 | I24: 1901522.171 | J24: 1708593.716 | K24: 0.6127904316 | L24: 706886.258 | M24: 663607.7912 | N24: 0.2278033576
A25: 17 | B25: Afirme | C25: 2274000.339 | D25: 2172231.379 | E25: 28.24850661 | F25: 2274000.339 | G25: 0 | H25: 0 | I25: 0 | J25: 0 | K25: 0 | L25: 0 | M25: 0 | N25: 0
A26: 18 | B26: Atlas | C26: 2259905.78 | D26: 2612427.283 | E26: 11.67659363 | F26: 1426399.93 | G26: 1824502.26 | H26: -21.81977733 | I26: 721174.8766 | J26: 708213.5183 | K26: 0.2324080521 | L26: 112330.9735 | M26: 79711.50393 | N26: 0.03620012785
A27: 19 | B27: Insignia Life | C27: 2054654.46 | D27: 1967652.949 | E27: 100 | F27: 625406.7596 | G27: 577363.1559 | H27: 8.321210508 | I27: 1432598.105 | J27: 1392872.776 | K27: 0.4616735079 | L27: -3350.4051 | M27: -2582.98365 | N27: -0.001079711937
A28: 20 | B28: Prudential | C28: 1903927.412 | D28: 1613118.019 | E28: 100 | F28: 515118.3292 | G28: 555658.74 | H28: -7.295918864 | I28: 1367279.234 | J28: 1023104.967 | K28: 0.4406236458 | L28: 21529.84919 | M28: 34354.31222 | N28: 0.006938275965
A29: 21 | B29: Seguros SURA | C29: 1451209.48 | D29: 1862741.333 | E29: 22.02554368 | F29: 1177184.086 | G29: 0 | H29: 0 | I29: 272981.7139 | J29: 0 | K29: 0.08797193366 | L29: 1043.68045 | M29: 0 | N29: 0.0003363396983
A30: 22 | B30: Patrimonial Vida | C30: 1031653.283 | D30: 2638295.487 | E30: 100 | F30: 1031653.283 | G30: 2638295.487 | H30: -60.89697729 | I30: 0 | J30: 0 | K30: 0 | L30: 0 | M30: 0 | N30: 0
A31: 23 | B31: Chubb Seguros México | C31: 986902.8964 | D31: 969501.0056 | E31: 4.23123004 | F31: 986902.8964 | G31: 969501.0056 | H31: 1.794932729 | I31: 0 | J31: 0 | K31: 0 | L31: 0 | M31: 0 | N31: 0
A32: 24 | B32: General de Seguros | C32: 728265.5931 | D32: 593549.9112 | E32: 23.8298807 | F32: 380976.5854 | G32: 172497.4866 | H32: 120.8592096 | I32: 347289.0077 | J32: 421052.4246 | K32: 0.1119184326 | L32: 0 | M32: 0 | N32: 0
A33: 25 | B33: Zurich Aseguradora Mexicana | C33: 716996.9875 | D33: 483896.7651 | E33: 6.463706199 | F33: 285225.7091 | G33: 225631.4776 | H33: 26.41219751 | I33: 165603.4667 | J33: 138342.2452 | K33: 0.05336788672 | L33: 266259.0882 | M33: 119923.0424 | N33: 0.08580547945
A34: 26 | B34: Ve Por Más | C34: 663044.6313 | D34: 570808.7613 | E34: 17.43218564 | F34: 206932.4282 | G34: 196413.0316 | H34: 5.355752897 | I34: 352574.8921 | J34: 291572.7297 | K34: 0.1136218781 | L34: 103537.311 | M34: 82823 | N34: 0.03336625492
A35: 27 | B35: Assurant Vida | C35: 583459.9453 | D35: 1073592.106 | E35: 100 | F35: 573380.0789 | G35: 1062278.157 | H35: -46.02354618 | I35: 10079.86641 | J35: 11313.94886 | K35: 0.003248369007 | L35: 0 | M35: 0 | N35: 0
A36: 28 | B36: Pan-American México | C36: 536414.3269 | D36: 481604.771 | E36: 48.38440627 | F36: 181729.2369 | G36: 76118.23219 | H36: 138.746003 | I36: 247474.1617 | J36: 304129.5147 | K36: 0.07975179079 | L36: 107210.9282 | M36: 101357.0241 | N36: 0.0345501262
A37: 29 | B37: Skandia Life | C37: 370659.0223 | D37: 447144.7953 | E37: 100 | F37: 125608.992 | G37: 212633.8011 | H37: -40.9270815 | I37: 245050.0303 | J37: 234510.9942 | K37: 0.07897058267 | L37: 0 | M37: 0 | N37: 0
A38: 30 | B38: Patrimonial Inbursa | C38: 313029.6852 | D38: 382702.6806 | E38: 58.55269632 | F38: 313029.6852 | G38: 382702.6806 | H38: -18.20551538 | I38: 0 | J38: 0 | K38: 0 | L38: 0 | M38: 0 | N38: 0
A39: 31 | B39: El Potosí | C39: 309248.0846 | D39: 266560.3718 | E39: 14.65680657 | F39: 104475.7841 | G39: 71968.59623 | H39: 45.16857294 | I39: 203721.0527 | J39: 194288.8259 | K39: 0.06565177818 | L39: 1051.24786 | M39: 302.9497 | N39: 0.0003387783953
A40: 32 | B40: La Latinoamericana | C40: 236437.7877 | D40: 335301.6168 | E40: 17.28364197 | F40: 3107.31238 | G40: 133472.1995 | H40: -97.67194038 | I40: 233330.4753 | J40: 201829.4174 | K40: 0.07519380254 | L40: 0 | M40: 0 | N40: 0
A41: 33 | B41: Tokio Marine | C41: 86337.05157 | D41: 77681.76061 | E41: 7.69026267 | F41: 46378.06149 | G41: 32215.67904 | H41: 43.96114834 | I41: 39958.99008 | J41: 45466.08157 | K41: 0.01287730806 | L41: 0 | M41: 0 | N41: 0
A42: 34 | B42: Agroasemex | C42: 58713.91311 | D42: 58592.33705 | E42: 0.6204899803 | F42: 58713.91311 | G42: 58592.33705 | H42: 0.2074948127 | I42: 0 | J42: 0 | K42: 0 | L42: 0 | M42: 0 | N42: 0
A43: 35 | B43: HDI Seguros | C43: 28818.13189 | D43: 16047.40389 | E43: 0.2470122492 | F43: 0 | G43: 0 | H43: 0 | I43: 28818.13189 | J43: 16047.40389 | K43: 0.009287020549 | L43: 0 | M43: 0 | N43: 0
A44: 36 | B44: Aserta Seguros de Vida | C44: 0 | D44: 596.44602 | E44: 0 | F44: 0 | G44: 616.71188 | H44: 0 | I44: 0 | J44: -2.93576 | K44: 0 | L44: 0 | M44: -17.3301 | N44: 0
A45: 36 | B45: Principal México | C45: 0 | D45: 0 | E45: 0 | F45: 0 | G45: 0 | H45: 0 | I45: 0 | J45: 0 | K45: 0 | L45: 0 | M45: 0 | N45: 0
A46: 36 | B46: Zurich Vida | C46: 0 | D46: 0 | E46: 0 | F46: 0 | G46: 0 | H46: 0 | I46: 0 | J46: 0 | K46: 0 | L46: 0 | M46: 0 | N46: 0
A47: 150.1 | B47: TOTAL RESTO | C47: 19222144.7 | D47: 21335313.33 | E47: 17.30717734 | F47: 10336280.87 | G47: 9529525.676 | H47: 8.465848416 | I47: 7569456.175 | J47: 6691335.628 | K47: 2.43935642 | L47: 1316498.931 | M47: 1079479.31 | N47: 0.4242590281
A48: 201.1 | B48: TOTAL | C48: 310305460.6 | D48: 259244122.7 | E48: 48.44602006 | F48: 139893102.1 | G48: 107508790.4 | H48: 30.12247801 | I48: 132565051.9 | J48: 116237822.9 | K48: 42.72082472 | L48: 37847397.84 | M48: 31461983.51 | N48: 12.19681979

Sheet TD Siniestros (hidden)
P2: anio_reporte
A3: periodo | B3: 2023-Q4 | P3: mes_reporte
A4: Ramo_ | B4: 10 Total General | P4: numero_compania
P5: nombre_compania
A6: Jerarquia 2 | B6: nombre_compania | C6: Suma de CostoSin_Act | D6: Suma de SIN_IncreRel2 | E6: Suma de IncResvDivAct | F6: Suma de SINvsPRIM_ACT | G6: Suma de SINvsPRIM_ANT | H6: Suma de Costo_Sin_RetAct | I6: Suma de SIN_IncreRel | J6: Suma de Prima_DevengadaAct | K6: Suma de IncrDevengada | L6: Suma de SINvsPDEV_ACT | M6: Suma de SINvsPDEV_ANT | P6: ramo
A7: 1 | B7: G.N.P. | C7: 62980875.63 | D7: 8.695935288 | E7: 233757.8334 | F7: 63.18460271 | G7: 65.17965255 | H7: 59893223.46 | I7: 8.695935288 | J7: 81247514.31 | K7: 13.95718835 | L7: 73.7169918 | M7: 76.21612769 | P7: gestor_cia_id
A8: 2 | B8: Metlife México | C8: 53082948.44 | D8: 11.02260872 | E8: 141984.5518 | F8: 67.06863709 | G8: 68.61767394 | H8: 50692296.16 | I8: 11.02260872 | J8: 70116005.69 | K8: 13.35712503 | L8: 72.29775236 | M8: 73.83493399 | P8: ofuscacion
A9: 3 | B9: BBVA Bancomer | C9: 35296217.04 | D9: 23.12056068 | E9: 0 | F9: 53.64131165 | G9: 52.52985605 | H9: 34712897.99 | I9: 23.12056068 | J9: 38163785.99 | K9: 3.246257215 | L9: 90.95768957 | M9: 77.16091734 | P9: fecha_ofuscada
A10: 4 | B10: AXA Seguros | C10: 45272478.02 | D10: 39.67863767 | E10: 402709.8823 | F10: 83.32520012 | G10: 68.94031285 | H10: 33801341.29 | I10: 39.67863767 | J10: 44327469.36 | K10: 12.8391181 | L10: 76.25371305 | M10: 75.03605573 | P10: jerarquia
A11: 5 | B11: Quálitas | C11: 32298108.7 | D11: 27.22829022 | E11: 81803.46599 | F11: 64.16756055 | G11: 65.74403522 | H11: 32249299.09 | I11: 27.22829022 | J11: 46594456.34 | K11: 25.71204474 | L11: 69.21273822 | M11: 68.51131531 | P11: Prima_DirectaAct
A12: 5.1 | B12: TOTAL GRANDES | C12: 228930627.8 | D12: 19.0977167 | E12: 860255.7335 | F12: 65.54142634 | G12: 64.33554952 | H12: 211349058 | I12: 19.0977167 | J12: 280449231.7 | K12: 13.78974515 | L12: 75.36089749 | M12: 74.41343809 | P12: Prima_DirectaAnt
A13: 6 | B13: Monterrey New York Life | C13: 25117259.61 | D13: 2.051829013 | E13: 44912.71127 | F13: 65.05185927 | G13: 65.59486261 | H13: 23559385.01 | I13: 2.051829013 | J13: 30776518.73 | K13: -6.237687242 | L13: 76.54986977 | M13: 70.51284272 | P13: Prima_directa_Anual_act
A14: 7 | B14: Banorte | C14: 18337241.63 | D14: 8.087074795 | E14: 329013.3073 | F14: 48.74765821 | G14: 58.67447184 | H14: 16012362.24 | I14: 8.087074795 | J14: 23313212.13 | K14: 8.024029326 | L14: 68.68363806 | M14: 68.46039218 | P14: Prima_directa_Anual_ant
A15: 8 | B15: Citibanamex Seguros | C15: 25141239.02 | D15: -7.049787796 | E15: 0 | F15: 74.44402354 | G15: 158.4168741 | H15: 25111262 | I15: -7.049787796 | J15: 15935065.71 | K15: -51.5999708 | L15: 157.5849291 | M15: 81.99694444 | P15: CostoSin_Act
A16: 9 | B16: Mapfre México | C16: 28839684.63 | D16: 116.7156578 | E16: 443717.0129 | F16: 105.6318025 | G16: 62.86962094 | H16: 10011725.23 | I16: 116.7156578 | J16: 15780715.84 | K16: 2.796625843 | L16: 63.44278251 | M16: 61.90212383 | P16: CostoSin_Ant
A17: 10 | B17: Inbursa | C17: 24497679.61 | D17: 94.51924918 | E17: 201766.1702 | F17: 91.84318749 | G17: 54.64979726 | H17: 12747036.3 | I17: 94.51924918 | J17: 16718934.14 | K17: 6.832415335 | L17: 76.24311571 | M17: 69.83357039 | P17: cto_sin_anual_act
A18: 11 | B18: Chubb Seguros México | C18: 13753989.08 | D18: 14.12114044 | E18: -3552.52179 | F18: 58.96860976 | G18: 57.57221785 | H18: 6166184.558 | I18: 14.12114044 | J18: 9455117.121 | K18: 1.628422927 | L18: 65.21531652 | M18: 62.44898255 | P18: cto_sin_anual_ant
A19: 12 | B19: Zurich Santander | C19: 4923329.541 | D19: 62.81294641 | E19: 0 | F19: 22.27753602 | G19: 20.80005024 | H19: 4047735.519 | I19: 62.81294641 | J19: 11613384.03 | K19: 9.603140907 | L19: 34.85405726 | M19: 26.70199561 | P19: pib_act
A20: 13 | B20: Allianz México | C20: 11547143.68 | D20: -5.651910288 | E20: 7038.31719 | F20: 54.40949082 | G20: 64.58687937 | H20: 9583597.309 | I20: -5.651910288 | J20: 7245671.443 | K20: -46.09512985 | L20: 132.2665178 | M20: 68.74101681 | P20: pib_ant
A21: 14 | B21: Atlas | C21: 14298447.54 | D21: 41.58282371 | E21: 31710.80657 | F21: 73.87793022 | G21: 58.04916306 | H21: 8275196.576 | I21: 41.58282371 | J21: 11644931.49 | K21: 13.82365835 | L21: 71.06264714 | M21: 71.92740742 | P21: inpc_act
A22: 15 | B22: Pensiones Banorte | C22: 13221368.35 | D22: 12.02407393 | E22: 0 | F22: 83.31310314 | G22: 63.00106928 | H22: 13221368.35 | I22: 12.02407393 | J22: -2483246.114 | K22: -68.31187047 | L22: -532.4227944 | M22: -150.6058643 | P22: inpc_ant
A23: 15.1 | B23: TOTAL MEDIANAS | C23: 179677382.7 | D23: 24.99879086 | E23: 1054605.804 | F23: 67.58706806 | G23: 65.85459008 | H23: 128735853.1 | I23: 24.99879086 | J23: 140000304.5 | K23: -9.129326671 | L23: 91.95398077 | M23: 79.43896699 | P23: IncResvDivAct
A24: 16 | B24: Pensiones BBVA Bancomer | C24: 8986526.72 | D24: 17.0929979 | E24: 0 | F24: 64.64004398 | G24: 64.44574776 | H24: 8986526.72 | I24: 17.0929979 | J24: -1562960.354 | K24: -71.73980096 | L24: -574.968309 | M24: -138.7676389 | P24: IncResvDivAnt
A25: 17 | B25: GMX Seguros | C25: 6296886.714 | D25: 22.10208883 | E25: 0 | F25: 50.39511936 | G25: 40.65283905 | H25: 1312572.481 | I25: 22.10208883 | J25: 2833503.731 | K25: 3.638682312 | L25: 46.32330165 | M25: 29.21042205 | P25: Costo_Sin_RetAct
A26: 18 | B26: HDI Seguros | C26: 7385044.428 | D26: 26.17019752 | E26: 0 | F26: 63.3003014 | G26: 60.58883498 | H26: 6827847.593 | I26: 26.17019752 | J26: 10429665.46 | K26: 12.93980688 | L26: 65.46564335 | M26: 61.15344992 | P26: Costo_Sin_RetAnt
A27: 19 | B27: Zurich Aseguradora Mexicana | C27: 5553356.507 | D27: 25.3289597 | E27: 2061.91258 | F27: 50.06334127 | G27: 81.80013314 | H27: 3754825.065 | I27: 25.3289597 | J27: 6673026.233 | K27: 100.9071815 | L27: 56.2686993 | M27: 66.93464971 | P27: Prima_DevengadaAct
A28: 20 | B28: HSBC Seguros | C28: 2955902.846 | D28: 8.50776059 | E28: 0 | F28: 30.14245339 | G28: 41.14906581 | H28: 2909007.161 | I28: 8.50776059 | J28: 5211228.969 | K28: 12.69387926 | L28: 55.82190264 | M28: 58.19687698 | P28: Prima_DevengadaAnt
A29: 21 | B29: Agroasemex | C29: 5688797.696 | D29: 324.5301758 | E29: -807.21649 | F29: 60.11934452 | G29: 19.40158963 | H29: 1723111.18 | I29: 324.5301758 | J29: 2560526.324 | K29: -64.19882815 | L29: 67.2951949 | M29: 18.34903607 | P29: Prima_Directa_Act1anio
A30: 22 | B30: Afirme | C30: 5313066.637 | D30: -10.02966125 | E30: 7079.26942 | F30: 66.00095673 | G30: 77.77687828 | H30: 3684994.987 | I30: -10.02966125 | J30: 4471609.911 | K30: -3.566699411 | L30: 82.40868636 | M30: 91.86160476 | P30: Prima_Directa_Ant1anio
A31: 23 | B31: AIG Seguros | C31: 2277143.321 | D31: 42.98437137 | E31: 6803.55098 | F31: 30.48221044 | G31: 25.25057749 | H31: 596179.229 | I31: 42.98437137 | J31: 1162037.59 | K31: 1.483954096 | L31: 51.3046423 | M31: 46.67718871 | P31: PrimaDirectaAct_Renov
A32: 24 | B32: ProFuturo G.N.P. | C32: 5650443.318 | D32: 16.58134553 | E32: 0 | F32: 76.60481073 | G32: 48.63951305 | H32: 5650443.318 | I32: 16.58134553 | J32: -1611256.745 | K32: -58.21289597 | L32: -350.6854718 | M32: -125.6987576 | P32: PrimaDirectaAnt_Renov
A33: 25 | B33: Seguros SURA | C33: 3879785.453 | D33: 0 | E33: 13744.52832 | F33: 58.88494055 | G33: 0 | H33: 2338493.94 | I33: 0 | J33: 4203875.319 | K33: -22.13579843 | L33: 55.62710029 | M33: 48.93188506 | P33: PrimaDirectaAct_Unica
A34: 26 | B34: Hir Seguros | C34: 2044603.934 | D34: 38.27536317 | E34: 323825.1354 | F34: 43.93407511 | G34: 39.89891637 | H34: 966982.1918 | I34: 38.27536317 | J34: 1771038.731 | K34: 18.28411519 | L34: 54.59972022 | M34: 77.21702479 | P34: PrimaDirectaAnt_Unica
A35: 27 | B35: BUPA México | C35: 2879362.628 | D35: 0.6172043949 | E35: 0 | F35: 62.69556683 | G35: 70.99000776 | H35: 2610873.044 | I35: 0.6172043949 | J35: 4476025.012 | K35: 11.37583796 | L35: 58.330171 | M35: 64.21238227 | P35: ramo_raiz
A36: 28 | B36: Seguros Azteca | C36: 2198151.509 | D36: -20.15605378 | E36: 0 | F36: 49.12829961 | G36: 70.29373319 | H36: 1146868.064 | I36: -20.15605378 | J36: 3207081.745 | K36: 10.46451747 | L36: 35.76048743 | M36: 44.03499519 | P36: operacion
A37: 29 | B37: Seguros Argos | C37: 2819086.815 | D37: 3.989425047 | E37: -667.7862 | F37: 66.12226947 | G37: 72.10444296 | H37: 2186193.488 | I37: 3.989425047 | J37: 3202590.486 | K37: 19.34771575 | L37: 68.26328554 | M37: 73.11763839 | P37: ramo_complemento
A38: 30 | B38: FM Global | C38: 567117.2264 | D38: 114.4562624 | E38: 0 | F38: 14.71107804 | G38: 7.503922751 | H38: -4189.01937 | I38: 114.4562624 | J38: -45572.96652 | K38: -657.447385 | L38: 9.191895305 | M38: 151.7658392 | P38: subramo
A39: 31 | B39: Ve Por Más | C39: 2330975.79 | D39: 24.30162715 | E39: 17768.62355 | F39: 61.28396306 | G39: 60.97797658 | H39: 1977629.258 | I39: 24.30162715 | J39: 2712500.654 | K39: 7.913285598 | L39: 72.90797352 | M39: 59.05193425 | P39: periodo
A40: 32 | B40: ANA | C40: 2377752.728 | D40: 18.40313909 | E40: 16977.86225 | F40: 68.21737369 | G40: 64.59548471 | H40: 1868849.224 | I40: 18.40313909 | J40: 2582750.408 | K40: 10.35519331 | L40: 72.35887827 | M40: 65.287166 | P40: PD_Cartera_act
A41: 33 | B41: General de Seguros | C41: 1840238.406 | D41: -10.32429902 | E41: 9101.66515 | F41: 60.21520457 | G41: 76.7349225 | H41: 1562126.139 | I41: -10.32429902 | J41: 2247079.423 | K41: 11.51786728 | L41: 69.51806522 | M41: 89.20625055 | P41: PD_Cartera_ant
A42: 34 | B42: Plan Seguro | C42: 1620121.303 | D42: -17.67121112 | E42: 0 | F42: 60.00449261 | G42: 67.03557335 | H42: 1208812.825 | I42: -17.67121112 | J42: 2011119.935 | K42: -4.128848238 | L42: 60.10645135 | M42: 69.22433564 | P42: PD_Sector_Total_act
A43: 35 | B43: Cardif Vida | C43: 805106.8515 | D43: -5.679345763 | E43: -24673.78561 | F43: 32.49403552 | G43: 28.91329901 | H43: 608316.261 | I43: -5.679345763 | J43: 1932700.036 | K43: -18.77903584 | L43: 31.47494436 | M43: 28.4773857 | P43: PD_Sector_Total_ant
A44: 36 | B44: Cardif Seguros Generales | C44: 332165.86 | D44: 86.52242625 | E44: 0 | F44: 13.6195659 | G44: 8.710650995 | H44: 107727.6311 | I44: 86.52242625 | J44: 1591798.158 | K44: -12.55400817 | L44: 6.767669039 | M44: 12.80831782 | P44: PD_Sector_SinPension_act
A45: 37 | B45: El Potosí | C45: 1005212.265 | D45: -26.67095356 | E45: 1711.85115 | F45: 47.64201451 | G45: 63.40514263 | H45: 936548.6447 | I45: -26.67095356 | J45: 1719695.487 | K45: 14.74154084 | L45: 54.46014435 | M45: 74.93849879 | P45: PD_Sector_SinPension_ant
A46: 38 | B46: Insignia Life | C46: 780135.7163 | D46: -8.304394785 | E46: 25890.23616 | F46: 37.96919296 | G46: 43.23875089 | H46: 757585.0416 | I46: -8.304394785 | J46: 1571534.547 | K46: 1.127786322 | L46: 48.20670619 | M46: 45.88316324 | P46: PD_Mercado_Act
A47: 39 | B47: Seguros Azteca Daños | C47: 1131905.005 | D47: 22.6004774 | E47: 1135.43359 | F47: 58.46458441 | G47: 30.35511457 | H47: 127951.5389 | I47: 22.6004774 | J47: 358101.3172 | K47: -4.905681398 | L47: 35.73054126 | M47: 22.60706614 | P47: PD_Mercado_Ant
A48: 40 | B48: Prudential | C48: 277711.6465 | D48: 66.0692336 | E48: 0 | F48: 14.5862518 | G48: 10.36665795 | H48: 525790.7729 | I48: 66.0692336 | J48: 2065918.652 | K48: -0.4889781208 | L48: 25.4507007 | M48: 20.81284003 | P48: CS_Mercado_Act
A49: 41 | B49: HDI Global Seguros | C49: 1044553.439 | D49: 168.0472495 | E49: 0 | F49: 56.69108263 | G49: 34.58318966 | H49: 8007.50172 | I49: 168.0472495 | J49: -321.12995 | K49: -94.13770985 | L49: -2493.539366 | M49: -29.04365121 | P49: CS_Mercado_Ant
A50: 42 | B50: BBVA Bancomer Salud | C50: 1029974.405 | D50: 43.91368258 | E50: 0 | F50: 59.31851323 | G50: 73.62591717 | H50: 917930.6451 | I50: 43.91368258 | J50: 1354493.5 | K50: 55.8404208 | L50: 67.76929128 | M50: 72.76219911 | P50: PD_Operacion_act
A51: 43 | B51: El Águila | C51: 2183804.794 | D51: 268.0001593 | E51: 0 | F51: 130.11727 | G51: 41.58490402 | H51: 666259.2286 | I51: 268.0001593 | J51: 1225209.253 | K51: 18.22937378 | L51: 54.37921948 | M51: 45.78875448 | P51: PD_Operacion_ant
A52: 44 | B52: Primero Seguros | C52: 647142.5488 | D52: 17.88757763 | E52: 0 | F52: 43.81377254 | G52: 55.54774602 | H52: 518719.5968 | I52: 17.88757763 | J52: 906199.9059 | K52: 24.56253508 | L52: 57.24118855 | M52: 63.42663376 | P52: Part_Mercado_Act
A53: 45 | B53: La Latinoamericana | C53: 812283.3874 | D53: 5.04319788 | E53: 4262.45604 | F53: 59.37805198 | G53: 57.51044068 | H53: 471278.2236 | I53: 5.04319788 | J53: 846890.9299 | K53: 6.485580969 | L53: 55.64804238 | M53: 57.38148915 | P53: Part_Mercado_Ant
A54: 46 | B54: Tokio Marine | C54: 793668.1672 | D54: 33.37668991 | E54: 1729.95701 | F54: 70.69405971 | G54: 42.68901534 | H54: 125046.09 | I54: 33.37668991 | J54: 244623.6547 | K54: 4.080362299 | L54: 51.11774252 | M54: 54.82333969 | P54: PD_IncreAbs
A55: 47 | B55: Pan-American México | C55: 569806.9101 | D55: 9.185773344 | E55: 46630.86087 | F55: 51.39640693 | G55: 54.72016717 | H55: 476213.6445 | I55: 9.185773344 | J55: 867208.9679 | K55: 21.73389908 | L55: 54.91336715 | M55: 52.10219443 | P55: PD_IncreRel
A56: 48 | B56: General de Salud | C56: 954157.5281 | D56: 40.93472874 | E56: 0 | F56: 90.03395844 | G56: 64.24950662 | H56: 650088.8716 | I56: 40.93472874 | J56: 681152.8609 | K56: 0.7425944127 | L56: 95.43949808 | M56: 89.72633993 | P56: Part_Operacion_Act
A57: 49 | B57: Patrimonial Vida | C57: 1588749.454 | D57: -12.88001494 | E57: 5692.4964 | F57: 154.0003293 | G57: 69.12166445 | H57: 931943.5011 | I57: -12.88001494 | J57: 1117366.973 | K57: 37.17814334 | L57: 83.40532013 | M57: 74.9801059 | P57: Part_Operacion_Ant
A58: 50 | B58: Swiss Re Corporate Solutions | C58: 251785.6877 | D58: 623.7244803 | E58: 765.66129 | F58: 26.42553037 | G58: 5.171588608 | H58: 679.58436 | I58: 623.7244803 | J58: -8870.35089 | K58: -3.772350117 | L58: -7.661301886 | M58: -66.77775476 | P58: Part_Cartera_Act
A59: 51 | B59: Berkley Seguros | C59: 236227.9385 | D59: -42.79988547 | E59: 6286.84051 | F59: 30.57782099 | G59: 64.9289481 | H59: 22696.18001 | I59: -42.79988547 | J59: 34023.38649 | K59: 99.33070749 | L59: 66.70758661 | M59: 151.392925 | P59: Part_Cartera_Ant
A60: 52 | B60: Atradius | C60: 288171.6954 | D60: 58.4664299 | E60: 9503.75004 | F60: 40.0703693 | G60: 22.48621839 | H60: 92106.81564 | I60: 58.4664299 | J60: 206826.0471 | K60: -10.73485027 | L60: 44.53346999 | M60: 29.12909665 | P60: Part_Sector_Act
A61: 53 | B61: Sompo Japan | C61: 156448.1479 | D61: 438.8711345 | E61: -0.43877 | F61: 23.89625602 | G61: 4.146056829 | H61: 15876.31673 | I61: 438.8711345 | J61: 1648.13584 | K61: -98.86965868 | L61: 963.2893324 | M61: -5.302794977 | P61: Part_SectorSinPen_Act
A62: 54 | B62: PREVEM Seguros | C62: 444977.83 | D62: 0 | E62: 0 | F62: 71.68959257 | G62: 0 | H62: 363324.4637 | I62: 0 | J62: 598638.0812 | K62: 3.132905004 | L62: 60.69183954 | M62: 50.01972657 | P62: Part_Sector_Ant
A63: 55 | B63: AXA Salud | C63: 636807.5424 | D63: 21.67025803 | E63: 0 | F63: 105.4353837 | G63: 91.21486808 | H63: 98014.01218 | I63: 21.67025803 | J63: 105172.5227 | K63: 0.7581778278 | L63: 93.1935544 | M63: 64.77055409 | P63: Part_SectorSinPen_Ant
A64: 56 | B64: Assurant Vida | C64: 216415.0019 | D64: -12.11611332 | E64: -622.7596 | F64: 37.09166389 | G64: 22.93711531 | H64: 30942.49298 | I64: -12.11611332 | J64: 152255.3202 | K64: 51.84418922 | L64: 20.32276636 | M64: 34.12370999 | P64: PD_PartMerc_1anio
A65: 57 | B65: Solunion Crédito | C65: 230540.1104 | D65: 61.83599278 | E65: 539.4494 | F65: 41.71403014 | G65: 21.10412377 | H65: 23654.62604 | I65: 61.83599278 | J65: 47396.3835 | K65: 63.5393219 | L65: 49.90808221 | M65: 52.95620989 | P65: PD_PartMerc_Renovacion
A66: 58 | B66: Dentegra | C66: 189852.0706 | D66: 14.73883721 | E66: 138.11643 | F66: 34.70826214 | G66: 32.69598977 | H66: 189852.0706 | I66: 14.73883721 | J66: 527374.6148 | K66: 6.373557088 | L66: 35.99947082 | M66: 33.37485247 | P66: PD_PartMerc_Unicas
A67: 59 | B67: Patrimonial Inbursa | C67: 48042.9091 | D67: -21.75588436 | E67: 0 | F67: 8.986501918 | G67: 10.67058583 | H67: 47977.35389 | I67: -21.75588436 | J67: 531257.073 | K67: -7.226139107 | L67: 9.030911083 | M67: 10.69379566 | P67: PDanio1_IncreAbs1anio
A68: 60 | B68: SHF Cred Vivienda | C68: -200470.5934 | D68: -413.0009948 | E68: 0 | F68: -39.93204925 | G68: 16.91494503 | H68: -178754.2236 | I68: -413.0009948 | J68: 199482.2311 | K68: -15813.03516 | L68: -89.60909581 | M68: -4369.673892 | P68: PD_IncreRel1anio
A69: 61 | B69: Skandia Life | C69: 134593.6901 | D69: 102.2748439 | E69: 0 | F69: 36.31199621 | G69: 14.88108665 | H69: 120645.3248 | I69: 102.2748439 | J69: 358032.087 | K69: -5.997061291 | L69: 33.69679121 | M69: 15.37578793 | P69: PD_IncreAbsRenov
A70: 62 | B70: Coface | C70: 68006.18178 | D70: 52.26494343 | E70: 2494.83236 | F70: 19.14150088 | G70: 11.58323813 | H70: 16873.32691 | I70: 52.26494343 | J70: 67946.82977 | K70: -10.68354345 | L70: 24.83313345 | M70: 26.94761741 | P70: PD_IncreRelRenov
A71: 63 | B71: Patrimonial Daños | C71: 78814.89926 | D71: 91.02233148 | E71: 0 | F71: 22.74644668 | G71: 14.47839957 | H71: 54761.61604 | I71: 91.02233148 | J71: 336261.4561 | K71: 21.93437317 | L71: 16.28542762 | M71: 12.01287037 | P71: PD_IncreAbsUni
A72: 64 | B72: Centauro | C72: 122344.2043 | D72: 29.90414512 | E72: 242.8491 | F72: 37.31766012 | G72: 51.44519677 | H72: 122344.2043 | I72: 29.90414512 | J72: 277911.9404 | K72: 61.11055322 | L72: 44.02265125 | M72: 54.59805528 | P72: PD_IncreRelUnica
A73: 65 | B73: Assurant Daños | C73: 46487.4669 | D73: -25.78903458 | E73: -740.3987 | F73: 14.48779116 | G73: 32.11500248 | H73: 9571.7648 | I73: -25.78903458 | J73: 52598.49103 | K73: 20.1161952 | L73: 18.19779353 | M73: 37.20197402 | P73: SIN_IncreRel
A74: 66 | B74: MediAccess | C74: 215508.1428 | D74: 49.93091348 | E74: 0 | F74: 68.82444607 | G74: 50.02150567 | H74: 202862.5254 | I74: 49.93091348 | J74: 306776.8933 | K74: 23.18006819 | L74: 66.12705516 | M74: 51.01517558 | P74: SINvsPRIM_ACT
A75: 67 | B75: Virginia Surety | C75: 41350.51661 | D75: 42.73980839 | E75: 0 | F75: 32.64996202 | G75: 26.62483415 | H75: 24023.36733 | I75: 42.73980839 | J75: 65677.91957 | K75: 41.53936754 | L75: 36.57754004 | M75: 39.1668074 | P75: SINvsPRIM_ANT
A76: 68 | B76: Odontoprev | C76: 30238.6561 | D76: 38.53628703 | E76: 0 | F76: 24.67886175 | G76: 26.84632874 | H76: 29899.1561 | I76: 38.53628703 | J76: 115578.3079 | K76: 60.57002123 | L76: 25.86917618 | M76: 30.03159865 | P76: PartSIN_Merc_Act
A77: 69 | B77: Genworth Seg. de Crédito | C77: 23550.13913 | D77: 100.5221782 | E77: 0 | F77: 21.10691256 | G77: 16.69101939 | H77: 17412.20235 | I77: 100.5221782 | J77: 211701.758 | K77: 21.44318645 | L77: 8.224873763 | M77: 6.378397929 | P77: IncrSinRet
A78: 70 | B78: Crabi | C78: 62883.92948 | D78: 82.59596019 | E78: 0 | F78: 58.9567613 | G78: 93.99397685 | H78: 33744.70398 | I78: 82.59596019 | J78: 44721.40441 | K78: 450.4024076 | L78: 75.45537629 | M78: 117.751354 | P78: IncrDevengada
A79: 71 | B79: SPP Seguros | C79: 4631.08862 | D79: -47.35735124 | E79: 0 | F79: 6.288615088 | G79: 15.48402886 | H79: 3720.22452 | I79: -47.35735124 | J79: 66052.73408 | K79: 245.33154 | L79: 5.632203681 | M79: 45.99290117 | P79: SINvsPDEV_ACT
A80: 72 | B80: Quálitas Salud | C80: 16799.35849 | D80: 311.5648628 | E80: 0 | F80: 27.37369736 | G80: 24.80067706 | H80: 14767.18793 | I80: 311.5648628 | J80: 33122.94368 | K80: 525.308479 | L80: 44.58295758 | M80: 68.45289327 | P80: SINvsPDEV_ANT
A81: 73 | B81: SPT | C81: 29067.63279 | D81: 37.21910543 | E81: 0 | F81: 62.60900492 | G81: 68.00755545 | H81: 29067.63279 | I81: 37.21910543 | J81: 36180.35957 | K81: 19.0405676 | L81: 80.34091738 | M81: 69.69749858 | P81: size_compania
A82: 74 | B82: Metlife Pensiones | C82: 360257.627 | D82: 2.507420021 | E82: 0 | F82: 918.2367466 | G82: 1717.598385 | H82: 360257.627 | I82: 2.507420021 | J82: 33824.89391 | K82: -139.2185593 | L82: 1065.066539 | M82: -407.4863579 | P82: anio_anterior
A83: 75 | B83: Metlife Más | C83: 3231.07595 | D83: 13.03014264 | E83: 0 | F83: 8.432819041 | G83: 9.473655071 | H83: 3405.74797 | I83: 13.03014264 | J83: 39437.83204 | K83: 27.34153314 | L83: 8.63573831 | M83: 9.083429519 | P83: num_trimeste
A84: 76 | B84: Citibanamex Pensiones | C84: 794059.1689 | D84: 4.142483089 | E84: 0 | F84: 7971.190059 | G84: 3605.169066 | H84: 794059.1689 | I84: 4.142483089 | J84: 8509.77068 | K84: -102.6783038 | L84: 9331.1465 | M84: -239.9755021 | P84: fecha_carga
A85: 77 | B85: Momento Seguros | C85: 517.98642 | D85: 0 | E85: 0 | F85: 26.01222041 | G85: 0 | H85: 248.46831 | I85: 0 | J85: -131.38891 | K85: 0 | L85: -189.1090428 | M85: 0 | P85: Ramo_
A86: 78 | B86: Pensiones Inbursa | C86: 27131.69777 | D86: 11.09459848 | E86: 0 | F86: 3671.718232 | G86: 1842.937579 | H86: 27131.69777 | I86: 11.09459848 | J86: 1686.0163 | K86: -115.4963286 | L86: 1609.219185 | M86: -224.4662625 | P86: Jerarquia 2
A87: 79 | B87: Aserta Seguros de Vida | C87: -3995.80383 | D87: -116.7024872 | E87: -296.49778 | F87: 0 | G87: 4010.992648 | H87: -6946.9573 | I87: -116.7024872 | J87: 1211.64788 | K87: -89.72797739 | L87: -573.347869 | M87: -0.8232528682
A88: 79 | B88: Principal México | C88: 0 | D88: 0 | E88: 0 | F88: 0 | G88: 0 | H88: 0 | I88: 0 | J88: 0 | K88: 0 | L88: 0 | M88: 0
A89: 79 | B89: Zurich Daños | C89: 0 | D89: 0 | E89: 0 | F89: 0 | G89: 0 | H89: 0 | I89: 0 | J89: 0 | K89: 0 | L89: 0 | M89: 0
A90: 79 | B90: Zurich Vida | C90: 0 | D90: 0 | E90: 0 | F90: 0 | G90: 0 | H90: 0 | I90: 0 | J90: 0 | K90: 0 | L90: 0 | M90: 0
A91: 150.1 | B91: TOTAL RESTO | C91: 91175017.96 | D91: 26.47330162 | E91: 476578.4549 | F91: 54.28422673 | G91: 48.11540879 | H91: 61701772.76 | I91: 26.47330162 | J91: 77470748.32 | K91: 14.00620836 | L91: 79.64525205 | M91: 81.31473309
A92: 200 | B92: Patria | C92: 0 | D92: 0 | E92: 0 | F92: 0 | G92: 0 | H92: 4711803.684 | I92: 0 | J92: 9363518.075 | K92: 6.801601396 | L92: 50.32086921 | M92: 48.89800399
A93: 201.1 | B93: TOTAL | C93: 499783028.5 | D93: 22.47949124 | E93: 2391439.992 | F93: 63.82143513 | G93: 61.18856246 | H93: 401786683.9 | I93: 22.47949124 | J93: 497920284.5 | K93: 6.283942128 | L93: 80.69297362 | M93: 77.06717255

Sheet TD Operación (hidden)
C1: Ramo_ | D1: Suma de Prima_DirectaAct
B4: periodo | C4: 2023-Q4
B6: nombre_compania | C6: Ramo_ | D6: Suma de Prima_DirectaAct
A7: =B7&"|"&C7 -> Afirme|10 Total General | B7: Afirme | C7: 10 Total General | D7: 8049984.273
A8: =B8&"|"&C8 -> Afirme|11 Total General Sin Pensiones | B8: Afirme | C8: 11 Total General Sin Pensiones | D8: 8049984.273
A9: Afirme|12 Vida Total | B9: Afirme | C9: 12 Vida Total | D9: 2274000.339
A10: Afirme|13 Vida Individual | B10: Afirme | C10: 13 Vida Individual | D10: 1227967.994
A11: Afirme|14 Vida Gpo y Col | B11: Afirme | C11: 14 Vida Gpo y Col | D11: 1046032.345
A12: Afirme|38 Daños Total | B12: Afirme | C12: 38 Daños Total | D12: 5775983.934
A13: Afirme|39 Automoviles Total | B13: Afirme | C13: 39 Automoviles Total | D13: 2329550.936
A14: Afirme|41 Automoviles Residentes | B14: Afirme | C14: 41 Automoviles Residentes | D14: 1537706.412
A15: Afirme|42 Camiones | B15: Afirme | C15: 42 Camiones | D15: 740408.4923
A16: Afirme|44 Otros Automoviles y Obligatorios | B16: Afirme | C16: 44 Otros Automoviles y Obligatorios | D16: 51436.03225
A17: Afirme|46 Daños Sin Autos Total | B17: Afirme | C17: 46 Daños Sin Autos Total | D17: 3446432.998
A18: Afirme|46 Responsabilidad Civil y Riesgos Profesionales | B18: Afirme | C18: 46 Responsabilidad Civil y Riesgos Profesionales | D18: 948750.0505
A19: Afirme|47 RC General | B19: Afirme | C19: 47 RC General | D19: 571492.8456
A20: Afirme|48 RC Aviones y Barcos | B20: Afirme | C20: 48 RC Aviones y Barcos | D20: 94219.90328
A21: Afirme|49 RC Viajero | B21: Afirme | C21: 49 RC Viajero | D21: 8641.06504
A22: Afirme|50 RC Otros | B22: Afirme | C22: 50 RC Otros | D22: 274396.2365
A23: Afirme|51 Maritimo y Transportes | B23: Afirme | C23: 51 Maritimo y Transportes | D23: 362241.8154
A24: Afirme|52 MyT Carga | B24: Afirme | C24: 52 MyT Carga | D24: 128363.0163
A25: Afirme|53 MyT Cascos | B25: Afirme | C25: 53 MyT Cascos | D25: 233878.799
A26: Afirme|54 Incendio | B26: Afirme | C26: 54 Incendio | D26: 796658.9883
A27: Afirme|55 Riesgos Catastroficos | B27: Afirme | C27: 55 Riesgos Catastroficos | D27: 493001.1212
A28: Afirme|56 Terremoto y Erupcion Volcanica | B28: Afirme | C28: 56 Terremoto y Erupcion Volcanica | D28: 220591.8684
A29: Afirme|57 Huracan y Otros Riesgos Hidrometeorologicos | B29: Afirme | C29: 57 Huracan y Otros Riesgos Hidrometeorologicos | D29: 272409.2527
A30: Afirme|63 Diversos | B30: Afirme | C30: 63 Diversos | D30: 845781.0228
A31: Afirme|64 Miscelaneos | B31: Afirme | C31: 64 Miscelaneos | D31: 213399.1898
A32: Afirme|65 Tecnicos | B32: Afirme | C32: 65 Tecnicos | D32: 632381.833
A33: Agroasemex|10 Total General | B33: Agroasemex | C33: 10 Total General | D33: 9462507.852
A34: Agroasemex|11 Total General Sin Pensiones | B34: Agroasemex | C34: 11 Total General Sin Pensiones | D34: 9462507.852
A35: Agroasemex|12 Vida Total | B35: Agroasemex | C35: 12 Vida Total | D35: 58713.91311
A36: Agroasemex|14 Vida Gpo y Col | B36: Agroasemex | C36: 14 Vida Gpo y Col | D36: 58713.91311
A37: Agroasemex|28 Accidentes y Enfermedades Total | B37: Agroasemex | C37: 28 Accidentes y Enfermedades Total | D37: 0
A38: Agroasemex|29 Accidentes Personales | B38: Agroasemex | C38: 29 Accidentes Personales | D38: 0
A39: Agroasemex|31 AP Gpo y Col | B39: Agroasemex | C39: 31 AP Gpo y Col | D39: 0
A40: Agroasemex|38 Daños Total | B40: Agroasemex | C40: 38 Daños Total | D40: 9403793.939
A41: Agroasemex|46 Daños Sin Autos Total | B41: Agroasemex | C41: 46 Daños Sin Autos Total | D41: 9403793.939
A42: Agroasemex|46 Responsabilidad Civil y Riesgos Profesionales | B42: Agroasemex | C42: 46 Responsabilidad Civil y Riesgos Profesionales | D42: 729465.4071
A43: Agroasemex|47 RC General | B43: Agroasemex | C43: 47 RC General | D43: 675199.6247
A44: Agroasemex|48 RC Aviones y Barcos | B44: Agroasemex | C44: 48 RC Aviones y Barcos | D44: 782.06535
A45: Agroasemex|49 RC Viajero | B45: Agroasemex | C45: 49 RC Viajero | D45: 39058.49682
A46: Agroasemex|50 RC Otros | B46: Agroasemex | C46: 50 RC Otros | D46: 14425.22022
A47: Agroasemex|51 Maritimo y Transportes | B47: Agroasemex | C47: 51 Maritimo y Transportes | D47: 456778.1909
A48: Agroasemex|52 MyT Carga | B48: Agroasemex | C48: 52 MyT Carga | D48: 360401.7241
A49: Agroasemex|53 MyT Cascos | B49: Agroasemex | C49: 53 MyT Cascos | D49: 96376.46681
A50: Agroasemex|54 Incendio | B50: Agroasemex | C50: 54 Incendio | D50: 1623512.952
A51: Agroasemex|55 Riesgos Catastroficos | B51: Agroasemex | C51: 55 Riesgos Catastroficos | D51: 4534570.166
A52: Agroasemex|56 Terremoto y Erupcion Volcanica | B52: Agroasemex | C52: 56 Terremoto y Erupcion Volcanica | D52: 903168.6287
A53: Agroasemex|57 Huracan y Otros Riesgos Hidrometeorologicos | B53: Agroasemex | C53: 57 Huracan y Otros Riesgos Hidrometeorologicos | D53: 3565613.291
A54: Agroasemex|58 Otros Riesgos Catastroficos | B54: Agroasemex | C54: 58 Otros Riesgos Catastroficos | D54: 65788.24687
A55: Agroasemex|59 Agricola y de Animales | B55: Agroasemex | C55: 59 Agricola y de Animales | D55: 120307.4544
A56: Agroasemex|60 AyA Agricola | B56: Agroasemex | C56: 60 AyA Agricola | D56: 56247.64131
A57: Agroasemex|61 AyA Otros | B57: Agroasemex | C57: 61 AyA Otros | D57: 0
A58: Agroasemex|62 AyA Pecuario | B58: Agroasemex | C58: 62 AyA Pecuario | D58: 64059.81309
A59: Agroasemex|63 Diversos | B59: Agroasemex | C59: 63 Diversos | D59: 1939159.769
A60: Agroasemex|64 Miscelaneos | B60: Agroasemex | C60: 64 Miscelaneos | D60: 940369.374
A61: Agroasemex|65 Tecnicos | B61: Agroasemex | C61: 65 Tecnicos | D61: 998790.3948
A62: AIG Seguros|10 Total General | B62: AIG Seguros | C62: 10 Total General | D62: 7470400.894
A63: AIG Seguros|11 Total General Sin Pensiones | B63: AIG Seguros | C63: 11 Total General Sin Pensiones | D63: 7470400.894
A64: AIG Seguros|28 Accidentes y Enfermedades Total | B64: AIG Seguros | C64: 28 Accidentes y Enfermedades Total | D64: 233820.8556
A65: AIG Seguros|29 Accidentes Personales | B65: AIG Seguros | C65: 29 Accidentes Personales | D65: 233820.8556
A66: AIG Seguros|30 AP Individual | B66: AIG Seguros | C66: 30 AP Individual | D66: 77713.21767
A67: AIG Seguros|31 AP Gpo y Col | B67: AIG Seguros | C67: 31 AP Gpo y Col | D67: 156107.6379
A68: AIG Seguros|38 Daños Total | B68: AIG Seguros | C68: 38 Daños Total | D68: 7236580.039
A69: AIG Seguros|39 Automoviles Total | B69: AIG Seguros | C69: 39 Automoviles Total | D69: 534612.1975
A70: AIG Seguros|41 Automoviles Residentes | B70: AIG Seguros | C70: 41 Automoviles Residentes | D70: 369234.3277
A71: AIG Seguros|42 Camiones | B71: AIG Seguros | C71: 42 Camiones | D71: 53121.69383
A72: =B72&"|"&C72 -> AIG Seguros|43 Automoviles Turistas | B72: AIG Seguros | C72: 43 Automoviles Turistas | D72: 97876.90224
A73: AIG Seguros|44 Otros Automoviles y Obligatorios | B73: AIG Seguros | C73: 44 Otros Automoviles y Obligatorios | D73: 14379.27369
A74: AIG Seguros|46 Daños Sin Autos Total | B74: AIG Seguros | C74: 46 Daños Sin Autos Total | D74: 6701967.841
A75: AIG Seguros|46 Responsabilidad Civil y Riesgos Profesionales | B75: AIG Seguros | C75: 46 Responsabilidad Civil y Riesgos Profesionales | D75: 1427652.089
A76: AIG Seguros|47 RC General | B76: AIG Seguros | C76: 47 RC General | D76: 1426067.821
A77: AIG Seguros|48 RC Aviones y Barcos | B77: AIG Seguros | C77: 48 RC Aviones y Barcos | D77: 1584.26797
A78: AIG Seguros|51 Maritimo y Transportes | B78: AIG Seguros | C78: 51 Maritimo y Transportes | D78: 1130337.699
A79: AIG Seguros|52 MyT Carga | B79: AIG Seguros | C79: 52 MyT Carga | D79: 1129285.265
A80: AIG Seguros|53 MyT Cascos | B80: AIG Seguros | C80: 53 MyT Cascos | D80: 1052.43374
A81: AIG Seguros|54 Incendio | B81: AIG Seguros | C81: 54 Incendio | D81: 2073411.759
A82: AIG Seguros|55 Riesgos Catastroficos | B82: AIG Seguros | C82: 55 Riesgos Catastroficos | D82: 602531.7151
A83: AIG Seguros|56 Terremoto y Erupcion Volcanica | B83: AIG Seguros | C83: 56 Terremoto y Erupcion Volcanica | D83: 305815.3751
A84: AIG Seguros|57 Huracan y Otros Riesgos Hidrometeorologicos | B84: AIG Seguros | C84: 57 Huracan y Otros Riesgos Hidrometeorologicos | D84: 296716.34
A85: AIG Seguros|63 Diversos | B85: AIG Seguros | C85: 63 Diversos | D85: 1450973.929
A86: AIG Seguros|64 Miscelaneos | B86: AIG Seguros | C86: 64 Miscelaneos | D86: 216534.6905
A87: AIG Seguros|65 Tecnicos | B87: AIG Seguros | C87: 65 Tecnicos | D87: 1234439.239
A88: AIG Seguros|66 Credito | B88: AIG Seguros | C88: 66 Credito | D88: 17060.64968
A89: Allianz México|10 Total General | B89: Allianz México | C89: 10 Total General | D89: 21222664.48
A90: Allianz México|11 Total General Sin Pensiones | B90: Allianz México | C90: 11 Total General Sin Pensiones | D90: 21222664.48
A91: Allianz México|12 Vida Total | B91: Allianz México | C91: 12 Vida Total | D91: 11818475.59
A92: Allianz México|13 Vida Individual | B92: Allianz México | C92: 13 Vida Individual | D92: 11124710.91
A93: Allianz México|14 Vida Gpo y Col | B93: Allianz México | C93: 14 Vida Gpo y Col | D93: 693764.6734
A94: Allianz México|28 Accidentes y Enfermedades Total | B94: Allianz México | C94: 28 Accidentes y Enfermedades Total | D94: 3106120.303
A95: Allianz México|29 Accidentes Personales | B95: Allianz México | C95: 29 Accidentes Personales | D95: 41.51842
A96: Allianz México|30 AP Individual | B96: Allianz México | C96: 30 AP Individual | D96: 0
A97: Allianz México|31 AP Gpo y Col | B97: Allianz México | C97: 31 AP Gpo y Col | D97: 41.51842
A98: Allianz México|32 Gastos Medicos | B98: Allianz México | C98: 32 Gastos Medicos | D98: 3106078.784
A99: Allianz México|33 GMM. Individual | B99: Allianz México | C99: 33 GMM. Individual | D99: 1569427.531
A100: Allianz México|34 GMM. Gpo y Col | B100: Allianz México | C100: 34 GMM. Gpo y Col | D100: 1536651.253
A101: Allianz México|38 Daños Total | B101: Allianz México | C101: 38 Daños Total | D101: 6298068.591
A102: Allianz México|39 Automoviles Total | B102: Allianz México | C102: 39 Automoviles Total | D102: 221050.0837
A103: Allianz México|41 Automoviles Residentes | B103: Allianz México | C103: 41 Automoviles Residentes | D103: 221050.0837
A104: Allianz México|42 Camiones | B104: Allianz México | C104: 42 Camiones | D104: 0
A105: Allianz México|46 Daños Sin Autos Total | B105: Allianz México | C105: 46 Daños Sin Autos Total | D105: 6077018.507
A106: Allianz México|46 Responsabilidad Civil y Riesgos Profesionales | B106: Allianz México | C106: 46 Responsabilidad Civil y Riesgos Profesionales | D106: 280926.6229
A107: Allianz México|47 RC General | B107: Allianz México | C107: 47 RC General | D107: 258460.6253
A108: Allianz México|48 RC Aviones y Barcos | B108: Allianz México | C108: 48 RC Aviones y Barcos | D108: 22465.99759
A109: Allianz México|50 RC Otros | B109: Allianz México | C109: 50 RC Otros | D109: 0
A110: Allianz México|51 Maritimo y Transportes | B110: Allianz México | C110: 51 Maritimo y Transportes | D110: 338056.0314
A111: Allianz México|52 MyT Carga | B111: Allianz México | C111: 52 MyT Carga | D111: 274944.2308
A112: Allianz México|53 MyT Cascos | B112: Allianz México | C112: 53 MyT Cascos | D112: 63111.80064
A113: Allianz México|54 Incendio | B113: Allianz México | C113: 54 Incendio | D113: 848364.1485
A114: Allianz México|55 Riesgos Catastroficos | B114: Allianz México | C114: 55 Riesgos Catastroficos | D114: 430147.5586
A115: Allianz México|56 Terremoto y Erupcion Volcanica | B115: Allianz México | C115: 56 Terremoto y Erupcion Volcanica | D115: 185572.083
A116: Allianz México|57 Huracan y Otros Riesgos Hidrometeorologicos | B116: Allianz México | C116: 57 Huracan y Otros Riesgos Hidrometeorologicos | D116: 244575.4755
A117: Allianz México|63 Diversos | B117: Allianz México | C117: 63 Diversos | D117: 4179524.146
A118: Allianz México|64 Miscelaneos | B118: Allianz México | C118: 64 Miscelaneos | D118: 103987.5229
A119: Allianz México|65 Tecnicos | B119: Allianz México | C119: 65 Tecnicos | D119: 4075536.623
A120: ANA|10 Total General | B120: ANA | C120: 10 Total General | D120: 3485553.02
A121: ANA|11 Total General Sin Pensiones | B121: ANA | C121: 11 Total General Sin Pensiones | D121: 3485553.02
A122: ANA|38 Daños Total | B122: ANA | C122: 38 Daños Total | D122: 3485553.02
A123: ANA|39 Automoviles Total | B123: ANA | C123: 39 Automoviles Total | D123: 3485553.02
A124: ANA|41 Automoviles Residentes | B124: ANA | C124: 41 Automoviles Residentes | D124: 1790995.555
A125: ANA|42 Camiones | B125: ANA | C125: 42 Camiones | D125: 1495985.112
A126: ANA|43 Automoviles Turistas | B126: ANA | C126: 43 Automoviles Turistas | D126: 142434.0653
A127: ANA|44 Otros Automoviles y Obligatorios | B127: ANA | C127: 44 Otros Automoviles y Obligatorios | D127: 56138.28756
A128: Aserta Seguros de Vida|10 Total General | B128: Aserta Seguros de Vida | C128: 10 Total General | D128: 0
A129: Aserta Seguros de Vida|11 Total General Sin Pensiones | B129: Aserta Seguros de Vida | C129: 11 Total General Sin Pensiones | D129: 0
A130: Aserta Seguros de Vida|12 Vida Total | B130: Aserta Seguros de Vida | C130: 12 Vida Total | D130: 0
A131: Aserta Seguros de Vida|13 Vida Individual | B131: Aserta Seguros de Vida | C131: 13 Vida Individual | D131: 0
A132: Aserta Seguros de Vida|14 Vida Gpo y Col | B132: Aserta Seguros de Vida | C132: 14 Vida Gpo y Col | D132: 0
A133: Aserta Seguros de Vida|28 Accidentes y Enfermedades Total | B133: Aserta Seguros de Vida | C133: 28 Accidentes y Enfermedades Total | D133: 0
A134: Aserta Seguros de Vida|29 Accidentes Personales | B134: Aserta Seguros de Vida | C134: 29 Accidentes Personales | D134: 0
A135: Aserta Seguros de Vida|30 AP Individual | B135: Aserta Seguros de Vida | C135: 30 AP Individual | D135: 0
A136: =B136&"|"&C136 -> Aserta Seguros de Vida|31 AP Gpo y Col | B136: Aserta Seguros de Vida | C136: 31 AP Gpo y Col | D136: 0
A137: Aserta Seguros de Vida|32 Gastos Medicos | B137: Aserta Seguros de Vida | C137: 32 Gastos Medicos | D137: 0
A138: Aserta Seguros de Vida|33 GMM. Individual | B138: Aserta Seguros de Vida | C138: 33 GMM. Individual | D138: 0
A139: Assurant Daños|10 Total General | B139: Assurant Daños | C139: 10 Total General | D139: 320873.3918
A140: Assurant Daños|11 Total General Sin Pensiones | B140: Assurant Daños | C140: 11 Total General Sin Pensiones | D140: 320873.3918
A141: Assurant Daños|38 Daños Total | B141: Assurant Daños | C141: 38 Daños Total | D141: 320873.3918
A142: Assurant Daños|39 Automoviles Total | B142: Assurant Daños | C142: 39 Automoviles Total | D142: 45223.09084
A143: Assurant Daños|41 Automoviles Residentes | B143: Assurant Daños | C143: 41 Automoviles Residentes | D143: 45223.09084
A144: Assurant Daños|46 Daños Sin Autos Total | B144: Assurant Daños | C144: 46 Daños Sin Autos Total | D144: 275650.301
A145: Assurant Daños|46 Responsabilidad Civil y Riesgos Profesionales | B145: Assurant Daños | C145: 46 Responsabilidad Civil y Riesgos Profesionales | D145: 0
A146: Assurant Daños|47 RC General | B146: Assurant Daños | C146: 47 RC General | D146: 0
A147: Assurant Daños|54 Incendio | B147: Assurant Daños | C147: 54 Incendio | D147: 0
A148: Assurant Daños|55 Riesgos Catastroficos | B148: Assurant Daños | C148: 55 Riesgos Catastroficos | D148: 0
A149: Assurant Daños|56 Terremoto y Erupcion Volcanica | B149: Assurant Daños | C149: 56 Terremoto y Erupcion Volcanica | D149: 0
A150: Assurant Daños|57 Huracan y Otros Riesgos Hidrometeorologicos | B150: Assurant Daños | C150: 57 Huracan y Otros Riesgos Hidrometeorologicos | D150: 0
A151: Assurant Daños|63 Diversos | B151: Assurant Daños | C151: 63 Diversos | D151: 275650.301
A152: Assurant Daños|64 Miscelaneos | B152: Assurant Daños | C152: 64 Miscelaneos | D152: 246560.699
A153: Assurant Daños|65 Tecnicos | B153: Assurant Daños | C153: 65 Tecnicos | D153: 29089.60203
A154: Assurant Vida|10 Total General | B154: Assurant Vida | C154: 10 Total General | D154: 583459.9453
A155: Assurant Vida|11 Total General Sin Pensiones | B155: Assurant Vida | C155: 11 Total General Sin Pensiones | D155: 583459.9453
A156: Assurant Vida|12 Vida Total | B156: Assurant Vida | C156: 12 Vida Total | D156: 583459.9453
A157: Assurant Vida|14 Vida Gpo y Col | B157: Assurant Vida | C157: 14 Vida Gpo y Col | D157: 583459.9453
A158: Assurant Vida|28 Accidentes y Enfermedades Total | B158: Assurant Vida | C158: 28 Accidentes y Enfermedades Total | D158: 0
A159: Assurant Vida|29 Accidentes Personales | B159: Assurant Vida | C159: 29 Accidentes Personales | D159: 0
A160: Assurant Vida|30 AP Individual | B160: Assurant Vida | C160: 30 AP Individual | D160: 0
A161: Assurant Vida|31 AP Gpo y Col | B161: Assurant Vida | C161: 31 AP Gpo y Col | D161: 0
A162: Assurant Vida|32 Gastos Medicos | B162: Assurant Vida | C162: 32 Gastos Medicos | D162: 0
A163: Assurant Vida|33 GMM. Individual | B163: Assurant Vida | C163: 33 GMM. Individual | D163: 0
A164: Atlas|10 Total General | B164: Atlas | C164: 10 Total General | D164: 19354152.86
A165: Atlas|11 Total General Sin Pensiones | B165: Atlas | C165: 11 Total General Sin Pensiones | D165: 19354152.86
A166: Atlas|12 Vida Total | B166: Atlas | C166: 12 Vida Total | D166: 2259905.78
A167: Atlas|13 Vida Individual | B167: Atlas | C167: 13 Vida Individual | D167: 997035.9424
A168: Atlas|14 Vida Gpo y Col | B168: Atlas | C168: 14 Vida Gpo y Col | D168: 1262869.837
A169: Atlas|28 Accidentes y Enfermedades Total | B169: Atlas | C169: 28 Accidentes y Enfermedades Total | D169: 5940275.216
A170: Atlas|29 Accidentes Personales | B170: Atlas | C170: 29 Accidentes Personales | D170: 39893.61553
A171: Atlas|30 AP Individual | B171: Atlas | C171: 30 AP Individual | D171: 5475.6252
A172: Atlas|31 AP Gpo y Col | B172: Atlas | C172: 31 AP Gpo y Col | D172: 34417.99033
A173: Atlas|32 Gastos Medicos | B173: Atlas | C173: 32 Gastos Medicos | D173: 5900381.601
A174: Atlas|33 GMM. Individual | B174: Atlas | C174: 33 GMM. Individual | D174: 1433058.36
A175: Atlas|34 GMM. Gpo y Col | B175: Atlas | C175: 34 GMM. Gpo y Col | D175: 4467323.241
A176: Atlas|38 Daños Total | B176: Atlas | C176: 38 Daños Total | D176: 11153971.86
A177: Atlas|39 Automoviles Total | B177: Atlas | C177: 39 Automoviles Total | D177: 4111555.247
A178: Atlas|41 Automoviles Residentes | B178: Atlas | C178: 41 Automoviles Residentes | D178: 2502308.458
A179: Atlas|42 Camiones | B179: Atlas | C179: 42 Camiones | D179: 1532726.79
A180: Atlas|43 Automoviles Turistas | B180: Atlas | C180: 43 Automoviles Turistas | D180: 1691.93207
A181: Atlas|44 Otros Automoviles y Obligatorios | B181: Atlas | C181: 44 Otros Automoviles y Obligatorios | D181: 74828.06732
A182: Atlas|46 Daños Sin Autos Total | B182: Atlas | C182: 46 Daños Sin Autos Total | D182: 7042416.616
A183: Atlas|46 Responsabilidad Civil y Riesgos Profesionales | B183: Atlas | C183: 46 Responsabilidad Civil y Riesgos Profesionales | D183: 888209.8782
A184: Atlas|47 RC General | B184: Atlas | C184: 47 RC General | D184: 453309.7288
A185: Atlas|48 RC Aviones y Barcos | B185: Atlas | C185: 48 RC Aviones y Barcos | D185: 428379.8312
A186: Atlas|49 RC Viajero | B186: Atlas | C186: 49 RC Viajero | D186: 6520.3182
A187: Atlas|51 Maritimo y Transportes | B187: Atlas | C187: 51 Maritimo y Transportes | D187: 2211373.391
A188: Atlas|52 MyT Carga | B188: Atlas | C188: 52 MyT Carga | D188: 740012.4859
A189: Atlas|53 MyT Cascos | B189: Atlas | C189: 53 MyT Cascos | D189: 1471360.905
A190: Atlas|54 Incendio | B190: Atlas | C190: 54 Incendio | D190: 763198.5297
A191: Atlas|55 Riesgos Catastroficos | B191: Atlas | C191: 55 Riesgos Catastroficos | D191: 1296131.604
A192: Atlas|56 Terremoto y Erupcion Volcanica | B192: Atlas | C192: 56 Terremoto y Erupcion Volcanica | D192: 447243.5224
A193: Atlas|57 Huracan y Otros Riesgos Hidrometeorologicos | B193: Atlas | C193: 57 Huracan y Otros Riesgos Hidrometeorologicos | D193: 848888.0813
A194: Atlas|63 Diversos | B194: Atlas | C194: 63 Diversos | D194: 1883503.213
A195: Atlas|64 Miscelaneos | B195: Atlas | C195: 64 Miscelaneos | D195: 573618.4953
A196: Atlas|65 Tecnicos | B196: Atlas | C196: 65 Tecnicos | D196: 1309884.718
A197: Atradius|10 Total General | B197: Atradius | C197: 10 Total General | D197: 719164.0615
A198: Atradius|11 Total General Sin Pensiones | B198: Atradius | C198: 11 Total General Sin Pensiones | D198: 719164.0615
A199: Atradius|38 Daños Total | B199: Atradius | C199: 38 Daños Total | D199: 719164.0615
A200: =B200&"|"&C200 -> Atradius|46 Daños Sin Autos Total | B200: Atradius | C200: 46 Daños Sin Autos Total | D200: 719164.0615
A201: Atradius|66 Credito | B201: Atradius | C201: 66 Credito | D201: 719164.0615
A202: AXA Salud|10 Total General | B202: AXA Salud | C202: 10 Total General | D202: 603978.9678
A203: AXA Salud|11 Total General Sin Pensiones | B203: AXA Salud | C203: 11 Total General Sin Pensiones | D203: 603978.9678
... 1413 more rows

Sheet TD Siniestros Daños (hidden)
A2: periodo | B2: 2023-Q4
A3: Ramo_ | B3: 38 Daños Total
A4: subramo | B4: (Varios elementos)
A6: Jerarquia 2 | B6: nombre_compania | C6: Suma de CostoSin_Act | D6: Suma de SIN_IncreRel | E6: Suma de IncResvDivAct | F6: Suma de SINvsPRIM_ACT | G6: Suma de SINvsPRIM_ANT | H6: Suma de Costo_Sin_RetAct | I6: Suma de IncrSinRet | J6: Suma de Prima_DevengadaAct | K6: Suma de IncrDevengada | L6: Suma de SINvsPDEV_ACT | M6: Suma de SINvsPDEV_ANT
A7: 1 | B7: Quálitas | C7: 32298108.7 | D7: 27.22829022 | E7: 81803.46599 | F7: 64.16756055 | G7: 65.74403522 | H7: 32249299.09 | I7: 26.99909211 | J7: 46594456.34 | K7: 25.71204474 | L7: 69.21273822 | M7: 68.51131531
A8: 2 | B8: G.N.P. | C8: 15794700.77 | D8: 17.2236343 | E8: 38839.67178 | F8: 60.16573518 | G8: 62.83115096 | H8: 13823816.01 | I8: 20.56066528 | J8: 20112140.92 | K8: 18.34746005 | L8: 68.73368711 | M8: 67.47190114
A9: 3 | B9: AXA Seguros | C9: 20659837.22 | D9: 95.28813652 | E9: 271807.0869 | F9: 96.44849468 | G9: 56.99396267 | H9: 10125459.94 | I9: 17.8465382 | J9: 15343995.11 | K9: 15.20267458 | L9: 65.98972345 | M9: 64.50925714
A10: 4 | B10: Chubb Seguros México | C10: 13042526.72 | D10: 17.30557494 | E10: -3494.46255 | F10: 62.1850743 | G10: 60.68947267 | H10: 5626389.242 | I10: 9.733686395 | J10: 7779505.448 | K10: 2.707754824 | L10: 72.32322517 | M10: 67.69257757
A11: 5 | B11: Mapfre México | C11: 22073783.1 | D11: 226.7960795 | E11: 338845.0158 | F11: 134.6965668 | G11: 57.15549936 | H11: 3308514.997 | I11: 9.897063706 | J11: 4931025.969 | K11: -3.471037029 | L11: 67.09587453 | M11: 58.93419687
A12: 5.1 | B12: TOTAL GRANDES | C12: 103868956.5 | D12: 54.30944163 | E12: 727800.7779 | F12: 76.73074812 | G12: 61.89160151 | H12: 65133479.28 | I12: 21.54138684 | J12: 94761123.79 | K12: 18.36195605 | L12: 68.73438883 | M12: 66.93634918
A13: 6 | B13: Inbursa | C13: 16400598.44 | D13: 240.8427684 | E13: -200.70334 | F13: 104.4140029 | G13: 38.64496398 | H13: 4714782.673 | I13: 37.55311744 | J13: 6479221.509 | K13: 16.27289486 | L13: 72.767734 | M13: 61.51016598
A14: 7 | B14: BBVA Bancomer | C14: 7740836.242 | D14: 43.06540308 | E14: 0 | F14: 55.14037647 | G14: 49.85081285 | H14: 7184677.242 | I14: 34.57952623 | J14: 12922918.3 | K14: 37.1713872 | L14: 55.59639915 | M14: 56.66712767
A15: 8 | B15: GMX Seguros | C15: 6296886.714 | D15: 22.10208883 | E15: 0 | F15: 50.39511936 | G15: 40.65283905 | H15: 1312572.481 | I15: 64.35524061 | J15: 2833503.731 | K15: 3.638682312 | L15: 46.32330165 | M15: 29.21042205
A16: 9 | B16: HDI Seguros | C16: 7348573.021 | D16: 26.08924388 | E16: 0 | F16: 63.56809698 | G16: 60.66252613 | H16: 6794664.733 | I16: 20.85460622 | J16: 10364676.26 | K16: 12.86715634 | L16: 65.55597649 | M16: 61.22329036
A17: 10 | B17: Banorte | C17: 5642175.21 | D17: 41.45375302 | E17: -9691.44733 | F17: 49.57753868 | G17: 42.94949877 | H17: 5006480.18 | I17: 31.46453507 | J17: 8080181.43 | K17: 17.94895998 | L17: 61.95999711 | M17: 55.59002826
A18: 11 | B18: Atlas | C18: 8229472.859 | D18: 84.18314556 | E18: 11240.92181 | F18: 73.78064926 | G18: 47.44760756 | H18: 3143724.094 | I18: 18.28801232 | J18: 4532604.665 | K18: 14.20284429 | L18: 69.35800333 | M18: 66.96267102
A19: 12 | B19: Agroasemex | C19: 5356000.509 | D19: 411.851698 | E19: -807.21649 | F19: 56.95574088 | G19: 15.27994637 | H19: 1390647.404 | I19: 36.37889368 | J19: 2545114.618 | K19: -65.34527302 | L19: 54.63987335 | M19: 13.88433241
A20: 13 | B20: Zurich Aseguradora Mexicana | C20: 4216835.226 | D20: 13.28458053 | E20: 3239.9198 | F20: 46.08542596 | G20: 93.0530516 | H20: 2659404.436 | I20: 64.16725671 | J20: 4767753.389 | K20: 111.4423107 | L20: 55.77898475 | M20: 71.84159411
A21: 14 | B21: AIG Seguros | C21: 2183156.427 | D21: 44.16518624 | E21: 6266.60575 | F21: 30.16834493 | G21: 25.00893947 | H21: 510964.9491 | I21: 10.16131553 | J21: 968004.6433 | K21: 2.130301516 | L21: 52.78538204 | M21: 48.93720593
A22: 15 | B22: Allianz México | C22: 2211484.67 | D22: -28.57059941 | E22: -7938.74574 | F22: 35.11369618 | G22: 52.65378291 | H22: 414337.2203 | I22: 94.95368656 | J22: 607017.856 | K22: 4.73682672 | L22: 68.25783067 | M22: 36.67080479
A23: 15.1 | B23: TOTAL MEDIANAS | C23: 65626019.32 | D23: 68.08420978 | E23: 2109.33446 | F23: 60.52729114 | G23: 44.83356844 | H23: 33132255.41 | I23: 32.69389787 | J23: 54100996.4 | K23: 10.7345751 | L23: 61.24148835 | M23: 51.10672231
A24: 16 | B24: Afirme | C24: 3812886.089 | D24: -10.5063093 | E24: 1075.86433 | F24: 66.01275441 | G24: 78.60058094 | H24: 2342204.932 | I24: -14.8662549 | J24: 2930641.496 | K24: -1.295825855 | L24: 79.92123688 | M24: 92.66078537
A25: 17 | B25: Seguros SURA | C25: 2499222.375 | D25: 0 | E25: -1840.24749 | F25: 58.05199508 | G25: 0 | H25: 1273616.778 | I25: -4.444877913 | J25: 2111065.437 | K25: -28.61363955 | L25: 60.33052106 | M25: 45.07111946
A26: 18 | B26: FM Global | C26: 567117.2264 | D26: 114.4562624 | E26: 0 | F26: 14.71107804 | G26: 7.503922751 | H26: -4189.01937 | I26: -133.7625254 | J26: -45572.96652 | K26: -657.447385 | L26: 9.191895305 | M26: 151.7658392
A27: 19 | B27: Zurich Santander | C27: 792194.7289 | D27: 174.779322 | E27: 0 | F27: 21.84505856 | G27: 8.376067983 | H27: 249932.7819 | I27: -8.191683191 | J27: 2761064.865 | K27: 4.612930899 | L27: 9.052043112 | M27: 10.31454223
A28: 20 | B28: ANA | C28: 2377752.728 | D28: 18.40313909 | E28: 16977.86225 | F28: 68.21737369 | G28: 64.59548471 | H28: 1868849.224 | I28: 22.30854069 | J28: 2582750.408 | K28: 10.35519331 | L28: 72.35887827 | M28: 65.287166
A29: 21 | B29: Cardif Seguros Generales | C29: 332165.86 | D29: 86.52242625 | E29: 0 | F29: 13.6195659 | G29: 8.710650995 | H29: 107727.6311 | I29: -53.79521809 | J29: 1591798.158 | K29: -12.55400817 | L29: 6.767669039 | M29: 12.80831782
A30: 22 | B30: General de Seguros | C30: 1463066.96 | D30: -1.768846973 | E30: 1516.94075 | F30: 64.46824541 | G30: 73.59659189 | H30: 1222382.915 | I30: -5.431428622 | J30: 1637895.106 | K30: 14.77986737 | L30: 74.63133081 | M30: 90.58161847
A31: 23 | B31: Seguros Azteca Daños | C31: 1131905.005 | D31: 22.6004774 | E31: 1135.43359 | F31: 58.46458441 | G31: 30.35511457 | H31: 127951.5389 | I31: 50.29687858 | J31: 358101.3172 | K31: -4.905681398 | L31: 35.73054126 | M31: 22.60706614
A32: 24 | B32: HDI Global Seguros | C32: 1044553.439 | D32: 168.0472495 | E32: 0 | F32: 56.69108263 | G32: 34.58318966 | H32: 8007.50172 | I32: 403.3062528 | J32: -321.12995 | K32: -94.13770985 | L32: -2493.539366 | M32: -29.04365121
A33: 25 | B33: El Potosí | C33: 804464.4206 | D33: -33.61349756 | E33: 0 | F33: 46.81066431 | G33: 67.14747686 | H33: 779315.4047 | I33: -20.68607974 | J33: 1269767.133 | K33: -1.314722226 | L33: 61.37467136 | M33: 76.36460878
A34: 26 | B34: El Águila | C34: 2183804.794 | D34: 268.0001593 | E34: 0 | F34: 130.11727 | G34: 41.58490402 | H34: 666259.2286 | I34: 40.41048152 | J34: 1225209.253 | K34: 18.22937378 | L34: 54.37921948 | M34: 45.78875448
A35: 27 | B35: Primero Seguros | C35: 647142.5488 | D35: 17.88757763 | E35: 0 | F35: 43.81377254 | G35: 55.54774602 | H35: 518719.5968 | I35: 12.41503978 | J35: 906199.9059 | K35: 24.56253508 | L35: 57.24118855 | M35: 63.42663376
A36: 28 | B36: Tokio Marine | C36: 741961.8866 | D36: 30.02803621 | E36: 790.64828 | F36: 71.59423325 | G36: 43.35156221 | H36: 85565.75854 | I36: -22.77937841 | J36: 161186.5852 | K36: -1.562291789 | L36: 53.084913 | M36: 67.67048839
A37: 29 | B37: Ve Por Más | C37: 307080.6974 | D37: 76.08661311 | E37: 0 | F37: 31.95176479 | G37: 29.77554143 | H37: 211325.6522 | I37: 41.71930958 | J37: 313378.8853 | K37: 28.16531314 | L37: 67.43455354 | M37: 60.98513107
A38: 30 | B38: Swiss Re Corporate Solutions | C38: 251785.6877 | D38: 623.7244803 | E38: 765.66129 | F38: 26.42553037 | G38: 5.171588608 | H38: 679.58436 | I38: -88.95996012 | J38: -8870.35089 | K38: -3.772350117 | L38: -7.661301886 | M38: -66.77775476
A39: 31 | B39: Berkley Seguros | C39: 236227.9385 | D39: -42.79988547 | E39: 6286.84051 | F39: 30.57782099 | G39: 64.9289481 | H39: 22696.18001 | I39: -12.16980298 | J39: 34023.38649 | K39: 99.33070749 | L39: 66.70758661 | M39: 151.392925
A40: 32 | B40: Atradius | C40: 288171.6954 | D40: 58.4664299 | E40: 9503.75004 | F40: 40.0703693 | G40: 22.48621839 | H40: 92106.81564 | I40: 36.47134048 | J40: 206826.0471 | K40: -10.73485027 | L40: 44.53346999 | M40: 29.12909665
A41: 33 | B41: Sompo Japan | C41: 156448.1479 | D41: 438.8711345 | E41: -0.43877 | F41: 23.89625602 | G41: 4.146056829 | H41: 15876.31673 | I41: -305.3343073 | J41: 1648.13584 | K41: -98.86965868 | L41: 963.2893324 | M41: -5.302794977
A42: 34 | B42: Solunion Crédito | C42: 230540.1104 | D42: 61.83599278 | E42: 539.4494 | F42: 41.71403014 | G42: 21.10412377 | H42: 23654.62604 | I42: 54.12609661 | J42: 47396.3835 | K42: 63.5393219 | L42: 49.90808221 | M42: 52.95620989
A43: 35 | B43: La Latinoamericana | C43: 280365.5799 | D43: -9.0057637 | E43: 1536.91369 | F43: 55.80144762 | G43: 62.66811672 | H43: 126764.1921 | I43: -4.100063513 | J43: 251667.1144 | K43: 7.193497603 | L43: 50.36978803 | M43: 56.30153628
A44: 36 | B44: SHF Cred Vivienda | C44: -200470.5934 | D44: -413.0009948 | E44: 0 | F44: -39.93204925 | G44: 16.91494503 | H44: -178754.2236 | I44: -422.2279072 | J44: 199482.2311 | K44: -15813.03516 | L44: -89.60909581 | M44: -4369.673892
A45: 37 | B45: Coface | C45: 68006.18178 | D45: 52.26494343 | E45: 2494.83236 | F45: 19.14150088 | G45: 11.58323813 | H45: 16873.32691 | I45: -17.691889 | J45: 67946.82977 | K45: -10.68354345 | L45: 24.83313345 | M45: 26.94761741
A46: 38 | B46: Patrimonial Daños | C46: 78814.89926 | D46: 91.02233148 | E46: 0 | F46: 22.74644668 | G46: 14.47839957 | H46: 54761.61604 | I46: 65.30215906 | J46: 336261.4561 | K46: 21.93437317 | L46: 16.28542762 | M46: 12.01287037
A47: 39 | B47: Assurant Daños | C47: 46487.4669 | D47: -25.78903458 | E47: -740.3987 | F47: 14.48779116 | G47: 32.11500248 | H47: 9571.7648 | I47: -41.24371681 | J47: 52598.49103 | K47: 20.1161952 | L47: 18.19779353 | M47: 37.20197402
A48: 40 | B48: Patrimonial Inbursa | C48: 9605.3871 | D48: 122.8284947 | E48: 0 | F48: 5.518558469 | G48: 2.748318492 | H48: 9577.25806 | I48: 125.0046522 | J48: 174116.0891 | K48: 10.90516919 | L48: 5.50050148 | M48: 2.711206375
A49: 41 | B49: Virginia Surety | C49: 41350.51661 | D49: 42.73980839 | E49: 0 | F49: 32.64996202 | G49: 26.62483415 | H49: 24023.36733 | I49: 32.18238166 | J49: 65677.91957 | K49: 41.53936754 | L49: 36.57754004 | M49: 39.1668074
A50: 42 | B50: Genworth Seg. de Crédito | C50: 23550.13913 | D50: 100.5221782 | E50: 0 | F50: 21.10691256 | G50: 16.69101939 | H50: 17412.20235 | I50: 56.59964918 | J50: 211701.758 | K50: 21.44318645 | L50: 8.224873763 | M50: 6.378397929
A51: 43 | B51: Crabi | C51: 62883.92948 | D51: 82.59596019 | E51: 0 | F51: 58.9567613 | G51: 93.99397685 | H51: 33744.70398 | I51: 252.6993054 | J51: 44721.40441 | K51: 450.4024076 | L51: 75.45537629 | M51: 117.751354
A52: 44 | B52: SPP Seguros | C52: 4191.71935 | D52: 0.3425524813 | E52: 0 | F52: 5.707279102 | G52: 7.687820422 | H52: 3280.85525 | I52: -21.4619676 | J52: 65756.97956 | K52: 300.9836537 | L52: 4.98936428 | M52: 25.47369036
A53: 45 | B53: SPT | C53: 29067.63279 | D53: 37.21910543 | E53: 0 | F53: 62.60900492 | G53: 68.00755545 | H53: 29067.63279 | I53: 37.21910543 | J53: 36180.35957 | K53: 19.0405676 | L53: 80.34091738 | M53: 69.69749858
A54: 46 | B54: Momento Seguros | C54: 517.98642 | D54: 0 | E54: 0 | F54: 26.01222041 | G54: 0 | H54: 248.46831 | I54: 0 | J54: -131.38891 | K54: 0 | L54: -189.1090428 | M54: 0
A55: 47 | B55: Zurich Daños | C55: 0 | D55: 0 | E55: 0 | F55: 0 | G55: 0 | H55: 0 | I55: 0 | J55: 0 | K55: 0 | L55: 0 | M55: 0
A56: 49 | B56: Citibanamex Seguros | C56: -3527.42369 | D56: -123.9254065 | E56: 0 | F56: 52.4341685 | G56: 10.74356327 | H56: -171.93802 | I56: -98.25714824 | J56: 553.65186 | K56: 1996.79205 | L56: -31.05525917 | M56: -37361.99595
A57: 150.1 | B57: TOTAL RESTO | C57: 20309335.76 | D57: 41.60299542 | E57: 40043.11153 | F57: 47.54117343 | G57: 36.00148963 | H57: 9759082.673 | I57: -3.479394917 | J57: 19590720.95 | K57: 0.6327375839 | L57: 49.81482151 | M57: 51.93711598
A58: 200 | B58: Patria | C58: 0 | D58: 0 | E58: 0 | F58: 0 | G58: 0 | H58: 4015817.976 | I58: 20.01881159 | J58: 8067614.99 | K58: 2.646820277 | L58: 49.77701565 | M58: 42.57209608
A59: 201.1 | B59: TOTAL | C59: 189804311.6 | D59: 57.25542094 | E59: 769953.2239 | F59: 66.24668337 | G59: 51.21225641 | H59: 108024817.4 | I59: 21.82879408 | J59: 168452841.1 | K59: 13.52458189 | L59: 64.12763159 | M59: 59.75650189

Sheet Cat (hidden)
B1: ramo
B2: Total General | C2: 1 | D2: =E2&F2&" "&B2 -> 10 Total General | E2: 1 | F2: 0 | H2: Automoviles Total | I2: 0 | K2: Pensiones Total | L2: 1 | N2: Q4 | O2: Cuarto Trimestre | R2: Ramo_
B3: Total General Sin Pensiones | C3: 2 | D3: =E3&F3&" "&B3 -> 11 Total General Sin Pensiones | E3: 1 | F3: 1 | H3: Automoviles Residentes | I3: 0 | K3: Pensiones IMSS | L3: 1 | N3: Q3 | O3: Tercer Trimestre | R3: 10 Total General | S3: 10 Total General | T3: 0
B4: Vida Total | C4: 3 | D4: 12 Vida Total | E4: 1 | F4: 2 | H4: Camiones | I4: 0 | K4: Pensiones ISSSTE | L4: 1 | N4: Q2 | O4: Segundo Trimestre | R4: 11 Total General Sin Pensiones | S4: 10 Total General | T4: 0
B5: Vida Individual | C5: 4 | D5: 13 Vida Individual | E5: 1 | F5: 3 | H5: Automoviles Turistas | I5: 0 | N5: Q1 | O5: Primer Trimestre | R5: 12 Vida Total | S5: 12 Vida Total | T5: 0
B6: Vida Gpo y Col | C6: 5 | D6: 14 Vida Gpo y Col | E6: 1 | F6: 4 | H6: Otros Automoviles y Obligatorios | I6: 0 | R6: 13 Vida Individual | S6: 12 Vida Total | T6: 0
B7: Pensiones Total | C7: 6 | D7: 15 Pensiones Total | E7: 1 | F7: 5 | H7: Total General | I7: 0 | R7: 14 Vida Gpo y Col | S7: 12 Vida Total | T7: 0
B8: Pensiones IMSS | C8: 7 | D8: 16 Pensiones IMSS | E8: 1 | F8: 6 | H8: Total General Sin Pensiones | I8: 0 | R8: 15 Pensiones Total | S8: 15 Pensiones Total | T8: 0
B9: IMSS Incapacidad Permanente RT | D9: 17 IMSS Incapacidad Permanente RT | E9: 1 | F9: 7 | H9: Vida Total | I9: 0 | R9: 16 Pensiones IMSS | S9: 15 Pensiones Total | T9: 0
B10: IMSS Invalidez (invalidez y vida) | D10: 18 IMSS Invalidez (invalidez y vida) | E10: 1 | F10: 8 | H10: Vida Individual | I10: 0 | R10: 17 Pensiones ISSSTE | S10: 15 Pensiones Total | T10: 0
B11: IMSS Jubilacion (retiro, cesantia y vejez) | D11: 19 IMSS Jubilacion (retiro, cesantia y vejez) | E11: 1 | F11: 9 | H11: Vida Gpo y Col | I11: 0 | R11: 18 Accidentes y Enfermedades Total | S11: 18 Accidentes y Enfermedades Total | T11: 0
B12: IMSS Muerte (invalidez y vida) | D12: 20 IMSS Muerte (invalidez y vida) | E12: 2 | F12: 0 | H12: Pensiones Total | I12: 1 | R12: 19 Accidentes Personales | S12: 18 Accidentes y Enfermedades Total | T12: 0
B13: IMSS Muerte (riesgos de trabajo) | D13: 21 IMSS Muerte (riesgos de trabajo) | E13: 2 | F13: 1 | H13: Pensiones IMSS | I13: 1 | R13: 20 AP Individual | S13: 18 Accidentes y Enfermedades Total | T13: 0
B14: Pensiones ISSSTE | C14: 8 | D14: 22 Pensiones ISSSTE | E14: 2 | F14: 2 | H14: Pensiones ISSSTE | I14: 1 | R14: 21 AP Gpo y Col | S14: 18 Accidentes y Enfermedades Total | T14: 0
B15: ISSSTE Incapacidad Permanente RT | D15: 23 ISSSTE Incapacidad Permanente RT | E15: 2 | F15: 3 | H15: Accidentes y Enfermedades Total | I15: 0 | R15: 22 Gastos Medicos | S15: 18 Accidentes y Enfermedades Total | T15: 0
B16: ISSSTE Invalidez (invalidez y vida) | D16: 24 ISSSTE Invalidez (invalidez y vida) | E16: 2 | F16: 4 | H16: Accidentes Personales | I16: 0 | R16: 23 GMM. Individual | S16: 18 Accidentes y Enfermedades Total | T16: 0
B17: ISSSTE Jubilacion (retiro, cesantia y vejez) | D17: 25 ISSSTE Jubilacion (retiro, cesantia y vejez) | E17: 2 | F17: 5 | H17: AP Individual | I17: 0 | R17: 24 GMM. Gpo y Col | S17: 18 Accidentes y Enfermedades Total | T17: 0
B18: ISSSTE Muerte (invalidez y vida) | D18: 26 ISSSTE Muerte (invalidez y vida) | E18: 2 | F18: 6 | H18: AP Gpo y Col | I18: 0 | R18: 25 Salud | S18: 18 Accidentes y Enfermedades Total | T18: 0
B19: ISSSTE Muerte (riesgos de trabajo) | D19: 27 ISSSTE Muerte (riesgos de trabajo) | E19: 2 | F19: 7 | H19: Gastos Medicos | I19: 0 | R19: 26 Salud Individual | S19: 18 Accidentes y Enfermedades Total | T19: 0
B20: Accidentes y Enfermedades Total | C20: 14 | D20: 28 Accidentes y Enfermedades Total | E20: 2 | F20: 8 | H20: GMM. Individual | I20: 0 | R20: 27 Salud Gpo y Col | S20: 18 Accidentes y Enfermedades Total | T20: 0
B21: Accidentes Personales | C21: 15 | D21: 29 Accidentes Personales | E21: 2 | F21: 9 | H21: GMM. Gpo y Col | I21: 0 | R21: 28 Daños Total | S21: 28 Daños Total | T21: 1
B22: AP Individual | C22: 16 | D22: 30 AP Individual | E22: 3 | F22: 0 | H22: Salud | I22: 0 | R22: 29 Automoviles Total | S22: 29 Automoviles Total | T22: 1
B23: AP Gpo y Col | C23: 17 | D23: 31 AP Gpo y Col | E23: 3 | F23: 1 | H23: Salud Individual | I23: 0 | R23: 30 Automoviles Residentes | S23: 29 Automoviles Total | T23: 1
B24: Gastos Medicos | C24: 18 | D24: 32 Gastos Medicos | E24: 3 | F24: 2 | H24: Salud Gpo y Col | I24: 0 | R24: 31 Camiones | S24: 29 Automoviles Total | T24: 1
B25: GMM. Individual | C25: 19 | D25: 33 GMM. Individual | E25: 3 | F25: 3 | H25: Daños Total | I25: 0 | R25: 32 Automoviles Turistas | S25: 29 Automoviles Total | T25: 1
B26: GMM. Gpo y Col | C26: 20 | D26: 34 GMM. Gpo y Col | E26: 3 | F26: 4 | H26: Daños Sin Autos Total | I26: 0 | R26: 33 Otros Automoviles y Obligatorios | S26: 29 Automoviles Total | T26: 1
B27: Salud | C27: 21 | D27: 35 Salud | E27: 3 | F27: 5 | H27: Responsabilidad Civil y Riesgos Profesionales | I27: 0 | R27: 34 Daños Sin Autos Total | S27: 28 Daños Total | T27: 1
B28: Salud Individual | C28: 22 | D28: 36 Salud Individual | E28: 3 | F28: 6 | H28: RC General | I28: 0 | R28: 35 Responsabilidad Civil y Riesgos Profesionales | S28: 35 Responsabilidad Civil y Riesgos Profesionales | T28: 1
B29: Salud Gpo y Col | C29: 23 | D29: 37 Salud Gpo y Col | E29: 3 | F29: 7 | H29: RC Aviones y Barcos | I29: 0 | R29: 36 RC General | S29: 35 Responsabilidad Civil y Riesgos Profesionales | T29: 1
B30: Daños Total | C30: 24 | D30: 38 Daños Total | E30: 3 | F30: 8 | H30: RC Viajero | I30: 0 | R30: 37 RC Aviones y Barcos | S30: 35 Responsabilidad Civil y Riesgos Profesionales | T30: 1
B31: Daños | D31: =D30 -> 38 Daños Total | H31: RC Otros | I31: 0 | R31: 38 RC Viajero | S31: 35 Responsabilidad Civil y Riesgos Profesionales | T31: 1
B32: Automoviles Total | C32: 25 | D32: 39 Automoviles Total | E32: 3 | F32: 9 | H32: Maritimo y Transportes | I32: 0 | R32: 39 RC Otros | S32: 35 Responsabilidad Civil y Riesgos Profesionales | T32: 1
B33: Automoviles | D33: 39 Automoviles Total | E33: 3 | F33: 9 | H33: MyT Carga | I33: 0 | R33: 40 Maritimo y Transportes | S33: 40 Maritimo y Transportes | T33: 1
B34: Automoviles Residentes | C34: 26 | D34: 41 Automoviles Residentes | E34: 4 | F34: 1 | H34: MyT Cascos | I34: 0 | R34: 41 MyT Carga | S34: 40 Maritimo y Transportes | T34: 1
B35: Camiones | C35: 27 | D35: 42 Camiones | E35: 4 | F35: 2 | H35: Incendio | I35: 0 | R35: 42 MyT Cascos | S35: 40 Maritimo y Transportes | T35: 1
B36: Automoviles Turistas | C36: 28 | D36: 43 Automoviles Turistas | E36: 4 | F36: 3 | H36: Riesgos Catastroficos | I36: 0 | R36: 43 Incendio | S36: 43 Incendio | T36: 1
B37: Otros Automoviles y Obligatorios | C37: 29 | D37: 44 Otros Automoviles y Obligatorios | E37: 4 | F37: 4 | H37: Terremoto y Erupcion Volcanica | I37: 0 | R37: 44 Riesgos Catastroficos | S37: 44 Riesgos Catastroficos | T37: 1
B38: Daños Sin Autos Total | C38: 30 | D38: 45 Daños Sin Autos Total | E38: 4 | F38: 5 | H38: Huracan y Otros Riesgos Hidrometeorologicos | I38: 0 | R38: 45 Terremoto y Erupcion Volcanica | S38: 44 Riesgos Catastroficos | T38: 1
B39: Daños Sin Autos | D39: 46 Daños Sin Autos Total | H39: Otros Riesgos Catastroficos | I39: 0 | R39: 46 Huracan y Otros Riesgos Hidrometeorologicos | S39: 44 Riesgos Catastroficos | T39: 1
B40: Responsabilidad Civil y Riesgos Profesionales | C40: 31 | D40: 46 Responsabilidad Civil y Riesgos Profesionales | E40: 4 | F40: 6 | H40: Agricola y de Animales | I40: 0 | R40: 47 Otros Riesgos Catastroficos | S40: 44 Riesgos Catastroficos | T40: 1
B41: RC General | C41: 32 | D41: 47 RC General | E41: 4 | F41: 7 | H41: AyA Agricola | I41: 0 | R41: 48 Agricola y de Animales | S41: 48 Agricola y de Animales | T41: 1
B42: RC Aviones y Barcos | C42: 33 | D42: 48 RC Aviones y Barcos | E42: 4 | F42: 8 | H42: AyA Otros | I42: 0 | R42: 49 AyA Agricola | S42: 48 Agricola y de Animales | T42: 1
B43: RC Viajero | C43: 34 | D43: 49 RC Viajero | E43: 4 | F43: 9 | H43: AyA Pecuario | I43: 0 | R43: 50 AyA Otros | S43: 48 Agricola y de Animales | T43: 1
B44: RC Otros | C44: 35 | D44: 50 RC Otros | E44: 5 | F44: 0 | H44: Diversos | I44: 0 | R44: 51 AyA Pecuario | S44: 48 Agricola y de Animales | T44: 1
B45: Maritimo y Transportes | C45: 36 | D45: 51 Maritimo y Transportes | E45: 5 | F45: 1 | H45: Miscelaneos | I45: 0 | R45: 52 Diversos | S45: 52 Diversos | T45: 1
B46: MyT Carga | C46: 37 | D46: 52 MyT Carga | E46: 5 | F46: 2 | H46: Tecnicos | I46: 0 | R46: 53 Miscelaneos | S46: 52 Diversos | T46: 1
B47: MyT Cascos | C47: 38 | D47: 53 MyT Cascos | E47: 5 | F47: 3 | H47: Credito | I47: 0 | R47: 54 Tecnicos | S47: 52 Diversos | T47: 1
B48: Incendio | C48: 39 | D48: 54 Incendio | E48: 5 | F48: 4 | H48: Credito a la Vivienda | I48: 0 | R48: 55 Credito | S48: 52 Diversos | T48: 1
B49: Riesgos Catastroficos | C49: 40 | D49: 55 Riesgos Catastroficos | E49: 5 | F49: 5 | R49: 56 Credito a la Vivienda | S49: 52 Diversos | T49: 1
B50: Terremoto y Erupcion Volcanica | C50: 41 | D50: 56 Terremoto y Erupcion Volcanica | E50: 5 | F50: 6
B51: Huracan y Otros Riesgos Hidrometeorologicos | C51: 42 | D51: 57 Huracan y Otros Riesgos Hidrometeorologicos | E51: 5 | F51: 7
B52: Otros Riesgos Catastroficos | C52: 43 | D52: 58 Otros Riesgos Catastroficos | E52: 5 | F52: 8
B53: Agricola y de Animales | C53: 44 | D53: 59 Agricola y de Animales | E53: 5 | F53: 9
B54: AyA Agricola | C54: 45 | D54: 60 AyA Agricola | E54: 6 | F54: 0
B55: AyA Otros | C55: 46 | D55: 61 AyA Otros | E55: 6 | F55: 1
B56: AyA Pecuario | C56: 47 | D56: 62 AyA Pecuario | E56: 6 | F56: 2
B57: Diversos | C57: 48 | D57: 63 Diversos | E57: 6 | F57: 3
B58: Miscelaneos | C58: 49 | D58: 64 Miscelaneos | E58: 6 | F58: 4
B59: Tecnicos | C59: 50 | D59: 65 Tecnicos | E59: 6 | F59: 5
B60: Credito | C60: 51 | D60: 66 Credito | E60: 6 | F60: 6
B61: Credito a la Vivienda | C61: 52 | D61: 67 Credito a la Vivienda | E61: 6 | F61: 7
B64: Automoviles
B65: Daños | D65: =E65&F65&" "&B65 -> Daños
B66: Daños Sin Autos
B67: IMSS Incapacidad Permanente RT | D67: =E67&F67&" "&B67 -> IMSS Incapacidad Permanente RT
B68: IMSS Invalidez (invalidez y vida) | D68: =E68&F68&" "&B68 -> IMSS Invalidez (invalidez y vida)
B69: IMSS Jubilacion (retiro, cesantia y vejez)
B70: IMSS Muerte (invalidez y vida) | D70: =E70&F70&" "&B70 -> IMSS Muerte (invalidez y vida)
B71: IMSS Muerte (riesgos de trabajo) | D71: =E71&F71&" "&B71 -> IMSS Muerte (riesgos de trabajo)
B72: ISSSTE Incapacidad Permanente RT
B73: ISSSTE Invalidez (invalidez y vida) | D73: =E73&F73&" "&B73 -> ISSSTE Invalidez (invalidez y vida)
B74: ISSSTE Jubilacion (retiro, cesantia y vejez) | D74: =E74&F74&" "&B74 -> ISSSTE Jubilacion (retiro, cesantia y vejez)
B75: ISSSTE Muerte (invalidez y vida) | D75: =E75&F75&" "&B75 -> ISSSTE Muerte (invalidez y vida)
B76: ISSSTE Muerte (riesgos de trabajo) | D76: =E76&F76&" "&B76 -> ISSSTE Muerte (riesgos de trabajo)

Sheet Inicio
J4: EstadisticAMIS Informe
D6: Con la finalidad de atender la solicitud de información, presentamos esta publicación comparando los datosprimas del periodo actual vs el mismo periodo del año anterior.
I10: Periodo: | J10: 2023-Q4
I11: Fecha de actualización: | J11: =TODAY() -> 2024-02-29
I12: Porcentaje de Participación: | J12: 0.9998
B14: ANÁLISIS DE PRIMAS DIRECTAS | G14: ANÁLISIS DE SINIESTROS
B21: NOTAS DE ACTUALIZACIÓN
B22: *No se incluye la información de Tláloc Seguros, SIS NOVA ni Protección Agropecuaria en virtud de que a la fecha de esta publicación, no se recibió su información.
B26: DEFINICIÓN DE TÉRMINOS
B28: Participación de mercado
B29: Porcentaje que representa la participación de las compañías sobre el total del ramo o subramo que se está consultando.
B31: Participación por operación
B32: Porcentaje que representa la participación del subramo sobre el ramo de la compañía.
B34: Participación por cartera
B35: Porcentaje que representa la participación del ramo o subramos sobre el total general sin pensiones de la compañía.
B37: Participación por sector
B38: Porcentaje que representa la participación de la compañía del ramo o subramo(s) sobre la suma del total general sin pensiones.

Sheet Primas Directas
B1: PRIMAS DIRECTAS | L1: =VLOOKUP(RIGHT(TDPrimas_!B3,2),Cat!$N$2:$O$5,2,0)&" "&LEFT(TDPrimas_!B3,4) -> Cuarto Trimestre 2023
B2: =UPPER(RIGHT(TDPrimas_!$B$4,LEN(TDPrimas_!$B$4)-3)) -> TOTAL GENERAL
L3: Cifras en miles
D4: 2 | E4: 3 | F4: 4 | G4: 5 | H4: 6 | I4: 7 | J4: 8 | K4: 9 | L4: 10
D5: Primas Directas | F5: % Part. en Merc. | H5: Incremento | J5: % de Cartera
B6: Compañías | D6: =LEFT(TDPrimas_!B3,4) -> 2023 | E6: =D6-1 -> 2022 | F6: =D6 -> 2023 | G6: =E6 -> 2022 | H6: Importe | I6: % | J6: Por | K6: Total | L6: Total
D7: Importe | E7: Importe | F7: =RIGHT(TDPrimas_!B3,2) -> Q4 | G7: =RIGHT(TDPrimas_!B3,2) -> Q4 | J7: Operación | K7: Cartera | L7: Sector
C8: TOTAL | D8: =VLOOKUP($C$8,$C$9:$L$125,D$4,0) -> 783095879.1 | E8: =VLOOKUP($C$8,$C$9:$L$125,E$4,0) -> 666880288 | F8: 100 | G8: 100 | H8: 116215591.2 | I8: 17.42675458 | J8: 100 | K8: 100 | L8: 100
B9: =IF(TDPrimas_!A7="","",TDPrimas_!A7) -> 1 | C9: =IF(TDPrimas_!B7="","",TDPrimas_!B7) -> G.N.P. | D9: =IF(TDPrimas_!C7="","",TDPrimas_!C7) -> 99677568.47 | E9: =IF(TDPrimas_!D7="","",TDPrimas_!D7) -> 88896231.25 | F9: =IF(TDPrimas_!E7="","",TDPrimas_!E7) -> 12.72865445 | G9: =IF(TDPrimas_!F7="","",TDPrimas_!F7) -> 13.33016328 | H9: =IF(TDPrimas_!G7="","",TDPrimas_!G7) -> 10781337.22 | I9: =IF(TDPrimas_!H7="","",TDPrimas_!H7) -> 12.12800258 | J9: =IF(TDPrimas_!I7="","",TDPrimas_!I7) -> 100 | K9: =IF(TDPrimas_!J7="","",TDPrimas_!J7) -> 100 | L9: =IF(TDPrimas_!K7="","",TDPrimas_!K7) -> 12.72865445
B10: =IF(TDPrimas_!A8="","",TDPrimas_!A8) -> 2 | C10: =IF(TDPrimas_!B8="","",TDPrimas_!B8) -> Metlife México | D10: =IF(TDPrimas_!C8="","",TDPrimas_!C8) -> 79147200.16 | E10: =IF(TDPrimas_!D8="","",TDPrimas_!D8) -> 69679915.87 | F10: =IF(TDPrimas_!E8="","",TDPrimas_!E8) -> 10.10696165 | G10: =IF(TDPrimas_!F8="","",TDPrimas_!F8) -> 10.4486393 | H10: =IF(TDPrimas_!G8="","",TDPrimas_!G8) -> 9467284.294 | I10: =IF(TDPrimas_!H8="","",TDPrimas_!H8) -> 13.58681935 | J10: =IF(TDPrimas_!I8="","",TDPrimas_!I8) -> 100 | K10: =IF(TDPrimas_!J8="","",TDPrimas_!J8) -> 100 | L10: =IF(TDPrimas_!K8="","",TDPrimas_!K8) -> 10.10696165
B11: =IF(TDPrimas_!A9="","",TDPrimas_!A9) -> 3 | C11: =IF(TDPrimas_!B9="","",TDPrimas_!B9) -> BBVA Bancomer | D11: =IF(TDPrimas_!C9="","",TDPrimas_!C9) -> 65800436.18 | E11: =IF(TDPrimas_!D9="","",TDPrimas_!D9) -> 54574701.13 | F11: =IF(TDPrimas_!E9="","",TDPrimas_!E9) -> 8.402602789 | G11: =IF(TDPrimas_!F9="","",TDPrimas_!F9) -> 8.183582888 | H11: =IF(TDPrimas_!G9="","",TDPrimas_!G9) -> 11225735.05 | I11: =IF(TDPrimas_!H9="","",TDPrimas_!H9) -> 20.56948517 | J11: =IF(TDPrimas_!I9="","",TDPrimas_!I9) -> 100 | K11: =IF(TDPrimas_!J9="","",TDPrimas_!J9) -> 100 | L11: =IF(TDPrimas_!K9="","",TDPrimas_!K9) -> 8.402602789
B12: =IF(TDPrimas_!A10="","",TDPrimas_!A10) -> 4 | C12: =IF(TDPrimas_!B10="","",TDPrimas_!B10) -> AXA Seguros | D12: =IF(TDPrimas_!C10="","",TDPrimas_!C10) -> 54332276.38 | E12: =IF(TDPrimas_!D10="","",TDPrimas_!D10) -> 47014413.87 | F12: =IF(TDPrimas_!E10="","",TDPrimas_!E10) -> 6.938138462 | G12: =IF(TDPrimas_!F10="","",TDPrimas_!F10) -> 7.049903067 | H12: =IF(TDPrimas_!G10="","",TDPrimas_!G10) -> 7317862.51 | I12: =IF(TDPrimas_!H10="","",TDPrimas_!H10) -> 15.56514674 | J12: =IF(TDPrimas_!I10="","",TDPrimas_!I10) -> 100 | K12: =IF(TDPrimas_!J10="","",TDPrimas_!J10) -> 100 | L12: =IF(TDPrimas_!K10="","",TDPrimas_!K10) -> 6.938138462
B13: =IF(TDPrimas_!A11="","",TDPrimas_!A11) -> 5 | C13: =IF(TDPrimas_!B11="","",TDPrimas_!B11) -> Quálitas | D13: =IF(TDPrimas_!C11="","",TDPrimas_!C11) -> 50334013.66 | E13: =IF(TDPrimas_!D11="","",TDPrimas_!D11) -> 38613311.12 | F13: =IF(TDPrimas_!E11="","",TDPrimas_!E11) -> 6.427567174 | G13: =IF(TDPrimas_!F11="","",TDPrimas_!F11) -> 5.790141322 | H13: =IF(TDPrimas_!G11="","",TDPrimas_!G11) -> 11720702.54 | I13: =IF(TDPrimas_!H11="","",TDPrimas_!H11) -> 30.35404683 | J13: =IF(TDPrimas_!I11="","",TDPrimas_!I11) -> 100 | K13: =IF(TDPrimas_!J11="","",TDPrimas_!J11) -> 100 | L13: =IF(TDPrimas_!K11="","",TDPrimas_!K11) -> 6.427567174
B14: =IF(TDPrimas_!A12="","",TDPrimas_!A12) -> 5.1 | C14: =IF(TDPrimas_!B12="","",TDPrimas_!B12) -> TOTAL GRANDES | D14: =IF(TDPrimas_!C12="","",TDPrimas_!C12) -> 349291494.9 | E14: =IF(TDPrimas_!D12="","",TDPrimas_!D12) -> 298778573.2 | F14: =IF(TDPrimas_!E12="","",TDPrimas_!E12) -> 44.60392452 | G14: =IF(TDPrimas_!F12="","",TDPrimas_!F12) -> 44.80242986 | H14: =IF(TDPrimas_!G12="","",TDPrimas_!G12) -> 50512921.62 | I14: =IF(TDPrimas_!H12="","",TDPrimas_!H12) -> 16.90647394 | J14: =IF(TDPrimas_!I12="","",TDPrimas_!I12) -> 100 | K14: =IF(TDPrimas_!J12="","",TDPrimas_!J12) -> 100 | L14: =IF(TDPrimas_!K12="","",TDPrimas_!K12) -> 44.60392452
B15: =IF(TDPrimas_!A13="","",TDPrimas_!A13) -> 6 | C15: =IF(TDPrimas_!B13="","",TDPrimas_!B13) -> Monterrey New York Life | D15: =IF(TDPrimas_!C13="","",TDPrimas_!C13) -> 38611132.55 | E15: =IF(TDPrimas_!D13="","",TDPrimas_!D13) -> 37521624.68 | F15: =IF(TDPrimas_!E13="","",TDPrimas_!E13) -> 4.930575371 | G15: =IF(TDPrimas_!F13="","",TDPrimas_!F13) -> 5.62644081 | H15: =IF(TDPrimas_!G13="","",TDPrimas_!G13) -> 1089507.874 | I15: =IF(TDPrimas_!H13="","",TDPrimas_!H13) -> 2.9036799 | J15: =IF(TDPrimas_!I13="","",TDPrimas_!I13) -> 100 | K15: =IF(TDPrimas_!J13="","",TDPrimas_!J13) -> 100 | L15: =IF(TDPrimas_!K13="","",TDPrimas_!K13) -> 4.930575371
B16: =IF(TDPrimas_!A14="","",TDPrimas_!A14) -> 7 | C16: =IF(TDPrimas_!B14="","",TDPrimas_!B14) -> Banorte | D16: =IF(TDPrimas_!C14="","",TDPrimas_!C14) -> 37616661.6 | E16: =IF(TDPrimas_!D14="","",TDPrimas_!D14) -> 28914191.64 | F16: =IF(TDPrimas_!E14="","",TDPrimas_!E14) -> 4.803583138 | G16: =IF(TDPrimas_!F14="","",TDPrimas_!F14) -> 4.335739437 | H16: =IF(TDPrimas_!G14="","",TDPrimas_!G14) -> 8702469.958 | I16: =IF(TDPrimas_!H14="","",TDPrimas_!H14) -> 30.09757307 | J16: =IF(TDPrimas_!I14="","",TDPrimas_!I14) -> 100 | K16: =IF(TDPrimas_!J14="","",TDPrimas_!J14) -> 100 | L16: =IF(TDPrimas_!K14="","",TDPrimas_!K14) -> 4.803583138
B17: =IF(TDPrimas_!A15="","",TDPrimas_!A15) -> 8 | C17: =IF(TDPrimas_!B15="","",TDPrimas_!B15) -> Citibanamex Seguros | D17: =IF(TDPrimas_!C15="","",TDPrimas_!C15) -> 33772004.56 | E17: =IF(TDPrimas_!D15="","",TDPrimas_!D15) -> 17073983.29 | F17: =IF(TDPrimas_!E15="","",TDPrimas_!E15) -> 4.31262703 | G17: =IF(TDPrimas_!F15="","",TDPrimas_!F15) -> 2.560277098 | H17: =IF(TDPrimas_!G15="","",TDPrimas_!G15) -> 16698021.27 | I17: =IF(TDPrimas_!H15="","",TDPrimas_!H15) -> 97.79804156 | J17: =IF(TDPrimas_!I15="","",TDPrimas_!I15) -> 100 | K17: =IF(TDPrimas_!J15="","",TDPrimas_!J15) -> 100 | L17: =IF(TDPrimas_!K15="","",TDPrimas_!K15) -> 4.31262703
B18: =IF(TDPrimas_!A16="","",TDPrimas_!A16) -> 9 | C18: =IF(TDPrimas_!B16="","",TDPrimas_!B16) -> Mapfre México | D18: =IF(TDPrimas_!C16="","",TDPrimas_!C16) -> 27302085.11 | E18: =IF(TDPrimas_!D16="","",TDPrimas_!D16) -> 21167003.16 | F18: =IF(TDPrimas_!E16="","",TDPrimas_!E16) -> 3.486429419 | G18: =IF(TDPrimas_!F16="","",TDPrimas_!F16) -> 3.174033412 | H18: =IF(TDPrimas_!G16="","",TDPrimas_!G16) -> 6135081.953 | I18: =IF(TDPrimas_!H16="","",TDPrimas_!H16) -> 28.98417838 | J18: =IF(TDPrimas_!I16="","",TDPrimas_!I16) -> 100 | K18: =IF(TDPrimas_!J16="","",TDPrimas_!J16) -> 100 | L18: =IF(TDPrimas_!K16="","",TDPrimas_!K16) -> 3.486429419
B19: =IF(TDPrimas_!A17="","",TDPrimas_!A17) -> 10 | C19: =IF(TDPrimas_!B17="","",TDPrimas_!B17) -> Inbursa | D19: =IF(TDPrimas_!C17="","",TDPrimas_!C17) -> 26673376.96 | E19: =IF(TDPrimas_!D17="","",TDPrimas_!D17) -> 23044846.03 | F19: =IF(TDPrimas_!E17="","",TDPrimas_!E17) -> 3.406144467 | G19: =IF(TDPrimas_!F17="","",TDPrimas_!F17) -> 3.455619613 | H19: =IF(TDPrimas_!G17="","",TDPrimas_!G17) -> 3628530.931 | I19: =IF(TDPrimas_!H17="","",TDPrimas_!H17) -> 15.7455204 | J19: =IF(TDPrimas_!I17="","",TDPrimas_!I17) -> 100 | K19: =IF(TDPrimas_!J17="","",TDPrimas_!J17) -> 100 | L19: =IF(TDPrimas_!K17="","",TDPrimas_!K17) -> 3.406144467
B20: =IF(TDPrimas_!A18="","",TDPrimas_!A18) -> 11 | C20: =IF(TDPrimas_!B18="","",TDPrimas_!B18) -> Chubb Seguros México | D20: =IF(TDPrimas_!C18="","",TDPrimas_!C18) -> 23324255.29 | E20: =IF(TDPrimas_!D18="","",TDPrimas_!D18) -> 20933874.3 | F20: =IF(TDPrimas_!E18="","",TDPrimas_!E18) -> 2.978467377 | G20: =IF(TDPrimas_!F18="","",TDPrimas_!F18) -> 3.139075285 | H20: =IF(TDPrimas_!G18="","",TDPrimas_!G18) -> 2390380.985 | I20: =IF(TDPrimas_!H18="","",TDPrimas_!H18) -> 11.41872236 | J20: =IF(TDPrimas_!I18="","",TDPrimas_!I18) -> 100 | K20: =IF(TDPrimas_!J18="","",TDPrimas_!J18) -> 100 | L20: =IF(TDPrimas_!K18="","",TDPrimas_!K18) -> 2.978467377
B21: =IF(TDPrimas_!A19="","",TDPrimas_!A19) -> 12 | C21: =IF(TDPrimas_!B19="","",TDPrimas_!B19) -> Zurich Santander | D21: =IF(TDPrimas_!C19="","",TDPrimas_!C19) -> 22099973.42 | E21: =IF(TDPrimas_!D19="","",TDPrimas_!D19) -> 14538030.86 | F21: =IF(TDPrimas_!E19="","",TDPrimas_!E19) -> 2.822128683 | G21: =IF(TDPrimas_!F19="","",TDPrimas_!F19) -> 2.180006085 | H21: =IF(TDPrimas_!G19="","",TDPrimas_!G19) -> 7561942.566 | I21: =IF(TDPrimas_!H19="","",TDPrimas_!H19) -> 52.01490243 | J21: =IF(TDPrimas_!I19="","",TDPrimas_!I19) -> 100 | K21: =IF(TDPrimas_!J19="","",TDPrimas_!J19) -> 100 | L21: =IF(TDPrimas_!K19="","",TDPrimas_!K19) -> 2.822128683
B22: =IF(TDPrimas_!A20="","",TDPrimas_!A20) -> 13 | C22: =IF(TDPrimas_!B20="","",TDPrimas_!B20) -> Allianz México | D22: =IF(TDPrimas_!C20="","",TDPrimas_!C20) -> 21222664.48 | E22: =IF(TDPrimas_!D20="","",TDPrimas_!D20) -> 18949473.91 | F22: =IF(TDPrimas_!E20="","",TDPrimas_!E20) -> 2.710097837 | G22: =IF(TDPrimas_!F20="","",TDPrimas_!F20) -> 2.841510575 | H22: =IF(TDPrimas_!G20="","",TDPrimas_!G20) -> 2273190.575 | I22: =IF(TDPrimas_!H20="","",TDPrimas_!H20) -> 11.99606166 | J22: =IF(TDPrimas_!I20="","",TDPrimas_!I20) -> 100 | K22: =IF(TDPrimas_!J20="","",TDPrimas_!J20) -> 100 | L22: =IF(TDPrimas_!K20="","",TDPrimas_!K20) -> 2.710097837
B23: =IF(TDPrimas_!A21="","",TDPrimas_!A21) -> 14 | C23: =IF(TDPrimas_!B21="","",TDPrimas_!B21) -> Atlas | D23: =IF(TDPrimas_!C21="","",TDPrimas_!C21) -> 19354152.86 | E23: =IF(TDPrimas_!D21="","",TDPrimas_!D21) -> 17397320.1 | F23: =IF(TDPrimas_!E21="","",TDPrimas_!E21) -> 2.471492109 | G23: =IF(TDPrimas_!F21="","",TDPrimas_!F21) -> 2.608762084 | H23: =IF(TDPrimas_!G21="","",TDPrimas_!G21) -> 1956832.76 | I23: =IF(TDPrimas_!H21="","",TDPrimas_!H21) -> 11.24789766 | J23: =IF(TDPrimas_!I21="","",TDPrimas_!I21) -> 100 | K23: =IF(TDPrimas_!J21="","",TDPrimas_!J21) -> 100 | L23: =IF(TDPrimas_!K21="","",TDPrimas_!K21) -> 2.471492109
B24: =IF(TDPrimas_!A22="","",TDPrimas_!A22) -> 15 | C24: =IF(TDPrimas_!B22="","",TDPrimas_!B22) -> Pensiones Banorte | D24: =IF(TDPrimas_!C22="","",TDPrimas_!C22) -> 15869494.54 | E24: =IF(TDPrimas_!D22="","",TDPrimas_!D22) -> 18733422.24 | F24: =IF(TDPrimas_!E22="","",TDPrimas_!E22) -> 2.026507221 | G24: =IF(TDPrimas_!F22="","",TDPrimas_!F22) -> 2.809113207 | H24: =IF(TDPrimas_!G22="","",TDPrimas_!G22) -> -2863927.706 | I24: =IF(TDPrimas_!H22="","",TDPrimas_!H22) -> -15.28779776 | J24: =IF(TDPrimas_!I22="","",TDPrimas_!I22) -> 100 | K24: =IF(TDPrimas_!J22="","",TDPrimas_!J22) -> 100 | L24: =IF(TDPrimas_!K22="","",TDPrimas_!K22) -> 2.026507221
B25: =IF(TDPrimas_!A23="","",TDPrimas_!A23) -> 15.1 | C25: =IF(TDPrimas_!B23="","",TDPrimas_!B23) -> TOTAL MEDIANAS | D25: =IF(TDPrimas_!C23="","",TDPrimas_!C23) -> 265845801.4 | E25: =IF(TDPrimas_!D23="","",TDPrimas_!D23) -> 218273770.2 | F25: =IF(TDPrimas_!E23="","",TDPrimas_!E23) -> 33.94805265 | G25: =IF(TDPrimas_!F23="","",TDPrimas_!F23) -> 32.73057761 | H25: =IF(TDPrimas_!G23="","",TDPrimas_!G23) -> 47572031.17 | I25: =IF(TDPrimas_!H23="","",TDPrimas_!H23) -> 21.79466233 | J25: =IF(TDPrimas_!I23="","",TDPrimas_!I23) -> 100 | K25: =IF(TDPrimas_!J23="","",TDPrimas_!J23) -> 100 | L25: =IF(TDPrimas_!K23="","",TDPrimas_!K23) -> 33.94805265
B26: =IF(TDPrimas_!A24="","",TDPrimas_!A24) -> 16 | C26: =IF(TDPrimas_!B24="","",TDPrimas_!B24) -> Pensiones BBVA Bancomer | D26: =IF(TDPrimas_!C24="","",TDPrimas_!C24) -> 13902414.3 | E26: =IF(TDPrimas_!D24="","",TDPrimas_!D24) -> 11908763.69 | F26: =IF(TDPrimas_!E24="","",TDPrimas_!E24) -> 1.775314451 | G26: =IF(TDPrimas_!F24="","",TDPrimas_!F24) -> 1.785742345 | H26: =IF(TDPrimas_!G24="","",TDPrimas_!G24) -> 1993650.612 | I26: =IF(TDPrimas_!H24="","",TDPrimas_!H24) -> 16.74103764 | J26: =IF(TDPrimas_!I24="","",TDPrimas_!I24) -> 100 | K26: =IF(TDPrimas_!J24="","",TDPrimas_!J24) -> 100 | L26: =IF(TDPrimas_!K24="","",TDPrimas_!K24) -> 1.775314451
B27: =IF(TDPrimas_!A25="","",TDPrimas_!A25) -> 17 | C27: =IF(TDPrimas_!B25="","",TDPrimas_!B25) -> GMX Seguros | D27: =IF(TDPrimas_!C25="","",TDPrimas_!C25) -> 12495032.84 | E27: =IF(TDPrimas_!D25="","",TDPrimas_!D25) -> 12685626.08 | F27: =IF(TDPrimas_!E25="","",TDPrimas_!E25) -> 1.595594253 | G27: =IF(TDPrimas_!F25="","",TDPrimas_!F25) -> 1.902234375 | H27: =IF(TDPrimas_!G25="","",TDPrimas_!G25) -> -190593.2341 | I27: =IF(TDPrimas_!H25="","",TDPrimas_!H25) -> -1.50243459 | J27: =IF(TDPrimas_!I25="","",TDPrimas_!I25) -> 100 | K27: =IF(TDPrimas_!J25="","",TDPrimas_!J25) -> 100 | L27: =IF(TDPrimas_!K25="","",TDPrimas_!K25) -> 1.595594253
B28: =IF(TDPrimas_!A26="","",TDPrimas_!A26) -> 18 | C28: =IF(TDPrimas_!B26="","",TDPrimas_!B26) -> HDI Seguros | D28: =IF(TDPrimas_!C26="","",TDPrimas_!C26) -> 11666681.3 | E28: =IF(TDPrimas_!D26="","",TDPrimas_!D26) -> 9660591.706 | F28: =IF(TDPrimas_!E26="","",TDPrimas_!E26) -> 1.489815183 | G28: =IF(TDPrimas_!F26="","",TDPrimas_!F26) -> 1.44862457 | H28: =IF(TDPrimas_!G26="","",TDPrimas_!G26) -> 2006089.597 | I28: =IF(TDPrimas_!H26="","",TDPrimas_!H26) -> 20.76570109 | J28: =IF(TDPrimas_!I26="","",TDPrimas_!I26) -> 100 | K28: =IF(TDPrimas_!J26="","",TDPrimas_!J26) -> 100 | L28: =IF(TDPrimas_!K26="","",TDPrimas_!K26) -> 1.489815183
B29: =IF(TDPrimas_!A27="","",TDPrimas_!A27) -> 19 | C29: =IF(TDPrimas_!B27="","",TDPrimas_!B27) -> Zurich Aseguradora Mexicana | D29: =IF(TDPrimas_!C27="","",TDPrimas_!C27) -> 11092660.55 | E29: =IF(TDPrimas_!D27="","",TDPrimas_!D27) -> 5416891.157 | F29: =IF(TDPrimas_!E27="","",TDPrimas_!E27) -> 1.416513717 | G29: =IF(TDPrimas_!F27="","",TDPrimas_!F27) -> 0.8122733952 | H29: =IF(TDPrimas_!G27="","",TDPrimas_!G27) -> 5675769.392 | I29: =IF(TDPrimas_!H27="","",TDPrimas_!H27) -> 104.7790924 | J29: =IF(TDPrimas_!I27="","",TDPrimas_!I27) -> 100 | K29: =IF(TDPrimas_!J27="","",TDPrimas_!J27) -> 100 | L29: =IF(TDPrimas_!K27="","",TDPrimas_!K27) -> 1.416513717
B30: =IF(TDPrimas_!A28="","",TDPrimas_!A28) -> 20 | C30: =IF(TDPrimas_!B28="","",TDPrimas_!B28) -> HSBC Seguros | D30: =IF(TDPrimas_!C28="","",TDPrimas_!C28) -> 9806444.113 | E30: =IF(TDPrimas_!D28="","",TDPrimas_!D28) -> 6620173.555 | F30: =IF(TDPrimas_!E28="","",TDPrimas_!E28) -> 1.252266086 | G30: =IF(TDPrimas_!F28="","",TDPrimas_!F28) -> 0.9927079379 | H30: =IF(TDPrimas_!G28="","",TDPrimas_!G28) -> 3186270.558 | I30: =IF(TDPrimas_!H28="","",TDPrimas_!H28) -> 48.12971339 | J30: =IF(TDPrimas_!I28="","",TDPrimas_!I28) -> 100 | K30: =IF(TDPrimas_!J28="","",TDPrimas_!J28) -> 100 | L30: =IF(TDPrimas_!K28="","",TDPrimas_!K28) -> 1.252266086
B31: =IF(TDPrimas_!A29="","",TDPrimas_!A29) -> 21 | C31: =IF(TDPrimas_!B29="","",TDPrimas_!B29) -> Agroasemex | D31: =IF(TDPrimas_!C29="","",TDPrimas_!C29) -> 9462507.852 | E31: =IF(TDPrimas_!D29="","",TDPrimas_!D29) -> 6906763.889 | F31: =IF(TDPrimas_!E29="","",TDPrimas_!E29) -> 1.208346015 | G31: =IF(TDPrimas_!F29="","",TDPrimas_!F29) -> 1.035682718 | H31: =IF(TDPrimas_!G29="","",TDPrimas_!G29) -> 2555743.963 | I31: =IF(TDPrimas_!H29="","",TDPrimas_!H29) -> 37.00349402 | J31: =IF(TDPrimas_!I29="","",TDPrimas_!I29) -> 100 | K31: =IF(TDPrimas_!J29="","",TDPrimas_!J29) -> 100 | L31: =IF(TDPrimas_!K29="","",TDPrimas_!K29) -> 1.208346015
B32: =IF(TDPrimas_!A30="","",TDPrimas_!A30) -> 22 | C32: =IF(TDPrimas_!B30="","",TDPrimas_!B30) -> Afirme | D32: =IF(TDPrimas_!C30="","",TDPrimas_!C30) -> 8049984.273 | E32: =IF(TDPrimas_!D30="","",TDPrimas_!D30) -> 7592685.292 | F32: =IF(TDPrimas_!E30="","",TDPrimas_!E30) -> 1.027969178 | G32: =IF(TDPrimas_!F30="","",TDPrimas_!F30) -> 1.13853797 | H32: =IF(TDPrimas_!G30="","",TDPrimas_!G30) -> 457298.9814 | I32: =IF(TDPrimas_!H30="","",TDPrimas_!H30) -> 6.022888659 | J32: =IF(TDPrimas_!I30="","",TDPrimas_!I30) -> 100 | K32: =IF(TDPrimas_!J30="","",TDPrimas_!J30) -> 100 | L32: =IF(TDPrimas_!K30="","",TDPrimas_!K30) -> 1.027969178
B33: =IF(TDPrimas_!A31="","",TDPrimas_!A31) -> 23 | C33: =IF(TDPrimas_!B31="","",TDPrimas_!B31) -> AIG Seguros | D33: =IF(TDPrimas_!C31="","",TDPrimas_!C31) -> 7470400.894 | E33: =IF(TDPrimas_!D31="","",TDPrimas_!D31) -> 6307111.087 | F33: =IF(TDPrimas_!E31="","",TDPrimas_!E31) -> 0.9539573752 | G33: =IF(TDPrimas_!F31="","",TDPrimas_!F31) -> 0.9457636101 | H33: =IF(TDPrimas_!G31="","",TDPrimas_!G31) -> 1163289.807 | I33: =IF(TDPrimas_!H31="","",TDPrimas_!H31) -> 18.44409891 | J33: =IF(TDPrimas_!I31="","",TDPrimas_!I31) -> 100 | K33: =IF(TDPrimas_!J31="","",TDPrimas_!J31) -> 100 | L33: =IF(TDPrimas_!K31="","",TDPrimas_!K31) -> 0.9539573752
B34: =IF(TDPrimas_!A32="","",TDPrimas_!A32) -> 24 | C34: =IF(TDPrimas_!B32="","",TDPrimas_!B32) -> ProFuturo G.N.P. | D34: =IF(TDPrimas_!C32="","",TDPrimas_!C32) -> 7376094.613 | E34: =IF(TDPrimas_!D32="","",TDPrimas_!D32) -> 9964700.289 | F34: =IF(TDPrimas_!E32="","",TDPrimas_!E32) -> 0.941914625 | G34: =IF(TDPrimas_!F32="","",TDPrimas_!F32) -> 1.494226245 | H34: =IF(TDPrimas_!G32="","",TDPrimas_!G32) -> -2588605.676 | I34: =IF(TDPrimas_!H32="","",TDPrimas_!H32) -> -25.97775749 | J34: =IF(TDPrimas_!I32="","",TDPrimas_!I32) -> 100 | K34: =IF(TDPrimas_!J32="","",TDPrimas_!J32) -> 100 | L34: =IF(TDPrimas_!K32="","",TDPrimas_!K32) -> 0.941914625
B35: =IF(TDPrimas_!A33="","",TDPrimas_!A33) -> 25 | C35: =IF(TDPrimas_!B33="","",TDPrimas_!B33) -> Seguros SURA | D35: =IF(TDPrimas_!C33="","",TDPrimas_!C33) -> 6588756.679 | E35: =IF(TDPrimas_!D33="","",TDPrimas_!D33) -> 6914356.54 | F35: =IF(TDPrimas_!E33="","",TDPrimas_!E33) -> 0.8413729218 | G35: =IF(TDPrimas_!F33="","",TDPrimas_!F33) -> 1.03682125 | H35: =IF(TDPrimas_!G33="","",TDPrimas_!G33) -> -325599.8615 | I35: =IF(TDPrimas_!H33="","",TDPrimas_!H33) -> -4.709040669 | J35: =IF(TDPrimas_!I33="","",TDPrimas_!I33) -> 100 | K35: =IF(TDPrimas_!J33="","",TDPrimas_!J33) -> 100 | L35: =IF(TDPrimas_!K33="","",TDPrimas_!K33) -> 0.8413729218
B36: =IF(TDPrimas_!A34="","",TDPrimas_!A34) -> 26 | C36: =IF(TDPrimas_!B34="","",TDPrimas_!B34) -> Hir Seguros | D36: =IF(TDPrimas_!C34="","",TDPrimas_!C34) -> 4653799.879 | E36: =IF(TDPrimas_!D34="","",TDPrimas_!D34) -> 3705981.813 | F36: =IF(TDPrimas_!E34="","",TDPrimas_!E34) -> 0.5942822588 | G36: =IF(TDPrimas_!F34="","",TDPrimas_!F34) -> 0.5557192018 | H36: =IF(TDPrimas_!G34="","",TDPrimas_!G34) -> 947818.0662 | I36: =IF(TDPrimas_!H34="","",TDPrimas_!H34) -> 25.57535665 | J36: =IF(TDPrimas_!I34="","",TDPrimas_!I34) -> 100 | K36: =IF(TDPrimas_!J34="","",TDPrimas_!J34) -> 100 | L36: =IF(TDPrimas_!K34="","",TDPrimas_!K34) -> 0.5942822588
B37: =IF(TDPrimas_!A35="","",TDPrimas_!A35) -> 27 | C37: =IF(TDPrimas_!B35="","",TDPrimas_!B35) -> BUPA México | D37: =IF(TDPrimas_!C35="","",TDPrimas_!C35) -> 4592609.611 | E37: =IF(TDPrimas_!D35="","",TDPrimas_!D35) -> 4031130.83 | F37: =IF(TDPrimas_!E35="","",TDPrimas_!E35) -> 0.5864683665 | G37: =IF(TDPrimas_!F35="","",TDPrimas_!F35) -> 0.6044759311 | H37: =IF(TDPrimas_!G35="","",TDPrimas_!G35) -> 561478.7806 | I37: =IF(TDPrimas_!H35="","",TDPrimas_!H35) -> 13.92856755 | J37: =IF(TDPrimas_!I35="","",TDPrimas_!I35) -> 100 | K37: =IF(TDPrimas_!J35="","",TDPrimas_!J35) -> 100 | L37: =IF(TDPrimas_!K35="","",TDPrimas_!K35) -> 0.5864683665
B38: =IF(TDPrimas_!A36="","",TDPrimas_!A36) -> 28 | C38: =IF(TDPrimas_!B36="","",TDPrimas_!B36) -> Seguros Azteca | D38: =IF(TDPrimas_!C36="","",TDPrimas_!C36) -> 4474308.14 | E38: =IF(TDPrimas_!D36="","",TDPrimas_!D36) -> 3916508.027 | F38: =IF(TDPrimas_!E36="","",TDPrimas_!E36) -> 0.5713614718 | G38: =IF(TDPrimas_!F36="","",TDPrimas_!F36) -> 0.5872880182 | H38: =IF(TDPrimas_!G36="","",TDPrimas_!G36) -> 557800.1134 | I38: =IF(TDPrimas_!H36="","",TDPrimas_!H36) -> 14.24228189 | J38: =IF(TDPrimas_!I36="","",TDPrimas_!I36) -> 100 | K38: =IF(TDPrimas_!J36="","",TDPrimas_!J36) -> 100 | L38: =IF(TDPrimas_!K36="","",TDPrimas_!K36) -> 0.5713614718
B39: =IF(TDPrimas_!A37="","",TDPrimas_!A37) -> 29 | C39: =IF(TDPrimas_!B37="","",TDPrimas_!B37) -> Seguros Argos | D39: =IF(TDPrimas_!C37="","",TDPrimas_!C37) -> 4263445.338 | E39: =IF(TDPrimas_!D37="","",TDPrimas_!D37) -> 3759735.104 | F39: =IF(TDPrimas_!E37="","",TDPrimas_!E37) -> 0.5444346538 | G39: =IF(TDPrimas_!F37="","",TDPrimas_!F37) -> 0.5637796126 | H39: =IF(TDPrimas_!G37="","",TDPrimas_!G37) -> 503710.2344 | I39: =IF(TDPrimas_!H37="","",TDPrimas_!H37) -> 13.39749265 | J39: =IF(TDPrimas_!I37="","",TDPrimas_!I37) -> 100 | K39: =IF(TDPrimas_!J37="","",TDPrimas_!J37) -> 100 | L39: =IF(TDPrimas_!K37="","",TDPrimas_!K37) -> 0.5444346538
B40: =IF(TDPrimas_!A38="","",TDPrimas_!A38) -> 30 | C40: =IF(TDPrimas_!B38="","",TDPrimas_!B38) -> FM Global | D40: =IF(TDPrimas_!C38="","",TDPrimas_!C38) -> 3855035.131 | E40: =IF(TDPrimas_!D38="","",TDPrimas_!D38) -> 3524079.946 | F40: =IF(TDPrimas_!E38="","",TDPrimas_!E38) -> 0.4922813711 | G40: =IF(TDPrimas_!F38="","",TDPrimas_!F38) -> 0.528442662 | H40: =IF(TDPrimas_!G38="","",TDPrimas_!G38) -> 330955.1851 | I40: =IF(TDPrimas_!H38="","",TDPrimas_!H38) -> 9.391250773 | J40: =IF(TDPrimas_!I38="","",TDPrimas_!I38) -> 100 | K40: =IF(TDPrimas_!J38="","",TDPrimas_!J38) -> 100 | L40: =IF(TDPrimas_!K38="","",TDPrimas_!K38) -> 0.4922813711
B41: =IF(TDPrimas_!A39="","",TDPrimas_!A39) -> 31 | C41: =IF(TDPrimas_!B39="","",TDPrimas_!B39) -> Ve Por Más | D41: =IF(TDPrimas_!C39="","",TDPrimas_!C39) -> 3803565.687 | E41: =IF(TDPrimas_!D39="","",TDPrimas_!D39) -> 3075303.199 | F41: =IF(TDPrimas_!E39="","",TDPrimas_!E39) -> 0.4857088114 | G41: =IF(TDPrimas_!F39="","",TDPrimas_!F39) -> 0.4611477134 | H41: =IF(TDPrimas_!G39="","",TDPrimas_!G39) -> 728262.4875 | I41: =IF(TDPrimas_!H39="","",TDPrimas_!H39) -> 23.68099795 | J41: =IF(TDPrimas_!I39="","",TDPrimas_!I39) -> 100 | K41: =IF(TDPrimas_!J39="","",TDPrimas_!J39) -> 100 | L41: =IF(TDPrimas_!K39="","",TDPrimas_!K39) -> 0.4857088114
B42: =IF(TDPrimas_!A40="","",TDPrimas_!A40) -> 32 | C42: =IF(TDPrimas_!B40="","",TDPrimas_!B40) -> ANA | D42: =IF(TDPrimas_!C40="","",TDPrimas_!C40) -> 3485553.02 | E42: =IF(TDPrimas_!D40="","",TDPrimas_!D40) -> 3108861.043 | F42: =IF(TDPrimas_!E40="","",TDPrimas_!E40) -> 0.4450991395 | G42: =IF(TDPrimas_!F40="","",TDPrimas_!F40) -> 0.4661797775 | H42: =IF(TDPrimas_!G40="","",TDPrimas_!G40) -> 376691.9768 | I42: =IF(TDPrimas_!H40="","",TDPrimas_!H40) -> 12.11671965 | J42: =IF(TDPrimas_!I40="","",TDPrimas_!I40) -> 100 | K42: =IF(TDPrimas_!J40="","",TDPrimas_!J40) -> 100 | L42: =IF(TDPrimas_!K40="","",TDPrimas_!K40) -> 0.4450991395
B43: =IF(TDPrimas_!A41="","",TDPrimas_!A41) -> 33 | C43: =IF(TDPrimas_!B41="","",TDPrimas_!B41) -> General de Seguros | D43: =IF(TDPrimas_!C41="","",TDPrimas_!C41) -> 3056102.556 | E43: =IF(TDPrimas_!D41="","",TDPrimas_!D41) -> 2674276.15 | F43: =IF(TDPrimas_!E41="","",TDPrimas_!E41) -> 0.3902590522 | G43: =IF(TDPrimas_!F41="","",TDPrimas_!F41) -> 0.4010129252 | H43: =IF(TDPrimas_!G41="","",TDPrimas_!G41) -> 381826.4058 | I43: =IF(TDPrimas_!H41="","",TDPrimas_!H41) -> 14.27774786 | J43: =IF(TDPrimas_!I41="","",TDPrimas_!I41) -> 100 | K43: =IF(TDPrimas_!J41="","",TDPrimas_!J41) -> 100 | L43: =IF(TDPrimas_!K41="","",TDPrimas_!K41) -> 0.3902590522
B44: =IF(TDPrimas_!A42="","",TDPrimas_!A42) -> 34 | C44: =IF(TDPrimas_!B42="","",TDPrimas_!B42) -> Plan Seguro | D44: =IF(TDPrimas_!C42="","",TDPrimas_!C42) -> 2700000.003 | E44: =IF(TDPrimas_!D42="","",TDPrimas_!D42) -> 2935556.73 | F44: =IF(TDPrimas_!E42="","",TDPrimas_!E42) -> 0.3447853673 | G44: =IF(TDPrimas_!F42="","",TDPrimas_!F42) -> 0.4401924578 | H44: =IF(TDPrimas_!G42="","",TDPrimas_!G42) -> -235556.7269 | I44: =IF(TDPrimas_!H42="","",TDPrimas_!H42) -> -8.024260764 | J44: =IF(TDPrimas_!I42="","",TDPrimas_!I42) -> 100 | K44: =IF(TDPrimas_!J42="","",TDPrimas_!J42) -> 100 | L44: =IF(TDPrimas_!K42="","",TDPrimas_!K42) -> 0.3447853673
B45: =IF(TDPrimas_!A43="","",TDPrimas_!A43) -> 35 | C45: =IF(TDPrimas_!B43="","",TDPrimas_!B43) -> Cardif Vida | D45: =IF(TDPrimas_!C43="","",TDPrimas_!C43) -> 2477706.566 | E45: =IF(TDPrimas_!D43="","",TDPrimas_!D43) -> 2952222.396 | F45: =IF(TDPrimas_!E43="","",TDPrimas_!E43) -> 0.3163988768 | G45: =IF(TDPrimas_!F43="","",TDPrimas_!F43) -> 0.4426915069 | H45: =IF(TDPrimas_!G43="","",TDPrimas_!G43) -> -474515.8304 | I45: =IF(TDPrimas_!H43="","",TDPrimas_!H43) -> -16.07317359 | J45: =IF(TDPrimas_!I43="","",TDPrimas_!I43) -> 100 | K45: =IF(TDPrimas_!J43="","",TDPrimas_!J43) -> 100 | L45: =IF(TDPrimas_!K43="","",TDPrimas_!K43) -> 0.3163988768
B46: =IF(TDPrimas_!A44="","",TDPrimas_!A44) -> 36 | C46: =IF(TDPrimas_!B44="","",TDPrimas_!B44) -> Cardif Seguros Generales | D46: =IF(TDPrimas_!C44="","",TDPrimas_!C44) -> 2438887.278 | E46: =IF(TDPrimas_!D44="","",TDPrimas_!D44) -> 2044435.08 | F46: =IF(TDPrimas_!E44="","",TDPrimas_!E44) -> 0.3114417204 | G46: =IF(TDPrimas_!F44="","",TDPrimas_!F44) -> 0.306567028 | H46: =IF(TDPrimas_!G44="","",TDPrimas_!G44) -> 394452.1989 | I46: =IF(TDPrimas_!H44="","",TDPrimas_!H44) -> 19.29394593 | J46: =IF(TDPrimas_!I44="","",TDPrimas_!I44) -> 100 | K46: =IF(TDPrimas_!J44="","",TDPrimas_!J44) -> 100 | L46: =IF(TDPrimas_!K44="","",TDPrimas_!K44) -> 0.3114417204
B47: =IF(TDPrimas_!A45="","",TDPrimas_!A45) -> 37 | C47: =IF(TDPrimas_!B45="","",TDPrimas_!B45) -> El Potosí | D47: =IF(TDPrimas_!C45="","",TDPrimas_!C45) -> 2109928.129 | E47: =IF(TDPrimas_!D45="","",TDPrimas_!D45) -> 2162007.806 | F47: =IF(TDPrimas_!E45="","",TDPrimas_!E45) -> 0.2694342015 | G47: =IF(TDPrimas_!F45="","",TDPrimas_!F45) -> 0.3241972877 | H47: =IF(TDPrimas_!G45="","",TDPrimas_!G45) -> -52079.67725 | I47: =IF(TDPrimas_!H45="","",TDPrimas_!H45) -> -2.408857041 | J47: =IF(TDPrimas_!I45="","",TDPrimas_!I45) -> 100 | K47: =IF(TDPrimas_!J45="","",TDPrimas_!J45) -> 100 | L47: =IF(TDPrimas_!K45="","",TDPrimas_!K45) -> 0.2694342015
B48: =IF(TDPrimas_!A46="","",TDPrimas_!A46) -> 38 | C48: =IF(TDPrimas_!B46="","",TDPrimas_!B46) -> Insignia Life | D48: =IF(TDPrimas_!C46="","",TDPrimas_!C46) -> 2054654.46 | E48: =IF(TDPrimas_!D46="","",TDPrimas_!D46) -> 1967652.949 | F48: =IF(TDPrimas_!E46="","",TDPrimas_!E46) -> 0.2623758488 | G48: =IF(TDPrimas_!F46="","",TDPrimas_!F46) -> 0.2950533978 | H48: =IF(TDPrimas_!G46="","",TDPrimas_!G46) -> 87001.5108 | I48: =IF(TDPrimas_!H46="","",TDPrimas_!H46) -> 4.42158821 | J48: =IF(TDPrimas_!I46="","",TDPrimas_!I46) -> 100 | K48: =IF(TDPrimas_!J46="","",TDPrimas_!J46) -> 100 | L48: =IF(TDPrimas_!K46="","",TDPrimas_!K46) -> 0.2623758488
B49: =IF(TDPrimas_!A47="","",TDPrimas_!A47) -> 39 | C49: =IF(TDPrimas_!B47="","",TDPrimas_!B47) -> Seguros Azteca Daños | D49: =IF(TDPrimas_!C47="","",TDPrimas_!C47) -> 1936052.427 | E49: =IF(TDPrimas_!D47="","",TDPrimas_!D47) -> 3041486.847 | F49: =IF(TDPrimas_!E47="","",TDPrimas_!E47) -> 0.2472305727 | G49: =IF(TDPrimas_!F47="","",TDPrimas_!F47) -> 0.4560768854 | H49: =IF(TDPrimas_!G47="","",TDPrimas_!G47) -> -1105434.42 | I49: =IF(TDPrimas_!H47="","",TDPrimas_!H47) -> -36.34519812 | J49: =IF(TDPrimas_!I47="","",TDPrimas_!I47) -> 100 | K49: =IF(TDPrimas_!J47="","",TDPrimas_!J47) -> 100 | L49: =IF(TDPrimas_!K47="","",TDPrimas_!K47) -> 0.2472305727
B50: =IF(TDPrimas_!A48="","",TDPrimas_!A48) -> 40 | C50: =IF(TDPrimas_!B48="","",TDPrimas_!B48) -> Prudential | D50: =IF(TDPrimas_!C48="","",TDPrimas_!C48) -> 1903927.412 | E50: =IF(TDPrimas_!D48="","",TDPrimas_!D48) -> 1613118.019 | F50: =IF(TDPrimas_!E48="","",TDPrimas_!E48) -> 0.2431282634 | G50: =IF(TDPrimas_!F48="","",TDPrimas_!F48) -> 0.2418901935 | H50: =IF(TDPrimas_!G48="","",TDPrimas_!G48) -> 290809.3926 | I50: =IF(TDPrimas_!H48="","",TDPrimas_!H48) -> 18.02778155 | J50: =IF(TDPrimas_!I48="","",TDPrimas_!I48) -> 100 | K50: =IF(TDPrimas_!J48="","",TDPrimas_!J48) -> 100 | L50: =IF(TDPrimas_!K48="","",TDPrimas_!K48) -> 0.2431282634
B51: =IF(TDPrimas_!A49="","",TDPrimas_!A49) -> 41 | C51: =IF(TDPrimas_!B49="","",TDPrimas_!B49) -> HDI Global Seguros | D51: =IF(TDPrimas_!C49="","",TDPrimas_!C49) -> 1842535.706 | E51: =IF(TDPrimas_!D49="","",TDPrimas_!D49) -> 1126819.261 | F51: =IF(TDPrimas_!E49="","",TDPrimas_!E49) -> 0.2352886479 | G51: =IF(TDPrimas_!F49="","",TDPrimas_!F49) -> 0.1689687461 | H51: =IF(TDPrimas_!G49="","",TDPrimas_!G49) -> 715716.4452 | I51: =IF(TDPrimas_!H49="","",TDPrimas_!H49) -> 63.5165257 | J51: =IF(TDPrimas_!I49="","",TDPrimas_!I49) -> 100 | K51: =IF(TDPrimas_!J49="","",TDPrimas_!J49) -> 100 | L51: =IF(TDPrimas_!K49="","",TDPrimas_!K49) -> 0.2352886479
B52: =IF(TDPrimas_!A50="","",TDPrimas_!A50) -> 42 | C52: =IF(TDPrimas_!B50="","",TDPrimas_!B50) -> BBVA Bancomer Salud | D52: =IF(TDPrimas_!C50="","",TDPrimas_!C50) -> 1736345.618 | E52: =IF(TDPrimas_!D50="","",TDPrimas_!D50) -> 972061.2441 | F52: =IF(TDPrimas_!E50="","",TDPrimas_!E50) -> 0.2217283559 | G52: =IF(TDPrimas_!F50="","",TDPrimas_!F50) -> 0.1457624797 | H52: =IF(TDPrimas_!G50="","",TDPrimas_!G50) -> 764284.3737 | I52: =IF(TDPrimas_!H50="","",TDPrimas_!H50) -> 78.62512556 | J52: =IF(TDPrimas_!I50="","",TDPrimas_!I50) -> 100 | K52: =IF(TDPrimas_!J50="","",TDPrimas_!J50) -> 100 | L52: =IF(TDPrimas_!K50="","",TDPrimas_!K50) -> 0.2217283559
B53: =IF(TDPrimas_!A51="","",TDPrimas_!A51) -> 43 | C53: =IF(TDPrimas_!B51="","",TDPrimas_!B51) -> El Águila | D53: =IF(TDPrimas_!C51="","",TDPrimas_!C51) -> 1678335.854 | E53: =IF(TDPrimas_!D51="","",TDPrimas_!D51) -> 1427020.148 | F53: =IF(TDPrimas_!E51="","",TDPrimas_!E51) -> 0.2143206086 | G53: =IF(TDPrimas_!F51="","",TDPrimas_!F51) -> 0.2139844548 | H53: =IF(TDPrimas_!G51="","",TDPrimas_!G51) -> 251315.7058 | I53: =IF(TDPrimas_!H51="","",TDPrimas_!H51) -> 17.61122337 | J53: =IF(TDPrimas_!I51="","",TDPrimas_!I51) -> 100 | K53: =IF(TDPrimas_!J51="","",TDPrimas_!J51) -> 100 | L53: =IF(TDPrimas_!K51="","",TDPrimas_!K51) -> 0.2143206086
B54: =IF(TDPrimas_!A52="","",TDPrimas_!A52) -> 44 | C54: =IF(TDPrimas_!B52="","",TDPrimas_!B52) -> Primero Seguros | D54: =IF(TDPrimas_!C52="","",TDPrimas_!C52) -> 1477029.964 | E54: =IF(TDPrimas_!D52="","",TDPrimas_!D52) -> 988246.9214 | F54: =IF(TDPrimas_!E52="","",TDPrimas_!E52) -> 0.1886141919 | G54: =IF(TDPrimas_!F52="","",TDPrimas_!F52) -> 0.1481895535 | H54: =IF(TDPrimas_!G52="","",TDPrimas_!G52) -> 488783.0427 | I54: =IF(TDPrimas_!H52="","",TDPrimas_!H52) -> 49.45960692 | J54: =IF(TDPrimas_!I52="","",TDPrimas_!I52) -> 100 | K54: =IF(TDPrimas_!J52="","",TDPrimas_!J52) -> 100 | L54: =IF(TDPrimas_!K52="","",TDPrimas_!K52) -> 0.1886141919
B55: =IF(TDPrimas_!A53="","",TDPrimas_!A53) -> 45 | C55: =IF(TDPrimas_!B53="","",TDPrimas_!B53) -> La Latinoamericana | D55: =IF(TDPrimas_!C53="","",TDPrimas_!C53) -> 1367985.915 | E55: =IF(TDPrimas_!D53="","",TDPrimas_!D53) -> 1344599.487 | F55: =IF(TDPrimas_!E53="","",TDPrimas_!E53) -> 0.1746894539 | G55: =IF(TDPrimas_!F53="","",TDPrimas_!F53) -> 0.2016253158 | H55: =IF(TDPrimas_!G53="","",TDPrimas_!G53) -> 23386.428 | I55: =IF(TDPrimas_!H53="","",TDPrimas_!H53) -> 1.739285805 | J55: =IF(TDPrimas_!I53="","",TDPrimas_!I53) -> 100 | K55: =IF(TDPrimas_!J53="","",TDPrimas_!J53) -> 100 | L55: =IF(TDPrimas_!K53="","",TDPrimas_!K53) -> 0.1746894539
B56: =IF(TDPrimas_!A54="","",TDPrimas_!A54) -> 46 | C56: =IF(TDPrimas_!B54="","",TDPrimas_!B54) -> Tokio Marine | D56: =IF(TDPrimas_!C54="","",TDPrimas_!C54) -> 1122680.138 | E56: =IF(TDPrimas_!D54="","",TDPrimas_!D54) -> 1393936.176 | F56: =IF(TDPrimas_!E54="","",TDPrimas_!E54) -> 0.1433643272 | G56: =IF(TDPrimas_!F54="","",TDPrimas_!F54) -> 0.2090234486 | H56: =IF(TDPrimas_!G54="","",TDPrimas_!G54) -> -271256.0378 | I56: =IF(TDPrimas_!H54="","",TDPrimas_!H54) -> -19.4597172 | J56: =IF(TDPrimas_!I54="","",TDPrimas_!I54) -> 100 | K56: =IF(TDPrimas_!J54="","",TDPrimas_!J54) -> 100 | L56: =IF(TDPrimas_!K54="","",TDPrimas_!K54) -> 0.1433643272
B57: =IF(TDPrimas_!A55="","",TDPrimas_!A55) -> 47 | C57: =IF(TDPrimas_!B55="","",TDPrimas_!B55) -> Pan-American México | D57: =IF(TDPrimas_!C55="","",TDPrimas_!C55) -> 1108651.254 | E57: =IF(TDPrimas_!D55="","",TDPrimas_!D55) -> 953705.3999 | F57: =IF(TDPrimas_!E55="","",TDPrimas_!E55) -> 0.1415728628 | G57: =IF(TDPrimas_!F55="","",TDPrimas_!F55) -> 0.143009985 | H57: =IF(TDPrimas_!G55="","",TDPrimas_!G55) -> 154945.8542 | I57: =IF(TDPrimas_!H55="","",TDPrimas_!H55) -> 16.24672087 | J57: =IF(TDPrimas_!I55="","",TDPrimas_!I55) -> 100 | K57: =IF(TDPrimas_!J55="","",TDPrimas_!J55) -> 100 | L57: =IF(TDPrimas_!K55="","",TDPrimas_!K55) -> 0.1415728628
B58: =IF(TDPrimas_!A56="","",TDPrimas_!A56) -> 48 | C58: =IF(TDPrimas_!B56="","",TDPrimas_!B56) -> General de Salud | D58: =IF(TDPrimas_!C56="","",TDPrimas_!C56) -> 1059775.161 | E58: =IF(TDPrimas_!D56="","",TDPrimas_!D56) -> 1053737.074 | F58: =IF(TDPrimas_!E56="","",TDPrimas_!E56) -> 0.1353314695 | G58: =IF(TDPrimas_!F56="","",TDPrimas_!F56) -> 0.1580099296 | H58: =IF(TDPrimas_!G56="","",TDPrimas_!G56) -> 6038.08721 | I58: =IF(TDPrimas_!H56="","",TDPrimas_!H56) -> 0.5730164915 | J58: =IF(TDPrimas_!I56="","",TDPrimas_!I56) -> 100 | K58: =IF(TDPrimas_!J56="","",TDPrimas_!J56) -> 100 | L58: =IF(TDPrimas_!K56="","",TDPrimas_!K56) -> 0.1353314695
B59: =IF(TDPrimas_!A57="","",TDPrimas_!A57) -> 49 | C59: =IF(TDPrimas_!B57="","",TDPrimas_!B57) -> Patrimonial Vida | D59: =IF(TDPrimas_!C57="","",TDPrimas_!C57) -> 1031653.283 | E59: =IF(TDPrimas_!D57="","",TDPrimas_!D57) -> 2638295.487 | F59: =IF(TDPrimas_!E57="","",TDPrimas_!E57) -> 0.131740354 | G59: =IF(TDPrimas_!F57="","",TDPrimas_!F57) -> 0.3956175545 | H59: =IF(TDPrimas_!G57="","",TDPrimas_!G57) -> -1606642.204 | I59: =IF(TDPrimas_!H57="","",TDPrimas_!H57) -> -60.89697729 | J59: =IF(TDPrimas_!I57="","",TDPrimas_!I57) -> 100 | K59: =IF(TDPrimas_!J57="","",TDPrimas_!J57) -> 100 | L59: =IF(TDPrimas_!K57="","",TDPrimas_!K57) -> 0.131740354
B60: =IF(TDPrimas_!A58="","",TDPrimas_!A58) -> 50 | C60: =IF(TDPrimas_!B58="","",TDPrimas_!B58) -> Swiss Re Corporate Solutions | D60: =IF(TDPrimas_!C58="","",TDPrimas_!C58) -> 952812.2395 | E60: =IF(TDPrimas_!D58="","",TDPrimas_!D58) -> 672719.1746 | F60: =IF(TDPrimas_!E58="","",TDPrimas_!E58) -> 0.121672488 | G60: =IF(TDPrimas_!F58="","",TDPrimas_!F58) -> 0.1008755524 | H60: =IF(TDPrimas_!G58="","",TDPrimas_!G58) -> 280093.0649 | I60: =IF(TDPrimas_!H58="","",TDPrimas_!H58) -> 41.6359568 | J60: =IF(TDPrimas_!I58="","",TDPrimas_!I58) -> 100 | K60: =IF(TDPrimas_!J58="","",TDPrimas_!J58) -> 100 | L60: =IF(TDPrimas_!K58="","",TDPrimas_!K58) -> 0.121672488
B61: =IF(TDPrimas_!A59="","",TDPrimas_!A59) -> 51 | C61: =IF(TDPrimas_!B59="","",TDPrimas_!B59) -> Berkley Seguros | D61: =IF(TDPrimas_!C59="","",TDPrimas_!C59) -> 772546.6723 | E61: =IF(TDPrimas_!D59="","",TDPrimas_!D59) -> 636056.9386 | F61: =IF(TDPrimas_!E59="","",TDPrimas_!E59) -> 0.09865288439 | G61: =IF(TDPrimas_!F59="","",TDPrimas_!F59) -> 0.09537797864 | H61: =IF(TDPrimas_!G59="","",TDPrimas_!G59) -> 136489.7337 | I61: =IF(TDPrimas_!H59="","",TDPrimas_!H59) -> 21.45872883 | J61: =IF(TDPrimas_!I59="","",TDPrimas_!I59) -> 100 | K61: =IF(TDPrimas_!J59="","",TDPrimas_!J59) -> 100 | L61: =IF(TDPrimas_!K59="","",TDPrimas_!K59) -> 0.09865288439
B62: =IF(TDPrimas_!A60="","",TDPrimas_!A60) -> 52 | C62: =IF(TDPrimas_!B60="","",TDPrimas_!B60) -> Atradius | D62: =IF(TDPrimas_!C60="","",TDPrimas_!C60) -> 719164.0615 | E62: =IF(TDPrimas_!D60="","",TDPrimas_!D60) -> 808718.9571 | F62: =IF(TDPrimas_!E60="","",TDPrimas_!E60) -> 0.0918360166 | G62: =IF(TDPrimas_!F60="","",TDPrimas_!F60) -> 0.1212689851 | H62: =IF(TDPrimas_!G60="","",TDPrimas_!G60) -> -89554.89558 | I62: =IF(TDPrimas_!H60="","",TDPrimas_!H60) -> -11.07367334 | J62: =IF(TDPrimas_!I60="","",TDPrimas_!I60) -> 100 | K62: =IF(TDPrimas_!J60="","",TDPrimas_!J60) -> 100 | L62: =IF(TDPrimas_!K60="","",TDPrimas_!K60) -> 0.0918360166
B63: =IF(TDPrimas_!A61="","",TDPrimas_!A61) -> 53 | C63: =IF(TDPrimas_!B61="","",TDPrimas_!B61) -> Sompo Japan | D63: =IF(TDPrimas_!C61="","",TDPrimas_!C61) -> 654697.3205 | E63: =IF(TDPrimas_!D61="","",TDPrimas_!D61) -> 700245.3844 | F63: =IF(TDPrimas_!E61="","",TDPrimas_!E61) -> 0.08360372439 | G63: =IF(TDPrimas_!F61="","",TDPrimas_!F61) -> 0.1050031613 | H63: =IF(TDPrimas_!G61="","",TDPrimas_!G61) -> -45548.06388 | I63: =IF(TDPrimas_!H61="","",TDPrimas_!H61) -> -6.504586092 | J63: =IF(TDPrimas_!I61="","",TDPrimas_!I61) -> 100 | K63: =IF(TDPrimas_!J61="","",TDPrimas_!J61) -> 100 | L63: =IF(TDPrimas_!K61="","",TDPrimas_!K61) -> 0.08360372439
B64: =IF(TDPrimas_!A62="","",TDPrimas_!A62) -> 54 | C64: =IF(TDPrimas_!B62="","",TDPrimas_!B62) -> PREVEM Seguros | D64: =IF(TDPrimas_!C62="","",TDPrimas_!C62) -> 620700.7378 | E64: =IF(TDPrimas_!D62="","",TDPrimas_!D62) -> 580810.9912 | F64: =IF(TDPrimas_!E62="","",TDPrimas_!E62) -> 0.07926241911 | G64: =IF(TDPrimas_!F62="","",TDPrimas_!F62) -> 0.08709374106 | H64: =IF(TDPrimas_!G62="","",TDPrimas_!G62) -> 39889.74661 | I64: =IF(TDPrimas_!H62="","",TDPrimas_!H62) -> 6.86793935 | J64: =IF(TDPrimas_!I62="","",TDPrimas_!I62) -> 100 | K64: =IF(TDPrimas_!J62="","",TDPrimas_!J62) -> 100 | L64: =IF(TDPrimas_!K62="","",TDPrimas_!K62) -> 0.07926241911
B65: =IF(TDPrimas_!A63="","",TDPrimas_!A63) -> 55 | C65: =IF(TDPrimas_!B63="","",TDPrimas_!B63) -> AXA Salud | D65: =IF(TDPrimas_!C63="","",TDPrimas_!C63) -> 603978.9678 | E65: =IF(TDPrimas_!D63="","",TDPrimas_!D63) -> 573796.8175 | F65: =IF(TDPrimas_!E63="","",TDPrimas_!E63) -> 0.07712707778 | G65: =IF(TDPrimas_!F63="","",TDPrimas_!F63) -> 0.08604195204 | H65: =IF(TDPrimas_!G63="","",TDPrimas_!G63) -> 30182.15028 | I65: =IF(TDPrimas_!H63="","",TDPrimas_!H63) -> 5.260076277 | J65: =IF(TDPrimas_!I63="","",TDPrimas_!I63) -> 100 | K65: =IF(TDPrimas_!J63="","",TDPrimas_!J63) -> 100 | L65: =IF(TDPrimas_!K63="","",TDPrimas_!K63) -> 0.07712707778
B66: =IF(TDPrimas_!A64="","",TDPrimas_!A64) -> 56 | C66: =IF(TDPrimas_!B64="","",TDPrimas_!B64) -> Assurant Vida | D66: =IF(TDPrimas_!C64="","",TDPrimas_!C64) -> 583459.9453 | E66: =IF(TDPrimas_!D64="","",TDPrimas_!D64) -> 1073592.106 | F66: =IF(TDPrimas_!E64="","",TDPrimas_!E64) -> 0.07450683382 | G66: =IF(TDPrimas_!F64="","",TDPrimas_!F64) -> 0.1609872304 | H66: =IF(TDPrimas_!G64="","",TDPrimas_!G64) -> -490132.1606 | I66: =IF(TDPrimas_!H64="","",TDPrimas_!H64) -> -45.6534803 | J66: =IF(TDPrimas_!I64="","",TDPrimas_!I64) -> 100 | K66: =IF(TDPrimas_!J64="","",TDPrimas_!J64) -> 100 | L66: =IF(TDPrimas_!K64="","",TDPrimas_!K64) -> 0.07450683382
B67: =IF(TDPrimas_!A65="","",TDPrimas_!A65) -> 57 | C67: =IF(TDPrimas_!B65="","",TDPrimas_!B65) -> Solunion Crédito | D67: =IF(TDPrimas_!C65="","",TDPrimas_!C65) -> 552668.0343 | E67: =IF(TDPrimas_!D65="","",TDPrimas_!D65) -> 675000.4388 | F67: =IF(TDPrimas_!E65="","",TDPrimas_!E65) -> 0.07057475962 | G67: =IF(TDPrimas_!F65="","",TDPrimas_!F65) -> 0.1012176324 | H67: =IF(TDPrimas_!G65="","",TDPrimas_!G65) -> -122332.4044 | I67: =IF(TDPrimas_!H65="","",TDPrimas_!H65) -> -18.12330739 | J67: =IF(TDPrimas_!I65="","",TDPrimas_!I65) -> 100 | K67: =IF(TDPrimas_!J65="","",TDPrimas_!J65) -> 100 | L67: =IF(TDPrimas_!K65="","",TDPrimas_!K65) -> 0.07057475962
B68: =IF(TDPrimas_!A66="","",TDPrimas_!A66) -> 58 | C68: =IF(TDPrimas_!B66="","",TDPrimas_!B66) -> Dentegra | D68: =IF(TDPrimas_!C66="","",TDPrimas_!C66) -> 546993.8823 | E68: =IF(TDPrimas_!D66="","",TDPrimas_!D66) -> 506069.7808 | F68: =IF(TDPrimas_!E66="","",TDPrimas_!E66) -> 0.06985018015 | G68: =IF(TDPrimas_!F66="","",TDPrimas_!F66) -> 0.07588615078 | H68: =IF(TDPrimas_!G66="","",TDPrimas_!G66) -> 40924.10147 | I68: =IF(TDPrimas_!H66="","",TDPrimas_!H66) -> 8.086651885 | J68: =IF(TDPrimas_!I66="","",TDPrimas_!I66) -> 100 | K68: =IF(TDPrimas_!J66="","",TDPrimas_!J66) -> 100 | L68: =IF(TDPrimas_!K66="","",TDPrimas_!K66) -> 0.06985018015
B69: =IF(TDPrimas_!A67="","",TDPrimas_!A67) -> 59 | C69: =IF(TDPrimas_!B67="","",TDPrimas_!B67) -> Patrimonial Inbursa | D69: =IF(TDPrimas_!C67="","",TDPrimas_!C67) -> 534611.905 | E69: =IF(TDPrimas_!D67="","",TDPrimas_!D67) -> 575425.8227 | F69: =IF(TDPrimas_!E67="","",TDPrimas_!E67) -> 0.0682690229 | G69: =IF(TDPrimas_!F67="","",TDPrimas_!F67) -> 0.08628622454 | H69: =IF(TDPrimas_!G67="","",TDPrimas_!G67) -> -40813.91769 | I69: =IF(TDPrimas_!H67="","",TDPrimas_!H67) -> -7.092819974 | J69: =IF(TDPrimas_!I67="","",TDPrimas_!I67) -> 100 | K69: =IF(TDPrimas_!J67="","",TDPrimas_!J67) -> 100 | L69: =IF(TDPrimas_!K67="","",TDPrimas_!K67) -> 0.0682690229
B70: =IF(TDPrimas_!A68="","",TDPrimas_!A68) -> 60 | C70: =IF(TDPrimas_!B68="","",TDPrimas_!B68) -> SHF Cred Vivienda | D70: =IF(TDPrimas_!C68="","",TDPrimas_!C68) -> 502029.3153 | E70: =IF(TDPrimas_!D68="","",TDPrimas_!D68) -> 378646.8667 | F70: =IF(TDPrimas_!E68="","",TDPrimas_!E68) -> 0.0641082821 | G70: =IF(TDPrimas_!F68="","",TDPrimas_!F68) -> 0.05677883625 | H70: =IF(TDPrimas_!G68="","",TDPrimas_!G68) -> 123382.4487 | I70: =IF(TDPrimas_!H68="","",TDPrimas_!H68) -> 32.58509696 | J70: =IF(TDPrimas_!I68="","",TDPrimas_!I68) -> 100 | K70: =IF(TDPrimas_!J68="","",TDPrimas_!J68) -> 100 | L70: =IF(TDPrimas_!K68="","",TDPrimas_!K68) -> 0.0641082821
B71: =IF(TDPrimas_!A69="","",TDPrimas_!A69) -> 61 | C71: =IF(TDPrimas_!B69="","",TDPrimas_!B69) -> Skandia Life | D71: =IF(TDPrimas_!C69="","",TDPrimas_!C69) -> 370659.0223 | E71: =IF(TDPrimas_!D69="","",TDPrimas_!D69) -> 447144.7953 | F71: =IF(TDPrimas_!E69="","",TDPrimas_!E69) -> 0.04733252111 | G71: =IF(TDPrimas_!F69="","",TDPrimas_!F69) -> 0.06705023426 | H71: =IF(TDPrimas_!G69="","",TDPrimas_!G69) -> -76485.773 | I71: =IF(TDPrimas_!H69="","",TDPrimas_!H69) -> -17.1053703 | J71: =IF(TDPrimas_!I69="","",TDPrimas_!I69) -> 100 | K71: =IF(TDPrimas_!J69="","",TDPrimas_!J69) -> 100 | L71: =IF(TDPrimas_!K69="","",TDPrimas_!K69) -> 0.04733252111
B72: =IF(TDPrimas_!A70="","",TDPrimas_!A70) -> 62 | C72: =IF(TDPrimas_!B70="","",TDPrimas_!B70) -> Coface | D72: =IF(TDPrimas_!C70="","",TDPrimas_!C70) -> 355281.3449 | E72: =IF(TDPrimas_!D70="","",TDPrimas_!D70) -> 385583.536 | F72: =IF(TDPrimas_!E70="","",TDPrimas_!E70) -> 0.0453688181 | G72: =IF(TDPrimas_!F70="","",TDPrimas_!F70) -> 0.05781900334 | H72: =IF(TDPrimas_!G70="","",TDPrimas_!G70) -> -30302.19102 | I72: =IF(TDPrimas_!H70="","",TDPrimas_!H70) -> -7.858787576 | J72: =IF(TDPrimas_!I70="","",TDPrimas_!I70) -> 100 | K72: =IF(TDPrimas_!J70="","",TDPrimas_!J70) -> 100 | L72: =IF(TDPrimas_!K70="","",TDPrimas_!K70) -> 0.0453688181
B73: =IF(TDPrimas_!A71="","",TDPrimas_!A71) -> 63 | C73: =IF(TDPrimas_!B71="","",TDPrimas_!B71) -> Patrimonial Daños | D73: =IF(TDPrimas_!C71="","",TDPrimas_!C71) -> 346493.2363 | E73: =IF(TDPrimas_!D71="","",TDPrimas_!D71) -> 284972.9415 | F73: =IF(TDPrimas_!E71="","",TDPrimas_!E71) -> 0.04424659171 | G73: =IF(TDPrimas_!F71="","",TDPrimas_!F71) -> 0.04273224845 | H73: =IF(TDPrimas_!G71="","",TDPrimas_!G71) -> 61520.29482 | I73: =IF(TDPrimas_!H71="","",TDPrimas_!H71) -> 21.58811798 | J73: =IF(TDPrimas_!I71="","",TDPrimas_!I71) -> 100 | K73: =IF(TDPrimas_!J71="","",TDPrimas_!J71) -> 100 | L73: =IF(TDPrimas_!K71="","",TDPrimas_!K71) -> 0.04424659171
B74: =IF(TDPrimas_!A72="","",TDPrimas_!A72) -> 64 | C74: =IF(TDPrimas_!B72="","",TDPrimas_!B72) -> Centauro | D74: =IF(TDPrimas_!C72="","",TDPrimas_!C72) -> 327845.3255 | E74: =IF(TDPrimas_!D72="","",TDPrimas_!D72) -> 183069.316 | F74: =IF(TDPrimas_!E72="","",TDPrimas_!E72) -> 0.0418652855 | G74: =IF(TDPrimas_!F72="","",TDPrimas_!F72) -> 0.02745160103 | H74: =IF(TDPrimas_!G72="","",TDPrimas_!G72) -> 144776.0095 | I74: =IF(TDPrimas_!H72="","",TDPrimas_!H72) -> 79.08261892 | J74: =IF(TDPrimas_!I72="","",TDPrimas_!I72) -> 100 | K74: =IF(TDPrimas_!J72="","",TDPrimas_!J72) -> 100 | L74: =IF(TDPrimas_!K72="","",TDPrimas_!K72) -> 0.0418652855
B75: =IF(TDPrimas_!A73="","",TDPrimas_!A73) -> 65 | C75: =IF(TDPrimas_!B73="","",TDPrimas_!B73) -> Assurant Daños | D75: =IF(TDPrimas_!C73="","",TDPrimas_!C73) -> 320873.3918 | E75: =IF(TDPrimas_!D73="","",TDPrimas_!D73) -> 195056.2367 | F75: =IF(TDPrimas_!E73="","",TDPrimas_!E73) -> 0.04097498153 | G75: =IF(TDPrimas_!F73="","",TDPrimas_!F73) -> 0.02924906316 | H75: =IF(TDPrimas_!G73="","",TDPrimas_!G73) -> 125817.1552 | I75: =IF(TDPrimas_!H73="","",TDPrimas_!H73) -> 64.50301581 | J75: =IF(TDPrimas_!I73="","",TDPrimas_!I73) -> 100 | K75: =IF(TDPrimas_!J73="","",TDPrimas_!J73) -> 100 | L75: =IF(TDPrimas_!K73="","",TDPrimas_!K73) -> 0.04097498153
B76: =IF(TDPrimas_!A74="","",TDPrimas_!A74) -> 66 | C76: =IF(TDPrimas_!B74="","",TDPrimas_!B74) -> MediAccess | D76: =IF(TDPrimas_!C74="","",TDPrimas_!C74) -> 313127.319 | E76: =IF(TDPrimas_!D74="","",TDPrimas_!D74) -> 287353.0011 | F76: =IF(TDPrimas_!E74="","",TDPrimas_!E74) -> 0.03998582132 | G76: =IF(TDPrimas_!F74="","",TDPrimas_!F74) -> 0.04308914302 | H76: =IF(TDPrimas_!G74="","",TDPrimas_!G74) -> 25774.31793 | I76: =IF(TDPrimas_!H74="","",TDPrimas_!H74) -> 8.969566295 | J76: =IF(TDPrimas_!I74="","",TDPrimas_!I74) -> 100 | K76: =IF(TDPrimas_!J74="","",TDPrimas_!J74) -> 100 | L76: =IF(TDPrimas_!K74="","",TDPrimas_!K74) -> 0.03998582132
B77: =IF(TDPrimas_!A75="","",TDPrimas_!A75) -> 67 | C77: =IF(TDPrimas_!B75="","",TDPrimas_!B75) -> Virginia Surety | D77: =IF(TDPrimas_!C75="","",TDPrimas_!C75) -> 126647.9777 | E77: =IF(TDPrimas_!D75="","",TDPrimas_!D75) -> 108805.0165 | F77: =IF(TDPrimas_!E75="","",TDPrimas_!E75) -> 0.01617272942 | G77: =IF(TDPrimas_!F75="","",TDPrimas_!F75) -> 0.01631552446 | H77: =IF(TDPrimas_!G75="","",TDPrimas_!G75) -> 17842.96119 | I77: =IF(TDPrimas_!H75="","",TDPrimas_!H75) -> 16.39902439 | J77: =IF(TDPrimas_!I75="","",TDPrimas_!I75) -> 100 | K77: =IF(TDPrimas_!J75="","",TDPrimas_!J75) -> 100 | L77: =IF(TDPrimas_!K75="","",TDPrimas_!K75) -> 0.01617272942
B78: =IF(TDPrimas_!A76="","",TDPrimas_!A76) -> 68 | C78: =IF(TDPrimas_!B76="","",TDPrimas_!B76) -> Odontoprev | D78: =IF(TDPrimas_!C76="","",TDPrimas_!C76) -> 122528.5688 | E78: =IF(TDPrimas_!D76="","",TDPrimas_!D76) -> 81304.39794 | F78: =IF(TDPrimas_!E76="","",TDPrimas_!E76) -> 0.01564668798 | G78: =IF(TDPrimas_!F76="","",TDPrimas_!F76) -> 0.01219175306 | H78: =IF(TDPrimas_!G76="","",TDPrimas_!G76) -> 41224.17086 | I78: =IF(TDPrimas_!H76="","",TDPrimas_!H76) -> 50.7034944 | J78: =IF(TDPrimas_!I76="","",TDPrimas_!I76) -> 100 | K78: =IF(TDPrimas_!J76="","",TDPrimas_!J76) -> 100 | L78: =IF(TDPrimas_!K76="","",TDPrimas_!K76) -> 0.01564668798
B79: =IF(TDPrimas_!A77="","",TDPrimas_!A77) -> 69 | C79: =IF(TDPrimas_!B77="","",TDPrimas_!B77) -> Genworth Seg. de Crédito | D79: =IF(TDPrimas_!C77="","",TDPrimas_!C77) -> 111575.4806 | E79: =IF(TDPrimas_!D77="","",TDPrimas_!D77) -> 70363.62443 | F79: =IF(TDPrimas_!E77="","",TDPrimas_!E77) -> 0.01424799741 | G79: =IF(TDPrimas_!F77="","",TDPrimas_!F77) -> 0.01055116273 | H79: =IF(TDPrimas_!G77="","",TDPrimas_!G77) -> 41211.85618 | I79: =IF(TDPrimas_!H77="","",TDPrimas_!H77) -> 58.56983138 | J79: =IF(TDPrimas_!I77="","",TDPrimas_!I77) -> 100 | K79: =IF(TDPrimas_!J77="","",TDPrimas_!J77) -> 100 | L79: =IF(TDPrimas_!K77="","",TDPrimas_!K77) -> 0.01424799741
B80: =IF(TDPrimas_!A78="","",TDPrimas_!A78) -> 70 | C80: =IF(TDPrimas_!B78="","",TDPrimas_!B78) -> Crabi | D80: =IF(TDPrimas_!C78="","",TDPrimas_!C78) -> 106661.0989 | E80: =IF(TDPrimas_!D78="","",TDPrimas_!D78) -> 36639.4109 | F80: =IF(TDPrimas_!E78="","",TDPrimas_!E78) -> 0.0136204393 | G80: =IF(TDPrimas_!F78="","",TDPrimas_!F78) -> 0.005494151133 | H80: =IF(TDPrimas_!G78="","",TDPrimas_!G78) -> 70021.68801 | I80: =IF(TDPrimas_!H78="","",TDPrimas_!H78) -> 191.1102998 | J80: =IF(TDPrimas_!I78="","",TDPrimas_!I78) -> 100 | K80: =IF(TDPrimas_!J78="","",TDPrimas_!J78) -> 100 | L80: =IF(TDPrimas_!K78="","",TDPrimas_!K78) -> 0.0136204393
B81: =IF(TDPrimas_!A79="","",TDPrimas_!A79) -> 71 | C81: =IF(TDPrimas_!B79="","",TDPrimas_!B79) -> SPP Seguros | D81: =IF(TDPrimas_!C79="","",TDPrimas_!C79) -> 73642.42453 | E81: =IF(TDPrimas_!D79="","",TDPrimas_!D79) -> 56814.78747 | F81: =IF(TDPrimas_!E79="","",TDPrimas_!E79) -> 0.009404011245 | G81: =IF(TDPrimas_!F79="","",TDPrimas_!F79) -> 0.008519488204 | H81: =IF(TDPrimas_!G79="","",TDPrimas_!G79) -> 16827.63706 | I81: =IF(TDPrimas_!H79="","",TDPrimas_!H79) -> 29.61841065 | J81: =IF(TDPrimas_!I79="","",TDPrimas_!I79) -> 100 | K81: =IF(TDPrimas_!J79="","",TDPrimas_!J79) -> 100 | L81: =IF(TDPrimas_!K79="","",TDPrimas_!K79) -> 0.009404011245
B82: =IF(TDPrimas_!A80="","",TDPrimas_!A80) -> 72 | C82: =IF(TDPrimas_!B80="","",TDPrimas_!B80) -> Quálitas Salud | D82: =IF(TDPrimas_!C80="","",TDPrimas_!C80) -> 61370.43991 | E82: =IF(TDPrimas_!D80="","",TDPrimas_!D80) -> 16458.52345 | F82: =IF(TDPrimas_!E80="","",TDPrimas_!E80) -> 0.007836899867 | G82: =IF(TDPrimas_!F80="","",TDPrimas_!F80) -> 0.002467987695 | H82: =IF(TDPrimas_!G80="","",TDPrimas_!G80) -> 44911.91646 | I82: =IF(TDPrimas_!H80="","",TDPrimas_!H80) -> 272.8793783 | J82: =IF(TDPrimas_!I80="","",TDPrimas_!I80) -> 100 | K82: =IF(TDPrimas_!J80="","",TDPrimas_!J80) -> 100 | L82: =IF(TDPrimas_!K80="","",TDPrimas_!K80) -> 0.007836899867
B83: =IF(TDPrimas_!A81="","",TDPrimas_!A81) -> 73 | C83: =IF(TDPrimas_!B81="","",TDPrimas_!B81) -> SPT | D83: =IF(TDPrimas_!C81="","",TDPrimas_!C81) -> 46427.2397 | E83: =IF(TDPrimas_!D81="","",TDPrimas_!D81) -> 31148.55592 | F83: =IF(TDPrimas_!E81="","",TDPrimas_!E81) -> 0.005928678842 | G83: =IF(TDPrimas_!F81="","",TDPrimas_!F81) -> 0.004670786719 | H83: =IF(TDPrimas_!G81="","",TDPrimas_!G81) -> 15278.68378 | I83: =IF(TDPrimas_!H81="","",TDPrimas_!H81) -> 49.05101803 | J83: =IF(TDPrimas_!I81="","",TDPrimas_!I81) -> 100 | K83: =IF(TDPrimas_!J81="","",TDPrimas_!J81) -> 100 | L83: =IF(TDPrimas_!K81="","",TDPrimas_!K81) -> 0.005928678842
B84: =IF(TDPrimas_!A82="","",TDPrimas_!A82) -> 74 | C84: =IF(TDPrimas_!B82="","",TDPrimas_!B82) -> Metlife Pensiones | D84: =IF(TDPrimas_!C82="","",TDPrimas_!C82) -> 39233.6321 | E84: =IF(TDPrimas_!D82="","",TDPrimas_!D82) -> 20461.44299 | F84: =IF(TDPrimas_!E82="","",TDPrimas_!E82) -> 0.005010067496 | G84: =IF(TDPrimas_!F82="","",TDPrimas_!F82) -> 0.003068233288 | H84: =IF(TDPrimas_!G82="","",TDPrimas_!G82) -> 18772.18911 | I84: =IF(TDPrimas_!H82="","",TDPrimas_!H82) -> 91.74420943 | J84: =IF(TDPrimas_!I82="","",TDPrimas_!I82) -> 100 | K84: =IF(TDPrimas_!J82="","",TDPrimas_!J82) -> 100 | L84: =IF(TDPrimas_!K82="","",TDPrimas_!K82) -> 0.005010067496
B85: =IF(TDPrimas_!A83="","",TDPrimas_!A83) -> 75 | C85: =IF(TDPrimas_!B83="","",TDPrimas_!B83) -> Metlife Más | D85: =IF(TDPrimas_!C83="","",TDPrimas_!C83) -> 38315.49016 | E85: =IF(TDPrimas_!D83="","",TDPrimas_!D83) -> 30174.1693 | F85: =IF(TDPrimas_!E83="","",TDPrimas_!E83) -> 0.004892822345 | G85: =IF(TDPrimas_!F83="","",TDPrimas_!F83) -> 0.004524675544 | H85: =IF(TDPrimas_!G83="","",TDPrimas_!G83) -> 8141.32086 | I85: =IF(TDPrimas_!H83="","",TDPrimas_!H83) -> 26.98109359 | J85: =IF(TDPrimas_!I83="","",TDPrimas_!I83) -> 100 | K85: =IF(TDPrimas_!J83="","",TDPrimas_!J83) -> 100 | L85: =IF(TDPrimas_!K83="","",TDPrimas_!K83) -> 0.004892822345
B86: =IF(TDPrimas_!A84="","",TDPrimas_!A84) -> 76 | C86: =IF(TDPrimas_!B84="","",TDPrimas_!B84) -> Citibanamex Pensiones | D86: =IF(TDPrimas_!C84="","",TDPrimas_!C84) -> 9961.6138 | E86: =IF(TDPrimas_!D84="","",TDPrimas_!D84) -> 21149.46084 | F86: =IF(TDPrimas_!E84="","",TDPrimas_!E84) -> 0.001272080988 | G86: =IF(TDPrimas_!F84="","",TDPrimas_!F84) -> 0.003171402907 | H86: =IF(TDPrimas_!G84="","",TDPrimas_!G84) -> -11187.84704 | I86: =IF(TDPrimas_!H84="","",TDPrimas_!H84) -> -52.89897045 | J86: =IF(TDPrimas_!I84="","",TDPrimas_!I84) -> 100 | K86: =IF(TDPrimas_!J84="","",TDPrimas_!J84) -> 100 | L86: =IF(TDPrimas_!K84="","",TDPrimas_!K84) -> 0.001272080988
B87: =IF(TDPrimas_!A85="","",TDPrimas_!A85) -> 77 | C87: =IF(TDPrimas_!B85="","",TDPrimas_!B85) -> Momento Seguros | D87: =IF(TDPrimas_!C85="","",TDPrimas_!C85) -> 1991.31951 | E87: =IF(TDPrimas_!D85="","",TDPrimas_!D85) -> 0 | F87: =IF(TDPrimas_!E85="","",TDPrimas_!E85) -> 0.0002542880844 | G87: =IF(TDPrimas_!F85="","",TDPrimas_!F85) -> 0 | H87: =IF(TDPrimas_!G85="","",TDPrimas_!G85) -> 0 | I87: =IF(TDPrimas_!H85="","",TDPrimas_!H85) -> 0 | J87: =IF(TDPrimas_!I85="","",TDPrimas_!I85) -> 100 | K87: =IF(TDPrimas_!J85="","",TDPrimas_!J85) -> 100 | L87: =IF(TDPrimas_!K85="","",TDPrimas_!K85) -> 0.0002542880844
B88: =IF(TDPrimas_!A86="","",TDPrimas_!A86) -> 78 | C88: =IF(TDPrimas_!B86="","",TDPrimas_!B86) -> Pensiones Inbursa | D88: =IF(TDPrimas_!C86="","",TDPrimas_!C86) -> 738.93736 | E88: =IF(TDPrimas_!D86="","",TDPrimas_!D86) -> 1325.17551 | F88: =IF(TDPrimas_!E86="","",TDPrimas_!E86) -> 9.436103288e-05 | G88: =IF(TDPrimas_!F86="","",TDPrimas_!F86) -> 0.0001987126526 | H88: =IF(TDPrimas_!G86="","",TDPrimas_!G86) -> -586.23815 | I88: =IF(TDPrimas_!H86="","",TDPrimas_!H86) -> -44.23852883 | J88: =IF(TDPrimas_!I86="","",TDPrimas_!I86) -> 100 | K88: =IF(TDPrimas_!J86="","",TDPrimas_!J86) -> 100 | L88: =IF(TDPrimas_!K86="","",TDPrimas_!K86) -> 9.436103288e-05
B89: =IF(TDPrimas_!A87="","",TDPrimas_!A87) -> 79 | C89: =IF(TDPrimas_!B87="","",TDPrimas_!B87) -> Aserta Seguros de Vida | D89: =IF(TDPrimas_!C87="","",TDPrimas_!C87) -> 0 | E89: =IF(TDPrimas_!D87="","",TDPrimas_!D87) -> 596.44602 | F89: =IF(TDPrimas_!E87="","",TDPrimas_!E87) -> 0 | G89: =IF(TDPrimas_!F87="","",TDPrimas_!F87) -> 8.943824413e-05 | H89: =IF(TDPrimas_!G87="","",TDPrimas_!G87) -> 0 | I89: =IF(TDPrimas_!H87="","",TDPrimas_!H87) -> 0 | J89: =IF(TDPrimas_!I87="","",TDPrimas_!I87) -> 0 | K89: =IF(TDPrimas_!J87="","",TDPrimas_!J87) -> 0 | L89: =IF(TDPrimas_!K87="","",TDPrimas_!K87) -> 0
B90: =IF(TDPrimas_!A88="","",TDPrimas_!A88) -> 79 | C90: =IF(TDPrimas_!B88="","",TDPrimas_!B88) -> Principal México | D90: =IF(TDPrimas_!C88="","",TDPrimas_!C88) -> 0 | E90: =IF(TDPrimas_!D88="","",TDPrimas_!D88) -> 0 | F90: =IF(TDPrimas_!E88="","",TDPrimas_!E88) -> 0 | G90: =IF(TDPrimas_!F88="","",TDPrimas_!F88) -> 0 | H90: =IF(TDPrimas_!G88="","",TDPrimas_!G88) -> 0 | I90: =IF(TDPrimas_!H88="","",TDPrimas_!H88) -> 0 | J90: =IF(TDPrimas_!I88="","",TDPrimas_!I88) -> 0 | K90: =IF(TDPrimas_!J88="","",TDPrimas_!J88) -> 0 | L90: =IF(TDPrimas_!K88="","",TDPrimas_!K88) -> 0
B91: =IF(TDPrimas_!A89="","",TDPrimas_!A89) -> 79 | C91: =IF(TDPrimas_!B89="","",TDPrimas_!B89) -> Zurich Daños | D91: =IF(TDPrimas_!C89="","",TDPrimas_!C89) -> 0 | E91: =IF(TDPrimas_!D89="","",TDPrimas_!D89) -> 0 | F91: =IF(TDPrimas_!E89="","",TDPrimas_!E89) -> 0 | G91: =IF(TDPrimas_!F89="","",TDPrimas_!F89) -> 0 | H91: =IF(TDPrimas_!G89="","",TDPrimas_!G89) -> 0 | I91: =IF(TDPrimas_!H89="","",TDPrimas_!H89) -> 0 | J91: =IF(TDPrimas_!I89="","",TDPrimas_!I89) -> 0 | K91: =IF(TDPrimas_!J89="","",TDPrimas_!J89) -> 0 | L91: =IF(TDPrimas_!K89="","",TDPrimas_!K89) -> 0
B92: =IF(TDPrimas_!A90="","",TDPrimas_!A90) -> 79 | C92: =IF(TDPrimas_!B90="","",TDPrimas_!B90) -> Zurich Vida | D92: =IF(TDPrimas_!C90="","",TDPrimas_!C90) -> 0 | E92: =IF(TDPrimas_!D90="","",TDPrimas_!D90) -> 0 | F92: =IF(TDPrimas_!E90="","",TDPrimas_!E90) -> 0 | G92: =IF(TDPrimas_!F90="","",TDPrimas_!F90) -> 0 | H92: =IF(TDPrimas_!G90="","",TDPrimas_!G90) -> 0 | I92: =IF(TDPrimas_!H90="","",TDPrimas_!H90) -> 0 | J92: =IF(TDPrimas_!I90="","",TDPrimas_!I90) -> 0 | K92: =IF(TDPrimas_!J90="","",TDPrimas_!J90) -> 0 | L92: =IF(TDPrimas_!K90="","",TDPrimas_!K90) -> 0
B93: =IF(TDPrimas_!A91="","",TDPrimas_!A91) -> 150.1 | C93: =IF(TDPrimas_!B91="","",TDPrimas_!B91) -> TOTAL RESTO | D93: =IF(TDPrimas_!C91="","",TDPrimas_!C91) -> 167958582.9 | E93: =IF(TDPrimas_!D91="","",TDPrimas_!D91) -> 149827944.5 | F93: =IF(TDPrimas_!E91="","",TDPrimas_!E91) -> 21.44802282 | G93: =IF(TDPrimas_!F91="","",TDPrimas_!F91) -> 22.46699254 | H93: =IF(TDPrimas_!G91="","",TDPrimas_!G91) -> 18130638.36 | I93: =IF(TDPrimas_!H91="","",TDPrimas_!H91) -> 12.1009725 | J93: =IF(TDPrimas_!I91="","",TDPrimas_!I91) -> 100 | K93: =IF(TDPrimas_!J91="","",TDPrimas_!J91) -> 100 | L93: =IF(TDPrimas_!K91="","",TDPrimas_!K91) -> 21.44802282
B94: =IF(TDPrimas_!A92="","",TDPrimas_!A92) -> 200 | C94: =IF(TDPrimas_!B92="","",TDPrimas_!B92) -> Patria | D94: =IF(TDPrimas_!C92="","",TDPrimas_!C92) -> 0 | E94: =IF(TDPrimas_!D92="","",TDPrimas_!D92) -> 0 | F94: =IF(TDPrimas_!E92="","",TDPrimas_!E92) -> 0 | G94: =IF(TDPrimas_!F92="","",TDPrimas_!F92) -> 0 | H94: =IF(TDPrimas_!G92="","",TDPrimas_!G92) -> 0 | I94: =IF(TDPrimas_!H92="","",TDPrimas_!H92) -> 0 | J94: =IF(TDPrimas_!I92="","",TDPrimas_!I92) -> 0 | K94: =IF(TDPrimas_!J92="","",TDPrimas_!J92) -> 0 | L94: =IF(TDPrimas_!K92="","",TDPrimas_!K92) -> 0
B95: =IF(TDPrimas_!A93="","",TDPrimas_!A93) -> 201.1 | C95: =IF(TDPrimas_!B93="","",TDPrimas_!B93) -> TOTAL | D95: =IF(TDPrimas_!C93="","",TDPrimas_!C93) -> 783095879.1 | E95: =IF(TDPrimas_!D93="","",TDPrimas_!D93) -> 666880288 | F95: =IF(TDPrimas_!E93="","",TDPrimas_!E93) -> 100 | G95: =IF(TDPrimas_!F93="","",TDPrimas_!F93) -> 100 | H95: =IF(TDPrimas_!G93="","",TDPrimas_!G93) -> 116215591.2 | I95: =IF(TDPrimas_!H93="","",TDPrimas_!H93) -> 17.42675458 | J95: =IF(TDPrimas_!I93="","",TDPrimas_!I93) -> 100 | K95: =IF(TDPrimas_!J93="","",TDPrimas_!J93) -> 100 | L95: =IF(TDPrimas_!K93="","",TDPrimas_!K93) -> 100
B96: =IF(TDPrimas_!A94="","",TDPrimas_!A94) ->  | C96: =IF(TDPrimas_!B94="","",TDPrimas_!B94) ->  | D96: =IF(TDPrimas_!C94="","",TDPrimas_!C94) ->  | E96: =IF(TDPrimas_!D94="","",TDPrimas_!D94) ->  | F96: =IF(TDPrimas_!E94="","",TDPrimas_!E94) ->  | G96: =IF(TDPrimas_!F94="","",TDPrimas_!F94) ->  | H96: =IF(TDPrimas_!G94="","",TDPrimas_!G94) ->  | I96: =IF(TDPrimas_!H94="","",TDPrimas_!H94) ->  | J96: =IF(TDPrimas_!I94="","",TDPrimas_!I94) ->  | K96: =IF(TDPrimas_!J94="","",TDPrimas_!J94) ->  | L96: =IF(TDPrimas_!K94="","",TDPrimas_!K94) -> 
B97: =IF(TDPrimas_!A95="","",TDPrimas_!A95) ->  | C97: =IF(TDPrimas_!B95="","",TDPrimas_!B95) ->  | D97: =IF(TDPrimas_!C95="","",TDPrimas_!C95) ->  | E97: =IF(TDPrimas_!D95="","",TDPrimas_!D95) ->  | F97: =IF(TDPrimas_!E95="","",TDPrimas_!E95) ->  | G97: =IF(TDPrimas_!F95="","",TDPrimas_!F95) ->  | H97: =IF(TDPrimas_!G95="","",TDPrimas_!G95) ->  | I97: =IF(TDPrimas_!H95="","",TDPrimas_!H95) ->  | J97: =IF(TDPrimas_!I95="","",TDPrimas_!I95) ->  | K97: =IF(TDPrimas_!J95="","",TDPrimas_!J95) ->  | L97: =IF(TDPrimas_!K95="","",TDPrimas_!K95) -> 
B98: =IF(TDPrimas_!A96="","",TDPrimas_!A96) ->  | C98: =IF(TDPrimas_!B96="","",TDPrimas_!B96) ->  | D98: =IF(TDPrimas_!C96="","",TDPrimas_!C96) ->  | E98: =IF(TDPrimas_!D96="","",TDPrimas_!D96) ->  | F98: =IF(TDPrimas_!E96="","",TDPrimas_!E96) ->  | G98: =IF(TDPrimas_!F96="","",TDPrimas_!F96) ->  | H98: =IF(TDPrimas_!G96="","",TDPrimas_!G96) ->  | I98: =IF(TDPrimas_!H96="","",TDPrimas_!H96) ->  | J98: =IF(TDPrimas_!I96="","",TDPrimas_!I96) ->  | K98: =IF(TDPrimas_!J96="","",TDPrimas_!J96) ->  | L98: =IF(TDPrimas_!K96="","",TDPrimas_!K96) -> 
B99: =IF(TDPrimas_!A97="","",TDPrimas_!A97) ->  | C99: =IF(TDPrimas_!B97="","",TDPrimas_!B97) ->  | D99: =IF(TDPrimas_!C97="","",TDPrimas_!C97) ->  | E99: =IF(TDPrimas_!D97="","",TDPrimas_!D97) ->  | F99: =IF(TDPrimas_!E97="","",TDPrimas_!E97) ->  | G99: =IF(TDPrimas_!F97="","",TDPrimas_!F97) ->  | H99: =IF(TDPrimas_!G97="","",TDPrimas_!G97) ->  | I99: =IF(TDPrimas_!H97="","",TDPrimas_!H97) ->  | J99: =IF(TDPrimas_!I97="","",TDPrimas_!I97) ->  | K99: =IF(TDPrimas_!J97="","",TDPrimas_!J97) ->  | L99: =IF(TDPrimas_!K97="","",TDPrimas_!K97) -> 
B100: =IF(TDPrimas_!A98="","",TDPrimas_!A98) ->  | C100: =IF(TDPrimas_!B98="","",TDPrimas_!B98) ->  | D100: =IF(TDPrimas_!C98="","",TDPrimas_!C98) ->  | E100: =IF(TDPrimas_!D98="","",TDPrimas_!D98) ->  | F100: =IF(TDPrimas_!E98="","",TDPrimas_!E98) ->  | G100: =IF(TDPrimas_!F98="","",TDPrimas_!F98) ->  | H100: =IF(TDPrimas_!G98="","",TDPrimas_!G98) ->  | I100: =IF(TDPrimas_!H98="","",TDPrimas_!H98) ->  | J100: =IF(TDPrimas_!I98="","",TDPrimas_!I98) ->  | K100: =IF(TDPrimas_!J98="","",TDPrimas_!J98) ->  | L100: =IF(TDPrimas_!K98="","",TDPrimas_!K98) -> 
B101: =IF(TDPrimas_!A99="","",TDPrimas_!A99) ->  | C101: =IF(TDPrimas_!B99="","",TDPrimas_!B99) ->  | D101: =IF(TDPrimas_!C99="","",TDPrimas_!C99) ->  | E101: =IF(TDPrimas_!D99="","",TDPrimas_!D99) ->  | F101: =IF(TDPrimas_!E99="","",TDPrimas_!E99) ->  | G101: =IF(TDPrimas_!F99="","",TDPrimas_!F99) ->  | H101: =IF(TDPrimas_!G99="","",TDPrimas_!G99) ->  | I101: =IF(TDPrimas_!H99="","",TDPrimas_!H99) ->  | J101: =IF(TDPrimas_!I99="","",TDPrimas_!I99) ->  | K101: =IF(TDPrimas_!J99="","",TDPrimas_!J99) ->  | L101: =IF(TDPrimas_!K99="","",TDPrimas_!K99) -> 
B102: =IF(TDPrimas_!A100="","",TDPrimas_!A100) ->  | C102: =IF(TDPrimas_!B100="","",TDPrimas_!B100) ->  | D102: =IF(TDPrimas_!C100="","",TDPrimas_!C100) ->  | E102: =IF(TDPrimas_!D100="","",TDPrimas_!D100) ->  | F102: =IF(TDPrimas_!E100="","",TDPrimas_!E100) ->  | G102: =IF(TDPrimas_!F100="","",TDPrimas_!F100) ->  | H102: =IF(TDPrimas_!G100="","",TDPrimas_!G100) ->  | I102: =IF(TDPrimas_!H100="","",TDPrimas_!H100) ->  | J102: =IF(TDPrimas_!I100="","",TDPrimas_!I100) ->  | K102: =IF(TDPrimas_!J100="","",TDPrimas_!J100) ->  | L102: =IF(TDPrimas_!K100="","",TDPrimas_!K100) -> 
B103: =IF(TDPrimas_!A101="","",TDPrimas_!A101) ->  | C103: =IF(TDPrimas_!B101="","",TDPrimas_!B101) ->  | D103: =IF(TDPrimas_!C101="","",TDPrimas_!C101) ->  | E103: =IF(TDPrimas_!D101="","",TDPrimas_!D101) ->  | F103: =IF(TDPrimas_!E101="","",TDPrimas_!E101) ->  | G103: =IF(TDPrimas_!F101="","",TDPrimas_!F101) ->  | H103: =IF(TDPrimas_!G101="","",TDPrimas_!G101) ->  | I103: =IF(TDPrimas_!H101="","",TDPrimas_!H101) ->  | J103: =IF(TDPrimas_!I101="","",TDPrimas_!I101) ->  | K103: =IF(TDPrimas_!J101="","",TDPrimas_!J101) ->  | L103: =IF(TDPrimas_!K101="","",TDPrimas_!K101) -> 
B104: =IF(TDPrimas_!A102="","",TDPrimas_!A102) ->  | C104: =IF(TDPrimas_!B102="","",TDPrimas_!B102) ->  | D104: =IF(TDPrimas_!C102="","",TDPrimas_!C102) ->  | E104: =IF(TDPrimas_!D102="","",TDPrimas_!D102) ->  | F104: =IF(TDPrimas_!E102="","",TDPrimas_!E102) ->  | G104: =IF(TDPrimas_!F102="","",TDPrimas_!F102) ->  | H104: =IF(TDPrimas_!G102="","",TDPrimas_!G102) ->  | I104: =IF(TDPrimas_!H102="","",TDPrimas_!H102) ->  | J104: =IF(TDPrimas_!I102="","",TDPrimas_!I102) ->  | K104: =IF(TDPrimas_!J102="","",TDPrimas_!J102) ->  | L104: =IF(TDPrimas_!K102="","",TDPrimas_!K102) -> 
B105: =IF(TDPrimas_!A103="","",TDPrimas_!A103) ->  | C105: =IF(TDPrimas_!B103="","",TDPrimas_!B103) ->  | D105: =IF(TDPrimas_!C103="","",TDPrimas_!C103) ->  | E105: =IF(TDPrimas_!D103="","",TDPrimas_!D103) ->  | F105: =IF(TDPrimas_!E103="","",TDPrimas_!E103) ->  | G105: =IF(TDPrimas_!F103="","",TDPrimas_!F103) ->  | H105: =IF(TDPrimas_!G103="","",TDPrimas_!G103) ->  | I105: =IF(TDPrimas_!H103="","",TDPrimas_!H103) ->  | J105: =IF(TDPrimas_!I103="","",TDPrimas_!I103) ->  | K105: =IF(TDPrimas_!J103="","",TDPrimas_!J103) ->  | L105: =IF(TDPrimas_!K103="","",TDPrimas_!K103) -> 
B106: =IF(TDPrimas_!A104="","",TDPrimas_!A104) ->  | C106: =IF(TDPrimas_!B104="","",TDPrimas_!B104) ->  | D106: =IF(TDPrimas_!C104="","",TDPrimas_!C104) ->  | E106: =IF(TDPrimas_!D104="","",TDPrimas_!D104) ->  | F106: =IF(TDPrimas_!E104="","",TDPrimas_!E104) ->  | G106: =IF(TDPrimas_!F104="","",TDPrimas_!F104) ->  | H106: =IF(TDPrimas_!G104="","",TDPrimas_!G104) ->  | I106: =IF(TDPrimas_!H104="","",TDPrimas_!H104) ->  | J106: =IF(TDPrimas_!I104="","",TDPrimas_!I104) ->  | K106: =IF(TDPrimas_!J104="","",TDPrimas_!J104) ->  | L106: =IF(TDPrimas_!K104="","",TDPrimas_!K104) -> 
B107: =IF(TDPrimas_!A105="","",TDPrimas_!A105) ->  | C107: =IF(TDPrimas_!B105="","",TDPrimas_!B105) ->  | D107: =IF(TDPrimas_!C105="","",TDPrimas_!C105) ->  | E107: =IF(TDPrimas_!D105="","",TDPrimas_!D105) ->  | F107: =IF(TDPrimas_!E105="","",TDPrimas_!E105) ->  | G107: =IF(TDPrimas_!F105="","",TDPrimas_!F105) ->  | H107: =IF(TDPrimas_!G105="","",TDPrimas_!G105) ->  | I107: =IF(TDPrimas_!H105="","",TDPrimas_!H105) ->  | J107: =IF(TDPrimas_!I105="","",TDPrimas_!I105) ->  | K107: =IF(TDPrimas_!J105="","",TDPrimas_!J105) ->  | L107: =IF(TDPrimas_!K105="","",TDPrimas_!K105) -> 
B108: =IF(TDPrimas_!A106="","",TDPrimas_!A106) ->  | C108: =IF(TDPrimas_!B106="","",TDPrimas_!B106) ->  | D108: =IF(TDPrimas_!C106="","",TDPrimas_!C106) ->  | E108: =IF(TDPrimas_!D106="","",TDPrimas_!D106) ->  | F108: =IF(TDPrimas_!E106="","",TDPrimas_!E106) ->  | G108: =IF(TDPrimas_!F106="","",TDPrimas_!F106) ->  | H108: =IF(TDPrimas_!G106="","",TDPrimas_!G106) ->  | I108: =IF(TDPrimas_!H106="","",TDPrimas_!H106) ->  | J108: =IF(TDPrimas_!I106="","",TDPrimas_!I106) ->  | K108: =IF(TDPrimas_!J106="","",TDPrimas_!J106) ->  | L108: =IF(TDPrimas_!K106="","",TDPrimas_!K106) -> 
B109: =IF(TDPrimas_!A107="","",TDPrimas_!A107) ->  | C109: =IF(TDPrimas_!B107="","",TDPrimas_!B107) ->  | D109: =IF(TDPrimas_!C107="","",TDPrimas_!C107) ->  | E109: =IF(TDPrimas_!D107="","",TDPrimas_!D107) ->  | F109: =IF(TDPrimas_!E107="","",TDPrimas_!E107) ->  | G109: =IF(TDPrimas_!F107="","",TDPrimas_!F107) ->  | H109: =IF(TDPrimas_!G107="","",TDPrimas_!G107) ->  | I109: =IF(TDPrimas_!H107="","",TDPrimas_!H107) ->  | J109: =IF(TDPrimas_!I107="","",TDPrimas_!I107) ->  | K109: =IF(TDPrimas_!J107="","",TDPrimas_!J107) ->  | L109: =IF(TDPrimas_!K107="","",TDPrimas_!K107) -> 
B110: =IF(TDPrimas_!A108="","",TDPrimas_!A108) ->  | C110: =IF(TDPrimas_!B108="","",TDPrimas_!B108) ->  | D110: =IF(TDPrimas_!C108="","",TDPrimas_!C108) ->  | E110: =IF(TDPrimas_!D108="","",TDPrimas_!D108) ->  | F110: =IF(TDPrimas_!E108="","",TDPrimas_!E108) ->  | G110: =IF(TDPrimas_!F108="","",TDPrimas_!F108) ->  | H110: =IF(TDPrimas_!G108="","",TDPrimas_!G108) ->  | I110: =IF(TDPrimas_!H108="","",TDPrimas_!H108) ->  | J110: =IF(TDPrimas_!I108="","",TDPrimas_!I108) ->  | K110: =IF(TDPrimas_!J108="","",TDPrimas_!J108) ->  | L110: =IF(TDPrimas_!K108="","",TDPrimas_!K108) -> 
B111: =IF(TDPrimas_!A109="","",TDPrimas_!A109) ->  | C111: =IF(TDPrimas_!B109="","",TDPrimas_!B109) ->  | D111: =IF(TDPrimas_!C109="","",TDPrimas_!C109) ->  | E111: =IF(TDPrimas_!D109="","",TDPrimas_!D109) ->  | F111: =IF(TDPrimas_!E109="","",TDPrimas_!E109) ->  | G111: =IF(TDPrimas_!F109="","",TDPrimas_!F109) ->  | H111: =IF(TDPrimas_!G109="","",TDPrimas_!G109) ->  | I111: =IF(TDPrimas_!H109="","",TDPrimas_!H109) ->  | J111: =IF(TDPrimas_!I109="","",TDPrimas_!I109) ->  | K111: =IF(TDPrimas_!J109="","",TDPrimas_!J109) ->  | L111: =IF(TDPrimas_!K109="","",TDPrimas_!K109) -> 
B112: =IF(TDPrimas_!A110="","",TDPrimas_!A110) ->  | C112: =IF(TDPrimas_!B110="","",TDPrimas_!B110) ->  | D112: =IF(TDPrimas_!C110="","",TDPrimas_!C110) ->  | E112: =IF(TDPrimas_!D110="","",TDPrimas_!D110) ->  | F112: =IF(TDPrimas_!E110="","",TDPrimas_!E110) ->  | G112: =IF(TDPrimas_!F110="","",TDPrimas_!F110) ->  | H112: =IF(TDPrimas_!G110="","",TDPrimas_!G110) ->  | I112: =IF(TDPrimas_!H110="","",TDPrimas_!H110) ->  | J112: =IF(TDPrimas_!I110="","",TDPrimas_!I110) ->  | K112: =IF(TDPrimas_!J110="","",TDPrimas_!J110) ->  | L112: =IF(TDPrimas_!K110="","",TDPrimas_!K110) -> 
B113: =IF(TDPrimas_!A111="","",TDPrimas_!A111) ->  | C113: =IF(TDPrimas_!B111="","",TDPrimas_!B111) ->  | D113: =IF(TDPrimas_!C111="","",TDPrimas_!C111) ->  | E113: =IF(TDPrimas_!D111="","",TDPrimas_!D111) ->  | F113: =IF(TDPrimas_!E111="","",TDPrimas_!E111) ->  | G113: =IF(TDPrimas_!F111="","",TDPrimas_!F111) ->  | H113: =IF(TDPrimas_!G111="","",TDPrimas_!G111) ->  | I113: =IF(TDPrimas_!H111="","",TDPrimas_!H111) ->  | J113: =IF(TDPrimas_!I111="","",TDPrimas_!I111) ->  | K113: =IF(TDPrimas_!J111="","",TDPrimas_!J111) ->  | L113: =IF(TDPrimas_!K111="","",TDPrimas_!K111) -> 
B114: =IF(TDPrimas_!A112="","",TDPrimas_!A112) ->  | C114: =IF(TDPrimas_!B112="","",TDPrimas_!B112) ->  | D114: =IF(TDPrimas_!C112="","",TDPrimas_!C112) ->  | E114: =IF(TDPrimas_!D112="","",TDPrimas_!D112) ->  | F114: =IF(TDPrimas_!E112="","",TDPrimas_!E112) ->  | G114: =IF(TDPrimas_!F112="","",TDPrimas_!F112) ->  | H114: =IF(TDPrimas_!G112="","",TDPrimas_!G112) ->  | I114: =IF(TDPrimas_!H112="","",TDPrimas_!H112) ->  | J114: =IF(TDPrimas_!I112="","",TDPrimas_!I112) ->  | K114: =IF(TDPrimas_!J112="","",TDPrimas_!J112) ->  | L114: =IF(TDPrimas_!K112="","",TDPrimas_!K112) -> 
B115: =IF(TDPrimas_!A113="","",TDPrimas_!A113) ->  | C115: =IF(TDPrimas_!B113="","",TDPrimas_!B113) ->  | D115: =IF(TDPrimas_!C113="","",TDPrimas_!C113) ->  | E115: =IF(TDPrimas_!D113="","",TDPrimas_!D113) ->  | F115: =IF(TDPrimas_!E113="","",TDPrimas_!E113) ->  | G115: =IF(TDPrimas_!F113="","",TDPrimas_!F113) ->  | H115: =IF(TDPrimas_!G113="","",TDPrimas_!G113) ->  | I115: =IF(TDPrimas_!H113="","",TDPrimas_!H113) ->  | J115: =IF(TDPrimas_!I113="","",TDPrimas_!I113) ->  | K115: =IF(TDPrimas_!J113="","",TDPrimas_!J113) ->  | L115: =IF(TDPrimas_!K113="","",TDPrimas_!K113) -> 
B116: =IF(TDPrimas_!A114="","",TDPrimas_!A114) ->  | C116: =IF(TDPrimas_!B114="","",TDPrimas_!B114) ->  | D116: =IF(TDPrimas_!C114="","",TDPrimas_!C114) ->  | E116: =IF(TDPrimas_!D114="","",TDPrimas_!D114) ->  | F116: =IF(TDPrimas_!E114="","",TDPrimas_!E114) ->  | G116: =IF(TDPrimas_!F114="","",TDPrimas_!F114) ->  | H116: =IF(TDPrimas_!G114="","",TDPrimas_!G114) ->  | I116: =IF(TDPrimas_!H114="","",TDPrimas_!H114) ->  | J116: =IF(TDPrimas_!I114="","",TDPrimas_!I114) ->  | K116: =IF(TDPrimas_!J114="","",TDPrimas_!J114) ->  | L116: =IF(TDPrimas_!K114="","",TDPrimas_!K114) -> 
B117: =IF(TDPrimas_!A115="","",TDPrimas_!A115) ->  | C117: =IF(TDPrimas_!B115="","",TDPrimas_!B115) ->  | D117: =IF(TDPrimas_!C115="","",TDPrimas_!C115) ->  | E117: =IF(TDPrimas_!D115="","",TDPrimas_!D115) ->  | F117: =IF(TDPrimas_!E115="","",TDPrimas_!E115) ->  | G117: =IF(TDPrimas_!F115="","",TDPrimas_!F115) ->  | H117: =IF(TDPrimas_!G115="","",TDPrimas_!G115) ->  | I117: =IF(TDPrimas_!H115="","",TDPrimas_!H115) ->  | J117: =IF(TDPrimas_!I115="","",TDPrimas_!I115) ->  | K117: =IF(TDPrimas_!J115="","",TDPrimas_!J115) ->  | L117: =IF(TDPrimas_!K115="","",TDPrimas_!K115) -> 
B118: =IF(TDPrimas_!A116="","",TDPrimas_!A116) ->  | C118: =IF(TDPrimas_!B116="","",TDPrimas_!B116) ->  | D118: =IF(TDPrimas_!C116="","",TDPrimas_!C116) ->  | E118: =IF(TDPrimas_!D116="","",TDPrimas_!D116) ->  | F118: =IF(TDPrimas_!E116="","",TDPrimas_!E116) ->  | G118: =IF(TDPrimas_!F116="","",TDPrimas_!F116) ->  | H118: =IF(TDPrimas_!G116="","",TDPrimas_!G116) ->  | I118: =IF(TDPrimas_!H116="","",TDPrimas_!H116) ->  | J118: =IF(TDPrimas_!I116="","",TDPrimas_!I116) ->  | K118: =IF(TDPrimas_!J116="","",TDPrimas_!J116) ->  | L118: =IF(TDPrimas_!K116="","",TDPrimas_!K116) -> 
B119: =IF(TDPrimas_!A117="","",TDPrimas_!A117) ->  | C119: =IF(TDPrimas_!B117="","",TDPrimas_!B117) ->  | D119: =IF(TDPrimas_!C117="","",TDPrimas_!C117) ->  | E119: =IF(TDPrimas_!D117="","",TDPrimas_!D117) ->  | F119: =IF(TDPrimas_!E117="","",TDPrimas_!E117) ->  | G119: =IF(TDPrimas_!F117="","",TDPrimas_!F117) ->  | H119: =IF(TDPrimas_!G117="","",TDPrimas_!G117) ->  | I119: =IF(TDPrimas_!H117="","",TDPrimas_!H117) ->  | J119: =IF(TDPrimas_!I117="","",TDPrimas_!I117) ->  | K119: =IF(TDPrimas_!J117="","",TDPrimas_!J117) ->  | L119: =IF(TDPrimas_!K117="","",TDPrimas_!K117) -> 
B120: =IF(TDPrimas_!A118="","",TDPrimas_!A118) ->  | C120: =IF(TDPrimas_!B118="","",TDPrimas_!B118) ->  | D120: =IF(TDPrimas_!C118="","",TDPrimas_!C118) ->  | E120: =IF(TDPrimas_!D118="","",TDPrimas_!D118) ->  | F120: =IF(TDPrimas_!E118="","",TDPrimas_!E118) ->  | G120: =IF(TDPrimas_!F118="","",TDPrimas_!F118) ->  | H120: =IF(TDPrimas_!G118="","",TDPrimas_!G118) ->  | I120: =IF(TDPrimas_!H118="","",TDPrimas_!H118) ->  | J120: =IF(TDPrimas_!I118="","",TDPrimas_!I118) ->  | K120: =IF(TDPrimas_!J118="","",TDPrimas_!J118) ->  | L120: =IF(TDPrimas_!K118="","",TDPrimas_!K118) -> 
B121: =IF(TDPrimas_!A119="","",TDPrimas_!A119) ->  | C121: =IF(TDPrimas_!B119="","",TDPrimas_!B119) ->  | D121: =IF(TDPrimas_!C119="","",TDPrimas_!C119) ->  | E121: =IF(TDPrimas_!D119="","",TDPrimas_!D119) ->  | F121: =IF(TDPrimas_!E119="","",TDPrimas_!E119) ->  | G121: =IF(TDPrimas_!F119="","",TDPrimas_!F119) ->  | H121: =IF(TDPrimas_!G119="","",TDPrimas_!G119) ->  | I121: =IF(TDPrimas_!H119="","",TDPrimas_!H119) ->  | J121: =IF(TDPrimas_!I119="","",TDPrimas_!I119) ->  | K121: =IF(TDPrimas_!J119="","",TDPrimas_!J119) ->  | L121: =IF(TDPrimas_!K119="","",TDPrimas_!K119) -> 
B122: =IF(TDPrimas_!A120="","",TDPrimas_!A120) ->  | C122: =IF(TDPrimas_!B120="","",TDPrimas_!B120) ->  | D122: =IF(TDPrimas_!C120="","",TDPrimas_!C120) ->  | E122: =IF(TDPrimas_!D120="","",TDPrimas_!D120) ->  | F122: =IF(TDPrimas_!E120="","",TDPrimas_!E120) ->  | G122: =IF(TDPrimas_!F120="","",TDPrimas_!F120) ->  | H122: =IF(TDPrimas_!G120="","",TDPrimas_!G120) ->  | I122: =IF(TDPrimas_!H120="","",TDPrimas_!H120) ->  | J122: =IF(TDPrimas_!I120="","",TDPrimas_!I120) ->  | K122: =IF(TDPrimas_!J120="","",TDPrimas_!J120) ->  | L122: =IF(TDPrimas_!K120="","",TDPrimas_!K120) -> 
B123: =IF(TDPrimas_!A121="","",TDPrimas_!A121) ->  | C123: =IF(TDPrimas_!B121="","",TDPrimas_!B121) ->  | D123: =IF(TDPrimas_!C121="","",TDPrimas_!C121) ->  | E123: =IF(TDPrimas_!D121="","",TDPrimas_!D121) ->  | F123: =IF(TDPrimas_!E121="","",TDPrimas_!E121) ->  | G123: =IF(TDPrimas_!F121="","",TDPrimas_!F121) ->  | H123: =IF(TDPrimas_!G121="","",TDPrimas_!G121) ->  | I123: =IF(TDPrimas_!H121="","",TDPrimas_!H121) ->  | J123: =IF(TDPrimas_!I121="","",TDPrimas_!I121) ->  | K123: =IF(TDPrimas_!J121="","",TDPrimas_!J121) ->  | L123: =IF(TDPrimas_!K121="","",TDPrimas_!K121) -> 
B124: =IF(TDPrimas_!A122="","",TDPrimas_!A122) ->  | C124: =IF(TDPrimas_!B122="","",TDPrimas_!B122) ->  | D124: =IF(TDPrimas_!C122="","",TDPrimas_!C122) ->  | E124: =IF(TDPrimas_!D122="","",TDPrimas_!D122) ->  | F124: =IF(TDPrimas_!E122="","",TDPrimas_!E122) ->  | G124: =IF(TDPrimas_!F122="","",TDPrimas_!F122) ->  | H124: =IF(TDPrimas_!G122="","",TDPrimas_!G122) ->  | I124: =IF(TDPrimas_!H122="","",TDPrimas_!H122) ->  | J124: =IF(TDPrimas_!I122="","",TDPrimas_!I122) ->  | K124: =IF(TDPrimas_!J122="","",TDPrimas_!J122) ->  | L124: =IF(TDPrimas_!K122="","",TDPrimas_!K122) -> 
B125: =IF(TDPrimas_!A123="","",TDPrimas_!A123) ->  | C125: =IF(TDPrimas_!B123="","",TDPrimas_!B123) ->  | D125: =IF(TDPrimas_!C123="","",TDPrimas_!C123) ->  | E125: =IF(TDPrimas_!D123="","",TDPrimas_!D123) ->  | F125: =IF(TDPrimas_!E123="","",TDPrimas_!E123) ->  | G125: =IF(TDPrimas_!F123="","",TDPrimas_!F123) ->  | H125: =IF(TDPrimas_!G123="","",TDPrimas_!G123) ->  | I125: =IF(TDPrimas_!H123="","",TDPrimas_!H123) ->  | J125: =IF(TDPrimas_!I123="","",TDPrimas_!I123) ->  | K125: =IF(TDPrimas_!J123="","",TDPrimas_!J123) ->  | L125: =IF(TDPrimas_!K123="","",TDPrimas_!K123) -> 
B128: NE = No Existe
B129: * % Extraordinario mayor de 1000%

Sheet Siniestros
B1: SINIESTROS DIRECTOS | I1: =VLOOKUP(RIGHT('TD Siniestros'!B3,2),Cat!$N$2:$O$5,2,0)&" "&LEFT('TD Siniestros'!B3,4) -> Cuarto Trimestre 2023
D4: Siniestros Directos
B5: Compañías | D5: Importe | E5: Incr. % | F5: Inc. Rva. Dividendos | G5: % vs. Prima Directa | I5: % Participac de Mercado
D6: ='Primas Directas'!D6 -> 2023 | G6: ='Primas Directas'!D6 -> 2023 | H6: ='Primas Directas'!E6 -> 2022
C7: TOTAL | D7: =VLOOKUP(C7,'TD Siniestros'!$B$7:$M$154,2,0) -> 499783028.5 | E7: =VLOOKUP(C7,'TD Siniestros'!$B$7:$M$154,3,0) -> 22.47949124 | F7: =VLOOKUP(C7,'TD Siniestros'!$B$7:$M$154,4,0) -> 2391439.992 | G7: =VLOOKUP(C7,'TD Siniestros'!$B$7:$M$154,5,0) -> 63.82143513 | H7: =VLOOKUP(C7,'TD Siniestros'!$B$7:$M$154,6,0) -> 61.18856246 | I7: =IFERROR(D7/VLOOKUP("TOTAL",$C$8:$D$124,2,0)*100,"") -> 100
B8: =IF('TD Siniestros'!A7="","",'TD Siniestros'!A7) -> 1 | C8: =IF('TD Siniestros'!B7="","",'TD Siniestros'!B7) -> G.N.P. | D8: =IF('TD Siniestros'!C7="","",'TD Siniestros'!C7) -> 62980875.63 | E8: =IF('TD Siniestros'!D7="","",'TD Siniestros'!D7) -> 8.695935288 | F8: =IF('TD Siniestros'!E7="","",'TD Siniestros'!E7) -> 233757.8334 | G8: =IF('TD Siniestros'!F7="","",'TD Siniestros'!F7) -> 63.18460271 | H8: =IF('TD Siniestros'!G7="","",'TD Siniestros'!G7) -> 65.17965255 | I8: =IFERROR(D8/VLOOKUP("TOTAL",$C$8:$D$124,2,0)*100,"") -> 12.60164352
B9: =IF('TD Siniestros'!A8="","",'TD Siniestros'!A8) -> 2 | C9: =IF('TD Siniestros'!B8="","",'TD Siniestros'!B8) -> Metlife México | D9: =IF('TD Siniestros'!C8="","",'TD Siniestros'!C8) -> 53082948.44 | E9: =IF('TD Siniestros'!D8="","",'TD Siniestros'!D8) -> 11.02260872 | F9: =IF('TD Siniestros'!E8="","",'TD Siniestros'!E8) -> 141984.5518 | G9: =IF('TD Siniestros'!F8="","",'TD Siniestros'!F8) -> 67.06863709 | H9: =IF('TD Siniestros'!G8="","",'TD Siniestros'!G8) -> 68.61767394 | I9: =IFERROR(D9/VLOOKUP("TOTAL",$C$8:$D$124,2,0)*100,"") -> 10.62119868
B10: =IF('TD Siniestros'!A9="","",'TD Siniestros'!A9) -> 3 | C10: =IF('TD Siniestros'!B9="","",'TD Siniestros'!B9) -> BBVA Bancomer | D10: =IF('TD Siniestros'!C9="","",'TD Siniestros'!C9) -> 35296217.04 | E10: =IF('TD Siniestros'!D9="","",'TD Siniestros'!D9) -> 23.12056068 | F10: =IF('TD Siniestros'!E9="","",'TD Siniestros'!E9) -> 0 | G10: =IF('TD Siniestros'!F9="","",'TD Siniestros'!F9) -> 53.64131165 | H10: =IF('TD Siniestros'!G9="","",'TD Siniestros'!G9) -> 52.52985605 | I10: 7.062308047
B11: =IF('TD Siniestros'!A10="","",'TD Siniestros'!A10) -> 4 | C11: =IF('TD Siniestros'!B10="","",'TD Siniestros'!B10) -> AXA Seguros | D11: =IF('TD Siniestros'!C10="","",'TD Siniestros'!C10) -> 45272478.02 | E11: =IF('TD Siniestros'!D10="","",'TD Siniestros'!D10) -> 39.67863767 | F11: =IF('TD Siniestros'!E10="","",'TD Siniestros'!E10) -> 402709.8823 | G11: =IF('TD Siniestros'!F10="","",'TD Siniestros'!F10) -> 83.32520012 | H11: =IF('TD Siniestros'!G10="","",'TD Siniestros'!G10) -> 68.94031285 | I11: 9.058426446
B12: =IF('TD Siniestros'!A11="","",'TD Siniestros'!A11) -> 5 | C12: =IF('TD Siniestros'!B11="","",'TD Siniestros'!B11) -> Quálitas | D12: =IF('TD Siniestros'!C11="","",'TD Siniestros'!C11) -> 32298108.7 | E12: =IF('TD Siniestros'!D11="","",'TD Siniestros'!D11) -> 27.22829022 | F12: =IF('TD Siniestros'!E11="","",'TD Siniestros'!E11) -> 81803.46599 | G12: =IF('TD Siniestros'!F11="","",'TD Siniestros'!F11) -> 64.16756055 | H12: =IF('TD Siniestros'!G11="","",'TD Siniestros'!G11) -> 65.74403522 | I12: 6.462426064
B13: =IF('TD Siniestros'!A12="","",'TD Siniestros'!A12) -> 5.1 | C13: =IF('TD Siniestros'!B12="","",'TD Siniestros'!B12) -> TOTAL GRANDES | D13: =IF('TD Siniestros'!C12="","",'TD Siniestros'!C12) -> 228930627.8 | E13: =IF('TD Siniestros'!D12="","",'TD Siniestros'!D12) -> 19.0977167 | F13: =IF('TD Siniestros'!E12="","",'TD Siniestros'!E12) -> 860255.7335 | G13: =IF('TD Siniestros'!F12="","",'TD Siniestros'!F12) -> 65.54142634 | H13: =IF('TD Siniestros'!G12="","",'TD Siniestros'!G12) -> 64.33554952 | I13: 45.80600276
B14: =IF('TD Siniestros'!A13="","",'TD Siniestros'!A13) -> 6 | C14: =IF('TD Siniestros'!B13="","",'TD Siniestros'!B13) -> Monterrey New York Life | D14: =IF('TD Siniestros'!C13="","",'TD Siniestros'!C13) -> 25117259.61 | E14: =IF('TD Siniestros'!D13="","",'TD Siniestros'!D13) -> 2.051829013 | F14: =IF('TD Siniestros'!E13="","",'TD Siniestros'!E13) -> 44912.71127 | G14: =IF('TD Siniestros'!F13="","",'TD Siniestros'!F13) -> 65.05185927 | H14: =IF('TD Siniestros'!G13="","",'TD Siniestros'!G13) -> 65.59486261 | I14: 5.02563276
B15: =IF('TD Siniestros'!A14="","",'TD Siniestros'!A14) -> 7 | C15: =IF('TD Siniestros'!B14="","",'TD Siniestros'!B14) -> Banorte | D15: =IF('TD Siniestros'!C14="","",'TD Siniestros'!C14) -> 18337241.63 | E15: =IF('TD Siniestros'!D14="","",'TD Siniestros'!D14) -> 8.087074795 | F15: =IF('TD Siniestros'!E14="","",'TD Siniestros'!E14) -> 329013.3073 | G15: =IF('TD Siniestros'!F14="","",'TD Siniestros'!F14) -> 48.74765821 | H15: =IF('TD Siniestros'!G14="","",'TD Siniestros'!G14) -> 58.67447184 | I15: 3.66904048
B16: =IF('TD Siniestros'!A15="","",'TD Siniestros'!A15) -> 8 | C16: =IF('TD Siniestros'!B15="","",'TD Siniestros'!B15) -> Citibanamex Seguros | D16: =IF('TD Siniestros'!C15="","",'TD Siniestros'!C15) -> 25141239.02 | E16: =IF('TD Siniestros'!D15="","",'TD Siniestros'!D15) -> -7.049787796 | F16: =IF('TD Siniestros'!E15="","",'TD Siniestros'!E15) -> 0 | G16: =IF('TD Siniestros'!F15="","",'TD Siniestros'!F15) -> 74.44402354 | H16: =IF('TD Siniestros'!G15="","",'TD Siniestros'!G15) -> 158.4168741 | I16: 5.030430725
B17: =IF('TD Siniestros'!A16="","",'TD Siniestros'!A16) -> 9 | C17: =IF('TD Siniestros'!B16="","",'TD Siniestros'!B16) -> Mapfre México | D17: =IF('TD Siniestros'!C16="","",'TD Siniestros'!C16) -> 28839684.63 | E17: =IF('TD Siniestros'!D16="","",'TD Siniestros'!D16) -> 116.7156578 | F17: =IF('TD Siniestros'!E16="","",'TD Siniestros'!E16) -> 443717.0129 | G17: =IF('TD Siniestros'!F16="","",'TD Siniestros'!F16) -> 105.6318025 | H17: =IF('TD Siniestros'!G16="","",'TD Siniestros'!G16) -> 62.86962094 | I17: 5.770440968
B18: =IF('TD Siniestros'!A17="","",'TD Siniestros'!A17) -> 10 | C18: =IF('TD Siniestros'!B17="","",'TD Siniestros'!B17) -> Inbursa | D18: =IF('TD Siniestros'!C17="","",'TD Siniestros'!C17) -> 24497679.61 | E18: =IF('TD Siniestros'!D17="","",'TD Siniestros'!D17) -> 94.51924918 | F18: =IF('TD Siniestros'!E17="","",'TD Siniestros'!E17) -> 201766.1702 | G18: =IF('TD Siniestros'!F17="","",'TD Siniestros'!F17) -> 91.84318749 | H18: =IF('TD Siniestros'!G17="","",'TD Siniestros'!G17) -> 54.64979726 | I18: 4.901662964
B19: =IF('TD Siniestros'!A18="","",'TD Siniestros'!A18) -> 11 | C19: =IF('TD Siniestros'!B18="","",'TD Siniestros'!B18) -> Chubb Seguros México | D19: =IF('TD Siniestros'!C18="","",'TD Siniestros'!C18) -> 13753989.08 | E19: =IF('TD Siniestros'!D18="","",'TD Siniestros'!D18) -> 14.12114044 | F19: =IF('TD Siniestros'!E18="","",'TD Siniestros'!E18) -> -3552.52179 | G19: =IF('TD Siniestros'!F18="","",'TD Siniestros'!F18) -> 58.96860976 | H19: =IF('TD Siniestros'!G18="","",'TD Siniestros'!G18) -> 57.57221785 | I19: 2.751992024
B20: =IF('TD Siniestros'!A19="","",'TD Siniestros'!A19) -> 12 | C20: =IF('TD Siniestros'!B19="","",'TD Siniestros'!B19) -> Zurich Santander | D20: =IF('TD Siniestros'!C19="","",'TD Siniestros'!C19) -> 4923329.541 | E20: =IF('TD Siniestros'!D19="","",'TD Siniestros'!D19) -> 62.81294641 | F20: =IF('TD Siniestros'!E19="","",'TD Siniestros'!E19) -> 0 | G20: =IF('TD Siniestros'!F19="","",'TD Siniestros'!F19) -> 22.27753602 | H20: =IF('TD Siniestros'!G19="","",'TD Siniestros'!G19) -> 20.80005024 | I20: 0.9850933826
B21: =IF('TD Siniestros'!A20="","",'TD Siniestros'!A20) -> 13 | C21: =IF('TD Siniestros'!B20="","",'TD Siniestros'!B20) -> Allianz México | D21: =IF('TD Siniestros'!C20="","",'TD Siniestros'!C20) -> 11547143.68 | E21: =IF('TD Siniestros'!D20="","",'TD Siniestros'!D20) -> -5.651910288 | F21: =IF('TD Siniestros'!E20="","",'TD Siniestros'!E20) -> 7038.31719 | G21: =IF('TD Siniestros'!F20="","",'TD Siniestros'!F20) -> 54.40949082 | H21: =IF('TD Siniestros'!G20="","",'TD Siniestros'!G20) -> 64.58687937 | I21: 2.310431332
B22: =IF('TD Siniestros'!A21="","",'TD Siniestros'!A21) -> 14 | C22: =IF('TD Siniestros'!B21="","",'TD Siniestros'!B21) -> Atlas | D22: =IF('TD Siniestros'!C21="","",'TD Siniestros'!C21) -> 14298447.54 | E22: =IF('TD Siniestros'!D21="","",'TD Siniestros'!D21) -> 41.58282371 | F22: =IF('TD Siniestros'!E21="","",'TD Siniestros'!E21) -> 31710.80657 | G22: =IF('TD Siniestros'!F21="","",'TD Siniestros'!F21) -> 73.87793022 | H22: =IF('TD Siniestros'!G21="","",'TD Siniestros'!G21) -> 58.04916306 | I22: 2.86093099
B23: =IF('TD Siniestros'!A22="","",'TD Siniestros'!A22) -> 15 | C23: =IF('TD Siniestros'!B22="","",'TD Siniestros'!B22) -> Pensiones Banorte | D23: =IF('TD Siniestros'!C22="","",'TD Siniestros'!C22) -> 13221368.35 | E23: =IF('TD Siniestros'!D22="","",'TD Siniestros'!D22) -> 12.02407393 | F23: =IF('TD Siniestros'!E22="","",'TD Siniestros'!E22) -> 0 | G23: =IF('TD Siniestros'!F22="","",'TD Siniestros'!F22) -> 83.31310314 | H23: =IF('TD Siniestros'!G22="","",'TD Siniestros'!G22) -> 63.00106928 | I23: 2.645421633
B24: =IF('TD Siniestros'!A23="","",'TD Siniestros'!A23) -> 15.1 | C24: =IF('TD Siniestros'!B23="","",'TD Siniestros'!B23) -> TOTAL MEDIANAS | D24: =IF('TD Siniestros'!C23="","",'TD Siniestros'!C23) -> 179677382.7 | E24: =IF('TD Siniestros'!D23="","",'TD Siniestros'!D23) -> 24.99879086 | F24: =IF('TD Siniestros'!E23="","",'TD Siniestros'!E23) -> 1054605.804 | G24: =IF('TD Siniestros'!F23="","",'TD Siniestros'!F23) -> 67.58706806 | H24: =IF('TD Siniestros'!G23="","",'TD Siniestros'!G23) -> 65.85459008 | I24: 35.95107726
B25: =IF('TD Siniestros'!A24="","",'TD Siniestros'!A24) -> 16 | C25: =IF('TD Siniestros'!B24="","",'TD Siniestros'!B24) -> Pensiones BBVA Bancomer | D25: =IF('TD Siniestros'!C24="","",'TD Siniestros'!C24) -> 8986526.72 | E25: =IF('TD Siniestros'!D24="","",'TD Siniestros'!D24) -> 17.0929979 | F25: =IF('TD Siniestros'!E24="","",'TD Siniestros'!E24) -> 0 | G25: =IF('TD Siniestros'!F24="","",'TD Siniestros'!F24) -> 64.64004398 | H25: =IF('TD Siniestros'!G24="","",'TD Siniestros'!G24) -> 64.44574776 | I25: 1.798085611
B26: =IF('TD Siniestros'!A25="","",'TD Siniestros'!A25) -> 17 | C26: =IF('TD Siniestros'!B25="","",'TD Siniestros'!B25) -> GMX Seguros | D26: =IF('TD Siniestros'!C25="","",'TD Siniestros'!C25) -> 6296886.714 | E26: =IF('TD Siniestros'!D25="","",'TD Siniestros'!D25) -> 22.10208883 | F26: =IF('TD Siniestros'!E25="","",'TD Siniestros'!E25) -> 0 | G26: =IF('TD Siniestros'!F25="","",'TD Siniestros'!F25) -> 50.39511936 | H26: =IF('TD Siniestros'!G25="","",'TD Siniestros'!G25) -> 40.65283905 | I26: 1.259924078
B27: =IF('TD Siniestros'!A26="","",'TD Siniestros'!A26) -> 18 | C27: =IF('TD Siniestros'!B26="","",'TD Siniestros'!B26) -> HDI Seguros | D27: =IF('TD Siniestros'!C26="","",'TD Siniestros'!C26) -> 7385044.428 | E27: =IF('TD Siniestros'!D26="","",'TD Siniestros'!D26) -> 26.17019752 | F27: =IF('TD Siniestros'!E26="","",'TD Siniestros'!E26) -> 0 | G27: =IF('TD Siniestros'!F26="","",'TD Siniestros'!F26) -> 63.3003014 | H27: =IF('TD Siniestros'!G26="","",'TD Siniestros'!G26) -> 60.58883498 | I27: 1.477650102
B28: =IF('TD Siniestros'!A27="","",'TD Siniestros'!A27) -> 19 | C28: =IF('TD Siniestros'!B27="","",'TD Siniestros'!B27) -> Zurich Aseguradora Mexicana | D28: =IF('TD Siniestros'!C27="","",'TD Siniestros'!C27) -> 5553356.507 | E28: =IF('TD Siniestros'!D27="","",'TD Siniestros'!D27) -> 25.3289597 | F28: =IF('TD Siniestros'!E27="","",'TD Siniestros'!E27) -> 2061.91258 | G28: =IF('TD Siniestros'!F27="","",'TD Siniestros'!F27) -> 50.06334127 | H28: =IF('TD Siniestros'!G27="","",'TD Siniestros'!G27) -> 81.80013314 | I28: 1.111153479
B29: =IF('TD Siniestros'!A28="","",'TD Siniestros'!A28) -> 20 | C29: =IF('TD Siniestros'!B28="","",'TD Siniestros'!B28) -> HSBC Seguros | D29: =IF('TD Siniestros'!C28="","",'TD Siniestros'!C28) -> 2955902.846 | E29: =IF('TD Siniestros'!D28="","",'TD Siniestros'!D28) -> 8.50776059 | F29: =IF('TD Siniestros'!E28="","",'TD Siniestros'!E28) -> 0 | G29: =IF('TD Siniestros'!F28="","",'TD Siniestros'!F28) -> 30.14245339 | H29: =IF('TD Siniestros'!G28="","",'TD Siniestros'!G28) -> 41.14906581 | I29: 0.5914372192
B30: =IF('TD Siniestros'!A29="","",'TD Siniestros'!A29) -> 21 | C30: =IF('TD Siniestros'!B29="","",'TD Siniestros'!B29) -> Agroasemex | D30: =IF('TD Siniestros'!C29="","",'TD Siniestros'!C29) -> 5688797.696 | E30: =IF('TD Siniestros'!D29="","",'TD Siniestros'!D29) -> 324.5301758 | F30: =IF('TD Siniestros'!E29="","",'TD Siniestros'!E29) -> -807.21649 | G30: =IF('TD Siniestros'!F29="","",'TD Siniestros'!F29) -> 60.11934452 | H30: =IF('TD Siniestros'!G29="","",'TD Siniestros'!G29) -> 19.40158963 | I30: 1.138253476
B31: =IF('TD Siniestros'!A30="","",'TD Siniestros'!A30) -> 22 | C31: =IF('TD Siniestros'!B30="","",'TD Siniestros'!B30) -> Afirme | D31: =IF('TD Siniestros'!C30="","",'TD Siniestros'!C30) -> 5313066.637 | E31: =IF('TD Siniestros'!D30="","",'TD Siniestros'!D30) -> -10.02966125 | F31: =IF('TD Siniestros'!E30="","",'TD Siniestros'!E30) -> 7079.26942 | G31: =IF('TD Siniestros'!F30="","",'TD Siniestros'!F30) -> 66.00095673 | H31: =IF('TD Siniestros'!G30="","",'TD Siniestros'!G30) -> 77.77687828 | I31: 1.063074641
B32: =IF('TD Siniestros'!A31="","",'TD Siniestros'!A31) -> 23 | C32: =IF('TD Siniestros'!B31="","",'TD Siniestros'!B31) -> AIG Seguros | D32: =IF('TD Siniestros'!C31="","",'TD Siniestros'!C31) -> 2277143.321 | E32: =IF('TD Siniestros'!D31="","",'TD Siniestros'!D31) -> 42.98437137 | F32: =IF('TD Siniestros'!E31="","",'TD Siniestros'!E31) -> 6803.55098 | G32: =IF('TD Siniestros'!F31="","",'TD Siniestros'!F31) -> 30.48221044 | H32: =IF('TD Siniestros'!G31="","",'TD Siniestros'!G31) -> 25.25057749 | I32: 0.4556263802
B33: =IF('TD Siniestros'!A32="","",'TD Siniestros'!A32) -> 24 | C33: =IF('TD Siniestros'!B32="","",'TD Siniestros'!B32) -> ProFuturo G.N.P. | D33: =IF('TD Siniestros'!C32="","",'TD Siniestros'!C32) -> 5650443.318 | E33: =IF('TD Siniestros'!D32="","",'TD Siniestros'!D32) -> 16.58134553 | F33: =IF('TD Siniestros'!E32="","",'TD Siniestros'!E32) -> 0 | G33: =IF('TD Siniestros'!F32="","",'TD Siniestros'!F32) -> 76.60481073 | H33: =IF('TD Siniestros'!G32="","",'TD Siniestros'!G32) -> 48.63951305 | I33: 1.130579271
B34: =IF('TD Siniestros'!A33="","",'TD Siniestros'!A33) -> 25 | C34: =IF('TD Siniestros'!B33="","",'TD Siniestros'!B33) -> Seguros SURA | D34: =IF('TD Siniestros'!C33="","",'TD Siniestros'!C33) -> 3879785.453 | E34: =IF('TD Siniestros'!D33="","",'TD Siniestros'!D33) -> 0 | F34: =IF('TD Siniestros'!E33="","",'TD Siniestros'!E33) -> 13744.52832 | G34: =IF('TD Siniestros'!F33="","",'TD Siniestros'!F33) -> 58.88494055 | H34: =IF('TD Siniestros'!G33="","",'TD Siniestros'!G33) -> 0 | I34: 0.776293958
B35: =IF('TD Siniestros'!A34="","",'TD Siniestros'!A34) -> 26 | C35: =IF('TD Siniestros'!B34="","",'TD Siniestros'!B34) -> Hir Seguros | D35: =IF('TD Siniestros'!C34="","",'TD Siniestros'!C34) -> 2044603.934 | E35: =IF('TD Siniestros'!D34="","",'TD Siniestros'!D34) -> 38.27536317 | F35: =IF('TD Siniestros'!E34="","",'TD Siniestros'!E34) -> 323825.1354 | G35: =IF('TD Siniestros'!F34="","",'TD Siniestros'!F34) -> 43.93407511 | H35: =IF('TD Siniestros'!G34="","",'TD Siniestros'!G34) -> 39.89891637 | I35: 0.4090983122
B36: =IF('TD Siniestros'!A35="","",'TD Siniestros'!A35) -> 27 | C36: =IF('TD Siniestros'!B35="","",'TD Siniestros'!B35) -> BUPA México | D36: =IF('TD Siniestros'!C35="","",'TD Siniestros'!C35) -> 2879362.628 | E36: =IF('TD Siniestros'!D35="","",'TD Siniestros'!D35) -> 0.6172043949 | F36: =IF('TD Siniestros'!E35="","",'TD Siniestros'!E35) -> 0 | G36: =IF('TD Siniestros'!F35="","",'TD Siniestros'!F35) -> 62.69556683 | H36: =IF('TD Siniestros'!G35="","",'TD Siniestros'!G35) -> 70.99000776 | I36: 0.5761225299
B37: =IF('TD Siniestros'!A36="","",'TD Siniestros'!A36) -> 28 | C37: =IF('TD Siniestros'!B36="","",'TD Siniestros'!B36) -> Seguros Azteca | D37: =IF('TD Siniestros'!C36="","",'TD Siniestros'!C36) -> 2198151.509 | E37: =IF('TD Siniestros'!D36="","",'TD Siniestros'!D36) -> -20.15605378 | F37: =IF('TD Siniestros'!E36="","",'TD Siniestros'!E36) -> 0 | G37: =IF('TD Siniestros'!F36="","",'TD Siniestros'!F36) -> 49.12829961 | H37: =IF('TD Siniestros'!G36="","",'TD Siniestros'!G36) -> 70.29373319 | I37: 0.4398211591
B38: =IF('TD Siniestros'!A37="","",'TD Siniestros'!A37) -> 29 | C38: =IF('TD Siniestros'!B37="","",'TD Siniestros'!B37) -> Seguros Argos | D38: =IF('TD Siniestros'!C37="","",'TD Siniestros'!C37) -> 2819086.815 | E38: =IF('TD Siniestros'!D37="","",'TD Siniestros'!D37) -> 3.989425047 | F38: =IF('TD Siniestros'!E37="","",'TD Siniestros'!E37) -> -667.7862 | G38: =IF('TD Siniestros'!F37="","",'TD Siniestros'!F37) -> 66.12226947 | H38: =IF('TD Siniestros'!G37="","",'TD Siniestros'!G37) -> 72.10444296 | I38: 0.5640621339
B39: =IF('TD Siniestros'!A38="","",'TD Siniestros'!A38) -> 30 | C39: =IF('TD Siniestros'!B38="","",'TD Siniestros'!B38) -> FM Global | D39: =IF('TD Siniestros'!C38="","",'TD Siniestros'!C38) -> 567117.2264 | E39: =IF('TD Siniestros'!D38="","",'TD Siniestros'!D38) -> 114.4562624 | F39: =IF('TD Siniestros'!E38="","",'TD Siniestros'!E38) -> 0 | G39: =IF('TD Siniestros'!F38="","",'TD Siniestros'!F38) -> 14.71107804 | H39: =IF('TD Siniestros'!G38="","",'TD Siniestros'!G38) -> 7.503922751 | I39: 0.113472686
B40: =IF('TD Siniestros'!A39="","",'TD Siniestros'!A39) -> 31 | C40: =IF('TD Siniestros'!B39="","",'TD Siniestros'!B39) -> Ve Por Más | D40: =IF('TD Siniestros'!C39="","",'TD Siniestros'!C39) -> 2330975.79 | E40: =IF('TD Siniestros'!D39="","",'TD Siniestros'!D39) -> 24.30162715 | F40: =IF('TD Siniestros'!E39="","",'TD Siniestros'!E39) -> 17768.62355 | G40: =IF('TD Siniestros'!F39="","",'TD Siniestros'!F39) -> 61.28396306 | H40: =IF('TD Siniestros'!G39="","",'TD Siniestros'!G39) -> 60.97797658 | I40: 0.466397548
B41: =IF('TD Siniestros'!A40="","",'TD Siniestros'!A40) -> 32 | C41: =IF('TD Siniestros'!B40="","",'TD Siniestros'!B40) -> ANA | D41: =IF('TD Siniestros'!C40="","",'TD Siniestros'!C40) -> 2377752.728 | E41: =IF('TD Siniestros'!D40="","",'TD Siniestros'!D40) -> 18.40313909 | F41: =IF('TD Siniestros'!E40="","",'TD Siniestros'!E40) -> 16977.86225 | G41: =IF('TD Siniestros'!F40="","",'TD Siniestros'!F40) -> 68.21737369 | H41: =IF('TD Siniestros'!G40="","",'TD Siniestros'!G40) -> 64.59548471 | I41: 0.4757569971
B42: =IF('TD Siniestros'!A41="","",'TD Siniestros'!A41) -> 33 | C42: =IF('TD Siniestros'!B41="","",'TD Siniestros'!B41) -> General de Seguros | D42: =IF('TD Siniestros'!C41="","",'TD Siniestros'!C41) -> 1840238.406 | E42: =IF('TD Siniestros'!D41="","",'TD Siniestros'!D41) -> -10.32429902 | F42: =IF('TD Siniestros'!E41="","",'TD Siniestros'!E41) -> 9101.66515 | G42: =IF('TD Siniestros'!F41="","",'TD Siniestros'!F41) -> 60.21520457 | H42: =IF('TD Siniestros'!G41="","",'TD Siniestros'!G41) -> 76.7349225 | I42: 0.3682074622
B43: =IF('TD Siniestros'!A42="","",'TD Siniestros'!A42) -> 34 | C43: =IF('TD Siniestros'!B42="","",'TD Siniestros'!B42) -> Plan Seguro | D43: =IF('TD Siniestros'!C42="","",'TD Siniestros'!C42) -> 1620121.303 | E43: =IF('TD Siniestros'!D42="","",'TD Siniestros'!D42) -> -17.67121112 | F43: =IF('TD Siniestros'!E42="","",'TD Siniestros'!E42) -> 0 | G43: =IF('TD Siniestros'!F42="","",'TD Siniestros'!F42) -> 60.00449261 | H43: =IF('TD Siniestros'!G42="","",'TD Siniestros'!G42) -> 67.03557335 | I43: 0.3241649296
B44: =IF('TD Siniestros'!A43="","",'TD Siniestros'!A43) -> 35 | C44: =IF('TD Siniestros'!B43="","",'TD Siniestros'!B43) -> Cardif Vida | D44: =IF('TD Siniestros'!C43="","",'TD Siniestros'!C43) -> 805106.8515 | E44: =IF('TD Siniestros'!D43="","",'TD Siniestros'!D43) -> -5.679345763 | F44: =IF('TD Siniestros'!E43="","",'TD Siniestros'!E43) -> -24673.78561 | G44: =IF('TD Siniestros'!F43="","",'TD Siniestros'!F43) -> 32.49403552 | H44: =IF('TD Siniestros'!G43="","",'TD Siniestros'!G43) -> 28.91329901 | I44: 0.1610912747
B45: =IF('TD Siniestros'!A44="","",'TD Siniestros'!A44) -> 36 | C45: =IF('TD Siniestros'!B44="","",'TD Siniestros'!B44) -> Cardif Seguros Generales | D45: =IF('TD Siniestros'!C44="","",'TD Siniestros'!C44) -> 332165.86 | E45: =IF('TD Siniestros'!D44="","",'TD Siniestros'!D44) -> 86.52242625 | F45: =IF('TD Siniestros'!E44="","",'TD Siniestros'!E44) -> 0 | G45: =IF('TD Siniestros'!F44="","",'TD Siniestros'!F44) -> 13.6195659 | H45: =IF('TD Siniestros'!G44="","",'TD Siniestros'!G44) -> 8.710650995 | I45: 0.06646201273
B46: =IF('TD Siniestros'!A45="","",'TD Siniestros'!A45) -> 37 | C46: =IF('TD Siniestros'!B45="","",'TD Siniestros'!B45) -> El Potosí | D46: =IF('TD Siniestros'!C45="","",'TD Siniestros'!C45) -> 1005212.265 | E46: =IF('TD Siniestros'!D45="","",'TD Siniestros'!D45) -> -26.67095356 | F46: =IF('TD Siniestros'!E45="","",'TD Siniestros'!E45) -> 1711.85115 | G46: =IF('TD Siniestros'!F45="","",'TD Siniestros'!F45) -> 47.64201451 | H46: =IF('TD Siniestros'!G45="","",'TD Siniestros'!G45) -> 63.40514263 | I46: 0.2011297319
B47: =IF('TD Siniestros'!A46="","",'TD Siniestros'!A46) -> 38 | C47: =IF('TD Siniestros'!B46="","",'TD Siniestros'!B46) -> Insignia Life | D47: =IF('TD Siniestros'!C46="","",'TD Siniestros'!C46) -> 780135.7163 | E47: =IF('TD Siniestros'!D46="","",'TD Siniestros'!D46) -> -8.304394785 | F47: =IF('TD Siniestros'!E46="","",'TD Siniestros'!E46) -> 25890.23616 | G47: =IF('TD Siniestros'!F46="","",'TD Siniestros'!F46) -> 37.96919296 | H47: =IF('TD Siniestros'!G46="","",'TD Siniestros'!G46) -> 43.23875089 | I47: 0.1560948795
B48: =IF('TD Siniestros'!A47="","",'TD Siniestros'!A47) -> 39 | C48: =IF('TD Siniestros'!B47="","",'TD Siniestros'!B47) -> Seguros Azteca Daños | D48: =IF('TD Siniestros'!C47="","",'TD Siniestros'!C47) -> 1131905.005 | E48: =IF('TD Siniestros'!D47="","",'TD Siniestros'!D47) -> 22.6004774 | F48: =IF('TD Siniestros'!E47="","",'TD Siniestros'!E47) -> 1135.43359 | G48: =IF('TD Siniestros'!F47="","",'TD Siniestros'!F47) -> 58.46458441 | H48: =IF('TD Siniestros'!G47="","",'TD Siniestros'!G47) -> 30.35511457 | I48: 0.2264792801
B49: =IF('TD Siniestros'!A48="","",'TD Siniestros'!A48) -> 40 | C49: =IF('TD Siniestros'!B48="","",'TD Siniestros'!B48) -> Prudential | D49: =IF('TD Siniestros'!C48="","",'TD Siniestros'!C48) -> 277711.6465 | E49: =IF('TD Siniestros'!D48="","",'TD Siniestros'!D48) -> 66.0692336 | F49: =IF('TD Siniestros'!E48="","",'TD Siniestros'!E48) -> 0 | G49: =IF('TD Siniestros'!F48="","",'TD Siniestros'!F48) -> 14.5862518 | H49: =IF('TD Siniestros'!G48="","",'TD Siniestros'!G48) -> 10.36665795 | I49: 0.05556644196
B50: =IF('TD Siniestros'!A49="","",'TD Siniestros'!A49) -> 41 | C50: =IF('TD Siniestros'!B49="","",'TD Siniestros'!B49) -> HDI Global Seguros | D50: =IF('TD Siniestros'!C49="","",'TD Siniestros'!C49) -> 1044553.439 | E50: =IF('TD Siniestros'!D49="","",'TD Siniestros'!D49) -> 168.0472495 | F50: =IF('TD Siniestros'!E49="","",'TD Siniestros'!E49) -> 0 | G50: =IF('TD Siniestros'!F49="","",'TD Siniestros'!F49) -> 56.69108263 | H50: =IF('TD Siniestros'!G49="","",'TD Siniestros'!G49) -> 34.58318966 | I50: 0.2090013826
B51: =IF('TD Siniestros'!A50="","",'TD Siniestros'!A50) -> 42 | C51: =IF('TD Siniestros'!B50="","",'TD Siniestros'!B50) -> BBVA Bancomer Salud | D51: =IF('TD Siniestros'!C50="","",'TD Siniestros'!C50) -> 1029974.405 | E51: =IF('TD Siniestros'!D50="","",'TD Siniestros'!D50) -> 43.91368258 | F51: =IF('TD Siniestros'!E50="","",'TD Siniestros'!E50) -> 0 | G51: =IF('TD Siniestros'!F50="","",'TD Siniestros'!F50) -> 59.31851323 | H51: =IF('TD Siniestros'!G50="","",'TD Siniestros'!G50) -> 73.62591717 | I51: 0.2060843098
B52: =IF('TD Siniestros'!A51="","",'TD Siniestros'!A51) -> 43 | C52: =IF('TD Siniestros'!B51="","",'TD Siniestros'!B51) -> El Águila | D52: =IF('TD Siniestros'!C51="","",'TD Siniestros'!C51) -> 2183804.794 | E52: =IF('TD Siniestros'!D51="","",'TD Siniestros'!D51) -> 268.0001593 | F52: =IF('TD Siniestros'!E51="","",'TD Siniestros'!E51) -> 0 | G52: =IF('TD Siniestros'!F51="","",'TD Siniestros'!F51) -> 130.11727 | H52: =IF('TD Siniestros'!G51="","",'TD Siniestros'!G51) -> 41.58490402 | I52: 0.4369505704
B53: =IF('TD Siniestros'!A52="","",'TD Siniestros'!A52) -> 44 | C53: =IF('TD Siniestros'!B52="","",'TD Siniestros'!B52) -> Primero Seguros | D53: =IF('TD Siniestros'!C52="","",'TD Siniestros'!C52) -> 647142.5488 | E53: =IF('TD Siniestros'!D52="","",'TD Siniestros'!D52) -> 17.88757763 | F53: =IF('TD Siniestros'!E52="","",'TD Siniestros'!E52) -> 0 | G53: =IF('TD Siniestros'!F52="","",'TD Siniestros'!F52) -> 43.81377254 | H53: =IF('TD Siniestros'!G52="","",'TD Siniestros'!G52) -> 55.54774602 | I53: 0.1294846987
B54: =IF('TD Siniestros'!A53="","",'TD Siniestros'!A53) -> 45 | C54: =IF('TD Siniestros'!B53="","",'TD Siniestros'!B53) -> La Latinoamericana | D54: =IF('TD Siniestros'!C53="","",'TD Siniestros'!C53) -> 812283.3874 | E54: =IF('TD Siniestros'!D53="","",'TD Siniestros'!D53) -> 5.04319788 | F54: =IF('TD Siniestros'!E53="","",'TD Siniestros'!E53) -> 4262.45604 | G54: =IF('TD Siniestros'!F53="","",'TD Siniestros'!F53) -> 59.37805198 | H54: =IF('TD Siniestros'!G53="","",'TD Siniestros'!G53) -> 57.51044068 | I54: 0.162527205
B55: =IF('TD Siniestros'!A54="","",'TD Siniestros'!A54) -> 46 | C55: =IF('TD Siniestros'!B54="","",'TD Siniestros'!B54) -> Tokio Marine | D55: =IF('TD Siniestros'!C54="","",'TD Siniestros'!C54) -> 793668.1672 | E55: =IF('TD Siniestros'!D54="","",'TD Siniestros'!D54) -> 33.37668991 | F55: =IF('TD Siniestros'!E54="","",'TD Siniestros'!E54) -> 1729.95701 | G55: =IF('TD Siniestros'!F54="","",'TD Siniestros'!F54) -> 70.69405971 | H55: =IF('TD Siniestros'!G54="","",'TD Siniestros'!G54) -> 42.68901534 | I55: 0.1588025447
B56: =IF('TD Siniestros'!A55="","",'TD Siniestros'!A55) -> 47 | C56: =IF('TD Siniestros'!B55="","",'TD Siniestros'!B55) -> Pan-American México | D56: =IF('TD Siniestros'!C55="","",'TD Siniestros'!C55) -> 569806.9101 | E56: =IF('TD Siniestros'!D55="","",'TD Siniestros'!D55) -> 9.185773344 | F56: =IF('TD Siniestros'!E55="","",'TD Siniestros'!E55) -> 46630.86087 | G56: =IF('TD Siniestros'!F55="","",'TD Siniestros'!F55) -> 51.39640693 | H56: =IF('TD Siniestros'!G55="","",'TD Siniestros'!G55) -> 54.72016717 | I56: 0.1140108562
B57: =IF('TD Siniestros'!A56="","",'TD Siniestros'!A56) -> 48 | C57: =IF('TD Siniestros'!B56="","",'TD Siniestros'!B56) -> General de Salud | D57: =IF('TD Siniestros'!C56="","",'TD Siniestros'!C56) -> 954157.5281 | E57: =IF('TD Siniestros'!D56="","",'TD Siniestros'!D56) -> 40.93472874 | F57: =IF('TD Siniestros'!E56="","",'TD Siniestros'!E56) -> 0 | G57: =IF('TD Siniestros'!F56="","",'TD Siniestros'!F56) -> 90.03395844 | H57: =IF('TD Siniestros'!G56="","",'TD Siniestros'!G56) -> 64.24950662 | I57: 0.1909143516
B58: =IF('TD Siniestros'!A57="","",'TD Siniestros'!A57) -> 49 | C58: =IF('TD Siniestros'!B57="","",'TD Siniestros'!B57) -> Patrimonial Vida | D58: =IF('TD Siniestros'!C57="","",'TD Siniestros'!C57) -> 1588749.454 | E58: =IF('TD Siniestros'!D57="","",'TD Siniestros'!D57) -> -12.88001494 | F58: =IF('TD Siniestros'!E57="","",'TD Siniestros'!E57) -> 5692.4964 | G58: =IF('TD Siniestros'!F57="","",'TD Siniestros'!F57) -> 154.0003293 | H58: =IF('TD Siniestros'!G57="","",'TD Siniestros'!G57) -> 69.12166445 | I58: 0.317887836
B59: =IF('TD Siniestros'!A58="","",'TD Siniestros'!A58) -> 50 | C59: =IF('TD Siniestros'!B58="","",'TD Siniestros'!B58) -> Swiss Re Corporate Solutions | D59: =IF('TD Siniestros'!C58="","",'TD Siniestros'!C58) -> 251785.6877 | E59: =IF('TD Siniestros'!D58="","",'TD Siniestros'!D58) -> 623.7244803 | F59: =IF('TD Siniestros'!E58="","",'TD Siniestros'!E58) -> 765.66129 | G59: =IF('TD Siniestros'!F58="","",'TD Siniestros'!F58) -> 26.42553037 | H59: =IF('TD Siniestros'!G58="","",'TD Siniestros'!G58) -> 5.171588608 | I59: 0.05037899916
B60: =IF('TD Siniestros'!A59="","",'TD Siniestros'!A59) -> 51 | C60: =IF('TD Siniestros'!B59="","",'TD Siniestros'!B59) -> Berkley Seguros | D60: =IF('TD Siniestros'!C59="","",'TD Siniestros'!C59) -> 236227.9385 | E60: =IF('TD Siniestros'!D59="","",'TD Siniestros'!D59) -> -42.79988547 | F60: =IF('TD Siniestros'!E59="","",'TD Siniestros'!E59) -> 6286.84051 | G60: =IF('TD Siniestros'!F59="","",'TD Siniestros'!F59) -> 30.57782099 | H60: =IF('TD Siniestros'!G59="","",'TD Siniestros'!G59) -> 64.9289481 | I60: 0.0472660985
B61: =IF('TD Siniestros'!A60="","",'TD Siniestros'!A60) -> 52 | C61: =IF('TD Siniestros'!B60="","",'TD Siniestros'!B60) -> Atradius | D61: =IF('TD Siniestros'!C60="","",'TD Siniestros'!C60) -> 288171.6954 | E61: =IF('TD Siniestros'!D60="","",'TD Siniestros'!D60) -> 58.4664299 | F61: =IF('TD Siniestros'!E60="","",'TD Siniestros'!E60) -> 9503.75004 | G61: =IF('TD Siniestros'!F60="","",'TD Siniestros'!F60) -> 40.0703693 | H61: =IF('TD Siniestros'!G60="","",'TD Siniestros'!G60) -> 22.48621839 | I61: 0.05765935995
B62: =IF('TD Siniestros'!A61="","",'TD Siniestros'!A61) -> 53 | C62: =IF('TD Siniestros'!B61="","",'TD Siniestros'!B61) -> Sompo Japan | D62: =IF('TD Siniestros'!C61="","",'TD Siniestros'!C61) -> 156448.1479 | E62: =IF('TD Siniestros'!D61="","",'TD Siniestros'!D61) -> 438.8711345 | F62: =IF('TD Siniestros'!E61="","",'TD Siniestros'!E61) -> -0.43877 | G62: =IF('TD Siniestros'!F61="","",'TD Siniestros'!F61) -> 23.89625602 | H62: =IF('TD Siniestros'!G61="","",'TD Siniestros'!G61) -> 4.146056829 | I62: 0.03130321338
B63: =IF('TD Siniestros'!A62="","",'TD Siniestros'!A62) -> 54 | C63: =IF('TD Siniestros'!B62="","",'TD Siniestros'!B62) -> PREVEM Seguros | D63: =IF('TD Siniestros'!C62="","",'TD Siniestros'!C62) -> 444977.83 | E63: =IF('TD Siniestros'!D62="","",'TD Siniestros'!D62) -> 0 | F63: =IF('TD Siniestros'!E62="","",'TD Siniestros'!E62) -> 0 | G63: =IF('TD Siniestros'!F62="","",'TD Siniestros'!F62) -> 71.68959257 | H63: =IF('TD Siniestros'!G62="","",'TD Siniestros'!G62) -> 0 | I63: 0.08903420176
B64: =IF('TD Siniestros'!A63="","",'TD Siniestros'!A63) -> 55 | C64: =IF('TD Siniestros'!B63="","",'TD Siniestros'!B63) -> AXA Salud | D64: =IF('TD Siniestros'!C63="","",'TD Siniestros'!C63) -> 636807.5424 | E64: =IF('TD Siniestros'!D63="","",'TD Siniestros'!D63) -> 21.67025803 | F64: =IF('TD Siniestros'!E63="","",'TD Siniestros'!E63) -> 0 | G64: =IF('TD Siniestros'!F63="","",'TD Siniestros'!F63) -> 105.4353837 | H64: =IF('TD Siniestros'!G63="","",'TD Siniestros'!G63) -> 91.21486808 | I64: 0.1274168001
B65: =IF('TD Siniestros'!A64="","",'TD Siniestros'!A64) -> 56 | C65: =IF('TD Siniestros'!B64="","",'TD Siniestros'!B64) -> Assurant Vida | D65: =IF('TD Siniestros'!C64="","",'TD Siniestros'!C64) -> 216415.0019 | E65: =IF('TD Siniestros'!D64="","",'TD Siniestros'!D64) -> -12.11611332 | F65: =IF('TD Siniestros'!E64="","",'TD Siniestros'!E64) -> -622.7596 | G65: =IF('TD Siniestros'!F64="","",'TD Siniestros'!F64) -> 37.09166389 | H65: =IF('TD Siniestros'!G64="","",'TD Siniestros'!G64) -> 22.93711531 | I65: 0.04330179088
B66: =IF('TD Siniestros'!A65="","",'TD Siniestros'!A65) -> 57 | C66: =IF('TD Siniestros'!B65="","",'TD Siniestros'!B65) -> Solunion Crédito | D66: =IF('TD Siniestros'!C65="","",'TD Siniestros'!C65) -> 230540.1104 | E66: =IF('TD Siniestros'!D65="","",'TD Siniestros'!D65) -> 61.83599278 | F66: =IF('TD Siniestros'!E65="","",'TD Siniestros'!E65) -> 539.4494 | G66: =IF('TD Siniestros'!F65="","",'TD Siniestros'!F65) -> 41.71403014 | H66: =IF('TD Siniestros'!G65="","",'TD Siniestros'!G65) -> 21.10412377 | I66: 0.04612803902
B67: =IF('TD Siniestros'!A66="","",'TD Siniestros'!A66) -> 58 | C67: =IF('TD Siniestros'!B66="","",'TD Siniestros'!B66) -> Dentegra | D67: =IF('TD Siniestros'!C66="","",'TD Siniestros'!C66) -> 189852.0706 | E67: =IF('TD Siniestros'!D66="","",'TD Siniestros'!D66) -> 14.73883721 | F67: =IF('TD Siniestros'!E66="","",'TD Siniestros'!E66) -> 138.11643 | G67: =IF('TD Siniestros'!F66="","",'TD Siniestros'!F66) -> 34.70826214 | H67: =IF('TD Siniestros'!G66="","",'TD Siniestros'!G66) -> 32.69598977 | I67: 0.03798689826
B68: =IF('TD Siniestros'!A67="","",'TD Siniestros'!A67) -> 59 | C68: =IF('TD Siniestros'!B67="","",'TD Siniestros'!B67) -> Patrimonial Inbursa | D68: =IF('TD Siniestros'!C67="","",'TD Siniestros'!C67) -> 48042.9091 | E68: =IF('TD Siniestros'!D67="","",'TD Siniestros'!D67) -> -21.75588436 | F68: =IF('TD Siniestros'!E67="","",'TD Siniestros'!E67) -> 0 | G68: =IF('TD Siniestros'!F67="","",'TD Siniestros'!F67) -> 8.986501918 | H68: =IF('TD Siniestros'!G67="","",'TD Siniestros'!G67) -> 10.67058583 | I68: 0.009612753207
B69: =IF('TD Siniestros'!A68="","",'TD Siniestros'!A68) -> 60 | C69: =IF('TD Siniestros'!B68="","",'TD Siniestros'!B68) -> SHF Cred Vivienda | D69: =IF('TD Siniestros'!C68="","",'TD Siniestros'!C68) -> -200470.5934 | E69: =IF('TD Siniestros'!D68="","",'TD Siniestros'!D68) -> -413.0009948 | F69: =IF('TD Siniestros'!E68="","",'TD Siniestros'!E68) -> 0 | G69: =IF('TD Siniestros'!F68="","",'TD Siniestros'!F68) -> -39.93204925 | H69: =IF('TD Siniestros'!G68="","",'TD Siniestros'!G68) -> 16.91494503 | I69: -0.0401115248
B70: =IF('TD Siniestros'!A69="","",'TD Siniestros'!A69) -> 61 | C70: =IF('TD Siniestros'!B69="","",'TD Siniestros'!B69) -> Skandia Life | D70: =IF('TD Siniestros'!C69="","",'TD Siniestros'!C69) -> 134593.6901 | E70: =IF('TD Siniestros'!D69="","",'TD Siniestros'!D69) -> 102.2748439 | F70: =IF('TD Siniestros'!E69="","",'TD Siniestros'!E69) -> 0 | G70: =IF('TD Siniestros'!F69="","",'TD Siniestros'!F69) -> 36.31199621 | H70: =IF('TD Siniestros'!G69="","",'TD Siniestros'!G69) -> 14.88108665 | I70: 0.0269304243
B71: =IF('TD Siniestros'!A70="","",'TD Siniestros'!A70) -> 62 | C71: =IF('TD Siniestros'!B70="","",'TD Siniestros'!B70) -> Coface | D71: =IF('TD Siniestros'!C70="","",'TD Siniestros'!C70) -> 68006.18178 | E71: =IF('TD Siniestros'!D70="","",'TD Siniestros'!D70) -> 52.26494343 | F71: =IF('TD Siniestros'!E70="","",'TD Siniestros'!E70) -> 2494.83236 | G71: =IF('TD Siniestros'!F70="","",'TD Siniestros'!F70) -> 19.14150088 | H71: =IF('TD Siniestros'!G70="","",'TD Siniestros'!G70) -> 11.58323813 | I71: 0.01360714108
B72: =IF('TD Siniestros'!A71="","",'TD Siniestros'!A71) -> 63 | C72: =IF('TD Siniestros'!B71="","",'TD Siniestros'!B71) -> Patrimonial Daños | D72: =IF('TD Siniestros'!C71="","",'TD Siniestros'!C71) -> 78814.89926 | E72: =IF('TD Siniestros'!D71="","",'TD Siniestros'!D71) -> 91.02233148 | F72: =IF('TD Siniestros'!E71="","",'TD Siniestros'!E71) -> 0 | G72: =IF('TD Siniestros'!F71="","",'TD Siniestros'!F71) -> 22.74644668 | H72: =IF('TD Siniestros'!G71="","",'TD Siniestros'!G71) -> 14.47839957 | I72: 0.01576982306
B73: =IF('TD Siniestros'!A72="","",'TD Siniestros'!A72) -> 64 | C73: =IF('TD Siniestros'!B72="","",'TD Siniestros'!B72) -> Centauro | D73: =IF('TD Siniestros'!C72="","",'TD Siniestros'!C72) -> 122344.2043 | E73: =IF('TD Siniestros'!D72="","",'TD Siniestros'!D72) -> 29.90414512 | F73: =IF('TD Siniestros'!E72="","",'TD Siniestros'!E72) -> 242.8491 | G73: =IF('TD Siniestros'!F72="","",'TD Siniestros'!F72) -> 37.31766012 | H73: =IF('TD Siniestros'!G72="","",'TD Siniestros'!G72) -> 51.44519677 | I73: =IFERROR(D73/VLOOKUP("TOTAL",$C$8:$D$124,2,0)*100,"") -> 0.02447946355
B74: =IF('TD Siniestros'!A73="","",'TD Siniestros'!A73) -> 65 | C74: =IF('TD Siniestros'!B73="","",'TD Siniestros'!B73) -> Assurant Daños | D74: =IF('TD Siniestros'!C73="","",'TD Siniestros'!C73) -> 46487.4669 | E74: =IF('TD Siniestros'!D73="","",'TD Siniestros'!D73) -> -25.78903458 | F74: =IF('TD Siniestros'!E73="","",'TD Siniestros'!E73) -> -740.3987 | G74: =IF('TD Siniestros'!F73="","",'TD Siniestros'!F73) -> 14.48779116 | H74: =IF('TD Siniestros'!G73="","",'TD Siniestros'!G73) -> 32.11500248 | I74: 0.009301529714
B75: =IF('TD Siniestros'!A74="","",'TD Siniestros'!A74) -> 66 | C75: =IF('TD Siniestros'!B74="","",'TD Siniestros'!B74) -> MediAccess | D75: =IF('TD Siniestros'!C74="","",'TD Siniestros'!C74) -> 215508.1428 | E75: =IF('TD Siniestros'!D74="","",'TD Siniestros'!D74) -> 49.93091348 | F75: =IF('TD Siniestros'!E74="","",'TD Siniestros'!E74) -> 0 | G75: =IF('TD Siniestros'!F74="","",'TD Siniestros'!F74) -> 68.82444607 | H75: =IF('TD Siniestros'!G74="","",'TD Siniestros'!G74) -> 50.02150567 | I75: 0.04312034033
B76: =IF('TD Siniestros'!A75="","",'TD Siniestros'!A75) -> 67 | C76: =IF('TD Siniestros'!B75="","",'TD Siniestros'!B75) -> Virginia Surety | D76: =IF('TD Siniestros'!C75="","",'TD Siniestros'!C75) -> 41350.51661 | E76: =IF('TD Siniestros'!D75="","",'TD Siniestros'!D75) -> 42.73980839 | F76: =IF('TD Siniestros'!E75="","",'TD Siniestros'!E75) -> 0 | G76: =IF('TD Siniestros'!F75="","",'TD Siniestros'!F75) -> 32.64996202 | H76: =IF('TD Siniestros'!G75="","",'TD Siniestros'!G75) -> 26.62483415 | I76: 0.008273693634
B77: =IF('TD Siniestros'!A76="","",'TD Siniestros'!A76) -> 68 | C77: =IF('TD Siniestros'!B76="","",'TD Siniestros'!B76) -> Odontoprev | D77: =IF('TD Siniestros'!C76="","",'TD Siniestros'!C76) -> 30238.6561 | E77: =IF('TD Siniestros'!D76="","",'TD Siniestros'!D76) -> 38.53628703 | F77: =IF('TD Siniestros'!E76="","",'TD Siniestros'!E76) -> 0 | G77: =IF('TD Siniestros'!F76="","",'TD Siniestros'!F76) -> 24.67886175 | H77: =IF('TD Siniestros'!G76="","",'TD Siniestros'!G76) -> 26.84632874 | I77: 0.00605035673
B78: =IF('TD Siniestros'!A77="","",'TD Siniestros'!A77) -> 69 | C78: =IF('TD Siniestros'!B77="","",'TD Siniestros'!B77) -> Genworth Seg. de Crédito | D78: =IF('TD Siniestros'!C77="","",'TD Siniestros'!C77) -> 23550.13913 | E78: =IF('TD Siniestros'!D77="","",'TD Siniestros'!D77) -> 100.5221782 | F78: =IF('TD Siniestros'!E77="","",'TD Siniestros'!E77) -> 0 | G78: =IF('TD Siniestros'!F77="","",'TD Siniestros'!F77) -> 21.10691256 | H78: =IF('TD Siniestros'!G77="","",'TD Siniestros'!G77) -> 16.69101939 | I78: 0.004712072597
B79: =IF('TD Siniestros'!A78="","",'TD Siniestros'!A78) -> 70 | C79: =IF('TD Siniestros'!B78="","",'TD Siniestros'!B78) -> Crabi | D79: =IF('TD Siniestros'!C78="","",'TD Siniestros'!C78) -> 62883.92948 | E79: =IF('TD Siniestros'!D78="","",'TD Siniestros'!D78) -> 82.59596019 | F79: =IF('TD Siniestros'!E78="","",'TD Siniestros'!E78) -> 0 | G79: =IF('TD Siniestros'!F78="","",'TD Siniestros'!F78) -> 58.9567613 | H79: =IF('TD Siniestros'!G78="","",'TD Siniestros'!G78) -> 93.99397685 | I79: 0.01258224587
B80: =IF('TD Siniestros'!A79="","",'TD Siniestros'!A79) -> 71 | C80: =IF('TD Siniestros'!B79="","",'TD Siniestros'!B79) -> SPP Seguros | D80: =IF('TD Siniestros'!C79="","",'TD Siniestros'!C79) -> 4631.08862 | E80: =IF('TD Siniestros'!D79="","",'TD Siniestros'!D79) -> -47.35735124 | F80: =IF('TD Siniestros'!E79="","",'TD Siniestros'!E79) -> 0 | G80: =IF('TD Siniestros'!F79="","",'TD Siniestros'!F79) -> 6.288615088 | H80: =IF('TD Siniestros'!G79="","",'TD Siniestros'!G79) -> 15.48402886 | I80: 0.0009266198242
B81: =IF('TD Siniestros'!A80="","",'TD Siniestros'!A80) -> 72 | C81: =IF('TD Siniestros'!B80="","",'TD Siniestros'!B80) -> Quálitas Salud | D81: =IF('TD Siniestros'!C80="","",'TD Siniestros'!C80) -> 16799.35849 | E81: =IF('TD Siniestros'!D80="","",'TD Siniestros'!D80) -> 311.5648628 | F81: =IF('TD Siniestros'!E80="","",'TD Siniestros'!E80) -> 0 | G81: =IF('TD Siniestros'!F80="","",'TD Siniestros'!F80) -> 27.37369736 | H81: =IF('TD Siniestros'!G80="","",'TD Siniestros'!G80) -> 24.80067706 | I81: 0.003361330324
B82: =IF('TD Siniestros'!A81="","",'TD Siniestros'!A81) -> 73 | C82: =IF('TD Siniestros'!B81="","",'TD Siniestros'!B81) -> SPT | D82: =IF('TD Siniestros'!C81="","",'TD Siniestros'!C81) -> 29067.63279 | E82: =IF('TD Siniestros'!D81="","",'TD Siniestros'!D81) -> 37.21910543 | F82: =IF('TD Siniestros'!E81="","",'TD Siniestros'!E81) -> 0 | G82: =IF('TD Siniestros'!F81="","",'TD Siniestros'!F81) -> 62.60900492 | H82: =IF('TD Siniestros'!G81="","",'TD Siniestros'!G81) -> 68.00755545 | I82: 0.005816050392
B83: =IF('TD Siniestros'!A82="","",'TD Siniestros'!A82) -> 74 | C83: =IF('TD Siniestros'!B82="","",'TD Siniestros'!B82) -> Metlife Pensiones | D83: =IF('TD Siniestros'!C82="","",'TD Siniestros'!C82) -> 360257.627 | E83: =IF('TD Siniestros'!D82="","",'TD Siniestros'!D82) -> 2.507420021 | F83: =IF('TD Siniestros'!E82="","",'TD Siniestros'!E82) -> 0 | G83: =IF('TD Siniestros'!F82="","",'TD Siniestros'!F82) -> 918.2367466 | H83: =IF('TD Siniestros'!G82="","",'TD Siniestros'!G82) -> 1717.598385 | I83: 0.07208280523
B84: =IF('TD Siniestros'!A83="","",'TD Siniestros'!A83) -> 75 | C84: =IF('TD Siniestros'!B83="","",'TD Siniestros'!B83) -> Metlife Más | D84: =IF('TD Siniestros'!C83="","",'TD Siniestros'!C83) -> 3231.07595 | E84: =IF('TD Siniestros'!D83="","",'TD Siniestros'!D83) -> 13.03014264 | F84: =IF('TD Siniestros'!E83="","",'TD Siniestros'!E83) -> 0 | G84: =IF('TD Siniestros'!F83="","",'TD Siniestros'!F83) -> 8.432819041 | H84: =IF('TD Siniestros'!G83="","",'TD Siniestros'!G83) -> 9.473655071 | I84: 0.0006464957323
B85: =IF('TD Siniestros'!A84="","",'TD Siniestros'!A84) -> 76 | C85: =IF('TD Siniestros'!B84="","",'TD Siniestros'!B84) -> Citibanamex Pensiones | D85: =IF('TD Siniestros'!C84="","",'TD Siniestros'!C84) -> 794059.1689 | E85: =IF('TD Siniestros'!D84="","",'TD Siniestros'!D84) -> 4.142483089 | F85: =IF('TD Siniestros'!E84="","",'TD Siniestros'!E84) -> 0 | G85: =IF('TD Siniestros'!F84="","",'TD Siniestros'!F84) -> 7971.190059 | H85: =IF('TD Siniestros'!G84="","",'TD Siniestros'!G84) -> 3605.169066 | I85: 0.158880779
B86: =IF('TD Siniestros'!A85="","",'TD Siniestros'!A85) -> 77 | C86: =IF('TD Siniestros'!B85="","",'TD Siniestros'!B85) -> Momento Seguros | D86: =IF('TD Siniestros'!C85="","",'TD Siniestros'!C85) -> 517.98642 | E86: =IF('TD Siniestros'!D85="","",'TD Siniestros'!D85) -> 0 | F86: =IF('TD Siniestros'!E85="","",'TD Siniestros'!E85) -> 0 | G86: =IF('TD Siniestros'!F85="","",'TD Siniestros'!F85) -> 26.01222041 | H86: =IF('TD Siniestros'!G85="","",'TD Siniestros'!G85) -> 0 | I86: 0.0001036422588
B87: =IF('TD Siniestros'!A86="","",'TD Siniestros'!A86) -> 78 | C87: =IF('TD Siniestros'!B86="","",'TD Siniestros'!B86) -> Pensiones Inbursa | D87: =IF('TD Siniestros'!C86="","",'TD Siniestros'!C86) -> 27131.69777 | E87: =IF('TD Siniestros'!D86="","",'TD Siniestros'!D86) -> 11.09459848 | F87: =IF('TD Siniestros'!E86="","",'TD Siniestros'!E86) -> 0 | G87: =IF('TD Siniestros'!F86="","",'TD Siniestros'!F86) -> 3671.718232 | H87: =IF('TD Siniestros'!G86="","",'TD Siniestros'!G86) -> 1842.937579 | I87: 0.005428695298
B88: =IF('TD Siniestros'!A87="","",'TD Siniestros'!A87) -> 79 | C88: =IF('TD Siniestros'!B87="","",'TD Siniestros'!B87) -> Aserta Seguros de Vida | D88: =IF('TD Siniestros'!C87="","",'TD Siniestros'!C87) -> -3995.80383 | E88: =IF('TD Siniestros'!D87="","",'TD Siniestros'!D87) -> -116.7024872 | F88: =IF('TD Siniestros'!E87="","",'TD Siniestros'!E87) -> -296.49778 | G88: =IF('TD Siniestros'!F87="","",'TD Siniestros'!F87) -> 0 | H88: =IF('TD Siniestros'!G87="","",'TD Siniestros'!G87) -> 4010.992648 | I88: -0.0007995077068
B89: =IF('TD Siniestros'!A88="","",'TD Siniestros'!A88) -> 79 | C89: =IF('TD Siniestros'!B88="","",'TD Siniestros'!B88) -> Principal México | D89: =IF('TD Siniestros'!C88="","",'TD Siniestros'!C88) -> 0 | E89: =IF('TD Siniestros'!D88="","",'TD Siniestros'!D88) -> 0 | F89: =IF('TD Siniestros'!E88="","",'TD Siniestros'!E88) -> 0 | G89: =IF('TD Siniestros'!F88="","",'TD Siniestros'!F88) -> 0 | H89: =IF('TD Siniestros'!G88="","",'TD Siniestros'!G88) -> 0 | I89: 0
B90: =IF('TD Siniestros'!A89="","",'TD Siniestros'!A89) -> 79 | C90: =IF('TD Siniestros'!B89="","",'TD Siniestros'!B89) -> Zurich Daños | D90: =IF('TD Siniestros'!C89="","",'TD Siniestros'!C89) -> 0 | E90: =IF('TD Siniestros'!D89="","",'TD Siniestros'!D89) -> 0 | F90: =IF('TD Siniestros'!E89="","",'TD Siniestros'!E89) -> 0 | G90: =IF('TD Siniestros'!F89="","",'TD Siniestros'!F89) -> 0 | H90: =IF('TD Siniestros'!G89="","",'TD Siniestros'!G89) -> 0 | I90: 0
B91: =IF('TD Siniestros'!A90="","",'TD Siniestros'!A90) -> 79 | C91: =IF('TD Siniestros'!B90="","",'TD Siniestros'!B90) -> Zurich Vida | D91: =IF('TD Siniestros'!C90="","",'TD Siniestros'!C90) -> 0 | E91: =IF('TD Siniestros'!D90="","",'TD Siniestros'!D90) -> 0 | F91: =IF('TD Siniestros'!E90="","",'TD Siniestros'!E90) -> 0 | G91: =IF('TD Siniestros'!F90="","",'TD Siniestros'!F90) -> 0 | H91: =IF('TD Siniestros'!G90="","",'TD Siniestros'!G90) -> 0 | I91: 0
B92: =IF('TD Siniestros'!A91="","",'TD Siniestros'!A91) -> 150.1 | C92: =IF('TD Siniestros'!B91="","",'TD Siniestros'!B91) -> TOTAL RESTO | D92: =IF('TD Siniestros'!C91="","",'TD Siniestros'!C91) -> 91175017.96 | E92: =IF('TD Siniestros'!D91="","",'TD Siniestros'!D91) -> 26.47330162 | F92: =IF('TD Siniestros'!E91="","",'TD Siniestros'!E91) -> 476578.4549 | G92: =IF('TD Siniestros'!F91="","",'TD Siniestros'!F91) -> 54.28422673 | H92: =IF('TD Siniestros'!G91="","",'TD Siniestros'!G91) -> 48.11540879 | I92: 18.24291998
B93: =IF('TD Siniestros'!A92="","",'TD Siniestros'!A92) -> 200 | C93: =IF('TD Siniestros'!B92="","",'TD Siniestros'!B92) -> Patria | D93: =IF('TD Siniestros'!C92="","",'TD Siniestros'!C92) -> 0 | E93: =IF('TD Siniestros'!D92="","",'TD Siniestros'!D92) -> 0 | F93: =IF('TD Siniestros'!E92="","",'TD Siniestros'!E92) -> 0 | G93: =IF('TD Siniestros'!F92="","",'TD Siniestros'!F92) -> 0 | H93: =IF('TD Siniestros'!G92="","",'TD Siniestros'!G92) -> 0 | I93: 0
B94: =IF('TD Siniestros'!A93="","",'TD Siniestros'!A93) -> 201.1 | C94: =IF('TD Siniestros'!B93="","",'TD Siniestros'!B93) -> TOTAL | D94: =IF('TD Siniestros'!C93="","",'TD Siniestros'!C93) -> 499783028.5 | E94: =IF('TD Siniestros'!D93="","",'TD Siniestros'!D93) -> 22.47949124 | F94: =IF('TD Siniestros'!E93="","",'TD Siniestros'!E93) -> 2391439.992 | G94: =IF('TD Siniestros'!F93="","",'TD Siniestros'!F93) -> 63.82143513 | H94: =IF('TD Siniestros'!G93="","",'TD Siniestros'!G93) -> 61.18856246 | I94: 100
B95: =IF('TD Siniestros'!A94="","",'TD Siniestros'!A94) ->  | C95: =IF('TD Siniestros'!B94="","",'TD Siniestros'!B94) ->  | D95: =IF('TD Siniestros'!C94="","",'TD Siniestros'!C94) ->  | E95: =IF('TD Siniestros'!D94="","",'TD Siniestros'!D94) ->  | F95: =IF('TD Siniestros'!E94="","",'TD Siniestros'!E94) ->  | G95: =IF('TD Siniestros'!F94="","",'TD Siniestros'!F94) ->  | H95: =IF('TD Siniestros'!G94="","",'TD Siniestros'!G94) -> 
B96: =IF('TD Siniestros'!A95="","",'TD Siniestros'!A95) ->  | C96: =IF('TD Siniestros'!B95="","",'TD Siniestros'!B95) ->  | D96: =IF('TD Siniestros'!C95="","",'TD Siniestros'!C95) ->  | E96: =IF('TD Siniestros'!D95="","",'TD Siniestros'!D95) ->  | F96: =IF('TD Siniestros'!E95="","",'TD Siniestros'!E95) ->  | G96: =IF('TD Siniestros'!F95="","",'TD Siniestros'!F95) ->  | H96: =IF('TD Siniestros'!G95="","",'TD Siniestros'!G95) -> 
B97: =IF('TD Siniestros'!A96="","",'TD Siniestros'!A96) ->  | C97: =IF('TD Siniestros'!B96="","",'TD Siniestros'!B96) ->  | D97: =IF('TD Siniestros'!C96="","",'TD Siniestros'!C96) ->  | E97: =IF('TD Siniestros'!D96="","",'TD Siniestros'!D96) ->  | F97: =IF('TD Siniestros'!E96="","",'TD Siniestros'!E96) ->  | G97: =IF('TD Siniestros'!F96="","",'TD Siniestros'!F96) ->  | H97: =IF('TD Siniestros'!G96="","",'TD Siniestros'!G96) -> 
B98: =IF('TD Siniestros'!A97="","",'TD Siniestros'!A97) ->  | C98: =IF('TD Siniestros'!B97="","",'TD Siniestros'!B97) ->  | D98: =IF('TD Siniestros'!C97="","",'TD Siniestros'!C97) ->  | E98: =IF('TD Siniestros'!D97="","",'TD Siniestros'!D97) ->  | F98: =IF('TD Siniestros'!E97="","",'TD Siniestros'!E97) ->  | G98: =IF('TD Siniestros'!F97="","",'TD Siniestros'!F97) ->  | H98: =IF('TD Siniestros'!G97="","",'TD Siniestros'!G97) -> 
B99: =IF('TD Siniestros'!A98="","",'TD Siniestros'!A98) ->  | C99: =IF('TD Siniestros'!B98="","",'TD Siniestros'!B98) ->  | D99: =IF('TD Siniestros'!C98="","",'TD Siniestros'!C98) ->  | E99: =IF('TD Siniestros'!D98="","",'TD Siniestros'!D98) ->  | F99: =IF('TD Siniestros'!E98="","",'TD Siniestros'!E98) ->  | G99: =IF('TD Siniestros'!F98="","",'TD Siniestros'!F98) ->  | H99: =IF('TD Siniestros'!G98="","",'TD Siniestros'!G98) -> 
B100: =IF('TD Siniestros'!A99="","",'TD Siniestros'!A99) ->  | C100: =IF('TD Siniestros'!B99="","",'TD Siniestros'!B99) ->  | D100: =IF('TD Siniestros'!C99="","",'TD Siniestros'!C99) ->  | E100: =IF('TD Siniestros'!D99="","",'TD Siniestros'!D99) ->  | F100: =IF('TD Siniestros'!E99="","",'TD Siniestros'!E99) ->  | G100: =IF('TD Siniestros'!F99="","",'TD Siniestros'!F99) ->  | H100: =IF('TD Siniestros'!G99="","",'TD Siniestros'!G99) -> 
B101: =IF('TD Siniestros'!A100="","",'TD Siniestros'!A100) ->  | C101: =IF('TD Siniestros'!B100="","",'TD Siniestros'!B100) ->  | D101: =IF('TD Siniestros'!C100="","",'TD Siniestros'!C100) ->  | E101: =IF('TD Siniestros'!D100="","",'TD Siniestros'!D100) ->  | F101: =IF('TD Siniestros'!E100="","",'TD Siniestros'!E100) ->  | G101: =IF('TD Siniestros'!F100="","",'TD Siniestros'!F100) ->  | H101: =IF('TD Siniestros'!G100="","",'TD Siniestros'!G100) -> 
B102: =IF('TD Siniestros'!A101="","",'TD Siniestros'!A101) ->  | C102: =IF('TD Siniestros'!B101="","",'TD Siniestros'!B101) ->  | D102: =IF('TD Siniestros'!C101="","",'TD Siniestros'!C101) ->  | E102: =IF('TD Siniestros'!D101="","",'TD Siniestros'!D101) ->  | F102: =IF('TD Siniestros'!E101="","",'TD Siniestros'!E101) ->  | G102: =IF('TD Siniestros'!F101="","",'TD Siniestros'!F101) ->  | H102: =IF('TD Siniestros'!G101="","",'TD Siniestros'!G101) -> 
B103: =IF('TD Siniestros'!A102="","",'TD Siniestros'!A102) ->  | C103: =IF('TD Siniestros'!B102="","",'TD Siniestros'!B102) ->  | D103: =IF('TD Siniestros'!C102="","",'TD Siniestros'!C102) ->  | E103: =IF('TD Siniestros'!D102="","",'TD Siniestros'!D102) ->  | F103: =IF('TD Siniestros'!E102="","",'TD Siniestros'!E102) ->  | G103: =IF('TD Siniestros'!F102="","",'TD Siniestros'!F102) ->  | H103: =IF('TD Siniestros'!G102="","",'TD Siniestros'!G102) -> 
B104: =IF('TD Siniestros'!A103="","",'TD Siniestros'!A103) ->  | C104: =IF('TD Siniestros'!B103="","",'TD Siniestros'!B103) ->  | D104: =IF('TD Siniestros'!C103="","",'TD Siniestros'!C103) ->  | E104: =IF('TD Siniestros'!D103="","",'TD Siniestros'!D103) ->  | F104: =IF('TD Siniestros'!E103="","",'TD Siniestros'!E103) ->  | G104: =IF('TD Siniestros'!F103="","",'TD Siniestros'!F103) ->  | H104: =IF('TD Siniestros'!G103="","",'TD Siniestros'!G103) -> 
B105: =IF('TD Siniestros'!A104="","",'TD Siniestros'!A104) ->  | C105: =IF('TD Siniestros'!B104="","",'TD Siniestros'!B104) ->  | D105: =IF('TD Siniestros'!C104="","",'TD Siniestros'!C104) ->  | E105: =IF('TD Siniestros'!D104="","",'TD Siniestros'!D104) ->  | F105: =IF('TD Siniestros'!E104="","",'TD Siniestros'!E104) ->  | G105: =IF('TD Siniestros'!F104="","",'TD Siniestros'!F104) ->  | H105: =IF('TD Siniestros'!G104="","",'TD Siniestros'!G104) -> 
B106: =IF('TD Siniestros'!A105="","",'TD Siniestros'!A105) ->  | C106: =IF('TD Siniestros'!B105="","",'TD Siniestros'!B105) ->  | D106: =IF('TD Siniestros'!C105="","",'TD Siniestros'!C105) ->  | E106: =IF('TD Siniestros'!D105="","",'TD Siniestros'!D105) ->  | F106: =IF('TD Siniestros'!E105="","",'TD Siniestros'!E105) ->  | G106: =IF('TD Siniestros'!F105="","",'TD Siniestros'!F105) ->  | H106: =IF('TD Siniestros'!G105="","",'TD Siniestros'!G105) -> 
B107: =IF('TD Siniestros'!A106="","",'TD Siniestros'!A106) ->  | C107: =IF('TD Siniestros'!B106="","",'TD Siniestros'!B106) ->  | D107: =IF('TD Siniestros'!C106="","",'TD Siniestros'!C106) ->  | E107: =IF('TD Siniestros'!D106="","",'TD Siniestros'!D106) ->  | F107: =IF('TD Siniestros'!E106="","",'TD Siniestros'!E106) ->  | G107: =IF('TD Siniestros'!F106="","",'TD Siniestros'!F106) ->  | H107: =IF('TD Siniestros'!G106="","",'TD Siniestros'!G106) -> 
B108: =IF('TD Siniestros'!A107="","",'TD Siniestros'!A107) ->  | C108: =IF('TD Siniestros'!B107="","",'TD Siniestros'!B107) ->  | D108: =IF('TD Siniestros'!C107="","",'TD Siniestros'!C107) ->  | E108: =IF('TD Siniestros'!D107="","",'TD Siniestros'!D107) ->  | F108: =IF('TD Siniestros'!E107="","",'TD Siniestros'!E107) ->  | G108: =IF('TD Siniestros'!F107="","",'TD Siniestros'!F107) ->  | H108: =IF('TD Siniestros'!G107="","",'TD Siniestros'!G107) -> 
B109: =IF('TD Siniestros'!A108="","",'TD Siniestros'!A108) ->  | C109: =IF('TD Siniestros'!B108="","",'TD Siniestros'!B108) ->  | D109: =IF('TD Siniestros'!C108="","",'TD Siniestros'!C108) ->  | E109: =IF('TD Siniestros'!D108="","",'TD Siniestros'!D108) ->  | F109: =IF('TD Siniestros'!E108="","",'TD Siniestros'!E108) ->  | G109: =IF('TD Siniestros'!F108="","",'TD Siniestros'!F108) ->  | H109: =IF('TD Siniestros'!G108="","",'TD Siniestros'!G108) -> 
B110: =IF('TD Siniestros'!A109="","",'TD Siniestros'!A109) ->  | C110: =IF('TD Siniestros'!B109="","",'TD Siniestros'!B109) ->  | D110: =IF('TD Siniestros'!C109="","",'TD Siniestros'!C109) ->  | E110: =IF('TD Siniestros'!D109="","",'TD Siniestros'!D109) ->  | F110: =IF('TD Siniestros'!E109="","",'TD Siniestros'!E109) ->  | G110: =IF('TD Siniestros'!F109="","",'TD Siniestros'!F109) ->  | H110: =IF('TD Siniestros'!G109="","",'TD Siniestros'!G109) -> 
B111: =IF('TD Siniestros'!A110="","",'TD Siniestros'!A110) ->  | C111: =IF('TD Siniestros'!B110="","",'TD Siniestros'!B110) ->  | D111: =IF('TD Siniestros'!C110="","",'TD Siniestros'!C110) ->  | E111: =IF('TD Siniestros'!D110="","",'TD Siniestros'!D110) ->  | F111: =IF('TD Siniestros'!E110="","",'TD Siniestros'!E110) ->  | G111: =IF('TD Siniestros'!F110="","",'TD Siniestros'!F110) ->  | H111: =IF('TD Siniestros'!G110="","",'TD Siniestros'!G110) -> 
B112: =IF('TD Siniestros'!A111="","",'TD Siniestros'!A111) ->  | C112: =IF('TD Siniestros'!B111="","",'TD Siniestros'!B111) ->  | D112: =IF('TD Siniestros'!C111="","",'TD Siniestros'!C111) ->  | E112: =IF('TD Siniestros'!D111="","",'TD Siniestros'!D111) ->  | F112: =IF('TD Siniestros'!E111="","",'TD Siniestros'!E111) ->  | G112: =IF('TD Siniestros'!F111="","",'TD Siniestros'!F111) ->  | H112: =IF('TD Siniestros'!G111="","",'TD Siniestros'!G111) -> 
B113: =IF('TD Siniestros'!A112="","",'TD Siniestros'!A112) ->  | C113: =IF('TD Siniestros'!B112="","",'TD Siniestros'!B112) ->  | D113: =IF('TD Siniestros'!C112="","",'TD Siniestros'!C112) ->  | E113: =IF('TD Siniestros'!D112="","",'TD Siniestros'!D112) ->  | F113: =IF('TD Siniestros'!E112="","",'TD Siniestros'!E112) ->  | G113: =IF('TD Siniestros'!F112="","",'TD Siniestros'!F112) ->  | H113: =IF('TD Siniestros'!G112="","",'TD Siniestros'!G112) -> 
B114: =IF('TD Siniestros'!A113="","",'TD Siniestros'!A113) ->  | C114: =IF('TD Siniestros'!B113="","",'TD Siniestros'!B113) ->  | D114: =IF('TD Siniestros'!C113="","",'TD Siniestros'!C113) ->  | E114: =IF('TD Siniestros'!D113="","",'TD Siniestros'!D113) ->  | F114: =IF('TD Siniestros'!E113="","",'TD Siniestros'!E113) ->  | G114: =IF('TD Siniestros'!F113="","",'TD Siniestros'!F113) ->  | H114: =IF('TD Siniestros'!G113="","",'TD Siniestros'!G113) -> 
B115: =IF('TD Siniestros'!A114="","",'TD Siniestros'!A114) ->  | C115: =IF('TD Siniestros'!B114="","",'TD Siniestros'!B114) ->  | D115: =IF('TD Siniestros'!C114="","",'TD Siniestros'!C114) ->  | E115: =IF('TD Siniestros'!D114="","",'TD Siniestros'!D114) ->  | F115: =IF('TD Siniestros'!E114="","",'TD Siniestros'!E114) ->  | G115: =IF('TD Siniestros'!F114="","",'TD Siniestros'!F114) ->  | H115: =IF('TD Siniestros'!G114="","",'TD Siniestros'!G114) -> 
B116: =IF('TD Siniestros'!A115="","",'TD Siniestros'!A115) ->  | C116: =IF('TD Siniestros'!B115="","",'TD Siniestros'!B115) ->  | D116: =IF('TD Siniestros'!C115="","",'TD Siniestros'!C115) ->  | E116: =IF('TD Siniestros'!D115="","",'TD Siniestros'!D115) ->  | F116: =IF('TD Siniestros'!E115="","",'TD Siniestros'!E115) ->  | G116: =IF('TD Siniestros'!F115="","",'TD Siniestros'!F115) ->  | H116: =IF('TD Siniestros'!G115="","",'TD Siniestros'!G115) -> 
B117: =IF('TD Siniestros'!A116="","",'TD Siniestros'!A116) ->  | C117: =IF('TD Siniestros'!B116="","",'TD Siniestros'!B116) ->  | D117: =IF('TD Siniestros'!C116="","",'TD Siniestros'!C116) ->  | E117: =IF('TD Siniestros'!D116="","",'TD Siniestros'!D116) ->  | F117: =IF('TD Siniestros'!E116="","",'TD Siniestros'!E116) ->  | G117: =IF('TD Siniestros'!F116="","",'TD Siniestros'!F116) ->  | H117: =IF('TD Siniestros'!G116="","",'TD Siniestros'!G116) -> 
B118: =IF('TD Siniestros'!A117="","",'TD Siniestros'!A117) ->  | C118: =IF('TD Siniestros'!B117="","",'TD Siniestros'!B117) ->  | D118: =IF('TD Siniestros'!C117="","",'TD Siniestros'!C117) ->  | E118: =IF('TD Siniestros'!D117="","",'TD Siniestros'!D117) ->  | F118: =IF('TD Siniestros'!E117="","",'TD Siniestros'!E117) ->  | G118: =IF('TD Siniestros'!F117="","",'TD Siniestros'!F117) ->  | H118: =IF('TD Siniestros'!G117="","",'TD Siniestros'!G117) -> 
B119: =IF('TD Siniestros'!A118="","",'TD Siniestros'!A118) ->  | C119: =IF('TD Siniestros'!B118="","",'TD Siniestros'!B118) ->  | D119: =IF('TD Siniestros'!C118="","",'TD Siniestros'!C118) ->  | E119: =IF('TD Siniestros'!D118="","",'TD Siniestros'!D118) ->  | F119: =IF('TD Siniestros'!E118="","",'TD Siniestros'!E118) ->  | G119: =IF('TD Siniestros'!F118="","",'TD Siniestros'!F118) ->  | H119: =IF('TD Siniestros'!G118="","",'TD Siniestros'!G118) -> 
B120: =IF('TD Siniestros'!A119="","",'TD Siniestros'!A119) ->  | C120: =IF('TD Siniestros'!B119="","",'TD Siniestros'!B119) ->  | D120: =IF('TD Siniestros'!C119="","",'TD Siniestros'!C119) ->  | E120: =IF('TD Siniestros'!D119="","",'TD Siniestros'!D119) ->  | F120: =IF('TD Siniestros'!E119="","",'TD Siniestros'!E119) ->  | G120: =IF('TD Siniestros'!F119="","",'TD Siniestros'!F119) ->  | H120: =IF('TD Siniestros'!G119="","",'TD Siniestros'!G119) -> 
B121: =IF('TD Siniestros'!A120="","",'TD Siniestros'!A120) ->  | C121: =IF('TD Siniestros'!B120="","",'TD Siniestros'!B120) ->  | D121: =IF('TD Siniestros'!C120="","",'TD Siniestros'!C120) ->  | E121: =IF('TD Siniestros'!D120="","",'TD Siniestros'!D120) ->  | F121: =IF('TD Siniestros'!E120="","",'TD Siniestros'!E120) ->  | G121: =IF('TD Siniestros'!F120="","",'TD Siniestros'!F120) ->  | H121: =IF('TD Siniestros'!G120="","",'TD Siniestros'!G120) -> 
B122: =IF('TD Siniestros'!A121="","",'TD Siniestros'!A121) ->  | C122: =IF('TD Siniestros'!B121="","",'TD Siniestros'!B121) ->  | D122: =IF('TD Siniestros'!C121="","",'TD Siniestros'!C121) ->  | E122: =IF('TD Siniestros'!D121="","",'TD Siniestros'!D121) ->  | F122: =IF('TD Siniestros'!E121="","",'TD Siniestros'!E121) ->  | G122: =IF('TD Siniestros'!F121="","",'TD Siniestros'!F121) ->  | H122: =IF('TD Siniestros'!G121="","",'TD Siniestros'!G121) -> 
B123: =IF('TD Siniestros'!A122="","",'TD Siniestros'!A122) ->  | C123: =IF('TD Siniestros'!B122="","",'TD Siniestros'!B122) ->  | D123: =IF('TD Siniestros'!C122="","",'TD Siniestros'!C122) ->  | E123: =IF('TD Siniestros'!D122="","",'TD Siniestros'!D122) ->  | F123: =IF('TD Siniestros'!E122="","",'TD Siniestros'!E122) ->  | G123: =IF('TD Siniestros'!F122="","",'TD Siniestros'!F122) ->  | H123: =IF('TD Siniestros'!G122="","",'TD Siniestros'!G122) -> 
B124: =IF('TD Siniestros'!A123="","",'TD Siniestros'!A123) ->  | C124: =IF('TD Siniestros'!B123="","",'TD Siniestros'!B123) ->  | D124: =IF('TD Siniestros'!C123="","",'TD Siniestros'!C123) ->  | E124: =IF('TD Siniestros'!D123="","",'TD Siniestros'!D123) ->  | F124: =IF('TD Siniestros'!E123="","",'TD Siniestros'!E123) ->  | G124: =IF('TD Siniestros'!F123="","",'TD Siniestros'!F123) ->  | H124: =IF('TD Siniestros'!G123="","",'TD Siniestros'!G123) -> 

Sheet Primas Directas (Vida)
C1: Análisis de Primas Directas | L1: =VLOOKUP(RIGHT('TDPrimas Vida'!B2,2),Cat!$N$2:$O$5,2,0)&" "&LEFT('TDPrimas Vida'!B2,4) -> Cuarto Trimestre 2023
C2: =UPPER(RIGHT('TDPrimas Vida'!B3,LEN('TDPrimas Vida'!B3)-3)) -> VIDA TOTAL
L3: Cifras en miles
E4: 2 | F4: 3 | G4: 4 | H4: 5 | I4: 6 | J4: 7 | K4: 8 | L4: 9
E5: Primas Directas | G5: % Part. en Merc. | I5: Incremento | K5: % de Cartera
C6: Compañías | E6: ='Primas Directas'!$D$6 -> 2023 | F6: ='Primas Directas'!$E$6 -> 2022 | G6: =$E$6 -> 2023 | H6: =$F$6 -> 2022 | I6: Importe | J6: % | K6: Por | L6: Total
E7: Importe | F7: Importe | K7: Operación | L7: Cartera
B8: =IF(C8="",B2,D8) -> TOTAL | C8: 151.1 | D8: TOTAL | E8: =VLOOKUP($D8,$D$12:$L$211,E$4,0) -> 310305460.6 | F8: =VLOOKUP($D8,$D$12:$L$211,F$4,0) -> 259244122.7 | G8: 100 | H8: 119.6962374 | I8: 51061337.89 | J8: 19.69623741 | K8: 39.62547484 | L8: 48.44602006
B9: =IF(C9="",B8,D9) -> TOTAL | D9: =IF(D8="","","1er Año") -> 1er Año | E9: =IF(E8="","",(VLOOKUP(B9,'TDPrimas Vida'!$B:$N,5,0))) -> 139893102.1 | F9: =IF(E8="","",(VLOOKUP(B9,'TDPrimas Vida'!$B:$N,6,0))) -> 107508790.4 | G9: =IFERROR((E9/VLOOKUP("TOTAL",$D$12:$L$312,2,0))*100,"") -> 45.0823849 | H9: =IFERROR((E9/VLOOKUP("TOTAL",$D$12:$L$312,3,0))*100,"") -> 53.96191847 | I9: =IF(E8="","",E9-F9) -> 32384311.74 | J9: =IF(E8="","",IFERROR((E9/F9-1)*100,"ND")) -> 30.12247801 | K9: =IF(E8="","",IFERROR((E9/VLOOKUP(B9&"|"&VLOOKUP(TDPrimas_!$B$4,Cat!R:T,2,0),'TD Operación'!A:D,4,0))*100,"ND")) -> 17.86410909 | L9: =IF(E8="","",(VLOOKUP(B9,'TDPrimas Vida'!$B:$N,7,0))) -> 30.12247801
B10: TOTAL | D10: =IF(D9="","","Renovación") -> Renovación | E10: =IF(E8="","",(VLOOKUP(B10,'TDPrimas Vida'!$B:$N,8,0))) -> 132565051.9 | F10: =IF(E8="","",(VLOOKUP(B10,'TDPrimas Vida'!$B:$N,9,0))) -> 116237822.9 | G10: =IFERROR((E10/VLOOKUP("TOTAL",$D$12:$L$312,2,0))*100,"") -> 42.72082472 | H10: =IFERROR((E10/VLOOKUP("TOTAL",$D$12:$L$312,3,0))*100,"") -> 51.13521978 | I10: =IF(E8="","",E10-F10) -> 16327229.03 | J10: =IF(E8="","",IFERROR((E10/F10-1)*100,"ND")) -> 14.04639955 | K10: =IF(E9="","",IFERROR((E10/VLOOKUP(B10&"|"&VLOOKUP(TDPrimas_!$B$4,Cat!R:T,2,0),'TD Operación'!A:D,4,0))*100,"ND")) -> 16.92832965 | L10: =IF(E8="","",(VLOOKUP(B10,'TDPrimas Vida'!$B:$N,10,0))) -> 42.72082472
B11: TOTAL | D11: =IF(D10="","","Únicas") -> Únicas | E11: =IF(E9="","",(VLOOKUP(B11,'TDPrimas Vida'!$B:$N,11,0))) -> 37847397.84 | F11: =IF(E9="","",(VLOOKUP(B11,'TDPrimas Vida'!$B:$N,12,0))) -> 31461983.51 | G11: =IFERROR((E11/VLOOKUP("TOTAL",$D$12:$L$312,2,0))*100,"") -> 12.19681979 | H11: =IFERROR((E11/VLOOKUP("TOTAL",$D$12:$L$312,3,0))*100,"") -> 14.59913438 | I11: =IF(E8="","",E11-F11) -> 6385414.321 | J11: =IF(E8="","",IFERROR((E11/F11-1)*100,"ND")) -> 20.29565084 | K11: =IF(E10="","",IFERROR((E11/VLOOKUP(B11&"|"&VLOOKUP(TDPrimas_!$B$4,Cat!R:T,2,0),'TD Operación'!A:D,4,0))*100,"ND")) -> 4.833047759 | L11: =IF(E8="","",(VLOOKUP(B11,'TDPrimas Vida'!$B:$N,13,0))) -> 12.19681979
B12: =IF(C12="",B7,D12) -> Metlife México | C12: =IF('TDPrimas Vida'!A7="","",'TDPrimas Vida'!A7) -> 1 | D12: =IF('TDPrimas Vida'!B7="","",'TDPrimas Vida'!B7) -> Metlife México | E12: =IF('TDPrimas Vida'!C7="","",'TDPrimas Vida'!C7) -> 53633599.84 | F12: =IF('TDPrimas Vida'!D7="","",'TDPrimas Vida'!D7) -> 48016518.99 | G12: =IF('TDPrimas Vida'!C7="","",IFERROR((E12/VLOOKUP("TOTAL",$D$12:$L$312,2,0))*100,"")) -> 17.2841302 | H12: =IF('TDPrimas Vida'!C7="","",IFERROR((E12/VLOOKUP("TOTAL",$D$12:$L$312,3,0))*100,"")) -> 20.68845352 | I12: =IF('TDPrimas Vida'!C7="","",E12-F12) -> 5617080.851 | J12: =IFERROR(IF('TDPrimas Vida'!C7="","",(E12/F12-1)*100),"ND") -> 11.69822588 | K12: =IF(E11="","",IFERROR((E12/VLOOKUP(B12&"|"&VLOOKUP(TDPrimas_!$B$4,Cat!R:T,2,0),'TD Operación'!A:D,4,0))*100,"ND")) -> 67.76436783 | L12: =IF('TDPrimas Vida'!E7="","",'TDPrimas Vida'!E7) -> 67.76436783
B13: =IF(C13="",B12,D13) -> Metlife México | D13: =IF(D12="","","1er Año") -> 1er Año | E13: =IF(E12="","",(VLOOKUP(B13,'TDPrimas Vida'!$B:$N,5,0))) -> 9727393.17 | F13: =IF(E12="","",(VLOOKUP(B13,'TDPrimas Vida'!$B:$N,6,0))) -> 9244390.84 | G13: =IFERROR((E13/VLOOKUP("TOTAL",$D$12:$L$312,2,0))*100,"") -> 3.134779888 | H13: =IFERROR((E13/VLOOKUP("TOTAL",$D$12:$L$312,3,0))*100,"") -> 3.752213577 | I13: =IF(E12="","",E13-F13) -> 483002.3305 | J13: =IF(E12="","",IFERROR((E13/F13-1)*100,"ND")) -> 5.224815121 | K13: =IF(E12="","",IFERROR((E13/VLOOKUP(B13&"|"&VLOOKUP(TDPrimas_!$B$4,Cat!R:T,2,0),'TD Operación'!A:D,4,0))*100,"ND")) -> 12.29025556 | L13: =IF(E12="","",(VLOOKUP(B13,'TDPrimas Vida'!$B:$N,7,0))) -> 5.224815121
B14: Metlife México | D14: =IF(D13="","","Renovación") -> Renovación | E14: =IF(E12="","",(VLOOKUP(B14,'TDPrimas Vida'!$B:$N,8,0))) -> 36550842.94 | F14: =IF(E12="","",(VLOOKUP(B14,'TDPrimas Vida'!$B:$N,9,0))) -> 32002822.34 | G14: =IFERROR((E14/VLOOKUP("TOTAL",$D$12:$L$312,2,0))*100,"") -> 11.77898799 | H14: =IFERROR((E14/VLOOKUP("TOTAL",$D$12:$L$312,3,0))*100,"") -> 14.09900543 | I14: =IF(E12="","",E14-F14) -> 4548020.597 | J14: =IF(E12="","",IFERROR((E14/F14-1)*100,"ND")) -> 14.21131095 | K14: =IF(E13="","",IFERROR((E14/VLOOKUP(B14&"|"&VLOOKUP(TDPrimas_!$B$4,Cat!R:T,2,0),'TD Operación'!A:D,4,0))*100,"ND")) -> 46.18084135 | L14: =IF(E12="","",(VLOOKUP(B14,'TDPrimas Vida'!$B:$N,10,0))) -> 11.77898799
B15: Metlife México | D15: =IF(D14="","","Únicas") -> Únicas | E15: =IF(E13="","",(VLOOKUP(B15,'TDPrimas Vida'!$B:$N,11,0))) -> 7355363.728 | F15: =IF(E13="","",(VLOOKUP(B15,'TDPrimas Vida'!$B:$N,12,0))) -> 6769305.805 | G15: =IFERROR((E15/VLOOKUP("TOTAL",$D$12:$L$312,2,0))*100,"") -> 2.370362324 | H15: =IFERROR((E15/VLOOKUP("TOTAL",$D$12:$L$312,3,0))*100,"") -> 2.837234515 | I15: =IF(E12="","",E15-F15) -> 586057.923 | J15: =IF(E12="","",IFERROR((E15/F15-1)*100,"ND")) -> 8.657577896 | K15: =IF(E14="","",IFERROR((E15/VLOOKUP(B15&"|"&VLOOKUP(TDPrimas_!$B$4,Cat!R:T,2,0),'TD Operación'!A:D,4,0))*100,"ND")) -> 9.293270909 | L15: =IF(E12="","",(VLOOKUP(B15,'TDPrimas Vida'!$B:$N,13,0))) -> 2.370362324
B16: BBVA Bancomer | C16: =IF('TDPrimas Vida'!A8="","",'TDPrimas Vida'!A8) -> 2 | D16: =IF('TDPrimas Vida'!B8="","",'TDPrimas Vida'!B8) -> BBVA Bancomer | E16: =IF('TDPrimas Vida'!C8="","",'TDPrimas Vida'!C8) -> 51186624.65 | F16: =IF('TDPrimas Vida'!D8="","",'TDPrimas Vida'!D8) -> 43150700.47 | G16: =IF('TDPrimas Vida'!C8="","",IFERROR((E16/VLOOKUP("TOTAL",$D$12:$L$312,2,0))*100,"")) -> 16.49556039 | H16: =IF('TDPrimas Vida'!C8="","",IFERROR((E16/VLOOKUP("TOTAL",$D$12:$L$312,3,0))*100,"")) -> 19.74456513 | I16: =IF('TDPrimas Vida'!C8="","",E16-F16) -> 8035924.182 | J16: =IFERROR(IF('TDPrimas Vida'!C8="","",(E16/F16-1)*100),"ND") -> 18.6229287 | K16: =IF(E15="","",IFERROR((E16/VLOOKUP(B16&"|"&VLOOKUP(TDPrimas_!$B$4,Cat!R:T,2,0),'TD Operación'!A:D,4,0))*100,"ND")) -> 77.79070721 | L16: =IF('TDPrimas Vida'!E8="","",'TDPrimas Vida'!E8) -> 77.79070721
B17: BBVA Bancomer | D17: =IF(D16="","","1er Año") -> 1er Año | E17: =IF(E16="","",(VLOOKUP(B17,'TDPrimas Vida'!$B:$N,5,0))) -> 43246378.27 | F17: =IF(E16="","",(VLOOKUP(B17,'TDPrimas Vida'!$B:$N,6,0))) -> 36550558.51 | G17: =IFERROR((E17/VLOOKUP("TOTAL",$D$12:$L$312,2,0))*100,"") -> 13.93671197 | H17: =IFERROR((E17/VLOOKUP("TOTAL",$D$12:$L$312,3,0))*100,"") -> 16.68171985 | I17: =IF(E16="","",E17-F17) -> 6695819.759 | J17: =IF(E16="","",IFERROR((E17/F17-1)*100,"ND")) -> 18.31933637 | K17: =IF(E16="","",IFERROR((E17/VLOOKUP(B17&"|"&VLOOKUP(TDPrimas_!$B$4,Cat!R:T,2,0),'TD Operación'!A:D,4,0))*100,"ND")) -> 65.72354345 | L17: =IF(E16="","",(VLOOKUP(B17,'TDPrimas Vida'!$B:$N,7,0))) -> 18.31933637
B18: BBVA Bancomer | D18: =IF(D17="","","Renovación") -> Renovación | E18: =IF(E16="","",(VLOOKUP(B18,'TDPrimas Vida'!$B:$N,8,0))) -> 5597069.056 | F18: =IF(E16="","",(VLOOKUP(B18,'TDPrimas Vida'!$B:$N,9,0))) -> 4528194.094 | G18: =IFERROR((E18/VLOOKUP("TOTAL",$D$12:$L$312,2,0))*100,"") -> 1.803728831 | H18: =IFERROR((E18/VLOOKUP("TOTAL",$D$12:$L$312,3,0))*100,"") -> 2.158995544 | I18: =IF(E16="","",E18-F18) -> 1068874.962 | J18: =IF(E16="","",IFERROR((E18/F18-1)*100,"ND")) -> 23.60488397 | K18: =IF(E17="","",IFERROR((E18/VLOOKUP(B18&"|"&VLOOKUP(TDPrimas_!$B$4,Cat!R:T,2,0),'TD Operación'!A:D,4,0))*100,"ND")) -> 8.506127589 | L18: =IF(E16="","",(VLOOKUP(B18,'TDPrimas Vida'!$B:$N,10,0))) -> 1.803728831
B19: BBVA Bancomer | D19: =IF(D18="","","Únicas") -> Únicas | E19: =IF(E17="","",(VLOOKUP(B19,'TDPrimas Vida'!$B:$N,11,0))) -> 2343177.333 | F19: =IF(E17="","",(VLOOKUP(B19,'TDPrimas Vida'!$B:$N,12,0))) -> 2071947.872 | G19: =IFERROR((E19/VLOOKUP("TOTAL",$D$12:$L$312,2,0))*100,"") -> 0.7551195936 | H19: =IFERROR((E19/VLOOKUP("TOTAL",$D$12:$L$312,3,0))*100,"") -> 0.9038497415 | I19: =IF(E16="","",E19-F19) -> 271229.4612 | J19: =IF(E16="","",IFERROR((E19/F19-1)*100,"ND")) -> 13.0905543 | K19: =IF(E18="","",IFERROR((E19/VLOOKUP(B19&"|"&VLOOKUP(TDPrimas_!$B$4,Cat!R:T,2,0),'TD Operación'!A:D,4,0))*100,"ND")) -> 3.56103617 | L19: =IF(E16="","",(VLOOKUP(B19,'TDPrimas Vida'!$B:$N,13,0))) -> 0.7551195936
B20: =IF(C20="",B16,D20) -> G.N.P. | C20: =IF('TDPrimas Vida'!A9="","",'TDPrimas Vida'!A9) -> 3 | D20: =IF('TDPrimas Vida'!B9="","",'TDPrimas Vida'!B9) -> G.N.P. | E20: =IF('TDPrimas Vida'!C9="","",'TDPrimas Vida'!C9) -> 36667379.17 | F20: =IF('TDPrimas Vida'!D9="","",'TDPrimas Vida'!D9) -> 35246575.57 | G20: =IF('TDPrimas Vida'!C9="","",IFERROR((E20/VLOOKUP("TOTAL",$D$12:$L$312,2,0))*100,"")) -> 11.81654332 | H20: =IF('TDPrimas Vida'!C9="","",IFERROR((E20/VLOOKUP("TOTAL",$D$12:$L$312,3,0))*100,"")) -> 14.14395775 | I20: =IF('TDPrimas Vida'!C9="","",E20-F20) -> 1420803.609 | J20: =IFERROR(IF('TDPrimas Vida'!C9="","",(E20/F20-1)*100),"ND") -> 4.03104014 | K20: =IF(E19="","",IFERROR((E20/VLOOKUP(B20&"|"&VLOOKUP(TDPrimas_!$B$4,Cat!R:T,2,0),'TD Operación'!A:D,4,0))*100,"ND")) -> 36.7859888 | L20: =IF('TDPrimas Vida'!E9="","",'TDPrimas Vida'!E9) -> 36.7859888
B21: =IF(C21="",B20,D21) -> G.N.P. | D21: =IF(D20="","","1er Año") -> 1er Año | E21: =IF(E20="","",(VLOOKUP(B21,'TDPrimas Vida'!$B:$N,5,0))) -> 9951703.187 | F21: =IF(E20="","",(VLOOKUP(B21,'TDPrimas Vida'!$B:$N,6,0))) -> 8615839.587 | G21: =IFERROR((E21/VLOOKUP("TOTAL",$D$12:$L$312,2,0))*100,"") -> 3.20706673 | H21: =IFERROR((E21/VLOOKUP("TOTAL",$D$12:$L$312,3,0))*100,"") -> 3.838738207 | I21: =IF(E20="","",E21-F21) -> 1335863.601 | J21: =IF(E20="","",IFERROR((E21/F21-1)*100,"ND")) -> 15.50474086 | K21: =IF(E20="","",IFERROR((E21/VLOOKUP(B21&"|"&VLOOKUP(TDPrimas_!$B$4,Cat!R:T,2,0),'TD Operación'!A:D,4,0))*100,"ND")) -> 9.98389441 | L21: =IF(E20="","",(VLOOKUP(B21,'TDPrimas Vida'!$B:$N,7,0))) -> 15.50474086
B22: =IF(C22="",B21,D22) -> G.N.P. | D22: =IF(D21="","","Renovación") -> Renovación | E22: =IF(E20="","",(VLOOKUP(B22,'TDPrimas Vida'!$B:$N,8,0))) -> 19070462.77 | F22: =IF(E20="","",(VLOOKUP(B22,'TDPrimas Vida'!$B:$N,9,0))) -> 18931513.77 | G22: =IFERROR((E22/VLOOKUP("TOTAL",$D$12:$L$312,2,0))*100,"") -> 6.145706472 | H22: =IFERROR((E22/VLOOKUP("TOTAL",$D$12:$L$312,3,0))*100,"") -> 7.356179409 | I22: =IF(E20="","",E22-F22) -> 138949.0031 | J22: =IF(E20="","",IFERROR((E22/F22-1)*100,"ND")) -> 0.7339561156 | K22: =IF(E21="","",IFERROR((E22/VLOOKUP(B22&"|"&VLOOKUP(TDPrimas_!$B$4,Cat!R:T,2,0),'TD Operación'!A:D,4,0))*100,"ND")) -> 19.13215086 | L22: =IF(E20="","",(VLOOKUP(B22,'TDPrimas Vida'!$B:$N,10,0))) -> 6.145706472
B23: =IF(C23="",B22,D23) -> G.N.P. | D23: =IF(D22="","","Únicas") -> Únicas | E23: =IF(E21="","",(VLOOKUP(B23,'TDPrimas Vida'!$B:$N,11,0))) -> 7645213.213 | F23: =IF(E21="","",(VLOOKUP(B23,'TDPrimas Vida'!$B:$N,12,0))) -> 7699222.208 | G23: =IFERROR((E23/VLOOKUP("TOTAL",$D$12:$L$312,2,0))*100,"") -> 2.463770118 | H23: =IFERROR((E23/VLOOKUP("TOTAL",$D$12:$L$312,3,0))*100,"") -> 2.94904013 | I23: =IF(E20="","",E23-F23) -> -54008.99479 | J23: =IF(E20="","",IFERROR((E23/F23-1)*100,"ND")) -> -0.7014863753 | K23: =IF(E22="","",IFERROR((E23/VLOOKUP(B23&"|"&VLOOKUP(TDPrimas_!$B$4,Cat!R:T,2,0),'TD Operación'!A:D,4,0))*100,"ND")) -> 7.669943529 | L23: =IF(E20="","",(VLOOKUP(B23,'TDPrimas Vida'!$B:$N,13,0))) -> 2.463770118
B24: =IF(C24="",B20,D24) -> Citibanamex Seguros | C24: =IF('TDPrimas Vida'!A10="","",'TDPrimas Vida'!A10) -> 4 | D24: =IF('TDPrimas Vida'!B10="","",'TDPrimas Vida'!B10) -> Citibanamex Seguros | E24: =IF('TDPrimas Vida'!C10="","",'TDPrimas Vida'!C10) -> 32898528.32 | F24: =IF('TDPrimas Vida'!D10="","",'TDPrimas Vida'!D10) -> 16107597.51 | G24: =IF('TDPrimas Vida'!C10="","",IFERROR((E24/VLOOKUP("TOTAL",$D$12:$L$312,2,0))*100,"")) -> 10.60198176 | H24: =IF('TDPrimas Vida'!C10="","",IFERROR((E24/VLOOKUP("TOTAL",$D$12:$L$312,3,0))*100,"")) -> 12.69017325 | I24: =IF('TDPrimas Vida'!C10="","",E24-F24) -> 16790930.81 | J24: =IFERROR(IF('TDPrimas Vida'!C10="","",(E24/F24-1)*100),"ND") -> 104.2423043 | K24: =IF(E23="","",IFERROR((E24/VLOOKUP(B24&"|"&VLOOKUP(TDPrimas_!$B$4,Cat!R:T,2,0),'TD Operación'!A:D,4,0))*100,"ND")) -> 97.41360854 | L24: =IF('TDPrimas Vida'!E10="","",'TDPrimas Vida'!E10) -> 97.41360854
B25: =IF(C25="",B24,D25) -> Citibanamex Seguros | D25: =IF(D24="","","1er Año") -> 1er Año | E25: =IF(E24="","",(VLOOKUP(B25,'TDPrimas Vida'!$B:$N,5,0))) -> 18596545.69 | F25: =IF(E24="","",(VLOOKUP(B25,'TDPrimas Vida'!$B:$N,6,0))) -> 8860948.793 | G25: =IFERROR((E25/VLOOKUP("TOTAL",$D$12:$L$312,2,0))*100,"") -> 5.992980484 | H25: =IFERROR((E25/VLOOKUP("TOTAL",$D$12:$L$312,3,0))*100,"") -> 7.173372148 | I25: =IF(E24="","",E25-F25) -> 9735596.899 | J25: =IF(E24="","",IFERROR((E25/F25-1)*100,"ND")) -> 109.8708178 | K25: =IF(E24="","",IFERROR((E25/VLOOKUP(B25&"|"&VLOOKUP(TDPrimas_!$B$4,Cat!R:T,2,0),'TD Operación'!A:D,4,0))*100,"ND")) -> 55.06497448 | L25: =IF(E24="","",(VLOOKUP(B25,'TDPrimas Vida'!$B:$N,7,0))) -> 109.8708178
B26: =IF(C26="",B25,D26) -> Citibanamex Seguros | D26: =IF(D25="","","Renovación") -> Renovación | E26: =IF(E24="","",(VLOOKUP(B26,'TDPrimas Vida'!$B:$N,8,0))) -> 14301982.62 | F26: =IF(E24="","",(VLOOKUP(B26,'TDPrimas Vida'!$B:$N,9,0))) -> 7246648.714 | G26: =IFERROR((E26/VLOOKUP("TOTAL",$D$12:$L$312,2,0))*100,"") -> 4.609001272 | H26: =IFERROR((E26/VLOOKUP("TOTAL",$D$12:$L$312,3,0))*100,"") -> 5.516801105 | I26: =IF(E24="","",E26-F26) -> 7055333.911 | J26: =IF(E24="","",IFERROR((E26/F26-1)*100,"ND")) -> 97.35995477 | K26: =IF(E25="","",IFERROR((E26/VLOOKUP(B26&"|"&VLOOKUP(TDPrimas_!$B$4,Cat!R:T,2,0),'TD Operación'!A:D,4,0))*100,"ND")) -> 42.34863406 | L26: =IF(E24="","",(VLOOKUP(B26,'TDPrimas Vida'!$B:$N,10,0))) -> 4.609001272
B27: =IF(C27="",B26,D27) -> Citibanamex Seguros | D27: =IF(D26="","","Únicas") -> Únicas | E27: =IF(E25="","",(VLOOKUP(B27,'TDPrimas Vida'!$B:$N,11,0))) -> 0 | F27: =IF(E25="","",(VLOOKUP(B27,'TDPrimas Vida'!$B:$N,12,0))) -> 0 | G27: =IFERROR((E27/VLOOKUP("TOTAL",$D$12:$L$312,2,0))*100,"") -> 0 | H27: =IFERROR((E27/VLOOKUP("TOTAL",$D$12:$L$312,3,0))*100,"") -> 0 | I27: =IF(E24="","",E27-F27) -> 0 | J27: =IF(E24="","",IFERROR((E27/F27-1)*100,"ND")) -> ND | K27: =IF(E26="","",IFERROR((E27/VLOOKUP(B27&"|"&VLOOKUP(TDPrimas_!$B$4,Cat!R:T,2,0),'TD Operación'!A:D,4,0))*100,"ND")) -> 0 | L27: =IF(E24="","",(VLOOKUP(B27,'TDPrimas Vida'!$B:$N,13,0))) -> 0
B28: =IF(C28="",B24,D28) -> Monterrey New York Life | C28: =IF('TDPrimas Vida'!A11="","",'TDPrimas Vida'!A11) -> 5 | D28: =IF('TDPrimas Vida'!B11="","",'TDPrimas Vida'!B11) -> Monterrey New York Life | E28: =IF('TDPrimas Vida'!C11="","",'TDPrimas Vida'!C11) -> 26072847.95 | F28: =IF('TDPrimas Vida'!D11="","",'TDPrimas Vida'!D11) -> 25726165.11 | G28: =IF('TDPrimas Vida'!C11="","",IFERROR((E28/VLOOKUP("TOTAL",$D$12:$L$312,2,0))*100,"")) -> 8.402316835 | H28: =IF('TDPrimas Vida'!C11="","",IFERROR((E28/VLOOKUP("TOTAL",$D$12:$L$312,3,0))*100,"")) -> 10.05725711 | I28: =IF('TDPrimas Vida'!C11="","",E28-F28) -> 346682.8461 | J28: =IFERROR(IF('TDPrimas Vida'!C11="","",(E28/F28-1)*100),"ND") -> 1.347588514 | K28: =IF(E27="","",IFERROR((E28/VLOOKUP(B28&"|"&VLOOKUP(TDPrimas_!$B$4,Cat!R:T,2,0),'TD Operación'!A:D,4,0))*100,"ND")) -> 67.52676296 | L28: =IF('TDPrimas Vida'!E11="","",'TDPrimas Vida'!E11) -> 67.52676296
B29: =IF(C29="",B28,D29) -> Monterrey New York Life | D29: =IF(D28="","","1er Año") -> 1er Año | E29: =IF(E28="","",(VLOOKUP(B29,'TDPrimas Vida'!$B:$N,5,0))) -> 2695983.273 | F29: =IF(E28="","",(VLOOKUP(B29,'TDPrimas Vida'!$B:$N,6,0))) -> 2404396.266 | G29: =IFERROR((E29/VLOOKUP("TOTAL",$D$12:$L$312,2,0))*100,"") -> 0.8688159299 | H29: =IFERROR((E29/VLOOKUP("TOTAL",$D$12:$L$312,3,0))*100,"") -> 1.039939978 | I29: =IF(E28="","",E29-F29) -> 291587.0067 | J29: =IF(E28="","",IFERROR((E29/F29-1)*100,"ND")) -> 12.1272442 | K29: =IF(E28="","",IFERROR((E29/VLOOKUP(B29&"|"&VLOOKUP(TDPrimas_!$B$4,Cat!R:T,2,0),'TD Operación'!A:D,4,0))*100,"ND")) -> 6.982398844 | L29: =IF(E28="","",(VLOOKUP(B29,'TDPrimas Vida'!$B:$N,7,0))) -> 12.1272442
B30: =IF(C30="",B29,D30) -> Monterrey New York Life | D30: =IF(D29="","","Renovación") -> Renovación | E30: =IF(E28="","",(VLOOKUP(B30,'TDPrimas Vida'!$B:$N,8,0))) -> 16982045.04 | F30: =IF(E28="","",(VLOOKUP(B30,'TDPrimas Vida'!$B:$N,9,0))) -> 16907794.13 | G30: =IFERROR((E30/VLOOKUP("TOTAL",$D$12:$L$312,2,0))*100,"") -> 5.472686498 | H30: =IFERROR((E30/VLOOKUP("TOTAL",$D$12:$L$312,3,0))*100,"") -> 6.550599823 | I30: =IF(E28="","",E30-F30) -> 74250.91277 | J30: =IF(E28="","",IFERROR((E30/F30-1)*100,"ND")) -> 0.4391519804 | K30: =IF(E29="","",IFERROR((E30/VLOOKUP(B30&"|"&VLOOKUP(TDPrimas_!$B$4,Cat!R:T,2,0),'TD Operación'!A:D,4,0))*100,"ND")) -> 43.98225051 | L30: =IF(E28="","",(VLOOKUP(B30,'TDPrimas Vida'!$B:$N,10,0))) -> 5.472686498
B31: =IF(C31="",B30,D31) -> Monterrey New York Life | D31: =IF(D30="","","Únicas") -> Únicas | E31: =IF(E29="","",(VLOOKUP(B31,'TDPrimas Vida'!$B:$N,11,0))) -> 6394819.638 | F31: =IF(E29="","",(VLOOKUP(B31,'TDPrimas Vida'!$B:$N,12,0))) -> 6413974.711 | G31: =IFERROR((E31/VLOOKUP("TOTAL",$D$12:$L$312,2,0))*100,"") -> 2.060814407 | H31: =IFERROR((E31/VLOOKUP("TOTAL",$D$12:$L$312,3,0))*100,"") -> 2.466717305 | I31: =IF(E28="","",E31-F31) -> -19155.07336 | J31: =IF(E28="","",IFERROR((E31/F31-1)*100,"ND")) -> -0.2986459134 | K31: =IF(E30="","",IFERROR((E31/VLOOKUP(B31&"|"&VLOOKUP(TDPrimas_!$B$4,Cat!R:T,2,0),'TD Operación'!A:D,4,0))*100,"ND")) -> 16.56211361 | L31: =IF(E28="","",(VLOOKUP(B31,'TDPrimas Vida'!$B:$N,13,0))) -> 2.060814407
B32: =IF(C32="",B28,D32) -> TOTAL GRANDES | C32: =IF('TDPrimas Vida'!A12="","",'TDPrimas Vida'!A12) -> 5.1 | D32: =IF('TDPrimas Vida'!B12="","",'TDPrimas Vida'!B12) -> TOTAL GRANDES | E32: =IF('TDPrimas Vida'!C12="","",'TDPrimas Vida'!C12) -> 200458979.9 | F32: =IF('TDPrimas Vida'!D12="","",'TDPrimas Vida'!D12) -> 168247557.6 | G32: =IF('TDPrimas Vida'!C12="","",IFERROR((E32/VLOOKUP("TOTAL",$D$12:$L$312,2,0))*100,"")) -> 64.60053251 | H32: =IF('TDPrimas Vida'!C12="","",IFERROR((E32/VLOOKUP("TOTAL",$D$12:$L$312,3,0))*100,"")) -> 77.32440676 | I32: =IF('TDPrimas Vida'!C12="","",E32-F32) -> 32211422.3 | J32: =IFERROR(IF('TDPrimas Vida'!C12="","",(E32/F32-1)*100),"ND") -> 19.14525402 | K32: =IF(E31="","",IFERROR((E32/VLOOKUP(B32&"|"&VLOOKUP(TDPrimas_!$B$4,Cat!R:T,2,0),'TD Operación'!A:D,4,0))*100,"ND")) -> 57.39016921 | L32: =IF('TDPrimas Vida'!E12="","",'TDPrimas Vida'!E12) -> 63.23460724
B33: =IF(C33="",B32,D33) -> TOTAL GRANDES | D33: =IF(D32="","","1er Año") -> 1er Año | E33: =IF(E32="","",(VLOOKUP(B33,'TDPrimas Vida'!$B:$N,5,0))) -> 84218003.59 | F33: =IF(E32="","",(VLOOKUP(B33,'TDPrimas Vida'!$B:$N,6,0))) -> 65676133.99 | G33: =IFERROR((E33/VLOOKUP("TOTAL",$D$12:$L$312,2,0))*100,"") -> 27.140355 | H33: =IFERROR((E33/VLOOKUP("TOTAL",$D$12:$L$312,3,0))*100,"") -> 32.48598376 | I33: =IF(E32="","",E33-F33) -> 18541869.6 | J33: =IF(E32="","",IFERROR((E33/F33-1)*100,"ND")) -> 28.23227932 | K33: =IF(E32="","",IFERROR((E33/VLOOKUP(B33&"|"&VLOOKUP(TDPrimas_!$B$4,Cat!R:T,2,0),'TD Operación'!A:D,4,0))*100,"ND")) -> 24.11109484 | L33: =IF(E32="","",(VLOOKUP(B33,'TDPrimas Vida'!$B:$N,7,0))) -> 28.23227932
B34: =IF(C34="",B33,D34) -> TOTAL GRANDES | D34: =IF(D33="","","Renovación") -> Renovación | E34: =IF(E32="","",(VLOOKUP(B34,'TDPrimas Vida'!$B:$N,8,0))) -> 92502402.44 | F34: =IF(E32="","",(VLOOKUP(B34,'TDPrimas Vida'!$B:$N,9,0))) -> 79616973.05 | G34: =IFERROR((E34/VLOOKUP("TOTAL",$D$12:$L$312,2,0))*100,"") -> 29.81011106 | H34: =IFERROR((E34/VLOOKUP("TOTAL",$D$12:$L$312,3,0))*100,"") -> 35.68158131 | I34: =IF(E32="","",E34-F34) -> 12885429.39 | J34: =IF(E32="","",IFERROR((E34/F34-1)*100,"ND")) -> 16.1842744 | K34: =IF(E33="","",IFERROR((E34/VLOOKUP(B34&"|"&VLOOKUP(TDPrimas_!$B$4,Cat!R:T,2,0),'TD Operación'!A:D,4,0))*100,"ND")) -> 26.48286712 | L34: =IF(E32="","",(VLOOKUP(B34,'TDPrimas Vida'!$B:$N,10,0))) -> 29.81011106
B35: =IF(C35="",B34,D35) -> TOTAL GRANDES | D35: =IF(D34="","","Únicas") -> Únicas | E35: =IF(E33="","",(VLOOKUP(B35,'TDPrimas Vida'!$B:$N,11,0))) -> 23738573.91 | F35: =IF(E33="","",(VLOOKUP(B35,'TDPrimas Vida'!$B:$N,12,0))) -> 22954450.6 | G35: =IFERROR((E35/VLOOKUP("TOTAL",$D$12:$L$312,2,0))*100,"") -> 7.650066443 | H35: =IFERROR((E35/VLOOKUP("TOTAL",$D$12:$L$312,3,0))*100,"") -> 9.156841692 | I35: =IF(E32="","",E35-F35) -> 784123.3161 | J35: =IF(E32="","",IFERROR((E35/F35-1)*100,"ND")) -> 3.415996879 | K35: =IF(E34="","",IFERROR((E35/VLOOKUP(B35&"|"&VLOOKUP(TDPrimas_!$B$4,Cat!R:T,2,0),'TD Operación'!A:D,4,0))*100,"ND")) -> 6.796207254 | L35: =IF(E32="","",(VLOOKUP(B35,'TDPrimas Vida'!$B:$N,13,0))) -> 7.650066443
B36: =IF(C36="",B32,D36) -> Banorte | C36: =IF('TDPrimas Vida'!A13="","",'TDPrimas Vida'!A13) -> 6 | D36: =IF('TDPrimas Vida'!B13="","",'TDPrimas Vida'!B13) -> Banorte | E36: =IF('TDPrimas Vida'!C13="","",'TDPrimas Vida'!C13) -> 21816337.41 | F36: =IF('TDPrimas Vida'!D13="","",'TDPrimas Vida'!D13) -> 15636401.48 | G36: =IF('TDPrimas Vida'!C13="","",IFERROR((E36/VLOOKUP("TOTAL",$D$12:$L$312,2,0))*100,"")) -> 7.030600548 | H36: =IF('TDPrimas Vida'!C13="","",IFERROR((E36/VLOOKUP("TOTAL",$D$12:$L$312,3,0))*100,"")) -> 8.415364323 | I36: =IF('TDPrimas Vida'!C13="","",E36-F36) -> 6179935.933 | J36: =IFERROR(IF('TDPrimas Vida'!C13="","",(E36/F36-1)*100),"ND") -> 39.52275044 | K36: =IF(E35="","",IFERROR((E36/VLOOKUP(B36&"|"&VLOOKUP(TDPrimas_!$B$4,Cat!R:T,2,0),'TD Operación'!A:D,4,0))*100,"ND")) -> 57.99647412 | L36: =IF('TDPrimas Vida'!E13="","",'TDPrimas Vida'!E13) -> 57.99647412
B37: =IF(C37="",B36,D37) -> Banorte | D37: =IF(D36="","","1er Año") -> 1er Año | E37: =IF(E36="","",(VLOOKUP(B37,'TDPrimas Vida'!$B:$N,5,0))) -> 5530582.322 | F37: =IF(E36="","",(VLOOKUP(B37,'TDPrimas Vida'!$B:$N,6,0))) -> 5176883.032 | G37: =IFERROR((E37/VLOOKUP("TOTAL",$D$12:$L$312,2,0))*100,"") -> 1.78230261 | H37: =IFERROR((E37/VLOOKUP("TOTAL",$D$12:$L$312,3,0))*100,"") -> 2.133349163 | I37: =IF(E36="","",E37-F37) -> 353699.2897 | J37: =IF(E36="","",IFERROR((E37/F37-1)*100,"ND")) -> 6.832282814 | K37: =IF(E36="","",IFERROR((E37/VLOOKUP(B37&"|"&VLOOKUP(TDPrimas_!$B$4,Cat!R:T,2,0),'TD Operación'!A:D,4,0))*100,"ND")) -> 14.70248046 | L37: =IF(E36="","",(VLOOKUP(B37,'TDPrimas Vida'!$B:$N,7,0))) -> 6.832282814
B38: =IF(C38="",B37,D38) -> Banorte | D38: =IF(D37="","","Renovación") -> Renovación | E38: =IF(E36="","",(VLOOKUP(B38,'TDPrimas Vida'!$B:$N,8,0))) -> 9222621.45 | F38: =IF(E36="","",(VLOOKUP(B38,'TDPrimas Vida'!$B:$N,9,0))) -> 7984926.705 | G38: =IFERROR((E38/VLOOKUP("TOTAL",$D$12:$L$312,2,0))*100,"") -> 2.972110588 | H38: =IFERROR((E38/VLOOKUP("TOTAL",$D$12:$L$312,3,0))*100,"") -> 3.557504546 | I38: =IF(E36="","",E38-F38) -> 1237694.745 | J38: =IF(E36="","",IFERROR((E38/F38-1)*100,"ND")) -> 15.50038956 | K38: =IF(E37="","",IFERROR((E38/VLOOKUP(B38&"|"&VLOOKUP(TDPrimas_!$B$4,Cat!R:T,2,0),'TD Operación'!A:D,4,0))*100,"ND")) -> 24.5173842 | L38: =IF(E36="","",(VLOOKUP(B38,'TDPrimas Vida'!$B:$N,10,0))) -> 2.972110588
B39: =IF(C39="",B38,D39) -> Banorte | D39: =IF(D38="","","Únicas") -> Únicas | E39: =IF(E37="","",(VLOOKUP(B39,'TDPrimas Vida'!$B:$N,11,0))) -> 7063133.639 | F39: =IF(E37="","",(VLOOKUP(B39,'TDPrimas Vida'!$B:$N,12,0))) -> 2474591.741 | G39: =IFERROR((E39/VLOOKUP("TOTAL",$D$12:$L$312,2,0))*100,"") -> 2.27618735 | H39: =IFERROR((E39/VLOOKUP("TOTAL",$D$12:$L$312,3,0))*100,"") -> 2.724510614 | I39: =IF(E36="","",E39-F39) -> 4588541.898 | J39: =IF(E36="","",IFERROR((E39/F39-1)*100,"ND")) -> 185.4262189 | K39: =IF(E38="","",IFERROR((E39/VLOOKUP(B39&"|"&VLOOKUP(TDPrimas_!$B$4,Cat!R:T,2,0),'TD Operación'!A:D,4,0))*100,"ND")) -> 18.77660945 | L39: =IF(E36="","",(VLOOKUP(B39,'TDPrimas Vida'!$B:$N,13,0))) -> 2.27618735
B40: =IF(C40="",B36,D40) -> Zurich Santander | C40: =IF('TDPrimas Vida'!A14="","",'TDPrimas Vida'!A14) -> 7 | D40: =IF('TDPrimas Vida'!B14="","",'TDPrimas Vida'!B14) -> Zurich Santander | E40: =IF('TDPrimas Vida'!C14="","",'TDPrimas Vida'!C14) -> 17510255.99 | F40: =IF('TDPrimas Vida'!D14="","",'TDPrimas Vida'!D14) -> 10124406.06 | G40: =IF('TDPrimas Vida'!C14="","",IFERROR((E40/VLOOKUP("TOTAL",$D$12:$L$312,2,0))*100,"")) -> 5.642909395 | H40: =IF('TDPrimas Vida'!C14="","",IFERROR((E40/VLOOKUP("TOTAL",$D$12:$L$312,3,0))*100,"")) -> 6.754350226 | I40: =IF('TDPrimas Vida'!C14="","",E40-F40) -> 7385849.93 | J40: =IFERROR(IF('TDPrimas Vida'!C14="","",(E40/F40-1)*100),"ND") -> 72.95094534 | K40: =IF(E39="","",IFERROR((E40/VLOOKUP(B40&"|"&VLOOKUP(TDPrimas_!$B$4,Cat!R:T,2,0),'TD Operación'!A:D,4,0))*100,"ND")) -> 79.23202283 | L40: =IF('TDPrimas Vida'!E14="","",'TDPrimas Vida'!E14) -> 79.23202283
B41: =IF(C41="",B40,D41) -> Zurich Santander | D41: =IF(D40="","","1er Año") -> 1er Año | E41: =IF(E40="","",(VLOOKUP(B41,'TDPrimas Vida'!$B:$N,5,0))) -> 10809361.2 | F41: =IF(E40="","",(VLOOKUP(B41,'TDPrimas Vida'!$B:$N,6,0))) -> 4184166.794 | G41: =IFERROR((E41/VLOOKUP("TOTAL",$D$12:$L$312,2,0))*100,"") -> 3.48345826 | H41: =IFERROR((E41/VLOOKUP("TOTAL",$D$12:$L$312,3,0))*100,"") -> 4.16956847 | I41: =IF(E40="","",E41-F41) -> 6625194.405 | J41: =IF(E40="","",IFERROR((E41/F41-1)*100,"ND")) -> 158.3396344 | K41: =IF(E40="","",IFERROR((E41/VLOOKUP(B41&"|"&VLOOKUP(TDPrimas_!$B$4,Cat!R:T,2,0),'TD Operación'!A:D,4,0))*100,"ND")) -> 48.91119547 | L41: =IF(E40="","",(VLOOKUP(B41,'TDPrimas Vida'!$B:$N,7,0))) -> 158.3396344
B42: =IF(C42="",B41,D42) -> Zurich Santander | D42: =IF(D41="","","Renovación") -> Renovación | E42: =IF(E40="","",(VLOOKUP(B42,'TDPrimas Vida'!$B:$N,8,0))) -> 1393444.986 | F42: =IF(E40="","",(VLOOKUP(B42,'TDPrimas Vida'!$B:$N,9,0))) -> 1359424.265 | G42: =IFERROR((E42/VLOOKUP("TOTAL",$D$12:$L$312,2,0))*100,"") -> 0.4490559025 | H42: =IFERROR((E42/VLOOKUP("TOTAL",$D$12:$L$312,3,0))*100,"") -> 0.5375030192 | I42: =IF(E40="","",E42-F42) -> 34020.72123 | J42: =IF(E40="","",IFERROR((E42/F42-1)*100,"ND")) -> 2.502583049 | K42: =IF(E41="","",IFERROR((E42/VLOOKUP(B42&"|"&VLOOKUP(TDPrimas_!$B$4,Cat!R:T,2,0),'TD Operación'!A:D,4,0))*100,"ND")) -> 6.305188517 | L42: =IF(E40="","",(VLOOKUP(B42,'TDPrimas Vida'!$B:$N,10,0))) -> 0.4490559025
B43: =IF(C43="",B42,D43) -> Zurich Santander | D43: =IF(D42="","","Únicas") -> Únicas | E43: =IF(E41="","",(VLOOKUP(B43,'TDPrimas Vida'!$B:$N,11,0))) -> 5307449.803 | F43: =IF(E41="","",(VLOOKUP(B43,'TDPrimas Vida'!$B:$N,12,0))) -> 4580814.999 | G43: =IFERROR((E43/VLOOKUP("TOTAL",$D$12:$L$312,2,0))*100,"") -> 1.710395232 | H43: =IFERROR((E43/VLOOKUP("TOTAL",$D$12:$L$312,3,0))*100,"") -> 2.047278738 | I43: =IF(E40="","",E43-F43) -> 726634.8034 | J43: =IF(E40="","",IFERROR((E43/F43-1)*100,"ND")) -> 15.86256602 | K43: =IF(E42="","",IFERROR((E43/VLOOKUP(B43&"|"&VLOOKUP(TDPrimas_!$B$4,Cat!R:T,2,0),'TD Operación'!A:D,4,0))*100,"ND")) -> 24.01563885 | L43: =IF(E40="","",(VLOOKUP(B43,'TDPrimas Vida'!$B:$N,13,0))) -> 1.710395232
B44: =IF(C44="",B40,D44) -> Allianz México | C44: =IF('TDPrimas Vida'!A15="","",'TDPrimas Vida'!A15) -> 8 | D44: =IF('TDPrimas Vida'!B15="","",'TDPrimas Vida'!B15) -> Allianz México | E44: =IF('TDPrimas Vida'!C15="","",'TDPrimas Vida'!C15) -> 11818475.59 | F44: =IF('TDPrimas Vida'!D15="","",'TDPrimas Vida'!D15) -> 10326844.2 | G44: =IF('TDPrimas Vida'!C15="","",IFERROR((E44/VLOOKUP("TOTAL",$D$12:$L$312,2,0))*100,"")) -> 3.808658593 | H44: =IF('TDPrimas Vida'!C15="","",IFERROR((E44/VLOOKUP("TOTAL",$D$12:$L$312,3,0))*100,"")) -> 4.558821031 | I44: =IF('TDPrimas Vida'!C15="","",E44-F44) -> 1491631.392 | J44: =IFERROR(IF('TDPrimas Vida'!C15="","",(E44/F44-1)*100),"ND") -> 14.44421319 | K44: =IF(E43="","",IFERROR((E44/VLOOKUP(B44&"|"&VLOOKUP(TDPrimas_!$B$4,Cat!R:T,2,0),'TD Operación'!A:D,4,0))*100,"ND")) -> 55.68799148 | L44: =IF('TDPrimas Vida'!E15="","",'TDPrimas Vida'!E15) -> 55.68799148
B45: =IF(C45="",B44,D45) -> Allianz México | D45: =IF(D44="","","1er Año") -> 1er Año | E45: =IF(E44="","",(VLOOKUP(B45,'TDPrimas Vida'!$B:$N,5,0))) -> 5067714.119 | F45: =IF(E44="","",(VLOOKUP(B45,'TDPrimas Vida'!$B:$N,6,0))) -> 4570849.743 | G45: =IFERROR((E45/VLOOKUP("TOTAL",$D$12:$L$312,2,0))*100,"") -> 1.633137267 | H45: =IFERROR((E45/VLOOKUP("TOTAL",$D$12:$L$312,3,0))*100,"") -> 1.954803861 | I45: =IF(E44="","",E45-F45) -> 496864.3764 | J45: =IF(E44="","",IFERROR((E45/F45-1)*100,"ND")) -> 10.87028462 | K45: =IF(E44="","",IFERROR((E45/VLOOKUP(B45&"|"&VLOOKUP(TDPrimas_!$B$4,Cat!R:T,2,0),'TD Operación'!A:D,4,0))*100,"ND")) -> 23.87878357 | L45: =IF(E44="","",(VLOOKUP(B45,'TDPrimas Vida'!$B:$N,7,0))) -> 10.87028462
B46: =IF(C46="",B45,D46) -> Allianz México | D46: =IF(D45="","","Renovación") -> Renovación | E46: =IF(E44="","",(VLOOKUP(B46,'TDPrimas Vida'!$B:$N,8,0))) -> 6750761.469 | F46: =IF(E44="","",(VLOOKUP(B46,'TDPrimas Vida'!$B:$N,9,0))) -> 5755994.453 | G46: =IFERROR((E46/VLOOKUP("TOTAL",$D$12:$L$312,2,0))*100,"") -> 2.175521325 | H46: =IFERROR((E46/VLOOKUP("TOTAL",$D$12:$L$312,3,0))*100,"") -> 2.604017171 | I46: =IF(E44="","",E46-F46) -> 994767.0154 | J46: =IF(E44="","",IFERROR((E46/F46-1)*100,"ND")) -> 17.28227891 | K46: =IF(E45="","",IFERROR((E46/VLOOKUP(B46&"|"&VLOOKUP(TDPrimas_!$B$4,Cat!R:T,2,0),'TD Operación'!A:D,4,0))*100,"ND")) -> 31.80920791 | L46: =IF(E44="","",(VLOOKUP(B46,'TDPrimas Vida'!$B:$N,10,0))) -> 2.175521325
B47: =IF(C47="",B46,D47) -> Allianz México | D47: =IF(D46="","","Únicas") -> Únicas | E47: =IF(E45="","",(VLOOKUP(B47,'TDPrimas Vida'!$B:$N,11,0))) -> 0 | F47: =IF(E45="","",(VLOOKUP(B47,'TDPrimas Vida'!$B:$N,12,0))) -> 0 | G47: =IFERROR((E47/VLOOKUP("TOTAL",$D$12:$L$312,2,0))*100,"") -> 0 | H47: =IFERROR((E47/VLOOKUP("TOTAL",$D$12:$L$312,3,0))*100,"") -> 0 | I47: =IF(E44="","",E47-F47) -> 0 | J47: =IF(E44="","",IFERROR((E47/F47-1)*100,"ND")) -> ND | K47: =IF(E46="","",IFERROR((E47/VLOOKUP(B47&"|"&VLOOKUP(TDPrimas_!$B$4,Cat!R:T,2,0),'TD Operación'!A:D,4,0))*100,"ND")) -> 0 | L47: =IF(E44="","",(VLOOKUP(B47,'TDPrimas Vida'!$B:$N,13,0))) -> 0
B48: =IF(C48="",B44,D48) -> HSBC Seguros | C48: =IF('TDPrimas Vida'!A16="","",'TDPrimas Vida'!A16) -> 9 | D48: =IF('TDPrimas Vida'!B16="","",'TDPrimas Vida'!B16) -> HSBC Seguros | E48: =IF('TDPrimas Vida'!C16="","",'TDPrimas Vida'!C16) -> 9369131.335 | F48: =IF('TDPrimas Vida'!D16="","",'TDPrimas Vida'!D16) -> 6262776.066 | G48: =IF('TDPrimas Vida'!C16="","",IFERROR((E48/VLOOKUP("TOTAL",$D$12:$L$312,2,0))*100,"")) -> 3.019325318 | H48: =IF('TDPrimas Vida'!C16="","",IFERROR((E48/VLOOKUP("TOTAL",$D$12:$L$312,3,0))*100,"")) -> 3.614018801 | I48: =IF('TDPrimas Vida'!C16="","",E48-F48) -> 3106355.269 | J48: =IFERROR(IF('TDPrimas Vida'!C16="","",(E48/F48-1)*100),"ND") -> 49.60029285 | K48: =IF(E47="","",IFERROR((E48/VLOOKUP(B48&"|"&VLOOKUP(TDPrimas_!$B$4,Cat!R:T,2,0),'TD Operación'!A:D,4,0))*100,"ND")) -> 95.54055708 | L48: =IF('TDPrimas Vida'!E16="","",'TDPrimas Vida'!E16) -> 95.54055708
B49: =IF(C49="",B48,D49) -> HSBC Seguros | D49: =IF(D48="","","1er Año") -> 1er Año | E49: =IF(E48="","",(VLOOKUP(B49,'TDPrimas Vida'!$B:$N,5,0))) -> 7088212.191 | F49: =IF(E48="","",(VLOOKUP(B49,'TDPrimas Vida'!$B:$N,6,0))) -> 3961507.714 | G49: =IFERROR((E49/VLOOKUP("TOTAL",$D$12:$L$312,2,0))*100,"") -> 2.284269242 | H49: =IFERROR((E49/VLOOKUP("TOTAL",$D$12:$L$312,3,0))*100,"") -> 2.734184334 | I49: =IF(E48="","",E49-F49) -> 3126704.476 | J49: =IF(E48="","",IFERROR((E49/F49-1)*100,"ND")) -> 78.92713335 | K49: =IF(E48="","",IFERROR((E49/VLOOKUP(B49&"|"&VLOOKUP(TDPrimas_!$B$4,Cat!R:T,2,0),'TD Operación'!A:D,4,0))*100,"ND")) -> 72.28116643 | L49: =IF(E48="","",(VLOOKUP(B49,'TDPrimas Vida'!$B:$N,7,0))) -> 78.92713335
B50: =IF(C50="",B49,D50) -> HSBC Seguros | D50: =IF(D49="","","Renovación") -> Renovación | E50: =IF(E48="","",(VLOOKUP(B50,'TDPrimas Vida'!$B:$N,8,0))) -> 2280919.145 | F50: =IF(E48="","",(VLOOKUP(B50,'TDPrimas Vida'!$B:$N,9,0))) -> 2301268.352 | G50: =IFERROR((E50/VLOOKUP("TOTAL",$D$12:$L$312,2,0))*100,"") -> 0.7350560768 | H50: =IFERROR((E50/VLOOKUP("TOTAL",$D$12:$L$312,3,0))*100,"") -> 0.8798344668 | I50: =IF(E48="","",E50-F50) -> -20349.20708 | J50: =IF(E48="","",IFERROR((E50/F50-1)*100,"ND")) -> -0.884260502 | K50: =IF(E49="","",IFERROR((E50/VLOOKUP(B50&"|"&VLOOKUP(TDPrimas_!$B$4,Cat!R:T,2,0),'TD Operación'!A:D,4,0))*100,"ND")) -> 23.25939064 | L50: =IF(E48="","",(VLOOKUP(B50,'TDPrimas Vida'!$B:$N,10,0))) -> 0.7350560768
B51: =IF(C51="",B50,D51) -> HSBC Seguros | D51: =IF(D50="","","Únicas") -> Únicas | E51: =IF(E49="","",(VLOOKUP(B51,'TDPrimas Vida'!$B:$N,11,0))) -> 0 | F51: =IF(E49="","",(VLOOKUP(B51,'TDPrimas Vida'!$B:$N,12,0))) -> 0 | G51: =IFERROR((E51/VLOOKUP("TOTAL",$D$12:$L$312,2,0))*100,"") -> 0 | H51: =IFERROR((E51/VLOOKUP("TOTAL",$D$12:$L$312,3,0))*100,"") -> 0 | I51: =IF(E48="","",E51-F51) -> 0 | J51: =IF(E48="","",IFERROR((E51/F51-1)*100,"ND")) -> ND | K51: =IF(E50="","",IFERROR((E51/VLOOKUP(B51&"|"&VLOOKUP(TDPrimas_!$B$4,Cat!R:T,2,0),'TD Operación'!A:D,4,0))*100,"ND")) -> 0 | L51: =IF(E48="","",(VLOOKUP(B51,'TDPrimas Vida'!$B:$N,13,0))) -> 0
B52: =IF(C52="",B48,D52) -> Mapfre México | C52: =IF('TDPrimas Vida'!A17="","",'TDPrimas Vida'!A17) -> 10 | D52: =IF('TDPrimas Vida'!B17="","",'TDPrimas Vida'!B17) -> Mapfre México | E52: =IF('TDPrimas Vida'!C17="","",'TDPrimas Vida'!C17) -> 6089419.665 | F52: =IF('TDPrimas Vida'!D17="","",'TDPrimas Vida'!D17) -> 5365137.705 | G52: =IF('TDPrimas Vida'!C17="","",IFERROR((E52/VLOOKUP("TOTAL",$D$12:$L$312,2,0))*100,"")) -> 1.962395265 | H52: =IF('TDPrimas Vida'!C17="","",IFERROR((E52/VLOOKUP("TOTAL",$D$12:$L$312,3,0))*100,"")) -> 2.348913295 | I52: =IF('TDPrimas Vida'!C17="","",E52-F52) -> 724281.9608 | J52: =IFERROR(IF('TDPrimas Vida'!C17="","",(E52/F52-1)*100),"ND") -> 13.49978324 | K52: =IF(E51="","",IFERROR((E52/VLOOKUP(B52&"|"&VLOOKUP(TDPrimas_!$B$4,Cat!R:T,2,0),'TD Operación'!A:D,4,0))*100,"ND")) -> 22.30386302 | L52: =IF('TDPrimas Vida'!E17="","",'TDPrimas Vida'!E17) -> 22.30386302
B53: =IF(C53="",B52,D53) -> Mapfre México | D53: =IF(D52="","","1er Año") -> 1er Año | E53: =IF(E52="","",(VLOOKUP(B53,'TDPrimas Vida'!$B:$N,5,0))) -> 5213652.38 | F53: =IF(E52="","",(VLOOKUP(B53,'TDPrimas Vida'!$B:$N,6,0))) -> 4602141.839 | G53: =IFERROR((E53/VLOOKUP("TOTAL",$D$12:$L$312,2,0))*100,"") -> 1.680167784 | H53: =IFERROR((E53/VLOOKUP("TOTAL",$D$12:$L$312,3,0))*100,"") -> 2.011097619 | I53: =IF(E52="","",E53-F53) -> 611510.5404 | J53: =IF(E52="","",IFERROR((E53/F53-1)*100,"ND")) -> 13.2875205 | K53: =IF(E52="","",IFERROR((E53/VLOOKUP(B53&"|"&VLOOKUP(TDPrimas_!$B$4,Cat!R:T,2,0),'TD Operación'!A:D,4,0))*100,"ND")) -> 19.09616924 | L53: =IF(E52="","",(VLOOKUP(B53,'TDPrimas Vida'!$B:$N,7,0))) -> 13.2875205
B54: =IF(C54="",B53,D54) -> Mapfre México | D54: =IF(D53="","","Renovación") -> Renovación | E54: =IF(E52="","",(VLOOKUP(B54,'TDPrimas Vida'!$B:$N,8,0))) -> 831403.3286 | F54: =IF(E52="","",(VLOOKUP(B54,'TDPrimas Vida'!$B:$N,9,0))) -> 759074.1155 | G54: =IFERROR((E54/VLOOKUP("TOTAL",$D$12:$L$312,2,0))*100,"") -> 0.2679306149 | H54: =IFERROR((E54/VLOOKUP("TOTAL",$D$12:$L$312,3,0))*100,"") -> 0.3207028649 | I54: =IF(E52="","",E54-F54) -> 72329.21318 | J54: =IF(E52="","",IFERROR((E54/F54-1)*100,"ND")) -> 9.528610146 | K54: =IF(E53="","",IFERROR((E54/VLOOKUP(B54&"|"&VLOOKUP(TDPrimas_!$B$4,Cat!R:T,2,0),'TD Operación'!A:D,4,0))*100,"ND")) -> 3.045200853 | L54: =IF(E52="","",(VLOOKUP(B54,'TDPrimas Vida'!$B:$N,10,0))) -> 0.2679306149
B55: =IF(C55="",B54,D55) -> Mapfre México | D55: =IF(D54="","","Únicas") -> Únicas | E55: =IF(E53="","",(VLOOKUP(B55,'TDPrimas Vida'!$B:$N,11,0))) -> 44363.95708 | F55: =IF(E53="","",(VLOOKUP(B55,'TDPrimas Vida'!$B:$N,12,0))) -> 3368.52744 | G55: =IFERROR((E55/VLOOKUP("TOTAL",$D$12:$L$312,2,0))*100,"") -> 0.01429686638 | H55: =IFERROR((E55/VLOOKUP("TOTAL",$D$12:$L$312,3,0))*100,"") -> 0.01711281113 | I55: =IF(E52="","",E55-F55) -> 40995.42964 | J55: =IF(E52="","",IFERROR((E55/F55-1)*100,"ND")) -> 1217.01338 | K55: =IF(E54="","",IFERROR((E55/VLOOKUP(B55&"|"&VLOOKUP(TDPrimas_!$B$4,Cat!R:T,2,0),'TD Operación'!A:D,4,0))*100,"ND")) -> 0.1624929265 | L55: =IF(E52="","",(VLOOKUP(B55,'TDPrimas Vida'!$B:$N,13,0))) -> 0.01429686638
B56: =IF(C56="",B52,D56) -> AXA Seguros | C56: =IF('TDPrimas Vida'!A18="","",'TDPrimas Vida'!A18) -> 11 | D56: =IF('TDPrimas Vida'!B18="","",'TDPrimas Vida'!B18) -> AXA Seguros | E56: =IF('TDPrimas Vida'!C18="","",'TDPrimas Vida'!C18) -> 6043669.143 | F56: =IF('TDPrimas Vida'!D18="","",'TDPrimas Vida'!D18) -> 5473617.575 | G56: =IF('TDPrimas Vida'!C18="","",IFERROR((E56/VLOOKUP("TOTAL",$D$12:$L$312,2,0))*100,"")) -> 1.94765156 | H56: =IF('TDPrimas Vida'!C18="","",IFERROR((E56/VLOOKUP("TOTAL",$D$12:$L$312,3,0))*100,"")) -> 2.331265635 | I56: =IF('TDPrimas Vida'!C18="","",E56-F56) -> 570051.5681 | J56: =IFERROR(IF('TDPrimas Vida'!C18="","",(E56/F56-1)*100),"ND") -> 10.41453043 | K56: =IF(E55="","",IFERROR((E56/VLOOKUP(B56&"|"&VLOOKUP(TDPrimas_!$B$4,Cat!R:T,2,0),'TD Operación'!A:D,4,0))*100,"ND")) -> 11.12353383 | L56: =IF('TDPrimas Vida'!E18="","",'TDPrimas Vida'!E18) -> 11.12353383
B57: =IF(C57="",B56,D57) -> AXA Seguros | D57: =IF(D56="","","1er Año") -> 1er Año | E57: =IF(E56="","",(VLOOKUP(B57,'TDPrimas Vida'!$B:$N,5,0))) -> 1435565.258 | F57: =IF(E56="","",(VLOOKUP(B57,'TDPrimas Vida'!$B:$N,6,0))) -> 1151388.461 | G57: =IFERROR((E57/VLOOKUP("TOTAL",$D$12:$L$312,2,0))*100,"") -> 0.4626297117 | H57: =IFERROR((E57/VLOOKUP("TOTAL",$D$12:$L$312,3,0))*100,"") -> 0.553750358 | I57: =IF(E56="","",E57-F57) -> 284176.7968 | J57: =IF(E56="","",IFERROR((E57/F57-1)*100,"ND")) -> 24.68122675 | K57: =IF(E56="","",IFERROR((E57/VLOOKUP(B57&"|"&VLOOKUP(TDPrimas_!$B$4,Cat!R:T,2,0),'TD Operación'!A:D,4,0))*100,"ND")) -> 2.642196045 | L57: =IF(E56="","",(VLOOKUP(B57,'TDPrimas Vida'!$B:$N,7,0))) -> 24.68122675
B58: =IF(C58="",B57,D58) -> AXA Seguros | D58: =IF(D57="","","Renovación") -> Renovación | E58: =IF(E56="","",(VLOOKUP(B58,'TDPrimas Vida'!$B:$N,8,0))) -> 4596068.504 | F58: =IF(E56="","",(VLOOKUP(B58,'TDPrimas Vida'!$B:$N,9,0))) -> 4315534.032 | G58: =IFERROR((E58/VLOOKUP("TOTAL",$D$12:$L$312,2,0))*100,"") -> 1.481143289 | H58: =IFERROR((E58/VLOOKUP("TOTAL",$D$12:$L$312,3,0))*100,"") -> 1.772872787 | I58: =IF(E56="","",E58-F58) -> 280534.4723 | J58: =IF(E56="","",IFERROR((E58/F58-1)*100,"ND")) -> 6.500573746 | K58: =IF(E57="","",IFERROR((E58/VLOOKUP(B58&"|"&VLOOKUP(TDPrimas_!$B$4,Cat!R:T,2,0),'TD Operación'!A:D,4,0))*100,"ND")) -> 8.459186343 | L58: =IF(E56="","",(VLOOKUP(B58,'TDPrimas Vida'!$B:$N,10,0))) -> 1.481143289
B59: =IF(C59="",B58,D59) -> AXA Seguros | D59: =IF(D58="","","Únicas") -> Únicas | E59: =IF(E57="","",(VLOOKUP(B59,'TDPrimas Vida'!$B:$N,11,0))) -> 12035.38205 | F59: =IF(E57="","",(VLOOKUP(B59,'TDPrimas Vida'!$B:$N,12,0))) -> 6695.08307 | G59: =IFERROR((E59/VLOOKUP("TOTAL",$D$12:$L$312,2,0))*100,"") -> 0.003878559542 | H59: =IFERROR((E59/VLOOKUP("TOTAL",$D$12:$L$312,3,0))*100,"") -> 0.004642489837 | I59: =IF(E56="","",E59-F59) -> 5340.29898 | J59: =IF(E56="","",IFERROR((E59/F59-1)*100,"ND")) -> 79.7644917 | K59: =IF(E58="","",IFERROR((E59/VLOOKUP(B59&"|"&VLOOKUP(TDPrimas_!$B$4,Cat!R:T,2,0),'TD Operación'!A:D,4,0))*100,"ND")) -> 0.02215144082 | L59: =IF(E56="","",(VLOOKUP(B59,'TDPrimas Vida'!$B:$N,13,0))) -> 0.003878559542
B60: =IF(C60="",B56,D60) -> Inbursa | C60: =IF('TDPrimas Vida'!A19="","",'TDPrimas Vida'!A19) -> 12 | D60: =IF('TDPrimas Vida'!B19="","",'TDPrimas Vida'!B19) -> Inbursa | E60: =IF('TDPrimas Vida'!C19="","",'TDPrimas Vida'!C19) -> 5016047.75 | F60: =IF('TDPrimas Vida'!D19="","",'TDPrimas Vida'!D19) -> 5269961.063 | G60: =IF('TDPrimas Vida'!C19="","",IFERROR((E60/VLOOKUP("TOTAL",$D$12:$L$312,2,0))*100,"")) -> 1.616487103 | H60: =IF('TDPrimas Vida'!C19="","",IFERROR((E60/VLOOKUP("TOTAL",$D$12:$L$312,3,0))*100,"")) -> 1.93487424 | I60: =IF('TDPrimas Vida'!C19="","",E60-F60) -> -253913.3134 | J60: =IFERROR(IF('TDPrimas Vida'!C19="","",(E60/F60-1)*100),"ND") -> -4.818125036 | K60: =IF(E59="","",IFERROR((E60/VLOOKUP(B60&"|"&VLOOKUP(TDPrimas_!$B$4,Cat!R:T,2,0),'TD Operación'!A:D,4,0))*100,"ND")) -> 18.80544694 | L60: =IF('TDPrimas Vida'!E19="","",'TDPrimas Vida'!E19) -> 18.80544694
B61: =IF(C61="",B60,D61) -> Inbursa | D61: =IF(D60="","","1er Año") -> 1er Año | E61: =IF(E60="","",(VLOOKUP(B61,'TDPrimas Vida'!$B:$N,5,0))) -> 2656727.116 | F61: =IF(E60="","",(VLOOKUP(B61,'TDPrimas Vida'!$B:$N,6,0))) -> 2958038.826 | G61: =IFERROR((E61/VLOOKUP("TOTAL",$D$12:$L$312,2,0))*100,"") -> 0.8561651192 | H61: =IFERROR((E61/VLOOKUP("TOTAL",$D$12:$L$312,3,0))*100,"") -> 1.024797434 | I61: =IF(E60="","",E61-F61) -> -301311.7097 | J61: =IF(E60="","",IFERROR((E61/F61-1)*100,"ND")) -> -10.18619861 | K61: =IF(E60="","",IFERROR((E61/VLOOKUP(B61&"|"&VLOOKUP(TDPrimas_!$B$4,Cat!R:T,2,0),'TD Operación'!A:D,4,0))*100,"ND")) -> 9.960220338 | L61: =IF(E60="","",(VLOOKUP(B61,'TDPrimas Vida'!$B:$N,7,0))) -> -10.18619861
B62: =IF(C62="",B61,D62) -> Inbursa | D62: =IF(D61="","","Renovación") -> Renovación | E62: =IF(E60="","",(VLOOKUP(B62,'TDPrimas Vida'!$B:$N,8,0))) -> 2359320.634 | F62: =IF(E60="","",(VLOOKUP(B62,'TDPrimas Vida'!$B:$N,9,0))) -> 2311922.237 | G62: =IFERROR((E62/VLOOKUP("TOTAL",$D$12:$L$312,2,0))*100,"") -> 0.7603219838 | H62: =IFERROR((E62/VLOOKUP("TOTAL",$D$12:$L$312,3,0))*100,"") -> 0.9100768068 | I62: =IF(E60="","",E62-F62) -> 47398.39631 | J62: =IF(E60="","",IFERROR((E62/F62-1)*100,"ND")) -> 2.050172603 | K62: =IF(E61="","",IFERROR((E62/VLOOKUP(B62&"|"&VLOOKUP(TDPrimas_!$B$4,Cat!R:T,2,0),'TD Operación'!A:D,4,0))*100,"ND")) -> 8.845226599 | L62: =IF(E60="","",(VLOOKUP(B62,'TDPrimas Vida'!$B:$N,10,0))) -> 0.7603219838
B63: =IF(C63="",B62,D63) -> Inbursa | D63: =IF(D62="","","Únicas") -> Únicas | E63: =IF(E61="","",(VLOOKUP(B63,'TDPrimas Vida'!$B:$N,11,0))) -> 0 | F63: =IF(E61="","",(VLOOKUP(B63,'TDPrimas Vida'!$B:$N,12,0))) -> 0 | G63: =IFERROR((E63/VLOOKUP("TOTAL",$D$12:$L$312,2,0))*100,"") -> 0 | H63: =IFERROR((E63/VLOOKUP("TOTAL",$D$12:$L$312,3,0))*100,"") -> 0 | I63: =IF(E60="","",E63-F63) -> 0 | J63: =IF(E60="","",IFERROR((E63/F63-1)*100,"ND")) -> ND | K63: =IF(E62="","",IFERROR((E63/VLOOKUP(B63&"|"&VLOOKUP(TDPrimas_!$B$4,Cat!R:T,2,0),'TD Operación'!A:D,4,0))*100,"ND")) -> 0 | L63: =IF(E60="","",(VLOOKUP(B63,'TDPrimas Vida'!$B:$N,13,0))) -> 0
B64: =IF(C64="",B60,D64) -> Hir Seguros | C64: =IF('TDPrimas Vida'!A20="","",'TDPrimas Vida'!A20) -> 13 | D64: =IF('TDPrimas Vida'!B20="","",'TDPrimas Vida'!B20) -> Hir Seguros | E64: =IF('TDPrimas Vida'!C20="","",'TDPrimas Vida'!C20) -> 4587074.326 | F64: =IF('TDPrimas Vida'!D20="","",'TDPrimas Vida'!D20) -> 3672557.955 | G64: =IF('TDPrimas Vida'!C20="","",IFERROR((E64/VLOOKUP("TOTAL",$D$12:$L$312,2,0))*100,"")) -> 1.478244797 | H64: =IF('TDPrimas Vida'!C20="","",IFERROR((E64/VLOOKUP("TOTAL",$D$12:$L$312,3,0))*100,"")) -> 1.769403402 | I64: =IF('TDPrimas Vida'!C20="","",E64-F64) -> 914516.3714 | J64: =IFERROR(IF('TDPrimas Vida'!C20="","",(E64/F64-1)*100),"ND") -> 24.90134622 | K64: =IF(E63="","",IFERROR((E64/VLOOKUP(B64&"|"&VLOOKUP(TDPrimas_!$B$4,Cat!R:T,2,0),'TD Operación'!A:D,4,0))*100,"ND")) -> 98.56621353 | L64: =IF('TDPrimas Vida'!E20="","",'TDPrimas Vida'!E20) -> 98.56621353
B65: =IF(C65="",B64,D65) -> Hir Seguros | D65: =IF(D64="","","1er Año") -> 1er Año | E65: =IF(E64="","",(VLOOKUP(B65,'TDPrimas Vida'!$B:$N,5,0))) -> 2182770.948 | F65: =IF(E64="","",(VLOOKUP(B65,'TDPrimas Vida'!$B:$N,6,0))) -> 1054319.038 | G65: =IFERROR((E65/VLOOKUP("TOTAL",$D$12:$L$312,2,0))*100,"") -> 0.7034265345 | H65: =IFERROR((E65/VLOOKUP("TOTAL",$D$12:$L$312,3,0))*100,"") -> 0.8419750947 | I65: =IF(E64="","",E65-F65) -> 1128451.91 | J65: =IF(E64="","",IFERROR((E65/F65-1)*100,"ND")) -> 107.0313509 | K65: =IF(E64="","",IFERROR((E65/VLOOKUP(B65&"|"&VLOOKUP(TDPrimas_!$B$4,Cat!R:T,2,0),'TD Operación'!A:D,4,0))*100,"ND")) -> 46.9029826 | L65: =IF(E64="","",(VLOOKUP(B65,'TDPrimas Vida'!$B:$N,7,0))) -> 107.0313509
B66: =IF(C66="",B65,D66) -> Hir Seguros | D66: =IF(D65="","","Renovación") -> Renovación | E66: =IF(E64="","",(VLOOKUP(B66,'TDPrimas Vida'!$B:$N,8,0))) -> 2404303.379 | F66: =IF(E64="","",(VLOOKUP(B66,'TDPrimas Vida'!$B:$N,9,0))) -> 2618238.917 | G66: =IFERROR((E66/VLOOKUP("TOTAL",$D$12:$L$312,2,0))*100,"") -> 0.7748182627 | H66: =IFERROR((E66/VLOOKUP("TOTAL",$D$12:$L$312,3,0))*100,"") -> 0.9274283072 | I66: =IF(E64="","",E66-F66) -> -213935.5382 | J66: =IF(E64="","",IFERROR((E66/F66-1)*100,"ND")) -> -8.170970831 | K66: =IF(E65="","",IFERROR((E66/VLOOKUP(B66&"|"&VLOOKUP(TDPrimas_!$B$4,Cat!R:T,2,0),'TD Operación'!A:D,4,0))*100,"ND")) -> 51.66323093 | L66: =IF(E64="","",(VLOOKUP(B66,'TDPrimas Vida'!$B:$N,10,0))) -> 0.7748182627
B67: =IF(C67="",B66,D67) -> Hir Seguros | D67: =IF(D66="","","Únicas") -> Únicas | E67: =IF(E65="","",(VLOOKUP(B67,'TDPrimas Vida'!$B:$N,11,0))) -> 0 | F67: =IF(E65="","",(VLOOKUP(B67,'TDPrimas Vida'!$B:$N,12,0))) -> 0 | G67: =IFERROR((E67/VLOOKUP("TOTAL",$D$12:$L$312,2,0))*100,"") -> 0 | H67: =IFERROR((E67/VLOOKUP("TOTAL",$D$12:$L$312,3,0))*100,"") -> 0 | I67: =IF(E64="","",E67-F67) -> 0 | J67: =IF(E64="","",IFERROR((E67/F67-1)*100,"ND")) -> ND | K67: =IF(E66="","",IFERROR((E67/VLOOKUP(B67&"|"&VLOOKUP(TDPrimas_!$B$4,Cat!R:T,2,0),'TD Operación'!A:D,4,0))*100,"ND")) -> 0 | L67: =IF(E64="","",(VLOOKUP(B67,'TDPrimas Vida'!$B:$N,13,0))) -> 0
B68: =IF(C68="",B64,D68) -> Seguros Argos | C68: =IF('TDPrimas Vida'!A21="","",'TDPrimas Vida'!A21) -> 14 | D68: =IF('TDPrimas Vida'!B21="","",'TDPrimas Vida'!B21) -> Seguros Argos | E68: =IF('TDPrimas Vida'!C21="","",'TDPrimas Vida'!C21) -> 4263445.338 | F68: =IF('TDPrimas Vida'!D21="","",'TDPrimas Vida'!D21) -> 3759735.104 | G68: =IF('TDPrimas Vida'!C21="","",IFERROR((E68/VLOOKUP("TOTAL",$D$12:$L$312,2,0))*100,"")) -> 1.373951116 | H68: =IF('TDPrimas Vida'!C21="","",IFERROR((E68/VLOOKUP("TOTAL",$D$12:$L$312,3,0))*100,"")) -> 1.64456779 | I68: =IF('TDPrimas Vida'!C21="","",E68-F68) -> 503710.2344 | J68: =IFERROR(IF('TDPrimas Vida'!C21="","",(E68/F68-1)*100),"ND") -> 13.39749265 | K68: =IF(E67="","",IFERROR((E68/VLOOKUP(B68&"|"&VLOOKUP(TDPrimas_!$B$4,Cat!R:T,2,0),'TD Operación'!A:D,4,0))*100,"ND")) -> 100 | L68: =IF('TDPrimas Vida'!E21="","",'TDPrimas Vida'!E21) -> 100
B69: =IF(C69="",B68,D69) -> Seguros Argos | D69: =IF(D68="","","1er Año") -> 1er Año | E69: =IF(E68="","",(VLOOKUP(B69,'TDPrimas Vida'!$B:$N,5,0))) -> 1364920.694 | F69: =IF(E68="","",(VLOOKUP(B69,'TDPrimas Vida'!$B:$N,6,0))) -> 976257.407 | G69: =IFERROR((E69/VLOOKUP("TOTAL",$D$12:$L$312,2,0))*100,"") -> 0.4398635755 | H69: =IFERROR((E69/VLOOKUP("TOTAL",$D$12:$L$312,3,0))*100,"") -> 0.5265001496 | I69: =IF(E68="","",E69-F69) -> 388663.2869 | J69: =IF(E68="","",IFERROR((E69/F69-1)*100,"ND")) -> 39.81155832 | K69: =IF(E68="","",IFERROR((E69/VLOOKUP(B69&"|"&VLOOKUP(TDPrimas_!$B$4,Cat!R:T,2,0),'TD Operación'!A:D,4,0))*100,"ND")) -> 32.01449967 | L69: =IF(E68="","",(VLOOKUP(B69,'TDPrimas Vida'!$B:$N,7,0))) -> 39.81155832
B70: =IF(C70="",B69,D70) -> Seguros Argos | D70: =IF(D69="","","Renovación") -> Renovación | E70: =IF(E68="","",(VLOOKUP(B70,'TDPrimas Vida'!$B:$N,8,0))) -> 2643984.121 | F70: =IF(E68="","",(VLOOKUP(B70,'TDPrimas Vida'!$B:$N,9,0))) -> 2511749.588 | G70: =IFERROR((E70/VLOOKUP("TOTAL",$D$12:$L$312,2,0))*100,"") -> 0.8520585218 | H70: =IFERROR((E70/VLOOKUP("TOTAL",$D$12:$L$312,3,0))*100,"") -> 1.019881991 | I70: =IF(E68="","",E70-F70) -> 132234.5324 | J70: =IF(E68="","",IFERROR((E70/F70-1)*100,"ND")) -> 5.264638364 | K70: =IF(E69="","",IFERROR((E70/VLOOKUP(B70&"|"&VLOOKUP(TDPrimas_!$B$4,Cat!R:T,2,0),'TD Operación'!A:D,4,0))*100,"ND")) -> 62.01519923 | L70: =IF(E68="","",(VLOOKUP(B70,'TDPrimas Vida'!$B:$N,10,0))) -> 0.8520585218
B71: =IF(C71="",B70,D71) -> Seguros Argos | D71: =IF(D70="","","Únicas") -> Únicas | E71: =IF(E69="","",(VLOOKUP(B71,'TDPrimas Vida'!$B:$N,11,0))) -> 254540.5239 | F71: =IF(E69="","",(VLOOKUP(B71,'TDPrimas Vida'!$B:$N,12,0))) -> 271728.1087 | G71: =IFERROR((E71/VLOOKUP("TOTAL",$D$12:$L$312,2,0))*100,"") -> 0.08202901856 | H71: =IFERROR((E71/VLOOKUP("TOTAL",$D$12:$L$312,3,0))*100,"") -> 0.09818564881 | I71: =IF(E68="","",E71-F71) -> -17187.58488 | J71: =IF(E68="","",IFERROR((E71/F71-1)*100,"ND")) -> -6.325287788 | K71: =IF(E70="","",IFERROR((E71/VLOOKUP(B71&"|"&VLOOKUP(TDPrimas_!$B$4,Cat!R:T,2,0),'TD Operación'!A:D,4,0))*100,"ND")) -> 5.970301098 | L71: =IF(E68="","",(VLOOKUP(B71,'TDPrimas Vida'!$B:$N,13,0))) -> 0.08202901856
B72: =IF(C72="",B68,D72) -> Seguros Azteca | C72: =IF('TDPrimas Vida'!A22="","",'TDPrimas Vida'!A22) -> 15 | D72: =IF('TDPrimas Vida'!B22="","",'TDPrimas Vida'!B22) -> Seguros Azteca | E72: =IF('TDPrimas Vida'!C22="","",'TDPrimas Vida'!C22) -> 4110479.393 | F72: =IF('TDPrimas Vida'!D22="","",'TDPrimas Vida'!D22) -> 3769814.528 | G72: =IF('TDPrimas Vida'!C22="","",IFERROR((E72/VLOOKUP("TOTAL",$D$12:$L$312,2,0))*100,"")) -> 1.324655836 | H72: =IF('TDPrimas Vida'!C22="","",IFERROR((E72/VLOOKUP("TOTAL",$D$12:$L$312,3,0))*100,"")) -> 1.585563194 | I72: =IF('TDPrimas Vida'!C22="","",E72-F72) -> 340664.8651 | J72: =IFERROR(IF('TDPrimas Vida'!C22="","",(E72/F72-1)*100),"ND") -> 9.036647893 | K72: =IF(E71="","",IFERROR((E72/VLOOKUP(B72&"|"&VLOOKUP(TDPrimas_!$B$4,Cat!R:T,2,0),'TD Operación'!A:D,4,0))*100,"ND")) -> 91.86849148 | L72: =IF('TDPrimas Vida'!E22="","",'TDPrimas Vida'!E22) -> 91.86849148
B73: =IF(C73="",B72,D73) -> Seguros Azteca | D73: =IF(D72="","","1er Año") -> 1er Año | E73: =IF(E72="","",(VLOOKUP(B73,'TDPrimas Vida'!$B:$N,5,0))) -> 3989311.431 | F73: =IF(E72="","",(VLOOKUP(B73,'TDPrimas Vida'!$B:$N,6,0))) -> 3667577.854 | G73: =IFERROR((E73/VLOOKUP("TOTAL",$D$12:$L$312,2,0))*100,"") -> 1.285607873 | H73: =IFERROR((E73/VLOOKUP("TOTAL",$D$12:$L$312,3,0))*100,"") -> 1.538824252 | I73: =IF(E72="","",E73-F73) -> 321733.577 | J73: =IF(E72="","",IFERROR((E73/F73-1)*100,"ND")) -> 8.772372117 | K73: =IF(E72="","",IFERROR((E73/VLOOKUP(B73&"|"&VLOOKUP(TDPrimas_!$B$4,Cat!R:T,2,0),'TD Operación'!A:D,4,0))*100,"ND")) -> 89.16040884 | L73: =IF(E72="","",(VLOOKUP(B73,'TDPrimas Vida'!$B:$N,7,0))) -> 8.772372117
B74: =IF(C74="",B73,D74) -> Seguros Azteca | D74: =IF(D73="","","Renovación") -> Renovación | E74: =IF(E72="","",(VLOOKUP(B74,'TDPrimas Vida'!$B:$N,8,0))) -> 10366.27404 | F74: =IF(E72="","",(VLOOKUP(B74,'TDPrimas Vida'!$B:$N,9,0))) -> 11381.52445 | G74: =IFERROR((E74/VLOOKUP("TOTAL",$D$12:$L$312,2,0))*100,"") -> 0.003340667618 | H74: =IFERROR((E74/VLOOKUP("TOTAL",$D$12:$L$312,3,0))*100,"") -> 0.003998653444 | I74: =IF(E72="","",E74-F74) -> -1015.25041 | J74: =IF(E72="","",IFERROR((E74/F74-1)*100,"ND")) -> -8.920161921 | K74: =IF(E73="","",IFERROR((E74/VLOOKUP(B74&"|"&VLOOKUP(TDPrimas_!$B$4,Cat!R:T,2,0),'TD Operación'!A:D,4,0))*100,"ND")) -> 0.2316844016 | L74: =IF(E72="","",(VLOOKUP(B74,'TDPrimas Vida'!$B:$N,10,0))) -> 0.003340667618
B75: =IF(C75="",B74,D75) -> Seguros Azteca | D75: =IF(D74="","","Únicas") -> Únicas | E75: =IF(E73="","",(VLOOKUP(B75,'TDPrimas Vida'!$B:$N,11,0))) -> 110801.6881 | F75: =IF(E73="","",(VLOOKUP(B75,'TDPrimas Vida'!$B:$N,12,0))) -> 90855.14963 | G75: =IFERROR((E75/VLOOKUP("TOTAL",$D$12:$L$312,2,0))*100,"") -> 0.03570729562 | H75: =IFERROR((E75/VLOOKUP("TOTAL",$D$12:$L$312,3,0))*100,"") -> 0.04274028934 | I75: =IF(E72="","",E75-F75) -> 19946.5385 | J75: =IF(E72="","",IFERROR((E75/F75-1)*100,"ND")) -> 21.95421898 | K75: =IF(E74="","",IFERROR((E75/VLOOKUP(B75&"|"&VLOOKUP(TDPrimas_!$B$4,Cat!R:T,2,0),'TD Operación'!A:D,4,0))*100,"ND")) -> 2.476398242 | L75: =IF(E72="","",(VLOOKUP(B75,'TDPrimas Vida'!$B:$N,13,0))) -> 0.03570729562
B76: =IF(C76="",B72,D76) -> TOTAL MEDIANAS | C76: =IF('TDPrimas Vida'!A23="","",'TDPrimas Vida'!A23) -> 15.1 | D76: =IF('TDPrimas Vida'!B23="","",'TDPrimas Vida'!B23) -> TOTAL MEDIANAS | E76: =IF('TDPrimas Vida'!C23="","",'TDPrimas Vida'!C23) -> 90624335.94 | F76: =IF('TDPrimas Vida'!D23="","",'TDPrimas Vida'!D23) -> 69661251.73 | G76: =IF('TDPrimas Vida'!C23="","",IFERROR((E76/VLOOKUP("TOTAL",$D$12:$L$312,2,0))*100,"")) -> 29.20487953 | H76: =IF('TDPrimas Vida'!C23="","",IFERROR((E76/VLOOKUP("TOTAL",$D$12:$L$312,3,0))*100,"")) -> 34.95714194 | I76: =IF('TDPrimas Vida'!C23="","",E76-F76) -> 20963084.21 | J76: =IFERROR(IF('TDPrimas Vida'!C23="","",(E76/F76-1)*100),"ND") -> 30.09289051 | K76: =IF(E75="","",IFERROR((E76/VLOOKUP(B76&"|"&VLOOKUP(TDPrimas_!$B$4,Cat!R:T,2,0),'TD Operación'!A:D,4,0))*100,"ND")) -> 34.08906045 | L76: =IF('TDPrimas Vida'!E23="","",'TDPrimas Vida'!E23) -> 42.65778005
B77: =IF(C77="",B76,D77) -> TOTAL MEDIANAS | D77: =IF(D76="","","1er Año") -> 1er Año | E77: =IF(E76="","",(VLOOKUP(B77,'TDPrimas Vida'!$B:$N,5,0))) -> 45338817.66 | F77: =IF(E76="","",(VLOOKUP(B77,'TDPrimas Vida'!$B:$N,6,0))) -> 32303130.71 | G77: =IFERROR((E77/VLOOKUP("TOTAL",$D$12:$L$312,2,0))*100,"") -> 14.61102798 | H77: =IFERROR((E77/VLOOKUP("TOTAL",$D$12:$L$312,3,0))*100,"") -> 17.48885073 | I77: =IF(E76="","",E77-F77) -> 13035686.95 | J77: =IF(E76="","",IFERROR((E77/F77-1)*100,"ND")) -> 40.35425255 | K77: =IF(E76="","",IFERROR((E77/VLOOKUP(B77&"|"&VLOOKUP(TDPrimas_!$B$4,Cat!R:T,2,0),'TD Operación'!A:D,4,0))*100,"ND")) -> 17.05455472 | L77: =IF(E76="","",(VLOOKUP(B77,'TDPrimas Vida'!$B:$N,7,0))) -> 40.35425255
B78: =IF(C78="",B77,D78) -> TOTAL MEDIANAS | D78: =IF(D77="","","Renovación") -> Renovación | E78: =IF(E76="","",(VLOOKUP(B78,'TDPrimas Vida'!$B:$N,8,0))) -> 32493193.29 | F78: =IF(E76="","",(VLOOKUP(B78,'TDPrimas Vida'!$B:$N,9,0))) -> 29929514.19 | G78: =IFERROR((E78/VLOOKUP("TOTAL",$D$12:$L$312,2,0))*100,"") -> 10.47135723 | H78: =IFERROR((E78/VLOOKUP("TOTAL",$D$12:$L$312,3,0))*100,"") -> 12.53382061 | I78: =IF(E76="","",E78-F78) -> 2563679.101 | J78: =IF(E76="","",IFERROR((E78/F78-1)*100,"ND")) -> 8.565722399 | K78: =IF(E77="","",IFERROR((E78/VLOOKUP(B78&"|"&VLOOKUP(TDPrimas_!$B$4,Cat!R:T,2,0),'TD Operación'!A:D,4,0))*100,"ND")) -> 12.22257155 | L78: =IF(E76="","",(VLOOKUP(B78,'TDPrimas Vida'!$B:$N,10,0))) -> 10.47135723
B79: =IF(C79="",B78,D79) -> TOTAL MEDIANAS | D79: =IF(D78="","","Únicas") -> Únicas | E79: =IF(E77="","",(VLOOKUP(B79,'TDPrimas Vida'!$B:$N,11,0))) -> 12792324.99 | F79: =IF(E77="","",(VLOOKUP(B79,'TDPrimas Vida'!$B:$N,12,0))) -> 7428053.609 | G79: =IFERROR((E79/VLOOKUP("TOTAL",$D$12:$L$312,2,0))*100,"") -> 4.122494322 | H79: =IFERROR((E79/VLOOKUP("TOTAL",$D$12:$L$312,3,0))*100,"") -> 4.934470591 | I79: =IF(E76="","",E79-F79) -> 5364271.384 | J79: =IF(E76="","",IFERROR((E79/F79-1)*100,"ND")) -> 72.2163795 | K79: =IF(E78="","",IFERROR((E79/VLOOKUP(B79&"|"&VLOOKUP(TDPrimas_!$B$4,Cat!R:T,2,0),'TD Operación'!A:D,4,0))*100,"ND")) -> 4.811934184 | L79: =IF(E76="","",(VLOOKUP(B79,'TDPrimas Vida'!$B:$N,13,0))) -> 4.122494322
B80: =IF(C80="",B76,D80) -> Cardif Vida | C80: =IF('TDPrimas Vida'!A24="","",'TDPrimas Vida'!A24) -> 16 | D80: =IF('TDPrimas Vida'!B24="","",'TDPrimas Vida'!B24) -> Cardif Vida | E80: =IF('TDPrimas Vida'!C24="","",'TDPrimas Vida'!C24) -> 2628465.894 | F80: =IF('TDPrimas Vida'!D24="","",'TDPrimas Vida'!D24) -> 2711266.144 | G80: =IF('TDPrimas Vida'!C24="","",IFERROR((E80/VLOOKUP("TOTAL",$D$12:$L$312,2,0))*100,"")) -> 0.84705757 | H80: =IF('TDPrimas Vida'!C24="","",IFERROR((E80/VLOOKUP("TOTAL",$D$12:$L$312,3,0))*100,"")) -> 1.01389604 | I80: =IF('TDPrimas Vida'!C24="","",E80-F80) -> -82800.25016 | J80: =IFERROR(IF('TDPrimas Vida'!C24="","",(E80/F80-1)*100),"ND") -> -3.053932951 | K80: =IF(E79="","",IFERROR((E80/VLOOKUP(B80&"|"&VLOOKUP(TDPrimas_!$B$4,Cat!R:T,2,0),'TD Operación'!A:D,4,0))*100,"ND")) -> 106.0846321 | L80: =IF('TDPrimas Vida'!E24="","",'TDPrimas Vida'!E24) -> 106.0846321
B81: =IF(C81="",B80,D81) -> Cardif Vida | D81: =IF(D80="","","1er Año") -> 1er Año | E81: =IF(E80="","",(VLOOKUP(B81,'TDPrimas Vida'!$B:$N,5,0))) -> 20057.46467 | F81: =IF(E80="","",(VLOOKUP(B81,'TDPrimas Vida'!$B:$N,6,0))) -> 339064.6367 | G81: =IFERROR((E81/VLOOKUP("TOTAL",$D$12:$L$312,2,0))*100,"") -> 0.006463780764 | H81: =IFERROR((E81/VLOOKUP("TOTAL",$D$12:$L$312,3,0))*100,"") -> 0.007736902369 | I81: =IF(E80="","",E81-F81) -> -319007.172 | J81: =IF(E80="","",IFERROR((E81/F81-1)*100,"ND")) -> -94.08447166 | K81: =IF(E80="","",IFERROR((E81/VLOOKUP(B81&"|"&VLOOKUP(TDPrimas_!$B$4,Cat!R:T,2,0),'TD Operación'!A:D,4,0))*100,"ND")) -> 0.8095173556 | L81: =IF(E80="","",(VLOOKUP(B81,'TDPrimas Vida'!$B:$N,7,0))) -> -94.08447166
B82: =IF(C82="",B81,D82) -> Cardif Vida | D82: =IF(D81="","","Renovación") -> Renovación | E82: =IF(E80="","",(VLOOKUP(B82,'TDPrimas Vida'!$B:$N,8,0))) -> 1901522.171 | F82: =IF(E80="","",(VLOOKUP(B82,'TDPrimas Vida'!$B:$N,9,0))) -> 1708593.716 | G82: =IFERROR((E82/VLOOKUP("TOTAL",$D$12:$L$312,2,0))*100,"") -> 0.6127904316 | H82: =IFERROR((E82/VLOOKUP("TOTAL",$D$12:$L$312,3,0))*100,"") -> 0.7334870899 | I82: =IF(E80="","",E82-F82) -> 192928.455 | J82: =IF(E80="","",IFERROR((E82/F82-1)*100,"ND")) -> 11.29165191 | K82: =IF(E81="","",IFERROR((E82/VLOOKUP(B82&"|"&VLOOKUP(TDPrimas_!$B$4,Cat!R:T,2,0),'TD Operación'!A:D,4,0))*100,"ND")) -> 76.74525296 | L82: =IF(E80="","",(VLOOKUP(B82,'TDPrimas Vida'!$B:$N,10,0))) -> 0.6127904316
B83: =IF(C83="",B82,D83) -> Cardif Vida | D83: =IF(D82="","","Únicas") -> Únicas | E83: =IF(E81="","",(VLOOKUP(B83,'TDPrimas Vida'!$B:$N,11,0))) -> 706886.258 | F83: =IF(E81="","",(VLOOKUP(B83,'TDPrimas Vida'!$B:$N,12,0))) -> 663607.7912 | G83: =IFERROR((E83/VLOOKUP("TOTAL",$D$12:$L$312,2,0))*100,"") -> 0.2278033576 | H83: =IFERROR((E83/VLOOKUP("TOTAL",$D$12:$L$312,3,0))*100,"") -> 0.2726720477 | I83: =IF(E80="","",E83-F83) -> 43278.46685 | J83: =IF(E80="","",IFERROR((E83/F83-1)*100,"ND")) -> 6.521693601 | K83: =IF(E82="","",IFERROR((E83/VLOOKUP(B83&"|"&VLOOKUP(TDPrimas_!$B$4,Cat!R:T,2,0),'TD Operación'!A:D,4,0))*100,"ND")) -> 28.52986176 | L83: =IF(E80="","",(VLOOKUP(B83,'TDPrimas Vida'!$B:$N,13,0))) -> 0.2278033576
B84: =IF(C84="",B80,D84) -> Afirme | C84: =IF('TDPrimas Vida'!A25="","",'TDPrimas Vida'!A25) -> 17 | D84: =IF('TDPrimas Vida'!B25="","",'TDPrimas Vida'!B25) -> Afirme | E84: =IF('TDPrimas Vida'!C25="","",'TDPrimas Vida'!C25) -> 2274000.339 | F84: =IF('TDPrimas Vida'!D25="","",'TDPrimas Vida'!D25) -> 2172231.379 | G84: =IF('TDPrimas Vida'!C25="","",IFERROR((E84/VLOOKUP("TOTAL",$D$12:$L$312,2,0))*100,"")) -> 0.7328264011 | H84: =IF('TDPrimas Vida'!C25="","",IFERROR((E84/VLOOKUP("TOTAL",$D$12:$L$312,3,0))*100,"")) -> 0.8771656289 | I84: =IF('TDPrimas Vida'!C25="","",E84-F84) -> 101768.96 | J84: =IFERROR(IF('TDPrimas Vida'!C25="","",(E84/F84-1)*100),"ND") -> 4.684996314 | K84: =IF(E83="","",IFERROR((E84/VLOOKUP(B84&"|"&VLOOKUP(TDPrimas_!$B$4,Cat!R:T,2,0),'TD Operación'!A:D,4,0))*100,"ND")) -> 28.24850661 | L84: =IF('TDPrimas Vida'!E25="","",'TDPrimas Vida'!E25) -> 28.24850661
B85: =IF(C85="",B84,D85) -> Afirme | D85: =IF(D84="","","1er Año") -> 1er Año | E85: =IF(E84="","",(VLOOKUP(B85,'TDPrimas Vida'!$B:$N,5,0))) -> 2274000.339 | F85: =IF(E84="","",(VLOOKUP(B85,'TDPrimas Vida'!$B:$N,6,0))) -> 0 | G85: =IFERROR((E85/VLOOKUP("TOTAL",$D$12:$L$312,2,0))*100,"") -> 0.7328264011 | H85: =IFERROR((E85/VLOOKUP("TOTAL",$D$12:$L$312,3,0))*100,"") -> 0.8771656289 | I85: =IF(E84="","",E85-F85) -> 2274000.339 | J85: =IF(E84="","",IFERROR((E85/F85-1)*100,"ND")) -> ND | K85: =IF(E84="","",IFERROR((E85/VLOOKUP(B85&"|"&VLOOKUP(TDPrimas_!$B$4,Cat!R:T,2,0),'TD Operación'!A:D,4,0))*100,"ND")) -> 28.24850661 | L85: =IF(E84="","",(VLOOKUP(B85,'TDPrimas Vida'!$B:$N,7,0))) -> 0
B86: =IF(C86="",B85,D86) -> Afirme | D86: =IF(D85="","","Renovación") -> Renovación | E86: =IF(E84="","",(VLOOKUP(B86,'TDPrimas Vida'!$B:$N,8,0))) -> 0 | F86: =IF(E84="","",(VLOOKUP(B86,'TDPrimas Vida'!$B:$N,9,0))) -> 0 | G86: =IFERROR((E86/VLOOKUP("TOTAL",$D$12:$L$312,2,0))*100,"") -> 0 | H86: =IFERROR((E86/VLOOKUP("TOTAL",$D$12:$L$312,3,0))*100,"") -> 0 | I86: =IF(E84="","",E86-F86) -> 0 | J86: =IF(E84="","",IFERROR((E86/F86-1)*100,"ND")) -> ND | K86: =IF(E85="","",IFERROR((E86/VLOOKUP(B86&"|"&VLOOKUP(TDPrimas_!$B$4,Cat!R:T,2,0),'TD Operación'!A:D,4,0))*100,"ND")) -> 0 | L86: =IF(E84="","",(VLOOKUP(B86,'TDPrimas Vida'!$B:$N,10,0))) -> 0
B87: =IF(C87="",B86,D87) -> Afirme | D87: =IF(D86="","","Únicas") -> Únicas | E87: =IF(E85="","",(VLOOKUP(B87,'TDPrimas Vida'!$B:$N,11,0))) -> 0 | F87: =IF(E85="","",(VLOOKUP(B87,'TDPrimas Vida'!$B:$N,12,0))) -> 0 | G87: =IFERROR((E87/VLOOKUP("TOTAL",$D$12:$L$312,2,0))*100,"") -> 0 | H87: =IFERROR((E87/VLOOKUP("TOTAL",$D$12:$L$312,3,0))*100,"") -> 0 | I87: =IF(E84="","",E87-F87) -> 0 | J87: =IF(E84="","",IFERROR((E87/F87-1)*100,"ND")) -> ND | K87: =IF(E86="","",IFERROR((E87/VLOOKUP(B87&"|"&VLOOKUP(TDPrimas_!$B$4,Cat!R:T,2,0),'TD Operación'!A:D,4,0))*100,"ND")) -> 0 | L87: =IF(E84="","",(VLOOKUP(B87,'TDPrimas Vida'!$B:$N,13,0))) -> 0
B88: =IF(C88="",B84,D88) -> Atlas | C88: =IF('TDPrimas Vida'!A26="","",'TDPrimas Vida'!A26) -> 18 | D88: =IF('TDPrimas Vida'!B26="","",'TDPrimas Vida'!B26) -> Atlas | E88: =IF('TDPrimas Vida'!C26="","",'TDPrimas Vida'!C26) -> 2259905.78 | F88: =IF('TDPrimas Vida'!D26="","",'TDPrimas Vida'!D26) -> 2612427.283 | G88: =IF('TDPrimas Vida'!C26="","",IFERROR((E88/VLOOKUP("TOTAL",$D$12:$L$312,2,0))*100,"")) -> 0.7282842447 | H88: =IF('TDPrimas Vida'!C26="","",IFERROR((E88/VLOOKUP("TOTAL",$D$12:$L$312,3,0))*100,"")) -> 0.8717288386 | I88: =IF('TDPrimas Vida'!C26="","",E88-F88) -> -352521.5028 | J88: =IFERROR(IF('TDPrimas Vida'!C26="","",(E88/F88-1)*100),"ND") -> -13.49402164 | K88: =IF(E87="","",IFERROR((E88/VLOOKUP(B88&"|"&VLOOKUP(TDPrimas_!$B$4,Cat!R:T,2,0),'TD Operación'!A:D,4,0))*100,"ND")) -> 11.67659363 | L88: =IF('TDPrimas Vida'!E26="","",'TDPrimas Vida'!E26) -> 11.67659363
B89: =IF(C89="",B88,D89) -> Atlas | D89: =IF(D88="","","1er Año") -> 1er Año | E89: =IF(E88="","",(VLOOKUP(B89,'TDPrimas Vida'!$B:$N,5,0))) -> 1426399.93 | F89: =IF(E88="","",(VLOOKUP(B89,'TDPrimas Vida'!$B:$N,6,0))) -> 1824502.26 | G89: =IFERROR((E89/VLOOKUP("TOTAL",$D$12:$L$312,2,0))*100,"") -> 0.4596760647 | H89: =IFERROR((E89/VLOOKUP("TOTAL",$D$12:$L$312,3,0))*100,"") -> 0.5502149537 | I89: =IF(E88="","",E89-F89) -> -398102.3306 | J89: =IF(E88="","",IFERROR((E89/F89-1)*100,"ND")) -> -21.81977733 | K89: =IF(E88="","",IFERROR((E89/VLOOKUP(B89&"|"&VLOOKUP(TDPrimas_!$B$4,Cat!R:T,2,0),'TD Operación'!A:D,4,0))*100,"ND")) -> 7.36999413 | L89: =IF(E88="","",(VLOOKUP(B89,'TDPrimas Vida'!$B:$N,7,0))) -> -21.81977733
B90: =IF(C90="",B89,D90) -> Atlas | D90: =IF(D89="","","Renovación") -> Renovación | E90: =IF(E88="","",(VLOOKUP(B90,'TDPrimas Vida'!$B:$N,8,0))) -> 721174.8766 | F90: =IF(E88="","",(VLOOKUP(B90,'TDPrimas Vida'!$B:$N,9,0))) -> 708213.5183 | G90: =IFERROR((E90/VLOOKUP("TOTAL",$D$12:$L$312,2,0))*100,"") -> 0.2324080521 | H90: =IFERROR((E90/VLOOKUP("TOTAL",$D$12:$L$312,3,0))*100,"") -> 0.2781836939 | I90: =IF(E88="","",E90-F90) -> 12961.35831 | J90: =IF(E88="","",IFERROR((E90/F90-1)*100,"ND")) -> 1.830148391 | K90: =IF(E89="","",IFERROR((E90/VLOOKUP(B90&"|"&VLOOKUP(TDPrimas_!$B$4,Cat!R:T,2,0),'TD Operación'!A:D,4,0))*100,"ND")) -> 3.726202236 | L90: =IF(E88="","",(VLOOKUP(B90,'TDPrimas Vida'!$B:$N,10,0))) -> 0.2324080521
B91: =IF(C91="",B90,D91) -> Atlas | D91: =IF(D90="","","Únicas") -> Únicas | E91: =IF(E89="","",(VLOOKUP(B91,'TDPrimas Vida'!$B:$N,11,0))) -> 112330.9735 | F91: =IF(E89="","",(VLOOKUP(B91,'TDPrimas Vida'!$B:$N,12,0))) -> 79711.50393 | G91: =IFERROR((E91/VLOOKUP("TOTAL",$D$12:$L$312,2,0))*100,"") -> 0.03620012785 | H91: =IFERROR((E91/VLOOKUP("TOTAL",$D$12:$L$312,3,0))*100,"") -> 0.04333019098 | I91: =IF(E88="","",E91-F91) -> 32619.46954 | J91: =IF(E88="","",IFERROR((E91/F91-1)*100,"ND")) -> 40.92190955 | K91: =IF(E90="","",IFERROR((E91/VLOOKUP(B91&"|"&VLOOKUP(TDPrimas_!$B$4,Cat!R:T,2,0),'TD Operación'!A:D,4,0))*100,"ND")) -> 0.580397263 | L91: =IF(E88="","",(VLOOKUP(B91,'TDPrimas Vida'!$B:$N,13,0))) -> 0.03620012785
B92: =IF(C92="",B88,D92) -> Insignia Life | C92: =IF('TDPrimas Vida'!A27="","",'TDPrimas Vida'!A27) -> 19 | D92: =IF('TDPrimas Vida'!B27="","",'TDPrimas Vida'!B27) -> Insignia Life | E92: =IF('TDPrimas Vida'!C27="","",'TDPrimas Vida'!C27) -> 2054654.46 | F92: =IF('TDPrimas Vida'!D27="","",'TDPrimas Vida'!D27) -> 1967652.949 | G92: =IF('TDPrimas Vida'!C27="","",IFERROR((E92/VLOOKUP("TOTAL",$D$12:$L$312,2,0))*100,"")) -> 0.6621393177 | H92: =IF('TDPrimas Vida'!C27="","",IFERROR((E92/VLOOKUP("TOTAL",$D$12:$L$312,3,0))*100,"")) -> 0.7925558497 | I92: =IF('TDPrimas Vida'!C27="","",E92-F92) -> 87001.5108 | J92: =IFERROR(IF('TDPrimas Vida'!C27="","",(E92/F92-1)*100),"ND") -> 4.42158821 | K92: =IF(E91="","",IFERROR((E92/VLOOKUP(B92&"|"&VLOOKUP(TDPrimas_!$B$4,Cat!R:T,2,0),'TD Operación'!A:D,4,0))*100,"ND")) -> 100 | L92: =IF('TDPrimas Vida'!E27="","",'TDPrimas Vida'!E27) -> 100
B93: =IF(C93="",B92,D93) -> Insignia Life | D93: =IF(D92="","","1er Año") -> 1er Año | E93: =IF(E92="","",(VLOOKUP(B93,'TDPrimas Vida'!$B:$N,5,0))) -> 625406.7596 | F93: =IF(E92="","",(VLOOKUP(B93,'TDPrimas Vida'!$B:$N,6,0))) -> 577363.1559 | G93: =IFERROR((E93/VLOOKUP("TOTAL",$D$12:$L$312,2,0))*100,"") -> 0.2015455218 | H93: =IFERROR((E93/VLOOKUP("TOTAL",$D$12:$L$312,3,0))*100,"") -> 0.2412424062 | I93: =IF(E92="","",E93-F93) -> 48043.6036 | J93: =IF(E92="","",IFERROR((E93/F93-1)*100,"ND")) -> 8.321210508 | K93: =IF(E92="","",IFERROR((E93/VLOOKUP(B93&"|"&VLOOKUP(TDPrimas_!$B$4,Cat!R:T,2,0),'TD Operación'!A:D,4,0))*100,"ND")) -> 30.43853708 | L93: =IF(E92="","",(VLOOKUP(B93,'TDPrimas Vida'!$B:$N,7,0))) -> 8.321210508
B94: =IF(C94="",B93,D94) -> Insignia Life | D94: =IF(D93="","","Renovación") -> Renovación | E94: =IF(E92="","",(VLOOKUP(B94,'TDPrimas Vida'!$B:$N,8,0))) -> 1432598.105 | F94: =IF(E92="","",(VLOOKUP(B94,'TDPrimas Vida'!$B:$N,9,0))) -> 1392872.776 | G94: =IFERROR((E94/VLOOKUP("TOTAL",$D$12:$L$312,2,0))*100,"") -> 0.4616735079 | H94: =IFERROR((E94/VLOOKUP("TOTAL",$D$12:$L$312,3,0))*100,"") -> 0.5526058181 | I94: =IF(E92="","",E94-F94) -> 39725.32867 | J94: =IF(E92="","",IFERROR((E94/F94-1)*100,"ND")) -> 2.852042867 | K94: =IF(E93="","",IFERROR((E94/VLOOKUP(B94&"|"&VLOOKUP(TDPrimas_!$B$4,Cat!R:T,2,0),'TD Operación'!A:D,4,0))*100,"ND")) -> 69.72452708 | L94: =IF(E92="","",(VLOOKUP(B94,'TDPrimas Vida'!$B:$N,10,0))) -> 0.4616735079
B95: =IF(C95="",B94,D95) -> Insignia Life | D95: =IF(D94="","","Únicas") -> Únicas | E95: =IF(E93="","",(VLOOKUP(B95,'TDPrimas Vida'!$B:$N,11,0))) -> -3350.4051 | F95: =IF(E93="","",(VLOOKUP(B95,'TDPrimas Vida'!$B:$N,12,0))) -> -2582.98365 | G95: =IFERROR((E95/VLOOKUP("TOTAL",$D$12:$L$312,2,0))*100,"") -> -0.001079711937 | H95: =IFERROR((E95/VLOOKUP("TOTAL",$D$12:$L$312,3,0))*100,"") -> -0.001292374564 | I95: =IF(E92="","",E95-F95) -> -767.42145 | J95: =IF(E92="","",IFERROR((E95/F95-1)*100,"ND")) -> 29.71065845 | K95: =IF(E94="","",IFERROR((E95/VLOOKUP(B95&"|"&VLOOKUP(TDPrimas_!$B$4,Cat!R:T,2,0),'TD Operación'!A:D,4,0))*100,"ND")) -> -0.1630641631 | L95: =IF(E92="","",(VLOOKUP(B95,'TDPrimas Vida'!$B:$N,13,0))) -> -0.001079711937
B96: =IF(C96="",B92,D96) -> Prudential | C96: =IF('TDPrimas Vida'!A28="","",'TDPrimas Vida'!A28) -> 20 | D96: =IF('TDPrimas Vida'!B28="","",'TDPrimas Vida'!B28) -> Prudential | E96: =IF('TDPrimas Vida'!C28="","",'TDPrimas Vida'!C28) -> 1903927.412 | F96: =IF('TDPrimas Vida'!D28="","",'TDPrimas Vida'!D28) -> 1613118.019 | G96: =IF('TDPrimas Vida'!C28="","",IFERROR((E96/VLOOKUP("TOTAL",$D$12:$L$312,2,0))*100,"")) -> 0.6135655519 | H96: =IF('TDPrimas Vida'!C28="","",IFERROR((E96/VLOOKUP("TOTAL",$D$12:$L$312,3,0))*100,"")) -> 0.7344148797 | I96: =IF('TDPrimas Vida'!C28="","",E96-F96) -> 290809.3926 | J96: =IFERROR(IF('TDPrimas Vida'!C28="","",(E96/F96-1)*100),"ND") -> 18.02778155 | K96: =IF(E95="","",IFERROR((E96/VLOOKUP(B96&"|"&VLOOKUP(TDPrimas_!$B$4,Cat!R:T,2,0),'TD Operación'!A:D,4,0))*100,"ND")) -> 100 | L96: =IF('TDPrimas Vida'!E28="","",'TDPrimas Vida'!E28) -> 100
B97: =IF(C97="",B96,D97) -> Prudential | D97: =IF(D96="","","1er Año") -> 1er Año | E97: =IF(E96="","",(VLOOKUP(B97,'TDPrimas Vida'!$B:$N,5,0))) -> 515118.3292 | F97: =IF(E96="","",(VLOOKUP(B97,'TDPrimas Vida'!$B:$N,6,0))) -> 555658.74 | G97: =IFERROR((E97/VLOOKUP("TOTAL",$D$12:$L$312,2,0))*100,"") -> 0.1660036302 | H97: =IFERROR((E97/VLOOKUP("TOTAL",$D$12:$L$312,3,0))*100,"") -> 0.1987000993 | I97: =IF(E96="","",E97-F97) -> -40540.41083 | J97: =IF(E96="","",IFERROR((E97/F97-1)*100,"ND")) -> -7.295918864 | K97: =IF(E96="","",IFERROR((E97/VLOOKUP(B97&"|"&VLOOKUP(TDPrimas_!$B$4,Cat!R:T,2,0),'TD Operación'!A:D,4,0))*100,"ND")) -> 27.05556556 | L97: =IF(E96="","",(VLOOKUP(B97,'TDPrimas Vida'!$B:$N,7,0))) -> -7.295918864
B98: =IF(C98="",B97,D98) -> Prudential | D98: =IF(D97="","","Renovación") -> Renovación | E98: =IF(E96="","",(VLOOKUP(B98,'TDPrimas Vida'!$B:$N,8,0))) -> 1367279.234 | F98: =IF(E96="","",(VLOOKUP(B98,'TDPrimas Vida'!$B:$N,9,0))) -> 1023104.967 | G98: =IFERROR((E98/VLOOKUP("TOTAL",$D$12:$L$312,2,0))*100,"") -> 0.4406236458 | H98: =IFERROR((E98/VLOOKUP("TOTAL",$D$12:$L$312,3,0))*100,"") -> 0.5274099252 | I98: =IF(E96="","",E98-F98) -> 344174.2665 | J98: =IF(E96="","",IFERROR((E98/F98-1)*100,"ND")) -> 33.64017159 | K98: =IF(E97="","",IFERROR((E98/VLOOKUP(B98&"|"&VLOOKUP(TDPrimas_!$B$4,Cat!R:T,2,0),'TD Operación'!A:D,4,0))*100,"ND")) -> 71.81362194 | L98: =IF(E96="","",(VLOOKUP(B98,'TDPrimas Vida'!$B:$N,10,0))) -> 0.4406236458
B99: =IF(C99="",B98,D99) -> Prudential | D99: =IF(D98="","","Únicas") -> Únicas | E99: =IF(E97="","",(VLOOKUP(B99,'TDPrimas Vida'!$B:$N,11,0))) -> 21529.84919 | F99: =IF(E97="","",(VLOOKUP(B99,'TDPrimas Vida'!$B:$N,12,0))) -> 34354.31222 | G99: =IFERROR((E99/VLOOKUP("TOTAL",$D$12:$L$312,2,0))*100,"") -> 0.006938275965 | H99: =IFERROR((E99/VLOOKUP("TOTAL",$D$12:$L$312,3,0))*100,"") -> 0.008304855272 | I99: =IF(E96="","",E99-F99) -> -12824.46303 | J99: =IF(E96="","",IFERROR((E99/F99-1)*100,"ND")) -> -37.32999499 | K99: =IF(E98="","",IFERROR((E99/VLOOKUP(B99&"|"&VLOOKUP(TDPrimas_!$B$4,Cat!R:T,2,0),'TD Operación'!A:D,4,0))*100,"ND")) -> 1.130812501 | L99: =IF(E96="","",(VLOOKUP(B99,'TDPrimas Vida'!$B:$N,13,0))) -> 0.006938275965
B100: =IF(C100="",B96,D100) -> Seguros SURA | C100: =IF('TDPrimas Vida'!A29="","",'TDPrimas Vida'!A29) -> 21 | D100: =IF('TDPrimas Vida'!B29="","",'TDPrimas Vida'!B29) -> Seguros SURA | E100: =IF('TDPrimas Vida'!C29="","",'TDPrimas Vida'!C29) -> 1451209.48 | F100: =IF('TDPrimas Vida'!D29="","",'TDPrimas Vida'!D29) -> 1862741.333 | G100: =IF('TDPrimas Vida'!C29="","",IFERROR((E100/VLOOKUP("TOTAL",$D$12:$L$312,2,0))*100,"")) -> 0.4676712673 | H100: =IF('TDPrimas Vida'!C29="","",IFERROR((E100/VLOOKUP("TOTAL",$D$12:$L$312,3,0))*100,"")) -> 0.5597849104 | I100: =IF('TDPrimas Vida'!C29="","",E100-F100) -> -411531.8533 | J100: =IFERROR(IF('TDPrimas Vida'!C29="","",(E100/F100-1)*100),"ND") -> -22.0928073 | K100: =IF(E99="","",IFERROR((E100/VLOOKUP(B100&"|"&VLOOKUP(TDPrimas_!$B$4,Cat!R:T,2,0),'TD Operación'!A:D,4,0))*100,"ND")) -> 22.02554368 | L100: =IF('TDPrimas Vida'!E29="","",'TDPrimas Vida'!E29) -> 22.02554368
B101: =IF(C101="",B100,D101) -> Seguros SURA | D101: =IF(D100="","","1er Año") -> 1er Año | E101: =IF(E100="","",(VLOOKUP(B101,'TDPrimas Vida'!$B:$N,5,0))) -> 1177184.086 | F101: =IF(E100="","",(VLOOKUP(B101,'TDPrimas Vida'!$B:$N,6,0))) -> 0 | G101: =IFERROR((E101/VLOOKUP("TOTAL",$D$12:$L$312,2,0))*100,"") -> 0.3793629939 | H101: =IFERROR((E101/VLOOKUP("TOTAL",$D$12:$L$312,3,0))*100,"") -> 0.4540832299 | I101: =IF(E100="","",E101-F101) -> 1177184.086 | J101: =IF(E100="","",IFERROR((E101/F101-1)*100,"ND")) -> ND | K101: =IF(E100="","",IFERROR((E101/VLOOKUP(B101&"|"&VLOOKUP(TDPrimas_!$B$4,Cat!R:T,2,0),'TD Operación'!A:D,4,0))*100,"ND")) -> 17.86655879 | L101: =IF(E100="","",(VLOOKUP(B101,'TDPrimas Vida'!$B:$N,7,0))) -> 0
B102: =IF(C102="",B101,D102) -> Seguros SURA | D102: =IF(D101="","","Renovación") -> Renovación | E102: =IF(E100="","",(VLOOKUP(B102,'TDPrimas Vida'!$B:$N,8,0))) -> 272981.7139 | F102: =IF(E100="","",(VLOOKUP(B102,'TDPrimas Vida'!$B:$N,9,0))) -> 0 | G102: =IFERROR((E102/VLOOKUP("TOTAL",$D$12:$L$312,2,0))*100,"") -> 0.08797193366 | H102: =IFERROR((E102/VLOOKUP("TOTAL",$D$12:$L$312,3,0))*100,"") -> 0.1052990946 | I102: =IF(E100="","",E102-F102) -> 272981.7139 | J102: =IF(E100="","",IFERROR((E102/F102-1)*100,"ND")) -> ND | K102: =IF(E101="","",IFERROR((E102/VLOOKUP(B102&"|"&VLOOKUP(TDPrimas_!$B$4,Cat!R:T,2,0),'TD Operación'!A:D,4,0))*100,"ND")) -> 4.14314456 | L102: =IF(E100="","",(VLOOKUP(B102,'TDPrimas Vida'!$B:$N,10,0))) -> 0.08797193366
